Workbook

Sheet CoverSheet
B4: =+ModelName -> Depreciation Model | P4: Information Classification: | Q4: =+InfoClassification -> Public
B5: =+A21 -> Data Version | E5: =+_LU_DataVersion -> Revenue Proposal
B6: Structural Version | E6: =+_LU_Version -> 1
A10: Model Guide | C10: (Refer Below)
A11: =+ModelName -> Depreciation Model
A12: ="Version " & _LU_Version -> Version 1
A14: Overview
A15: Organisation name | D15: ElectraNet
A16: Workbook name | D16: Depreciation Model
A17: Workbook purpose | D17: Calculation of depreciation for annual asset class additions
A18: Information Classification | D18: Public
A19: File name | D19: =MID(CELL("filename"),SEARCH("[",CELL("filename"))+1, SEARCH("]",CELL("filename"))-SEARCH("[",CELL("filename"))-1) -> 170323 ElectraNet PTRM 2018-2023 a.xlsm
A20: File Location
A21: Data Version | D21: Revenue Proposal
A22: Structural Version | D22: 1
A23: Model Completed by | D23: Ian Robertson
A24: Diagram of data flow | D24: Refer Model Schematic Worksheet: | G24: =+#REF! -> 

Sheet Contents
A1: Table of Contents | F1: =+ModelName -> Depreciation Model
A3: Section | B3: Sheet Title | C3: Sheet Description
B4: Contents
A7: =+Section1!C3 -> 1 | B7: =+Section1!A1 -> Section1 | C7: =+Section1!B5 -> Inputs
B8: =+'I1 '!A1 -> I1 | C8: =+'I1 '!B1 -> Standard Asset lives
B9: ='I2 RAB '!A1 -> I2 RAB | C9: ='I2 RAB '!B1 -> Opening Commissioned RAB Data - 30 June 2013
B10: ='I3 CAPEX '!A1 -> I3 CAPEX | C10: ='I3 CAPEX '!B1 -> Actual Capex
A12: =+Section2!C3 -> 2 | B12: =+Section2!A1 -> Section2 | C12: =+Section2!B5 -> Workings
B13: ='W1-Depreciation '!A1 -> W1-Depreciation | C13: ='W1-Depreciation '!B2 -> Regulatory Straight Line Depreciation
B14: ='W2-TaxDepreciation '!A1 -> W2-TaxDepreciation | C14: ='W2-TaxDepreciation '!B2 -> Straight Line Tax Depreciation
A16: =+Section3!C3 -> 3 | B16: =+Section3!A1 -> Section3 | C16: =+Section3!B5 -> Reports
B17: ='R1-RABLife '!A1 -> R1-RABLife | C17: ='R1-RABLife '!B2 -> Remaining Life Calculation
B18: ='R2-TABLife '!A1 -> R2-TABLife | C18: ='R2-TABLife '!B2 -> Remaining Tax Life Calculation
A20: =+Reference!C3 -> 4 | B20: =+Reference!A1 -> Reference | C20: =+Reference!B5 -> Lookup, Reference and Help
B21: =+_LU_L1 -> L1 | C21: =+'L1 '!B1 -> Lookup and Reference Data

Sheet Section1
A1: =RIGHT(CELL("filename",A1),LEN(CELL("filename",A1))-FIND("]",CELL("filename",A1))) -> Section1
B3: Section | C3: 1
B5: Inputs

Sheet I1
A1: =RIGHT(CELL("filename",A1),LEN(CELL("filename",A1))-FIND("]",CELL("filename",A1))) -> I1 | B1: Standard Asset lives
C3: Regulatory Lives for Regulatory Period: | H3: Tax Lives for Regulatory Period:
B5: Asset Class | C5: 2013-2018 | D5: 2018-2023 | E5: 2023-2028 | F5: 2028-2033 | H5: =C5 -> 2013-2018 | I5: =D5 -> 2018-2023 | J5: 2023-2028 | K5: 2028-2033
H6: [1] | I6: [2]
B7: =+Asset1 -> Commercial Buildings | C7: 30 | D7: 30 | E7: 30 | F7: 30 | H7: 40 | I7: 40
B8: =+Asset2 -> Communications - Civil | C8: 55 | D8: 55 | E8: 55 | F8: 55 | H8: 12.5 | I8: 12.5
B9: =+Asset3 -> Communications - Other | C9: 15 | D9: 15 | E9: 15 | F9: 15 | H9: 12.5 | I9: 12.5
B10: =+Asset4 -> Computers, software, and office machines | C10: 4 | D10: 4 | E10: 4 | F10: 4 | H10: 3.25 | I10: 3.25
B11: =+Asset5 -> Easement | C11: n/a | D11: n/a | E11: n/a | F11: n/a | H11: n/a | I11: n/a
B12: =+Asset6 -> Land | C12: n/a | D12: n/a | E12: n/a | F12: n/a | H12: n/a | I12: n/a
B13: =+Asset7 -> Network Switching Centres | C13: 5 | D13: 5 | E13: 5 | F13: 5 | H13: 4 | I13: 4
B14: =+Asset8 -> Office furniture, movable plant, and misc | C14: 10 | D14: 10 | E14: 10 | F14: 10 | H14: 12.8 | I14: 12.8
B15: =+Asset9 -> Refurbishment | C15: 10 | D15: 10 | E15: 10 | F15: 10 | H15: 43.75 | I15: 43.75
B16: =+Asset10 -> Substation Primary Plant | C16: 44.8 | D16: 44.8 | E16: 44.8 | F16: 44.8 | H16: 40 | I16: 40
B17: =+Asset11 -> Substation Demountable Buildings | C17: 15 | D17: 15 | E17: 15 | F17: 15 | H17: 40 | I17: 40
B18: =+Asset12 -> Substation Establishment | C18: 55 | D18: 55 | E18: 55 | F18: 55 | H18: 40 | I18: 40
B19: =+Asset13 -> Substation Fences | C19: 35 | D19: 35 | E19: 35 | F19: 35 | H19: 40 | I19: 40
B20: =+Asset14 -> Substation Secondary Systems - Electromechanical | C20: 27 | D20: 27 | E20: 27 | F20: 27 | H20: 12.5 | I20: 12.5
B21: =+Asset15 -> Substation Secondary Systems - Electronic | C21: 15 | D21: 15 | E21: 15 | F21: 15 | H21: 12.5 | I21: 12.5
B22: =+Asset16 -> Transmission lines - Overhead | C22: 55 | D22: 55 | E22: 55 | F22: 55 | H22: 47.5 | I22: 47.5
B23: =+Asset17 -> Transmission lines - Underground | C23: 40 | D23: 40 | E23: 40 | F23: 40 | H23: 47.5 | I23: 47.5
B24: =+Asset18 -> Capital Work in Progress | C24: n/a | D24: n/a | E24: n/a | F24: n/a | H24: n/a | I24: n/a
B25: =+Asset19 -> Accelerated Depreciation | C25: 5 | D25: 5 | E25: 5 | F25: 5 | H25: 5 | I25: 5
B26: =+Asset20 -> Refurbishment Projects 2008-2013 | C26: 12.5 | D26: 12.5 | E26: 12.5 | F26: 12.5 | H26: 40 | I26: 40
B27: =+Asset21 -> Equity Raising Cost - 2003 Opening RAB and 2003-08 capex | C27: 43 | D27: 43 | E27: 43 | F27: 43 | H27: 44 | I27: 44
B28: =+Asset22 -> Equity Raising Cost 2013-2018 | C28: 43 | D28: 43 | E28: 43 | F28: 43 | H28: n/a | I28: n/a
B29: =+Asset23 -> Transmission Line Refit - insulators replacement 2013-18 | C29: 27 | D29: 27 | E29: 27 | F29: 27 | H29: 27 | I29: 27
B30: =+Asset24 -> Communications - Other (post 2018) | C30: 10 | D30: 10 | E30: 10 | F30: 10 | H30: 10 | I30: 10
B31: =+Asset25 -> Synchronous Condensers | D31: 30 | E31: 30 | F31: 30 | H31: 30 | I31: 30
B32: =+Asset26 -> Asset26 - Not in Use
B33: =+Asset27 -> Asset27 - Not in Use
B34: =+Asset28 -> Asset28 - Not in Use
B35: =+Asset29 -> Asset29 - Not in Use
B36: =+Asset30 -> Asset30 - Not in Use
B39: Data Source:
C40: [ElectraNet - PTRM - amended - final decision w Heywood.xlsm]Input

Sheet I2 RAB
A1: =RIGHT(CELL("filename",A2),LEN(CELL("filename",A2))-FIND("]",CELL("filename",A2))) -> I2 RAB | B1: Opening Commissioned RAB Data - 30 June 2013
D3: Standard Control Opening Asset Base as at: | E3: 2013-06-30
D5: RAB - As Commissioned | H5: RAB - As Incurred | L5: Tax Base
A6: Asset No. | B6: Asset Classes - Master List | D6: RAB Value @ 30/6/2013 | E6: Remaining Life @ 30/6/2013 | F6: 2019 Opening RAB Value | H6: RAB Value @ 30/6/2013 | I6: Remaining Life @ 30/6/2013 | J6: 2019 Opening RAB Value | L6: TAB Value @ 30/6/2013 | M6: Remaining Life @ 30/6/2013 | N6: 2019 Opening TAB Value
D7: $m June 2013 | F7: $m June 2018 | H7: $m June 2013 | J7: $m June 2018 | L7: $m June 2013 | N7: $m June 2018
C8: Data Source: | D8: [1] | E8: [2] | F8: [3] | L8: [1] | M8: [2] | N8: [3]
A9: Asset1 | B9: Commercial Buildings | D9: 11.48585491 | E9: 23.26612118 | F9: 18.31037267 | H9: 0 | I9: 0 | J9: 0 | L9: 7.701107483 | M9: 30.85958882 | N9: 13.95042685
A10: Asset2 | B10: Communications - Civil | D10: 7.698910695 | E10: 44.71344089 | F10: 24.4210038 | H10: 0 | I10: 0 | J10: 0 | L10: 5.392695081 | M10: 38.05477412 | N10: 18.37886448
A11: Asset3 | B11: Communications - Other | D11: 77.05562629 | E11: 11.66905449 | F11: 85.59869757 | H11: 0 | I11: 0 | J11: 0 | L11: 52.68904157 | M11: 10.69980716 | N11: 78.845535
A12: Asset4 | B12: Computers, software, and office machines | D12: 34.8918299 | E12: 3.495058628 | F12: 29.38425253 | H12: 0 | I12: 0 | J12: 0 | L12: 21.4252675 | M12: 2.846289956 | N12: 36.5556219
A13: Asset5 | B13: Easement | D13: 109.4635498 | E13: n/a | F13: 108.6105927 | H13: 0 | I13: 0 | J13: 0 | L13: 146.1938618 | M13: n/a | N13: 162.2547422
A14: Asset6 | B14: Land | D14: 34.206626 | E14: n/a | F14: 78.7873661 | H14: 0 | I14: 0 | J14: 0 | L14: 41.97774383 | M14: n/a | N14: 59.3645832
A15: Asset7 | B15: Network Switching Centres | D15: -0.4621257019 | E15: 0.8305211354 | F15: 7.642933531 | H15: 0 | I15: 0 | J15: 0 | L15: 2.528095471 | M15: 3.502635962 | N15: 3.614528572
A16: Asset8 | B16: Office furniture, movable plant, and misc | D16: 11.47482637 | E16: 9.009586157 | F16: 16.43722052 | H16: 0 | I16: 0 | J16: 0 | L16: 5.299424586 | M16: 11.83662417 | N16: 20.44574113
A17: Asset9 | B17: Refurbishment | D17: 36.4132208 | E17: 4.382842703 | F17: -0.2423565834 | H17: 0 | I17: 0 | J17: 0 | L17: 50.71651625 | M17: 31.33406384 | N17: 42.62364383
A18: Asset10 | B18: Substation Primary Plant | D18: 631.7614832 | E18: 33.01872275 | F18: 847.1801613 | H18: 0 | I18: 0 | J18: 0 | L18: 421.526405 | M18: 32.9063313 | N18: 595.7820367
A19: Asset11 | B19: Substation Demountable Buildings | D19: 1.329803554 | E19: 14.48798592 | F19: 12.59212134 | H19: 0 | I19: 0 | J19: 0 | L19: 0.1792600842 | M19: 39.4398314 | N19: 13.01024285
A20: Asset12 | B20: Substation Establishment | D20: 86.00403399 | E20: 53.63131216 | F20: 232.985134 | H20: 0 | I20: 0 | J20: 0 | L20: 108.565319 | M20: 38.6556737 | N20: 202.1858908
A21: Asset13 | B21: Substation Fences | D21: 20.79496022 | E21: 35.00955258 | F21: 5.306485442 | H21: 0 | I21: 0 | J21: 0 | L21: 3.727999175 | M21: 40.00901438 | N21: 7.922173548
A22: Asset14 | B22: Substation Secondary Systems - Electromechanical | D22: 87.79463926 | E22: 17.17111887 | F22: 62.03415208 | H22: 0 | I22: 0 | J22: 0 | L22: 22.16990159 | M22: 18.40170032 | N22: 12.67353446
A23: Asset15 | B23: Substation Secondary Systems - Electronic | D23: 66.43775292 | E23: 14.10433879 | F23: 188.6031208 | H23: 0 | I23: 0 | J23: 0 | L23: 56.28849959 | M23: 11.65164211 | N23: 167.0333435
A24: Asset16 | B24: Transmission lines - Overhead | D24: 426.1259795 | E24: 30.19105425 | F24: 480.8769201 | H24: 0 | I24: 0 | J24: 0 | L24: 278.6290883 | M24: 26.44134201 | N24: 297.2136359
A25: Asset17 | B25: Transmission lines - Underground | D25: 108.6481911 | E25: 36.49340013 | F25: 110.8594873 | H25: 0 | I25: 0 | J25: 0 | L25: 97.56416742 | M25: 44.08303656 | N25: 94.38218913
A26: Asset18 | B26: Capital Work in Progress | D26: 16.14421735 | E26: n/a | F26: 17.73736645 | H26: 0 | I26: 0 | J26: 0 | L26: 0 | M26: n/a | N26: 0
A27: Asset19 | B27: Accelerated Depreciation | D27: 3.999042036 | E27: 5 | F27: 25.3499317 | H27: 0 | I27: 0 | J27: 0 | L27: 0 | M27: n/a | N27: 0
A28: Asset20 | B28: Refurbishment Projects 2008-2013 | D28: 11.35770834 | E28: 12.50616679 | F28: -1.457723919 | H28: 0 | I28: 0 | J28: 0 | L28: -0.006607706878 | M28: 40.00764051 | N28: 4.804614752
A29: Asset21 | B29: Equity Raising Cost - 2003 Opening RAB and 2003-08 capex | D29: 20.55008212 | E29: 38 | F29: 19.58960757 | H29: 0 | I29: 0 | J29: 0 | L29: 18.155501 | M29: 38 | N29: 15.76661929
A30: Asset22 | B30: Equity Raising Cost 2013-2018 | D30: 0 | E30: n/a | F30: 0 | H30: 0 | I30: 0 | J30: 0 | L30: 0 | M30: n/a | N30: 0
A31: Asset23 | B31: Transmission Line Refit - insulators replacement 2013-18 | D31: 0 | E31: n/a | F31: 82.74103344 | H31: 0 | I31: 0 | J31: 0 | L31: 0 | M31: n/a | N31: 79.57856647
A32: Asset24 | B32: Communications - Other (post 2018) | D32: 0 | E32: 0 | F32: 0 | H32: 0 | I32: 0 | J32: 0 | L32: 0 | M32: 0 | N32: 0
A33: Asset25 | B33: Synchronous Condensers | D33: 0 | E33: 0 | F33: 0 | H33: 0 | I33: 0 | J33: 0 | L33: 0 | M33: 0 | N33: 0
A34: Asset26 | B34: Asset26 - Not in Use | D34: 0 | E34: 0 | F34: 0 | H34: 0 | I34: 0 | J34: 0 | L34: 0 | M34: 0 | N34: 0
A35: Asset27 | B35: Asset27 - Not in Use | D35: 0 | E35: 0 | F35: 0 | H35: 0 | I35: 0 | J35: 0 | L35: 0 | M35: 0 | N35: 0
A36: Asset28 | B36: Asset28 - Not in Use | D36: 0 | E36: 0 | F36: 0 | H36: 0 | I36: 0 | J36: 0 | L36: 0 | M36: 0 | N36: 0
A37: Asset29 | B37: Asset29 - Not in Use | D37: 0 | E37: 0 | F37: 0 | H37: 0 | I37: 0 | J37: 0 | L37: 0 | M37: 0 | N37: 0
A38: Asset30 | B38: Asset30 - Not in Use | D38: 0 | E38: 0 | F38: 0 | H38: 0 | I38: 0 | J38: 0 | L38: 0 | M38: 0 | N38: 0
B40: Total | D40: =SUM(D9:D38) -> 1803.176213 | F40: =SUM(F9:F38) -> 2453.34788 | H40: =SUM(H9:H38) -> 0 | J40: =SUM(J9:J38) -> 0 | L40: =SUM(L9:L38) -> 1340.723287 | N40: =SUM(N9:N38) -> 1926.386535
B43: Data Source: | H43: =SUM('PTRM input'!K75:O75) -> 517.407778
B44: [1] | C44: [ElectraNet 2013-2018 RFM.xlsm]RAB Roll Forward
B45: [2] | C45: [ElectraNet - RFM - amended - final decision.xlsm]Output Summary
B46: [3] | C46: [ElectraNet 2013-2018 RFM.xlsm]PTRM input summary
B50: CPI factors | D50: ='L1 '!E49 -> 1.025025025 | E50: ='L1 '!F49 -> 1.055058258 | F50: ='L1 '!G49 -> 1.069090533 | G50: ='L1 '!H49 -> 1.083095619 | H50: ='L1 '!I49 -> 1.104432603 | I50: ='L1 '!J49 -> 1.126189925 | J50: ='L1 '!K49 -> 1.148375867 | K50: ='L1 '!L49 -> 1.170998871 | L50: ='L1 '!M49 -> 1.194067549 | M50: ='L1 '!N49 -> 1.21759068
B52: Per Roll Forward Model | D52: -76.95855786 | E52: -86.80682029 | F52: -93.20242586 | G52: -95.36633601 | H52: -99.03154704
B53: Year by Year Depreciation
B54: $m REAL | D54: F14 | E54: ="F"&RIGHT(D54,2)+1 -> F15 | F54: ="F"&RIGHT(E54,2)+1 -> F16 | G54: F17 | H54: F18 | I54: F19 | J54: F20 | K54: F21 | L54: F22 | M54: F23
B55: Total depreciation | C55: 18 | D55: =SUM(D56:D78) -> 76.95855786 | E55: =SUM(E56:E78) -> 86.80683454 | F55: =SUM(F56:F78) -> 93.20247518 | G55: =SUM(G56:G78) -> 95.36621005 | H55: =SUM(H56:H78) -> 99.03126212 | I55: =SUM(I56:I78) -> 94.17248211 | J55: =SUM(J56:J78) -> 100.1387503 | K55: =SUM(K56:K78) -> 97.44930911 | L55: =SUM(L56:L78) -> 92.72116869 | M55: =SUM(M56:M78) -> 86.42746417
B56: Commercial Buildings | D56: =INDEX(SAPNDepn,MATCH($B56,SAPNDepnRow,0)+$C$55,MATCH(D$54,SAPNDepnCol,0)) -> 0.4936729601 | E56: 0.5032193786 | F56: 0.5176736045 | G56: 0.5412689582 | H56: 0.5720451549 | I56: 0.756710643 | J56: 0.756710643 | K56: 0.756710643 | L56: 0.756710643 | M56: 0.756710643
B57: Communications - Civil | D57: 0.1721833646 | E57: 0.179217583 | F57: 0.2114938578 | G57: 0.3148713234 | H57: 0.4155934219 | I57: 0.4588924313 | J57: 0.4588924313 | K57: 0.4588924313 | L57: 0.4588924313 | M57: 0.4588924313
B58: Communications - Other | D58: 6.603416444 | E58: 7.497666071 | F58: 8.180378891 | G58: 8.789587585 | H58: 9.973150361 | I58: 8.838985382 | J58: 8.838985382 | K58: 8.838985382 | L58: 8.838985382 | M58: 8.838985382
B59: Computers, software, and office machines | D59: 9.983188728 | E59: 12.20270296 | F59: 15.34181584 | G59: 12.96744586 | H59: 12.75332257 | I59: 2.322938451 | J59: 11.51439279 | K59: 8.847837761 | L59: 4.119697339 | M59: 0
B60: Easement | D60: 0 | E60: 0 | F60: 0 | G60: 0 | H60: 0 | I60: 0 | J60: 0 | K60: 0 | L60: 0 | M60: 0
B61: Land | D61: 0 | E61: 0 | F61: 0 | G61: 0 | H61: 0 | I61: 0 | J61: 0 | K61: 0 | L61: 0 | M61: 0
B62: Network Switching Centres | D62: -0.4621257019 | E62: 0.01169261521 | F62: 0.03457876711 | G62: 0.03457876711 | H62: 0.9471709755 | I62: 4.160851789 | J62: 0.9356656299 | K62: 0.912779478 | L62: 0.912779478 | M62: 0.0001872696103
B63: Office furniture, movable plant, and misc | D63: 1.273624134 | E63: 1.936063392 | F63: 2.029684915 | G63: 2.34427598 | H63: 2.620211477 | I63: 2.039974099 | J63: 2.039974099 | K63: 2.039974099 | L63: 2.039974099 | M63: 0.778559126
B64: Refurbishment | D64: 8.308128598 | E64: 8.308128598 | F64: 8.308128598 | G64: 8.308128598 | H64: 3.180706407 | I64: -0.000213517868 | J64: -0.000213517868 | K64: -0.000213517868 | L64: -0.000213517868 | M64: -0.000213517868
B65: Substation Primary Plant | D65: 19.1334319 | E65: 21.02500802 | F65: 21.43212424 | G65: 21.72476242 | H65: 23.54507313 | I65: 24.63350034 | J65: 24.63350034 | K65: 24.63350034 | L65: 24.63350034 | M65: 24.63350034
B66: Substation Demountable Buildings | D66: =INDEX(SAPNDepn,MATCH($B66,SAPNDepnRow,0)+$C$55,MATCH(D$54,SAPNDepnCol,0)) -> 0.09178664046 | E66: 0.09178664046 | F66: 0.09824295105 | G66: 0.5552274757 | H66: 0.8251795964 | I66: 0.8362164319 | J66: 0.8362164319 | K66: 0.8362164319 | L66: 0.8362164319 | M66: 0.8362164319
B67: Substation Establishment | D67: 1.603616069 | E67: 2.32819274 | F67: 2.481695174 | G67: 3.0609647 | H67: 3.434948872 | I67: 4.168933557 | J67: 4.168933557 | K67: 4.168933557 | L67: 4.168933557 | M67: 4.168933557
B68: Substation Fences | D68: 0.5939796051 | E68: 0.6888703555 | F68: 0.6646541288 | G68: 0.6722579051 | H68: 0.723162071 | I68: 0.1538125924 | J68: 0.1538125924 | K68: 0.1538125924 | L68: 0.1538125924 | M68: 0.1538125924
B69: Substation Secondary Systems - Electromechanical | D69: 5.112924786 | E69: 5.112924786 | F69: 5.11344611 | G69: 4.965358889 | H69: 4.965358889 | I69: 4.880302477 | J69: 4.880302477 | K69: 4.880302477 | L69: 4.880302477 | M69: 4.880302477
B70: Substation Secondary Systems - Electronic | D70: 4.710447891 | E70: 7.10034411 | F70: 8.276798308 | G70: 10.27142619 | H70: 13.42396538 | I70: 14.4123198 | J70: 14.4123198 | K70: 14.4123198 | L70: 14.4123198 | M70: 14.4123198
B71: Transmission lines - Overhead | D71: 14.11431267 | E71: 14.59057258 | F71: 14.87438081 | G71: 15.0890028 | H71: 15.19479399 | I71: 15.69057372 | J71: 15.69057372 | K71: 15.69057372 | L71: 15.69057372 | M71: 15.69057372
B72: Transmission lines - Underground | D72: 2.977201104 | E72: 2.981676031 | F72: 2.982108918 | G72: 2.982108918 | H72: 3.06753912 | I72: 3.158726874 | J72: 3.158726874 | K72: 3.158726874 | L72: 3.158726874 | M72: 3.158726874
B73: Capital Work in Progress | D73: 0 | E73: 0 | F73: 0 | G73: 0 | H73: 0 | I73: 0 | J73: 0 | K73: 0 | L73: 0 | M73: 0
B74: Accelerated Depreciation | D74: 0.7998084072 | E74: 0.7998084072 | F74: 0.7998084072 | G74: 0.7998084072 | H74: 0.7998084072 | I74: 4.595297426 | J74: 4.595297426 | K74: 4.595297426 | L74: 4.595297426 | M74: 4.595297426
B75: Refurbishment Projects 2008-2013 | D75: 0.9081686285 | E75: 0.9081686285 | F75: 1.314670026 | G75: 1.314670026 | H75: 1.314670026 | I75: -0.2807577444 | J75: -0.2807577444 | K75: -0.2807577444 | L75: -0.2807577444 | M75: -0.2807577444
B76: Equity Raising Cost - 2003 Opening RAB and 2003-08 capex | D76: 0.5407916348 | E76: 0.5407916348 | F76: 0.5407916348 | G76: 0.5407916348 | H76: 0.5407916348 | I76: 0.5407916348 | J76: 0.5407916348 | K76: 0.5407916348 | L76: 0.5407916348 | M76: 0.5407916348
B77: Equity Raising Cost 2013-2018 | D77: 0 | E77: 0 | F77: 0 | G77: 0 | H77: 0 | I77: 0 | J77: 0 | K77: 0 | L77: 0 | M77: 0
B78: Transmission Line Refit - insulators replacement 2013-18 | D78: 0 | E78: 0 | F78: 0 | G78: 0.08967360996 | H78: 0.7337706426 | I78: 2.804625737 | J78: 2.804625737 | K78: 2.804625737 | L78: 2.804625737 | M78: 2.804625737
B81: Check totals below | D81: =D86+D116+D146+D176+D206+D236+D266+D296+D326+D356+D386+D416 -> 76.95855786 | E81: =E86+E116+E146+E176+E206+E236+E266+E296+E326+E356+E386+E416 -> 86.80683454 | F81: 93.20247518 | G81: 95.36621005 | H81: 99.03126212 | I81: 94.17248211 | J81: 100.1387503 | K81: 97.44930911 | L81: 92.72116869 | M81: 86.42746417
B82: Adjusted to $m Real 2017/18 | D82: =D81*$H$50 -> 84.99554036 | E82: =E81*$H$50 -> 95.87229821 | F82: 102.9358523 | G82: 105.3255516 | H82: 109.3733546 | I82: 104.0071595 | J82: 110.5965006 | K82: 107.6261941 | L82: 102.4042817 | M82: 95.45330921
I83: =I82='PTRM input'!K39 -> TRUE | J83: =J82='PTRM input'!L39 -> TRUE | K83: =K82='PTRM input'!M39 -> TRUE | L83: =L82='PTRM input'!N39 -> TRUE | M83: =M82='PTRM input'!O39 -> TRUE
D85: =D54 -> F14 | E85: =E54 -> F15 | F85: F16 | G85: F17 | H85: F18 | I85: F19 | J85: F20 | K85: F21 | L85: F22 | M85: F23
B86: Opening balance depreciation | C86: 1 | D86: =SUM(D87:D109) -> 76.95855786 | E86: =SUM(E87:E109) -> 77.42068356 | F86: =SUM(F87:F109) -> 77.42068356 | G86: =SUM(G87:G109) -> 72.37975855 | H86: =SUM(H87:H109) -> 62.31007264 | I86: =SUM(I87:I109) -> 58.32955783 | J86: =SUM(J87:J109) -> 58.32955783 | K86: =SUM(K87:K109) -> 58.32955783 | L86: =SUM(L87:L109) -> 58.32955783 | M86: =SUM(M87:M109) -> 57.06814286
B87: Commercial Buildings | D87: =INDEX(SAPNDepn,MATCH($B87,SAPNDepnRow,0)+$C$86,MATCH(D$85,SAPNDepnCol,0)) -> 0.4936729601 | E87: 0.4936729601 | F87: 0.4936729601 | G87: 0.4936729601 | H87: 0.4936729601 | I87: 0.4936729601 | J87: 0.4936729601 | K87: 0.4936729601 | L87: 0.4936729601 | M87: 0.4936729601
B88: Communications - Civil | D88: 0.1721833646 | E88: 0.1721833646 | F88: 0.1721833646 | G88: 0.1721833646 | H88: 0.1721833646 | I88: 0.1721833646 | J88: 0.1721833646 | K88: 0.1721833646 | L88: 0.1721833646 | M88: 0.1721833646
B89: Communications - Other | D89: 6.603416444 | E89: 6.603416444 | F89: 6.603416444 | G89: 6.603416444 | H89: 6.603416444 | I89: 6.603416444 | J89: 6.603416444 | K89: 6.603416444 | L89: 6.603416444 | M89: 6.603416444
B90: Computers, software, and office machines | D90: 9.983188728 | E90: 9.983188728 | F90: 9.983188728 | G90: 4.942263714 | H90: 0 | I90: 0 | J90: 0 | K90: 0 | L90: 0 | M90: 0
B91: Easement | D91: n/a | E91: n/a | F91: n/a | G91: n/a | H91: n/a | I91: n/a | J91: n/a | K91: n/a | L91: n/a | M91: n/a
B92: Land | D92: n/a | E92: n/a | F92: n/a | G92: n/a | H92: n/a | I92: n/a | J92: n/a | K92: n/a | L92: n/a | M92: n/a
B93: Network Switching Centres | D93: -0.4621257019 | E93: 0 | F93: 0 | G93: 0 | H93: 0 | I93: 0 | J93: 0 | K93: 0 | L93: 0 | M93: 0
B94: Office furniture, movable plant, and misc | D94: 1.273624134 | E94: 1.273624134 | F94: 1.273624134 | G94: 1.273624134 | H94: 1.273624134 | I94: 1.273624134 | J94: 1.273624134 | K94: 1.273624134 | L94: 1.273624134 | M94: 0.01220916081
B95: Refurbishment | D95: 8.308128598 | E95: 8.308128598 | F95: 8.308128598 | G95: 8.308128598 | H95: 3.180706407 | I95: 0 | J95: 0 | K95: 0 | L95: 0 | M95: 0
B96: Substation Primary Plant | D96: 19.1334319 | E96: 19.1334319 | F96: 19.1334319 | G96: 19.1334319 | H96: 19.1334319 | I96: 19.1334319 | J96: 19.1334319 | K96: 19.1334319 | L96: 19.1334319 | M96: 19.1334319
B97: Substation Demountable Buildings | D97: =INDEX(SAPNDepn,MATCH($B97,SAPNDepnRow,0)+$C$86,MATCH(D$85,SAPNDepnCol,0)) -> 0.09178664046 | E97: 0.09178664046 | F97: 0.09178664046 | G97: 0.09178664046 | H97: 0.09178664046 | I97: 0.09178664046 | J97: 0.09178664046 | K97: 0.09178664046 | L97: 0.09178664046 | M97: 0.09178664046
B98: Substation Establishment | D98: 1.603616069 | E98: 1.603616069 | F98: 1.603616069 | G98: 1.603616069 | H98: 1.603616069 | I98: 1.603616069 | J98: 1.603616069 | K98: 1.603616069 | L98: 1.603616069 | M98: 1.603616069
B99: Substation Fences | D99: 0.5939796051 | E99: 0.5939796051 | F99: 0.5939796051 | G99: 0.5939796051 | H99: 0.5939796051 | I99: 0.5939796051 | J99: 0.5939796051 | K99: 0.5939796051 | L99: 0.5939796051 | M99: 0.5939796051
B100: Substation Secondary Systems - Electromechanical | D100: 5.112924786 | E100: 5.112924786 | F100: 5.112924786 | G100: 5.112924786 | H100: 5.112924786 | I100: 5.112924786 | J100: 5.112924786 | K100: 5.112924786 | L100: 5.112924786 | M100: 5.112924786
B101: Substation Secondary Systems - Electronic | D101: 4.710447891 | E101: 4.710447891 | F101: 4.710447891 | G101: 4.710447891 | H101: 4.710447891 | I101: 4.710447891 | J101: 4.710447891 | K101: 4.710447891 | L101: 4.710447891 | M101: 4.710447891
B102: Transmission lines - Overhead | D102: 14.11431267 | E102: 14.11431267 | F102: 14.11431267 | G102: 14.11431267 | H102: 14.11431267 | I102: 14.11431267 | J102: 14.11431267 | K102: 14.11431267 | L102: 14.11431267 | M102: 14.11431267
B103: Transmission lines - Underground | D103: 2.977201104 | E103: 2.977201104 | F103: 2.977201104 | G103: 2.977201104 | H103: 2.977201104 | I103: 2.977201104 | J103: 2.977201104 | K103: 2.977201104 | L103: 2.977201104 | M103: 2.977201104
B104: Capital Work in Progress | D104: n/a | E104: n/a | F104: n/a | G104: n/a | H104: n/a | I104: n/a | J104: n/a | K104: n/a | L104: n/a | M104: n/a
B105: Accelerated Depreciation | D105: 0.7998084072 | E105: 0.7998084072 | F105: 0.7998084072 | G105: 0.7998084072 | H105: 0.7998084072 | I105: 0 | J105: 0 | K105: 0 | L105: 0 | M105: 0
B106: Refurbishment Projects 2008-2013 | D106: 0.9081686285 | E106: 0.9081686285 | F106: 0.9081686285 | G106: 0.9081686285 | H106: 0.9081686285 | I106: 0.9081686285 | J106: 0.9081686285 | K106: 0.9081686285 | L106: 0.9081686285 | M106: 0.9081686285
B107: Equity Raising Cost - 2003 Opening RAB and 2003-08 capex | D107: 0.5407916348 | E107: 0.5407916348 | F107: 0.5407916348 | G107: 0.5407916348 | H107: 0.5407916348 | I107: 0.5407916348 | J107: 0.5407916348 | K107: 0.5407916348 | L107: 0.5407916348 | M107: 0.5407916348
B108: Equity Raising Cost 2013-2018 | D108: n/a | E108: n/a | F108: n/a | G108: n/a | H108: n/a | I108: n/a | J108: n/a | K108: n/a | L108: n/a | M108: n/a
B109: Transmission Line Refit - insulators replacement 2013-18 | D109: n/a | E109: n/a | F109: n/a | G109: n/a | H109: n/a | I109: n/a | J109: n/a | K109: n/a | L109: n/a | M109: n/a
D115: F09 | E115: F10 | F115: F11 | G115: F12 | H115: F13 | I115: F14 | J115: F15 | K115: F16 | L115: F17 | M115: F18
B116: Year 5 true up for Actual vs Forecast additions in 2007/08 | C116: 2 | D116: =SUM(D117:D139) -> 0 | E116: 0 | F116: 0 | G116: 0 | H116: 0 | I116: -9.53049465 | J116: -0.4134209739 | K116: -0.4134209739 | L116: -0.4134209739 | M116: =SUM(M117:M139) -> -0.4134209739
B117: Commercial Buildings | I117: =INDEX(SAPNDepn,MATCH($B117,SAPNDepnRow,0)+$C$116,MATCH(I$85,SAPNDepnCol,0)) -> 0.02261485198 | J117: 0.02261485198 | K117: 0.02261485198 | L117: 0.02261485198 | M117: 0.02261485198
B118: Communications - Civil | I118: 0.01328479831 | J118: 0.01328479831 | K118: 0.01328479831 | L118: 0.01328479831 | M118: 0.01328479831
B119: Communications - Other | I119: -1.680118316 | J119: -1.680118316 | K119: -1.680118316 | L119: -1.680118316 | M119: -1.680118316
B120: Computers, software, and office machines | I120: -12.33056722 | J120: 0 | K120: 0 | L120: 0 | M120: 0
B121: Easement | I121: n/a | J121: n/a | K121: n/a | L121: n/a | M121: n/a
B122: Land | I122: n/a | J122: n/a | K122: n/a | L122: n/a | M122: n/a
B123: Network Switching Centres | I123: 3.213493543 | J123: 0 | K123: 0 | L123: 0 | M123: 0
B124: Office furniture, movable plant, and misc | I124: -1.211429599 | J124: -1.211429599 | K124: -1.211429599 | L124: -1.211429599 | M124: -1.211429599
B125: Refurbishment | I125: -0.000213517868 | J125: -0.000213517868 | K125: -0.000213517868 | L125: -0.000213517868 | M125: -0.000213517868
B126: Substation Primary Plant | I126: 0.05171434969 | J126: 0.05171434969 | K126: 0.05171434969 | L126: 0.05171434969 | M126: 0.05171434969
B127: Substation Demountable Buildings | I127: =INDEX(SAPNDepn,MATCH($B127,SAPNDepnRow,0)+$C$116,MATCH(I$85,SAPNDepnCol,0)) -> -0.1058818245 | J127: -0.1058818245 | K127: -0.1058818245 | L127: -0.1058818245 | M127: -0.1058818245
B128: Substation Establishment | I128: 0.5315632611 | J128: 0.5315632611 | K128: 0.5315632611 | L128: 0.5315632611 | M128: 0.5315632611
B129: Substation Fences | I129: -0.5809066888 | J129: -0.5809066888 | K129: -0.5809066888 | L129: -0.5809066888 | M129: -0.5809066888
B130: Substation Secondary Systems - Electromechanical | I130: -0.08505641155 | J130: -0.08505641155 | K130: -0.08505641155 | L130: -0.08505641155 | M130: -0.08505641155
B131: Substation Secondary Systems - Electronic | I131: -0.6030003064 | J131: -0.6030003064 | K131: -0.6030003064 | L131: -0.6030003064 | M131: -0.6030003064
B132: Transmission lines - Overhead | I132: 0.2413143842 | J132: 0.2413143842 | K132: 0.2413143842 | L132: 0.2413143842 | M132: 0.2413143842
B133: Transmission lines - Underground | I133: -0.007175609592 | J133: -0.007175609592 | K133: -0.007175609592 | L133: -0.007175609592 | M133: -0.007175609592
B134: Capital Work in Progress | I134: n/a | J134: n/a | K134: n/a | L134: n/a | M134: n/a
B135: Accelerated Depreciation | I135: 4.595297426 | J135: 4.595297426 | K135: 4.595297426 | L135: 4.595297426 | M135: 4.595297426
B136: Refurbishment Projects 2008-2013 | I136: -1.59542777 | J136: -1.59542777 | K136: -1.59542777 | L136: -1.59542777 | M136: -1.59542777
B137: Equity Raising Cost - 2003 Opening RAB and 2003-08 capex | I137: 0 | J137: 0 | K137: 0 | L137: 0 | M137: 0
B138: Equity Raising Cost 2013-2018 | I138: 0 | J138: 0 | K138: 0 | L138: 0 | M138: 0
B139: Transmission Line Refit - insulators replacement 2013-18 | I139: 0 | J139: 0 | K139: 0 | L139: 0 | M139: 0
D145: =D54 -> F14 | E145: =E54 -> F15 | F145: F16 | G145: F17 | H145: F18 | I145: F19 | J145: F20 | K145: F21 | L145: F22 | M145: F23
B146: ="Depreciation on Year "&C146-2&" Additions" -> Depreciation on Year 1 Additions | C146: 3 | D146: =SUM(D147:D169) -> 0 | E146: =SUM(E147:E169) -> 9.386150976 | F146: =SUM(F147:F169) -> 9.386150976 | G146: =SUM(G147:G169) -> 9.386150976 | H146: =SUM(H147:H169) -> 9.386150976 | I146: =SUM(I147:I169) -> 7.166636739 | J146: =SUM(J147:J169) -> 7.154944123 | K146: =SUM(K147:K169) -> 7.154944123 | L146: =SUM(L147:L169) -> 7.154944123 | M146: =SUM(M147:M169) -> 7.154944123
B147: Commercial Buildings | D147: =INDEX(SAPNDepn,MATCH($B147,SAPNDepnRow,0)+$C$146,MATCH(D$85,SAPNDepnCol,0)) -> 0 | E147: 0.009546418514 | F147: 0.009546418514 | G147: 0.009546418514 | H147: 0.009546418514 | I147: 0.009546418514 | J147: 0.009546418514 | K147: 0.009546418514 | L147: 0.009546418514 | M147: 0.009546418514
B148: Communications - Civil | D148: 0 | E148: 0.007034218381 | F148: 0.007034218381 | G148: 0.007034218381 | H148: 0.007034218381 | I148: 0.007034218381 | J148: 0.007034218381 | K148: 0.007034218381 | L148: 0.007034218381 | M148: 0.007034218381
B149: Communications - Other | D149: 0 | E149: 0.8942496277 | F149: 0.8942496277 | G149: 0.8942496277 | H149: 0.8942496277 | I149: 0.8942496277 | J149: 0.8942496277 | K149: 0.8942496277 | L149: 0.8942496277 | M149: 0.8942496277
B150: Computers, software, and office machines | D150: 0 | E150: 2.219514237 | F150: 2.219514237 | G150: 2.219514237 | H150: 2.219514237 | I150: 0 | J150: 0 | K150: 0 | L150: 0 | M150: 0
B151: Easement | D151: 0 | E151: n/a | F151: n/a | G151: n/a | H151: n/a | I151: n/a | J151: n/a | K151: n/a | L151: n/a | M151: n/a
B152: Land | D152: 0 | E152: n/a | F152: n/a | G152: n/a | H152: n/a | I152: n/a | J152: n/a | K152: n/a | L152: n/a | M152: n/a
B153: Network Switching Centres | D153: 0 | E153: 0.01169261521 | F153: 0.01169261521 | G153: 0.01169261521 | H153: 0.01169261521 | I153: 0.01169261521 | J153: 0 | K153: 0 | L153: 0 | M153: 0
B154: Office furniture, movable plant, and misc | D154: 0 | E154: 0.6624392573 | F154: 0.6624392573 | G154: 0.6624392573 | H154: 0.6624392573 | I154: 0.6624392573 | J154: 0.6624392573 | K154: 0.6624392573 | L154: 0.6624392573 | M154: 0.6624392573
B155: Refurbishment | D155: 0 | E155: 0 | F155: 0 | G155: 0 | H155: 0 | I155: 0 | J155: 0 | K155: 0 | L155: 0 | M155: 0
B156: Substation Primary Plant | D156: 0 | E156: 1.891576117 | F156: 1.891576117 | G156: 1.891576117 | H156: 1.891576117 | I156: 1.891576117 | J156: 1.891576117 | K156: 1.891576117 | L156: 1.891576117 | M156: 1.891576117
B157: Substation Demountable Buildings | D157: =INDEX(SAPNDepn,MATCH($B157,SAPNDepnRow,0)+$C$146,MATCH(D$85,SAPNDepnCol,0)) -> 0 | E157: 0 | F157: 0 | G157: 0 | H157: 0 | I157: 0 | J157: 0 | K157: 0 | L157: 0 | M157: 0
B158: Substation Establishment | D158: 0 | E158: 0.7245766708 | F158: 0.7245766708 | G158: 0.7245766708 | H158: 0.7245766708 | I158: 0.7245766708 | J158: 0.7245766708 | K158: 0.7245766708 | L158: 0.7245766708 | M158: 0.7245766708
B159: Substation Fences | D159: 0 | E159: 0.09489075033 | F159: 0.09489075033 | G159: 0.09489075033 | H159: 0.09489075033 | I159: 0.09489075033 | J159: 0.09489075033 | K159: 0.09489075033 | L159: 0.09489075033 | M159: 0.09489075033
B160: Substation Secondary Systems - Electromechanical | D160: 0 | E160: 0 | F160: 0 | G160: 0 | H160: 0 | I160: 0 | J160: 0 | K160: 0 | L160: 0 | M160: 0
B161: Substation Secondary Systems - Electronic | D161: 0 | E161: 2.389896219 | F161: 2.389896219 | G161: 2.389896219 | H161: 2.389896219 | I161: 2.389896219 | J161: 2.389896219 | K161: 2.389896219 | L161: 2.389896219 | M161: 2.389896219
B162: Transmission lines - Overhead | D162: 0 | E162: 0.4762599173 | F162: 0.4762599173 | G162: 0.4762599173 | H162: 0.4762599173 | I162: 0.4762599173 | J162: 0.4762599173 | K162: 0.4762599173 | L162: 0.4762599173 | M162: 0.4762599173
B163: Transmission lines - Underground | D163: 0 | E163: 0.004474927117 | F163: 0.004474927117 | G163: 0.004474927117 | H163: 0.004474927117 | I163: 0.004474927117 | J163: 0.004474927117 | K163: 0.004474927117 | L163: 0.004474927117 | M163: 0.004474927117
B164: Capital Work in Progress | D164: 0 | E164: n/a | F164: n/a | G164: n/a | H164: n/a | I164: n/a | J164: n/a | K164: n/a | L164: n/a | M164: n/a
B165: Accelerated Depreciation | D165: 0 | E165: 0 | F165: 0 | G165: 0 | H165: 0 | I165: 0 | J165: 0 | K165: 0 | L165: 0 | M165: 0
B166: Refurbishment Projects 2008-2013 | D166: 0 | E166: 0 | F166: 0 | G166: 0 | H166: 0 | I166: 0 | J166: 0 | K166: 0 | L166: 0 | M166: 0
B167: Equity Raising Cost - 2003 Opening RAB and 2003-08 capex | D167: 0 | E167: 0 | F167: 0 | G167: 0 | H167: 0 | I167: 0 | J167: 0 | K167: 0 | L167: 0 | M167: 0
B168: Equity Raising Cost 2013-2018 | D168: 0 | E168: 0 | F168: 0 | G168: 0 | H168: 0 | I168: 0 | J168: 0 | K168: 0 | L168: 0 | M168: 0
B169: Transmission Line Refit - insulators replacement 2013-18 | D169: 0 | E169: 0 | F169: 0 | G169: 0 | H169: 0 | I169: 0 | J169: 0 | K169: 0 | L169: 0 | M169: 0
D175: F09 | E175: F10 | F175: F11 | G175: F12 | H175: F13 | I175: F14 | J175: F15 | K175: F16 | L175: F17 | M175: F18
B176: ="Depreciation on Year "&C176-2&" Additions" -> Depreciation on Year 2 Additions | C176: =C146+1 -> 4 | D176: =SUM(D177:D199) -> 0 | E176: =SUM(E177:E199) -> 0 | F176: =SUM(F177:F199) -> 6.395640645 | G176: =SUM(G177:G199) -> 6.395640645 | H176: =SUM(H177:H199) -> 6.395640645 | I176: =SUM(I177:I199) -> 6.395640645 | J176: =SUM(J177:J199) -> 3.256527765 | K176: =SUM(K177:K199) -> 3.233641613 | L176: =SUM(L177:L199) -> 3.233641613 | M176: =SUM(M177:M199) -> 3.233641613
B177: Commercial Buildings | D177: =INDEX(SAPNDepn,MATCH($B177,SAPNDepnRow,0)+$C$176,MATCH(D$85,SAPNDepnCol,0)) -> 0 | E177: 0 | F177: 0.01445422592 | G177: 0.01445422592 | H177: 0.01445422592 | I177: 0.01445422592 | J177: 0.01445422592 | K177: 0.01445422592 | L177: 0.01445422592 | M177: 0.01445422592
B178: Communications - Civil | D178: 0 | E178: 0 | F178: 0.03227627483 | G178: 0.03227627483 | H178: 0.03227627483 | I178: 0.03227627483 | J178: 0.03227627483 | K178: 0.03227627483 | L178: 0.03227627483 | M178: 0.03227627483
B179: Communications - Other | D179: 0 | E179: 0 | F179: 0.6827128198 | G179: 0.6827128198 | H179: 0.6827128198 | I179: 0.6827128198 | J179: 0.6827128198 | K179: 0.6827128198 | L179: 0.6827128198 | M179: 0.6827128198
B180: Computers, software, and office machines | D180: 0 | E180: 0 | F180: 3.139112879 | G180: 3.139112879 | H180: 3.139112879 | I180: 3.139112879 | J180: 0 | K180: 0 | L180: 0 | M180: 0
B181: Easement | D181: 0 | E181: 0 | F181: n/a | G181: n/a | H181: n/a | I181: n/a | J181: n/a | K181: n/a | L181: n/a | M181: n/a
B182: Land | D182: 0 | E182: 0 | F182: n/a | G182: n/a | H182: n/a | I182: n/a | J182: n/a | K182: n/a | L182: n/a | M182: n/a
B183: Network Switching Centres | D183: 0 | E183: 0 | F183: 0.02288615189 | G183: 0.02288615189 | H183: 0.02288615189 | I183: 0.02288615189 | J183: 0.02288615189 | K183: 0 | L183: 0 | M183: 0
B184: Office furniture, movable plant, and misc | D184: 0 | E184: 0 | F184: 0.09362152339 | G184: 0.09362152339 | H184: 0.09362152339 | I184: 0.09362152339 | J184: 0.09362152339 | K184: 0.09362152339 | L184: 0.09362152339 | M184: 0.09362152339
B185: Refurbishment | D185: 0 | E185: 0 | F185: 0 | G185: 0 | H185: 0 | I185: 0 | J185: 0 | K185: 0 | L185: 0 | M185: 0
B186: Substation Primary Plant | D186: 0 | E186: 0 | F186: 0.4071162239 | G186: 0.4071162239 | H186: 0.4071162239 | I186: 0.4071162239 | J186: 0.4071162239 | K186: 0.4071162239 | L186: 0.4071162239 | M186: 0.4071162239
B187: Substation Demountable Buildings | D187: =INDEX(SAPNDepn,MATCH($B187,SAPNDepnRow,0)+$C$176,MATCH(D$85,SAPNDepnCol,0)) -> 0 | E187: 0 | F187: 0.006456310585 | G187: 0.006456310585 | H187: 0.006456310585 | I187: 0.006456310585 | J187: 0.006456310585 | K187: 0.006456310585 | L187: 0.006456310585 | M187: 0.006456310585
B188: Substation Establishment | D188: 0 | E188: 0 | F188: 0.1535024337 | G188: 0.1535024337 | H188: 0.1535024337 | I188: 0.1535024337 | J188: 0.1535024337 | K188: 0.1535024337 | L188: 0.1535024337 | M188: 0.1535024337
B189: Substation Fences | D189: 0 | E189: 0 | F189: -0.02421622665 | G189: -0.02421622665 | H189: -0.02421622665 | I189: -0.02421622665 | J189: -0.02421622665 | K189: -0.02421622665 | L189: -0.02421622665 | M189: -0.02421622665
B190: Substation Secondary Systems - Electromechanical | D190: 0 | E190: 0 | F190: 0.0005213244257 | G190: 0.0005213244257 | H190: 0.0005213244257 | I190: 0.0005213244257 | J190: 0.0005213244257 | K190: 0.0005213244257 | L190: 0.0005213244257 | M190: 0.0005213244257
B191: Substation Secondary Systems - Electronic | D191: 0 | E191: 0 | F191: 1.176454198 | G191: 1.176454198 | H191: 1.176454198 | I191: 1.176454198 | J191: 1.176454198 | K191: 1.176454198 | L191: 1.176454198 | M191: 1.176454198
B192: Transmission lines - Overhead | D192: 0 | E192: 0 | F192: 0.2838082211 | G192: 0.2838082211 | H192: 0.2838082211 | I192: 0.2838082211 | J192: 0.2838082211 | K192: 0.2838082211 | L192: 0.2838082211 | M192: 0.2838082211
B193: Transmission lines - Underground | D193: 0 | E193: 0 | F193: 0.000432886915 | G193: 0.000432886915 | H193: 0.000432886915 | I193: 0.000432886915 | J193: 0.000432886915 | K193: 0.000432886915 | L193: 0.000432886915 | M193: 0.000432886915
B194: Capital Work in Progress | D194: 0 | E194: 0 | F194: n/a | G194: n/a | H194: n/a | I194: n/a | J194: n/a | K194: n/a | L194: n/a | M194: n/a
B195: Accelerated Depreciation | D195: 0 | E195: 0 | F195: 0 | G195: 0 | H195: 0 | I195: 0 | J195: 0 | K195: 0 | L195: 0 | M195: 0
B196: Refurbishment Projects 2008-2013 | D196: 0 | E196: 0 | F196: 0.4065013974 | G196: 0.4065013974 | H196: 0.4065013974 | I196: 0.4065013974 | J196: 0.4065013974 | K196: 0.4065013974 | L196: 0.4065013974 | M196: 0.4065013974
B197: Equity Raising Cost - 2003 Opening RAB and 2003-08 capex | D197: 0 | E197: 0 | F197: 0 | G197: 0 | H197: 0 | I197: 0 | J197: 0 | K197: 0 | L197: 0 | M197: 0
B198: Equity Raising Cost 2013-2018 | D198: 0 | E198: 0 | F198: 0 | G198: 0 | H198: 0 | I198: 0 | J198: 0 | K198: 0 | L198: 0 | M198: 0
B199: Transmission Line Refit - insulators replacement 2013-18 | D199: 0 | E199: 0 | F199: 0 | G199: 0 | H199: 0 | I199: 0 | J199: 0 | K199: 0 | L199: 0 | M199: 0
D205: F09 | E205: F10 | F205: F11 | G205: F12 | H205: F13 | I205: F14 | J205: F15 | K205: F16 | L205: F17 | M205: F18
B206: ="Depreciation on Year "&C206-2&" Additions" -> Depreciation on Year 3 Additions | C206: =C176+1 -> 5 | D206: =SUM(D207:D229) -> 0 | E206: =SUM(E207:E229) -> 0 | F206: =SUM(F207:F229) -> 0 | G206: =SUM(G207:G229) -> 7.204659881 | H206: =SUM(H207:H229) -> 7.204659881 | I206: =SUM(I207:I229) -> 7.204659881 | J206: =SUM(J207:J229) -> 7.204659881 | K206: =SUM(K207:K229) -> 4.538104852 | L206: =SUM(L207:L229) -> 4.538104852 | M206: =SUM(M207:M229) -> 4.538104852
B207: Commercial Buildings | D207: =INDEX(SAPNDepn,MATCH($B207,SAPNDepnRow,0)+$C$206,MATCH(D$85,SAPNDepnCol,0)) -> 0 | E207: 0 | F207: 0 | G207: 0.02359535362 | H207: 0.02359535362 | I207: 0.02359535362 | J207: 0.02359535362 | K207: 0.02359535362 | L207: 0.02359535362 | M207: 0.02359535362
B208: Communications - Civil | D208: 0 | E208: 0 | F208: 0 | G208: 0.1033774656 | H208: 0.1033774656 | I208: 0.1033774656 | J208: 0.1033774656 | K208: 0.1033774656 | L208: 0.1033774656 | M208: 0.1033774656
B209: Communications - Other | D209: 0 | E209: 0 | F209: 0 | G209: 0.609208694 | H209: 0.609208694 | I209: 0.609208694 | J209: 0.609208694 | K209: 0.609208694 | L209: 0.609208694 | M209: 0.609208694
B210: Computers, software, and office machines | D210: 0 | E210: 0 | F210: 0 | G210: 2.666555029 | H210: 2.666555029 | I210: 2.666555029 | J210: 2.666555029 | K210: 0 | L210: 0 | M210: 0
B211: Easement | D211: 0 | E211: 0 | F211: 0 | G211: n/a | H211: n/a | I211: n/a | J211: n/a | K211: n/a | L211: n/a | M211: n/a
B212: Land | D212: 0 | E212: 0 | F212: 0 | G212: n/a | H212: n/a | I212: n/a | J212: n/a | K212: n/a | L212: n/a | M212: n/a
B213: Network Switching Centres | D213: 0 | E213: 0 | F213: 0 | G213: 0 | H213: 0 | I213: 0 | J213: 0 | K213: 0 | L213: 0 | M213: 0
B214: Office furniture, movable plant, and misc | D214: 0 | E214: 0 | F214: 0 | G214: 0.3145910652 | H214: 0.3145910652 | I214: 0.3145910652 | J214: 0.3145910652 | K214: 0.3145910652 | L214: 0.3145910652 | M214: 0.3145910652
B215: Refurbishment | D215: 0 | E215: 0 | F215: 0 | G215: 0 | H215: 0 | I215: 0 | J215: 0 | K215: 0 | L215: 0 | M215: 0
B216: Substation Primary Plant | D216: 0 | E216: 0 | F216: 0 | G216: 0.2926381806 | H216: 0.2926381806 | I216: 0.2926381806 | J216: 0.2926381806 | K216: 0.2926381806 | L216: 0.2926381806 | M216: 0.2926381806
B217: Substation Demountable Buildings | D217: =INDEX(SAPNDepn,MATCH($B217,SAPNDepnRow,0)+$C$206,MATCH(D$85,SAPNDepnCol,0)) -> 0 | E217: 0 | F217: 0 | G217: 0.4569845246 | H217: 0.4569845246 | I217: 0.4569845246 | J217: 0.4569845246 | K217: 0.4569845246 | L217: 0.4569845246 | M217: 0.4569845246
B218: Substation Establishment | D218: 0 | E218: 0 | F218: 0 | G218: 0.5792695259 | H218: 0.5792695259 | I218: 0.5792695259 | J218: 0.5792695259 | K218: 0.5792695259 | L218: 0.5792695259 | M218: 0.5792695259
B219: Substation Fences | D219: 0 | E219: 0 | F219: 0 | G219: 0.007603776314 | H219: 0.007603776314 | I219: 0.007603776314 | J219: 0.007603776314 | K219: 0.007603776314 | L219: 0.007603776314 | M219: 0.007603776314
B220: Substation Secondary Systems - Electromechanical | D220: 0 | E220: 0 | F220: 0 | G220: -0.1480872213 | H220: -0.1480872213 | I220: -0.1480872213 | J220: -0.1480872213 | K220: -0.1480872213 | L220: -0.1480872213 | M220: -0.1480872213
B221: Substation Secondary Systems - Electronic | D221: 0 | E221: 0 | F221: 0 | G221: 1.994627883 | H221: 1.994627883 | I221: 1.994627883 | J221: 1.994627883 | K221: 1.994627883 | L221: 1.994627883 | M221: 1.994627883
B222: Transmission lines - Overhead | D222: 0 | E222: 0 | F222: 0 | G222: 0.2146219939 | H222: 0.2146219939 | I222: 0.2146219939 | J222: 0.2146219939 | K222: 0.2146219939 | L222: 0.2146219939 | M222: 0.2146219939
B223: Transmission lines - Underground | D223: 0 | E223: 0 | F223: 0 | G223: 0 | H223: 0 | I223: 0 | J223: 0 | K223: 0 | L223: 0 | M223: 0
B224: Capital Work in Progress | D224: 0 | E224: 0 | F224: 0 | G224: n/a | H224: n/a | I224: n/a | J224: n/a | K224: n/a | L224: n/a | M224: n/a
B225: Accelerated Depreciation | D225: 0 | E225: 0 | F225: 0 | G225: 0 | H225: 0 | I225: 0 | J225: 0 | K225: 0 | L225: 0 | M225: 0
B226: Refurbishment Projects 2008-2013 | D226: 0 | E226: 0 | F226: 0 | G226: 0 | H226: 0 | I226: 0 | J226: 0 | K226: 0 | L226: 0 | M226: 0
B227: Equity Raising Cost - 2003 Opening RAB and 2003-08 capex | D227: 0 | E227: 0 | F227: 0 | G227: 0 | H227: 0 | I227: 0 | J227: 0 | K227: 0 | L227: 0 | M227: 0
B228: Equity Raising Cost 2013-2018 | D228: 0 | E228: 0 | F228: 0 | G228: 0 | H228: 0 | I228: 0 | J228: 0 | K228: 0 | L228: 0 | M228: 0
B229: Transmission Line Refit - insulators replacement 2013-18 | D229: 0 | E229: 0 | F229: 0 | G229: 0.08967360996 | H229: 0.08967360996 | I229: 0.08967360996 | J229: 0.08967360996 | K229: 0.08967360996 | L229: 0.08967360996 | M229: 0.08967360996
D235: F09 | E235: F10 | F235: F11 | G235: F12 | H235: F13 | I235: F14 | J235: F15 | K235: F16 | L235: F17 | M235: F18
B236: ="Depreciation on Year "&C236-2&" Additions" -> Depreciation on Year 4 Additions | C236: =C206+1 -> 6 | D236: =SUM(D237:D259) -> 0 | E236: =SUM(E237:E259) -> 0 | F236: =SUM(F237:F259) -> 0 | G236: =SUM(G237:G259) -> 0 | H236: =SUM(H237:H259) -> 13.73473797 | I236: =SUM(I237:I259) -> 13.73473797 | J236: =SUM(J237:J259) -> 13.73473797 | K236: =SUM(K237:K259) -> 13.73473797 | L236: =SUM(L237:L259) -> 9.006597548 | M236: =SUM(M237:M259) -> 8.09400534
B237: Commercial Buildings | D237: =INDEX(SAPNDepn,MATCH($B237,SAPNDepnRow,0)+$C$236,MATCH(D$85,SAPNDepnCol,0)) -> 0 | E237: 0 | F237: 0 | G237: 0 | H237: 0.03077619675 | I237: 0.03077619675 | J237: 0.03077619675 | K237: 0.03077619675 | L237: 0.03077619675 | M237: 0.03077619675
... 551 more rows

Sheet I3 CAPEX
A1: =RIGHT(CELL("filename",A2),LEN(CELL("filename",A2))-FIND("]",CELL("filename",A2))) -> I3 CAPEX | B1: Actual Capex
F3: Note - data is Real Actual Net Capex, per Actual RAB roll forward sheet of RFM
I5: $'M Nominal
F6: Regulatory Period 1 | I6: =F7 -> 2013-14 | K6: Regulatory Period 2 | N6: =K7 -> 2018-19 | P6: Regulatory Period 3 | S6: =P7 -> 2023-24 | U6: Regulatory Period 4 | X6: =U7 -> 2028-29
C7: Asset Class Name | E7: ='L1 '!D47 -> 2012-13 | F7: =LEFT(E7,4)+1&"-"&TEXT(RIGHT(E7,2)+1,"00") -> 2013-14 | G7: =LEFT(F7,4)+1&"-"&TEXT(RIGHT(F7,2)+1,"00") -> 2014-15 | H7: 2015-16 | I7: 2016-17 | J7: 2017-18 | K7: 2018-19 | L7: 2019-20 | M7: 2020-21 | N7: 2021-22 | O7: 2022-23 | P7: 2023-24 | Q7: 2024-25 | R7: 2025-26 | S7: 2026-27 | T7: 2027-28 | U7: 2028-29 | V7: 2029-30 | W7: 2030-31 | X7: 2031-32 | Y7: 2032-33
C8: Capital Expenditure – As Commissioned ($m Nominal)
C9: Note - data is Real Actual Net Capex, per Tax value Actual Net Capex- excluding half year capitalised WACC - as used for TAB
B10: Asset1 | C10: =+Asset1 -> Commercial Buildings | E10: 0.3608680267 | F10: 0.2825432177 | G10: 0.4437958055 | H10: 0.7341685078 | I10: 0.967 | J10: 5.192
B11: Asset2 | C11: =+Asset2 -> Communications - Civil | E11: 1.404142924 | F11: 0.3816820172 | G11: 1.816825406 | H11: 5.897073988 | I11: 5.802 | J11: 1.763
B12: Asset3 | C12: =+Asset3 -> Communications - Other | E12: 7.025818724 | F12: 13.2334533 | G12: 10.48084787 | H12: 9.477752379 | I12: 18.594 | J12: 8.746
B13: Asset4 | C13: =+Asset4 -> Computers, software, and office machines | E13: 12.74361727 | F13: 8.758728988 | G13: 12.8509142 | H13: 11.0626341 | I13: 19.808 | J13: 17.599
B14: Asset5 | C14: =+Asset5 -> Easement | E14: 0 | F14: 0 | G14: 0 | H14: 3.334880391 | I14: 12.63 | J14: 0.096
B15: Asset6 | C15: =+Asset6 -> Land | E15: 18.13308289 | F15: 3.388918811 | G15: 0.1479691569 | H15: 0.9559514 | I15: 12.866 | J15: 0.028
B16: Asset7 | C16: =+Asset7 -> Network Switching Centres | E16: 3.005111421 | F16: 0.05767728705 | G16: 0.1171142874 | H16: 0 | I16: 4.779 | J16: 0.001
B17: Asset8 | C17: =+Asset8 -> Office furniture, movable plant, and misc | E17: 1.868691978 | F17: 6.535355607 | G17: 0.9581705174 | H17: 3.262829575 | I17: 2.89 | J17: 6.741
B18: Asset9 | C18: =+Asset9 -> Refurbishment | E18: 0 | F18: 0 | G18: 0 | H18: 0 | I18: 0 | J18: 0
B19: Asset10 | C19: =+Asset10 -> Substation Primary Plant | E19: 52.67463359 | F19: 83.60360376 | G19: 18.66652704 | H19: 13.59743553 | I19: 85.411 | J19: 49.602
B20: Asset11 | C20: =+Asset11 -> Substation Demountable Buildings | E20: 0 | F20: 0 | G20: 0.09911577322 | H20: 7.109527832 | I20: 4.241 | J20: 1.873
B21: Asset12 | C21: =+Asset12 -> Substation Establishment | E21: 32.9396191 | F21: 39.31607896 | G21: 8.640622965 | H21: 33.04390597 | I21: 21.543 | J21: 11.89
B22: Asset13 | C22: =+Asset13 -> Substation Fences | E22: 3.821667765 | F22: 3.276537081 | G22: -0.8674443391 | H22: 0.2760230707 | I22: 1.866 | J22: 0.432
B23: Asset14 | C23: =+Asset14 -> Substation Secondary Systems - Electromechanical | E23: 0 | F23: 0 | G23: 0.01440585163 | H23: -4.146955305 | I23: 0 | J23: 0
B24: Asset15 | C24: =+Asset15 -> Substation Secondary Systems - Electronic | E24: 24.82877509 | F24: 35.36661245 | G24: 18.06065027 | H24: 31.0313844 | I24: 49.527 | J24: 25.493
B25: Asset16 | C25: =+Asset16 -> Transmission lines - Overhead | E25: 16.14556124 | F25: 25.84222384 | G25: 15.97551109 | H25: 12.24291744 | I25: 6.094 | J25: 14.947
B26: Asset17 | C26: =+Asset17 -> Transmission lines - Underground | E26: 1.321814932 | F26: 0.1765912253 | G26: 0.01772154369 | H26: 0 | I26: 3.579 | J26: 4.202
B27: Asset18 | C27: =+Asset18 -> Capital Work in Progress | E27: 0 | F27: 0 | G27: 0 | H27: 0 | I27: 0 | J27: 0
B28: Asset19 | C28: =+Asset19 -> Accelerated Depreciation | E28: 0 | F28: 0 | G28: 0 | H28: 0 | I28: 0 | J28: 0
B29: Asset20 | C29: =+Asset20 -> Refurbishment Projects 2008-2013 | E29: 0 | F29: 0 | G29: 5.200428814 | H29: 0 | I29: 0 | J29: 0
B30: Asset21 | C30: =+Asset21 -> Equity Raising Cost - 2003 Opening RAB and 2003-08 capex | E30: 0 | F30: 0 | G30: 0 | H30: 0 | I30: 0 | J30: 0
B31: Asset22 | C31: =+Asset22 -> Equity Raising Cost 2013-2018 | E31: 0 | F31: 0 | G31: 0 | H31: 0 | I31: 0 | J31: 0
B32: Asset23 | C32: =+Asset23 -> Transmission Line Refit - insulators replacement 2013-18 | E32: 0 | F32: 0 | G32: 0 | H32: 2.511171789 | I32: 18.214 | J32: 59.714
B33: Asset24 | C33: =+Asset24 -> Communications - Other (post 2018) | E33: 0 | F33: 0 | G33: 0 | H33: 0 | I33: 0 | J33: 0
B34: Asset25 | C34: =+Asset25 -> Synchronous Condensers
B35: Asset26 | C35: =+Asset26 -> Asset26 - Not in Use
B36: Asset27 | C36: =+Asset27 -> Asset27 - Not in Use
B37: Asset28 | C37: =+Asset28 -> Asset28 - Not in Use
B38: Asset29 | C38: =+Asset29 -> Asset29 - Not in Use
B39: Asset30 | C39: =+Asset30 -> Asset30 - Not in Use
B40: Total | E40: =SUM(E10:E39) -> 176.273405 | F40: =SUM(F10:F39) -> 220.2200065 | G40: =SUM(G10:G39) -> 92.62317625 | H40: 130.3907011 | I40: 268.811 | J40: 208.319 | K40: 0 | L40: 0 | M40: 0 | N40: 0 | O40: 0 | P40: 0 | Q40: 0 | R40: 0 | S40: 0 | T40: 0 | U40: 0 | V40: 0 | W40: 0 | X40: 0 | Y40: 0
J41: =SUM(F40:J40) -> 920.3638839 | O41: =SUM(K40:O40) -> 0 | T41: =SUM(P40:T40) -> 0 | Y41: =SUM(U40:Y40) -> 0
C43: Forecast Net Capital Expenditure – As Commissioned ($m Real) | I43: $'M Real | J43: =E7 -> 2012-13
C44: Note - data is Real Actual Net Capex, per Actual RAB roll forward sheet of RFM - includes half year capitalised WACC, as used for RAB
B45: Asset1 | C45: =+Asset1 -> Commercial Buildings | F45: =F10/'L1 '!E$49*(1+'L1 '!E$54)^0.5 -> 0.2863925554 | G45: =G10/'L1 '!F$49*(1+'L1 '!F$54)^0.5 -> 0.4336267776 | H45: =H10/'L1 '!G$49*(1+'L1 '!G$54)^0.5 -> 0.7078606086 | I45: =I10/'L1 '!H$49*(1+'L1 '!H$54)^0.5 -> 0.9232859024 | J45: =J10/'L1 '!I$49*(1+'L1 '!I$54)^0.5 -> 4.861519083
B46: Asset2 | C46: =+Asset2 -> Communications - Civil | F46: =F11/'L1 '!E$49*(1+'L1 '!E$54)^0.5 -> 0.386882011 | G46: =G11/'L1 '!F$49*(1+'L1 '!F$54)^0.5 -> 1.775195116 | H46: =H11/'L1 '!G$49*(1+'L1 '!G$54)^0.5 -> 5.68576061 | I46: =I11/'L1 '!H$49*(1+'L1 '!H$54)^0.5 -> 5.539715414 | J46: =J11/'L1 '!I$49*(1+'L1 '!I$54)^0.5 -> 1.650781614
B47: Asset3 | C47: =+Asset3 -> Communications - Other | F47: =F12/'L1 '!E$49*(1+'L1 '!E$54)^0.5 -> 13.41374442 | G47: =G12/'L1 '!F$49*(1+'L1 '!F$54)^0.5 -> 10.2406923 | H47: =H12/'L1 '!G$49*(1+'L1 '!G$54)^0.5 -> 9.13813041 | I47: =I12/'L1 '!H$49*(1+'L1 '!H$54)^0.5 -> 17.75344164 | J47: =J12/'L1 '!I$49*(1+'L1 '!I$54)^0.5 -> 8.189300057
B48: Asset4 | C48: =+Asset4 -> Computers, software, and office machines | F48: =F13/'L1 '!E$49*(1+'L1 '!E$54)^0.5 -> 8.878056948 | G48: =G13/'L1 '!F$49*(1+'L1 '!F$54)^0.5 -> 12.55645152 | H48: =H13/'L1 '!G$49*(1+'L1 '!G$54)^0.5 -> 10.66622012 | I48: =I13/'L1 '!H$49*(1+'L1 '!H$54)^0.5 -> 18.91256169 | J48: =J13/'L1 '!I$49*(1+'L1 '!I$54)^0.5 -> 16.47878936
B49: Asset5 | C49: =+Asset5 -> Easement | F49: =F14/'L1 '!E$49*(1+'L1 '!E$54)^0.5 -> 0 | G49: =G14/'L1 '!F$49*(1+'L1 '!F$54)^0.5 -> 0 | H49: =H14/'L1 '!G$49*(1+'L1 '!G$54)^0.5 -> 3.215379627 | I49: =I14/'L1 '!H$49*(1+'L1 '!H$54)^0.5 -> 12.05904958 | J49: =J14/'L1 '!I$49*(1+'L1 '!I$54)^0.5 -> 0.08988941293
B50: Asset6 | C50: =+Asset6 -> Land | F50: =F15/'L1 '!E$49*(1+'L1 '!E$54)^0.5 -> 3.435089068 | G50: =G15/'L1 '!F$49*(1+'L1 '!F$54)^0.5 -> 0.1445786281 | H50: =H15/'L1 '!G$49*(1+'L1 '!G$54)^0.5 -> 0.9216962218 | I50: =I15/'L1 '!H$49*(1+'L1 '!H$54)^0.5 -> 12.28438099 | J50: =J15/'L1 '!I$49*(1+'L1 '!I$54)^0.5 -> 0.02621774544
B51: Asset7 | C51: =+Asset7 -> Network Switching Centres | F51: =F16/'L1 '!E$49*(1+'L1 '!E$54)^0.5 -> 0.05846307606 | G51: =G16/'L1 '!F$49*(1+'L1 '!F$54)^0.5 -> 0.1144307595 | H51: =H16/'L1 '!G$49*(1+'L1 '!G$54)^0.5 -> 0 | I51: =I16/'L1 '!H$49*(1+'L1 '!H$54)^0.5 -> 4.562961042 | J51: =J16/'L1 '!I$49*(1+'L1 '!I$54)^0.5 -> 0.0009363480513
B52: Asset8 | C52: =+Asset8 -> Office furniture, movable plant, and misc | F52: =F17/'L1 '!E$49*(1+'L1 '!E$54)^0.5 -> 6.624392573 | G52: =G17/'L1 '!F$49*(1+'L1 '!F$54)^0.5 -> 0.9362152339 | H52: =H17/'L1 '!G$49*(1+'L1 '!G$54)^0.5 -> 3.145910652 | I52: =I17/'L1 '!H$49*(1+'L1 '!H$54)^0.5 -> 2.759354972 | J52: =J17/'L1 '!I$49*(1+'L1 '!I$54)^0.5 -> 6.311922214
B53: Asset9 | C53: =+Asset9 -> Refurbishment | F53: =F18/'L1 '!E$49*(1+'L1 '!E$54)^0.5 -> 0 | G53: =G18/'L1 '!F$49*(1+'L1 '!F$54)^0.5 -> 0 | H53: =H18/'L1 '!G$49*(1+'L1 '!G$54)^0.5 -> 0 | I53: =I18/'L1 '!H$49*(1+'L1 '!H$54)^0.5 -> 0 | J53: =J18/'L1 '!I$49*(1+'L1 '!I$54)^0.5 -> 0
B54: Asset10 | C54: =+Asset10 -> Substation Primary Plant | F54: =F19/'L1 '!E$49*(1+'L1 '!E$54)^0.5 -> 84.74261006 | G54: =G19/'L1 '!F$49*(1+'L1 '!F$54)^0.5 -> 18.23880683 | H54: =H19/'L1 '!G$49*(1+'L1 '!G$54)^0.5 -> 13.11019049 | I54: =I19/'L1 '!H$49*(1+'L1 '!H$54)^0.5 -> 81.54991955 | J54: =J19/'L1 '!I$49*(1+'L1 '!I$54)^0.5 -> 46.44473604
B55: Asset11 | C55: =+Asset11 -> Substation Demountable Buildings | F55: =F20/'L1 '!E$49*(1+'L1 '!E$54)^0.5 -> 0 | G55: =G20/'L1 '!F$49*(1+'L1 '!F$54)^0.5 -> 0.09684465878 | H55: =H20/'L1 '!G$49*(1+'L1 '!G$54)^0.5 -> 6.854767869 | I55: =I20/'L1 '!H$49*(1+'L1 '!H$54)^0.5 -> 4.049281812 | J55: =J20/'L1 '!I$49*(1+'L1 '!I$54)^0.5 -> 1.7537799
B56: Asset12 | C56: =+Asset12 -> Substation Establishment | F56: =F21/'L1 '!E$49*(1+'L1 '!E$54)^0.5 -> 39.85171689 | G56: =G21/'L1 '!F$49*(1+'L1 '!F$54)^0.5 -> 8.442633856 | H56: =H21/'L1 '!G$49*(1+'L1 '!G$54)^0.5 -> 31.85982393 | I56: =I21/'L1 '!H$49*(1+'L1 '!H$54)^0.5 -> 20.56912947 | J56: =J21/'L1 '!I$49*(1+'L1 '!I$54)^0.5 -> 11.13317833
B57: Asset13 | C57: =+Asset13 -> Substation Fences | F57: =F22/'L1 '!E$49*(1+'L1 '!E$54)^0.5 -> 3.321176261 | G57: =G22/'L1 '!F$49*(1+'L1 '!F$54)^0.5 -> -0.8475679329 | H57: =H22/'L1 '!G$49*(1+'L1 '!G$54)^0.5 -> 0.266132171 | I57: =I22/'L1 '!H$49*(1+'L1 '!H$54)^0.5 -> 1.781645805 | J57: =J22/'L1 '!I$49*(1+'L1 '!I$54)^0.5 -> 0.4045023582
B58: Asset14 | C58: =+Asset14 -> Substation Secondary Systems - Electromechanical | F58: =F23/'L1 '!E$49*(1+'L1 '!E$54)^0.5 -> 0 | G58: =G23/'L1 '!F$49*(1+'L1 '!F$54)^0.5 -> 0.01407575949 | H58: =H23/'L1 '!G$49*(1+'L1 '!G$54)^0.5 -> -3.998354976 | I58: =I23/'L1 '!H$49*(1+'L1 '!H$54)^0.5 -> 0 | J58: =J23/'L1 '!I$49*(1+'L1 '!I$54)^0.5 -> 0
B59: Asset15 | C59: =+Asset15 -> Substation Secondary Systems - Electronic | F59: =F24/'L1 '!E$49*(1+'L1 '!E$54)^0.5 -> 35.84844328 | G59: =G24/'L1 '!F$49*(1+'L1 '!F$54)^0.5 -> 17.64681297 | H59: =H24/'L1 '!G$49*(1+'L1 '!G$54)^0.5 -> 29.91941825 | I59: =I24/'L1 '!H$49*(1+'L1 '!H$54)^0.5 -> 47.28808778 | J59: =J24/'L1 '!I$49*(1+'L1 '!I$54)^0.5 -> 23.87032087
B60: Asset16 | C60: =+Asset16 -> Transmission lines - Overhead | F60: =F25/'L1 '!E$49*(1+'L1 '!E$54)^0.5 -> 26.19429545 | G60: =G25/'L1 '!F$49*(1+'L1 '!F$54)^0.5 -> 15.60945216 | H60: =H25/'L1 '!G$49*(1+'L1 '!G$54)^0.5 -> 11.80420966 | I60: =I25/'L1 '!H$49*(1+'L1 '!H$54)^0.5 -> 5.818515294 | J60: =J25/'L1 '!I$49*(1+'L1 '!I$54)^0.5 -> 13.99559432
B61: Asset17 | C61: =+Asset17 -> Transmission lines - Underground | F61: =F26/'L1 '!E$49*(1+'L1 '!E$54)^0.5 -> 0.1789970847 | G61: =G26/'L1 '!F$49*(1+'L1 '!F$54)^0.5 -> 0.0173154766 | H61: =H26/'L1 '!G$49*(1+'L1 '!G$54)^0.5 -> 0 | I61: =I26/'L1 '!H$49*(1+'L1 '!H$54)^0.5 -> 3.417208112 | J61: =J26/'L1 '!I$49*(1+'L1 '!I$54)^0.5 -> 3.934534512
B62: Asset18 | C62: =+Asset18 -> Capital Work in Progress | F62: =F27/'L1 '!E$49*(1+'L1 '!E$54)^0.5 -> 0 | G62: =G27/'L1 '!F$49*(1+'L1 '!F$54)^0.5 -> 0 | H62: =H27/'L1 '!G$49*(1+'L1 '!G$54)^0.5 -> 0 | I62: =I27/'L1 '!H$49*(1+'L1 '!H$54)^0.5 -> 0 | J62: =J27/'L1 '!I$49*(1+'L1 '!I$54)^0.5 -> 0
B63: Asset19 | C63: =+Asset19 -> Accelerated Depreciation | F63: =F28/'L1 '!E$49*(1+'L1 '!E$54)^0.5 -> 0 | G63: =G28/'L1 '!F$49*(1+'L1 '!F$54)^0.5 -> 0 | H63: =H28/'L1 '!G$49*(1+'L1 '!G$54)^0.5 -> 0 | I63: =I28/'L1 '!H$49*(1+'L1 '!H$54)^0.5 -> 0 | J63: =J28/'L1 '!I$49*(1+'L1 '!I$54)^0.5 -> 0
B64: Asset20 | C64: =+Asset20 -> Refurbishment Projects 2008-2013 | F64: =F29/'L1 '!E$49*(1+'L1 '!E$54)^0.5 -> 0 | G64: =G29/'L1 '!F$49*(1+'L1 '!F$54)^0.5 -> 5.081267468 | H64: =H29/'L1 '!G$49*(1+'L1 '!G$54)^0.5 -> 0 | I64: =I29/'L1 '!H$49*(1+'L1 '!H$54)^0.5 -> 0 | J64: =J29/'L1 '!I$49*(1+'L1 '!I$54)^0.5 -> 0
B65: Asset21 | C65: =+Asset21 -> Equity Raising Cost - 2003 Opening RAB and 2003-08 capex | F65: =F30/'L1 '!E$49*(1+'L1 '!E$54)^0.5 -> 0 | G65: =G30/'L1 '!F$49*(1+'L1 '!F$54)^0.5 -> 0 | H65: =H30/'L1 '!G$49*(1+'L1 '!G$54)^0.5 -> 0 | I65: =I30/'L1 '!H$49*(1+'L1 '!H$54)^0.5 -> 0 | J65: =J30/'L1 '!I$49*(1+'L1 '!I$54)^0.5 -> 0
B66: Asset22 | C66: =+Asset22 -> Equity Raising Cost 2013-2018 | F66: =F31/'L1 '!E$49*(1+'L1 '!E$54)^0.5 -> 0 | G66: =G31/'L1 '!F$49*(1+'L1 '!F$54)^0.5 -> 0 | H66: =H31/'L1 '!G$49*(1+'L1 '!G$54)^0.5 -> 0 | I66: =I31/'L1 '!H$49*(1+'L1 '!H$54)^0.5 -> 0 | J66: =J31/'L1 '!I$49*(1+'L1 '!I$54)^0.5 -> 0
B67: Asset23 | C67: =+Asset23 -> Transmission Line Refit - insulators replacement 2013-18 | F67: =F32/'L1 '!E$49*(1+'L1 '!E$54)^0.5 -> 0 | G67: =G32/'L1 '!F$49*(1+'L1 '!F$54)^0.5 -> 0 | H67: =H32/'L1 '!G$49*(1+'L1 '!G$54)^0.5 -> 2.421187469 | I67: =I32/'L1 '!H$49*(1+'L1 '!H$54)^0.5 -> 17.39061988 | J67: =J32/'L1 '!I$49*(1+'L1 '!I$54)^0.5 -> 55.91308754
B68: Asset24 | C68: =+Asset24 -> Communications - Other (post 2018) | F68: 0 | G68: 0 | H68: 0 | I68: 0 | J68: 0
B69: Asset25 | C69: =+Asset25 -> Synchronous Condensers | F69: 0 | G69: 0 | H69: 0 | I69: 0 | J69: 0
B70: Asset26 | C70: =+Asset26 -> Asset26 - Not in Use | F70: 0 | G70: 0 | H70: 0 | I70: 0 | J70: 0
B71: Asset27 | C71: =+Asset27 -> Asset27 - Not in Use | F71: 0 | G71: 0 | H71: 0 | I71: 0 | J71: 0
B72: Asset28 | C72: =+Asset28 -> Asset28 - Not in Use | F72: 0 | G72: 0 | H72: 0 | I72: 0 | J72: 0
B73: Asset29 | C73: =+Asset29 -> Asset29 - Not in Use | F73: 0 | G73: 0 | H73: 0 | I73: 0 | J73: 0
B74: Asset30 | C74: =+Asset30 -> Asset30 - Not in Use | F74: 0 | G74: 0 | H74: 0 | I74: 0 | J74: 0
F75: =SUM(F45:F74) -> 223.2202597 | G75: 90.50083157 | H75: 125.7183331 | I75: 256.659159 | J75: 195.0590897 | K75: 0 | L75: 0 | M75: 0 | N75: 0 | O75: 0 | P75: 0 | Q75: 0 | R75: 0 | S75: 0 | T75: 0 | U75: 0 | V75: 0 | W75: 0 | X75: 0 | Y75: 0
J76: =SUM(F75:J75) -> 891.157673 | O76: =SUM(K75:O75) -> 0 | T76: =SUM(P75:T75) -> 0 | Y76: =SUM(U75:Y75) -> 0
C77: Commissioned ($m Real) net of 1/2 WACC | F77: =F75/(1+'L1 '!E$54)^0.5 -> 214.8435415 | G77: =G75/(1+'L1 '!F$54)^0.5 -> 87.78963201 | H77: =H75/(1+'L1 '!G$54)^0.5 -> 121.964134 | I77: =I75/(1+'L1 '!H$54)^0.5 -> 248.1876902 | J77: =J75/(1+'L1 '!I$54)^0.5 -> 188.6208352
C79: Other RAB Adjustments - end of final year of RCP | E79: Per RFM: | F79: Difference Between Actual and Forecast Net Capex | G79: Return on Difference - Net Capex | H79: Accelerated Depn | I79: Opening RAB Adjustment $2013 | J79: WIP Adjustment $2013
B80: Asset1 | C80: =+Asset1 -> Commercial Buildings | F80: 0.4195322017 | G80: 0.204882294 | H80: 0 | I80: =SUM(F80:H80)/'R1-RABLife '!$G$40 -> 0.5653712994 | O80: =SUM(K80:N80) -> 0 | T80: =SUM(P80:S80) -> 0 | Y80: =SUM(U80:X80) -> 0
B81: Asset2 | C81: =+Asset2 -> Communications - Civil | F81: 1.628319813 | G81: 0.1104127799 | H81: -1.005124374 | I81: =SUM(F81:H81)/'R1-RABLife '!$G$40 -> 0.6642399154 | O81: =SUM(K81:N81) -> 0 | T81: =SUM(P81:S81) -> 0 | Y81: =SUM(U81:X81) -> 0
B82: Asset3 | C82: =+Asset3 -> Communications - Other | F82: -13.13744339 | G82: -0.2006179228 | H82: -5.217713141 | I82: =SUM(F82:H82)/'R1-RABLife '!$G$40 -> -16.80118316 | O82: 0 | T82: 0 | Y82: 0
B83: Asset4 | C83: =+Asset4 -> Computers, software, and office machines | F83: -12.50723985 | G83: -1.111040598 | H83: 0 | I83: =SUM(F83:H83)/'R1-RABLife '!$G$40 -> -12.33056722 | O83: 0 | T83: 0 | Y83: 0
B84: Asset5 | C84: =+Asset5 -> Easement | F84: -24.85584244 | G84: -3.791237895 | H84: 0 | I84: =SUM(F84:H84)/'R1-RABLife '!$G$40 -> -25.93827841 | O84: 0 | T84: 0 | Y84: 0
B85: Asset6 | C85: =+Asset6 -> Land | F85: 20.63004987 | G85: 2.035198041 | H85: 0 | I85: =SUM(F85:H85)/'R1-RABLife '!$G$40 -> 20.52207428 | O85: 0 | T85: 0 | Y85: 0
B86: Asset7 | C86: =+Asset7 -> Network Switching Centres | F86: 3.488047549 | G86: 0.06103948915 | H86: 0 | I86: =SUM(F86:H86)/'R1-RABLife '!$G$40 -> 3.213493543 | O86: 0 | T86: 0 | Y86: 0
B87: Asset8 | C87: =+Asset8 -> Office furniture, movable plant, and misc | F87: -6.270494192 | G87: -0.4192175348 | H87: 0 | I87: =SUM(F87:H87)/'R1-RABLife '!$G$40 -> -6.057147996 | O87: 0 | T87: 0 | Y87: 0
B88: Asset9 | C88: =+Asset9 -> Refurbishment | F88: 0 | G88: -0.001179080473 | H88: 0 | I88: =SUM(F88:H88)/'R1-RABLife '!$G$40 -> -0.00106758934 | O88: 0 | T88: 0 | Y88: 0
B89: Asset10 | C89: =+Asset10 -> Substation Primary Plant | F89: 7.421912517 | G89: 2.499609447 | H89: -7.648344414 | I89: =SUM(F89:H89)/'R1-RABLife '!$G$40 -> 2.058231118 | O89: 0 | T89: 0 | Y89: 0
B90: Asset11 | C90: =+Asset11 -> Substation Demountable Buildings | F90: -1.281676351 | G90: 0.1122829604 | H90: 0 | I90: =SUM(F90:H90)/'R1-RABLife '!$G$40 -> -1.058818245 | O90: 0 | T90: 0 | Y90: 0
B91: Asset12 | C91: =+Asset12 -> Substation Establishment | F91: 33.90019224 | G91: 0.3284564714 | H91: -4.874858912 | I91: =SUM(F91:H91)/'R1-RABLife '!$G$40 -> 26.57816306 | O91: 0 | T91: 0 | Y91: 0
B92: Asset13 | C92: =+Asset13 -> Substation Fences | F92: -18.64299983 | G92: 0.1116332727 | H92: -0.7158020337 | I92: =SUM(F92:H92)/'R1-RABLife '!$G$40 -> -17.42720067 | O92: 0 | T92: 0 | Y92: 0
B93: Asset14 | C93: =+Asset14 -> Substation Secondary Systems - Electromechanical | F93: 0 | G93: 0 | H93: -2.066659628 | I93: =SUM(F93:H93)/'R1-RABLife '!$G$40 -> -1.871241054 | O93: 0 | T93: 0 | Y93: 0
B94: Asset15 | C94: =+Asset15 -> Substation Secondary Systems - Electronic | F94: -5.700296047 | G94: 0.3975316988 | H94: -1.356967631 | I94: =SUM(F94:H94)/'R1-RABLife '!$G$40 -> -6.030003064 | O94: 0 | T94: 0 | Y94: 0
B95: Asset16 | C95: =+Asset16 -> Transmission lines - Overhead | F95: 15.67708806 | G95: 0.1391969586 | H95: -2.490511347 | I95: =SUM(F95:H95)/'R1-RABLife '!$G$40 -> 12.06571921 | O95: 0 | T95: 0 | Y95: 0
B96: Asset17 | C96: =+Asset17 -> Transmission lines - Underground | F96: -0.180304504 | G96: -0.09706969727 | H96: 0 | I96: =SUM(F96:H96)/'R1-RABLife '!$G$40 -> -0.2511463357 | O96: 0 | T96: 0 | Y96: 0
B97: Asset18 | C97: =+Asset18 -> Capital Work in Progress | F97: 0 | G97: 0 | H97: 0 | I97: =SUM(F97:H97)/'R1-RABLife '!$G$40 -> 0 | O97: 0 | T97: 0 | Y97: 0
B98: Asset19 | C98: =+Asset19 -> Accelerated Depreciation | F98: 0 | G98: 0 | H98: 25.37598148 | I98: =SUM(F98:H98)/'R1-RABLife '!$G$40 -> 22.97648713 | O98: 0 | T98: 0 | Y98: 0
B99: Asset20 | C99: =+Asset20 -> Refurbishment Projects 2008-2013 | F99: -12.54737778 | G99: -0.6679405572 | H99: 0 | I99: =SUM(F99:H99)/'R1-RABLife '!$G$40 -> -11.96570828 | O99: 0 | T99: 0 | Y99: 0
B100: Asset21 | C100: =+Asset21 -> Equity Raising Cost - 2003 Opening RAB and 2003-08 capex | F100: 0 | G100: 0 | H100: 0 | I100: =SUM(F100:H100)/'R1-RABLife '!$G$40 -> 0 | O100: 0 | T100: 0 | Y100: 0
B101: Asset22 | C101: =+Asset22 -> Equity Raising Cost 2013-2018 | F101: 0 | G101: 0 | H101: 0 | I101: =SUM(F101:H101)/'R1-RABLife '!$G$40 -> 0 | O101: 0 | T101: 0 | Y101: 0
B102: Asset23 | C102: =+Asset23 -> Transmission Line Refit - insulators replacement 2013-18 | F102: 0 | G102: 0 | H102: 0 | I102: =SUM(F102:H102)/'R1-RABLife '!$G$40 -> 0 | O102: 0 | T102: 0 | Y102: 0
B103: Asset24 | C103: =+Asset24 -> Communications - Other (post 2018) | I103: =SUM(F103:G103)/'R1-RABLife '!$G$40 -> 0 | O103: 0 | T103: 0 | Y103: 0
B104: Asset25 | C104: =+Asset25 -> Synchronous Condensers | I104: =SUM(F104:G104)/'R1-RABLife '!$G$40 -> 0 | O104: 0 | T104: 0 | Y104: 0
B105: Asset26 | C105: =+Asset26 -> Asset26 - Not in Use | I105: =SUM(F105:G105)/'R1-RABLife '!$G$40 -> 0 | O105: 0 | T105: 0 | Y105: 0
B106: Asset27 | C106: =+Asset27 -> Asset27 - Not in Use | I106: =SUM(F106:G106)/'R1-RABLife '!$G$40 -> 0 | O106: 0 | T106: 0 | Y106: 0
B107: Asset28 | C107: =+Asset28 -> Asset28 - Not in Use | I107: =SUM(F107:G107)/'R1-RABLife '!$G$40 -> 0 | O107: 0 | T107: 0 | Y107: 0
B108: Asset29 | C108: =+Asset29 -> Asset29 - Not in Use | I108: =SUM(F108:G108)/'R1-RABLife '!$G$40 -> 0 | O108: 0 | T108: 0 | Y108: 0
B109: Asset30 | C109: =+Asset30 -> Asset30 - Not in Use | I109: =SUM(F109:G109)/'R1-RABLife '!$G$40 -> 0 | O109: 0 | T109: 0 | Y109: 0
F110: =SUM(F80:F109) -> -11.95853213 | G110: =SUM(G80:G109) -> -0.2880598721 | H110: 0 | I110: -11.08858248 | J110: =SUM(J80:J109) -> 0 | K110: 0 | L110: 0 | M110: 0 | N110: 0 | O110: 0 | P110: 0 | Q110: 0 | R110: 0 | S110: 0 | T110: 0 | U110: 0 | V110: 0 | W110: 0 | X110: 0 | Y110: 0
O111: =SUM(K110:O110) -> 0 | T111: =SUM(P110:T110) -> 0 | Y111: =SUM(U110:Y110) -> 0
C113: Other TAB Adjustments - end of final year of RCP | H113: Reallocation of 2014-15 interim WIP balance | J113: Total closing 2014/15 Adjustment $2015
B114: Asset1 | C114: =+Asset1 -> Commercial Buildings | J114: =SUM(F114:I114) -> 0 | O114: =SUM(K114:N114) -> 0 | T114: =SUM(P114:S114) -> 0 | Y114: =SUM(U114:X114) -> 0
B115: Asset2 | C115: =+Asset2 -> Communications - Civil | J115: =SUM(F115:I115) -> 0 | O115: =SUM(K115:N115) -> 0 | T115: =SUM(P115:S115) -> 0 | Y115: =SUM(U115:X115) -> 0
B116: Asset3 | C116: =+Asset3 -> Communications - Other | J116: 0 | O116: 0 | T116: 0 | Y116: 0
B117: Asset4 | C117: =+Asset4 -> Computers, software, and office machines | J117: 0 | O117: 0 | T117: 0 | Y117: 0
B118: Asset5 | C118: =+Asset5 -> Easement | J118: 0 | O118: 0 | T118: 0 | Y118: 0
B119: Asset6 | C119: =+Asset6 -> Land | J119: 0 | O119: 0 | T119: 0 | Y119: 0
B120: Asset7 | C120: =+Asset7 -> Network Switching Centres | J120: 0 | O120: 0 | T120: 0 | Y120: 0
B121: Asset8 | C121: =+Asset8 -> Office furniture, movable plant, and misc | J121: 0 | O121: 0 | T121: 0 | Y121: 0
B122: Asset9 | C122: =+Asset9 -> Refurbishment | J122: 0 | O122: 0 | T122: 0 | Y122: 0
B123: Asset10 | C123: =+Asset10 -> Substation Primary Plant | J123: 0 | O123: 0 | T123: 0 | Y123: 0
B124: Asset11 | C124: =+Asset11 -> Substation Demountable Buildings | J124: 0 | O124: 0 | T124: 0 | Y124: 0
B125: Asset12 | C125: =+Asset12 -> Substation Establishment | J125: 0 | O125: 0 | T125: 0 | Y125: 0
B126: Asset13 | C126: =+Asset13 -> Substation Fences | J126: 0 | O126: 0 | T126: 0 | Y126: 0
B127: Asset14 | C127: =+Asset14 -> Substation Secondary Systems - Electromechanical | J127: 0 | O127: 0 | T127: 0 | Y127: 0
B128: Asset15 | C128: =+Asset15 -> Substation Secondary Systems - Electronic | J128: 0 | O128: 0 | T128: 0 | Y128: 0
B129: Asset16 | C129: =+Asset16 -> Transmission lines - Overhead | J129: 0 | O129: 0 | T129: 0 | Y129: 0
B130: Asset17 | C130: =+Asset17 -> Transmission lines - Underground | J130: 0 | O130: 0 | T130: 0 | Y130: 0
B131: Asset18 | C131: =+Asset18 -> Capital Work in Progress | J131: 0 | O131: 0 | T131: 0 | Y131: 0
B132: Asset19 | C132: =+Asset19 -> Accelerated Depreciation | J132: 0 | O132: 0 | T132: 0 | Y132: 0
B133: Asset20 | C133: =+Asset20 -> Refurbishment Projects 2008-2013 | J133: 0 | O133: 0 | T133: 0 | Y133: 0
B134: Asset21 | C134: =+Asset21 -> Equity Raising Cost - 2003 Opening RAB and 2003-08 capex | J134: 0 | O134: 0 | T134: 0 | Y134: 0
B135: Asset22 | C135: =+Asset22 -> Equity Raising Cost 2013-2018 | J135: 0 | O135: 0 | T135: 0 | Y135: 0
B136: Asset23 | C136: =+Asset23 -> Transmission Line Refit - insulators replacement 2013-18 | J136: 0 | O136: 0 | T136: 0 | Y136: 0
B137: Asset24 | C137: =+Asset24 -> Communications - Other (post 2018) | J137: 0 | O137: 0 | T137: 0 | Y137: 0
B138: Asset25 | C138: =+Asset25 -> Synchronous Condensers | J138: 0 | O138: 0 | T138: 0 | Y138: 0
B139: Asset26 | C139: =+Asset26 -> Asset26 - Not in Use | J139: 0 | O139: 0 | T139: 0 | Y139: 0
B140: Asset27 | C140: =+Asset27 -> Asset27 - Not in Use | J140: 0 | O140: 0 | T140: 0 | Y140: 0
B141: Asset28 | C141: =+Asset28 -> Asset28 - Not in Use | J141: 0 | O141: 0 | T141: 0 | Y141: 0
B142: Asset29 | C142: =+Asset29 -> Asset29 - Not in Use | J142: 0 | O142: 0 | T142: 0 | Y142: 0
B143: Asset30 | C143: =+Asset30 -> Asset30 - Not in Use | J143: 0 | O143: 0 | T143: 0 | Y143: 0
F144: =SUM(F114:F143) -> 0 | G144: =SUM(G114:G143) -> 0 | H144: =SUM(H114:H143) -> 0 | I144: 0 | J144: =SUM(J114:J143) -> 0 | K144: =SUM(K114:K143) -> 0 | L144: 0 | M144: 0 | N144: 0 | O144: 0 | P144: 0 | Q144: 0 | R144: 0 | S144: 0 | T144: 0 | U144: 0 | V144: 0 | W144: 0 | X144: 0 | Y144: 0
O145: =SUM(K144:O144) -> 0 | T145: =SUM(P144:T144) -> 0 | Y145: =SUM(U144:Y144) -> 0
J147: ='PTRM input'!K75 -> 103.4932331 | K147: ='PTRM input'!L75 -> 110.0082083 | L147: ='PTRM input'!M75 -> 107.0597864 | M147: ='PTRM input'!N75 -> 101.8766652 | N147: ='PTRM input'!O75 -> 94.96988492

Sheet Section2
A1: =RIGHT(CELL("filename",A1),LEN(CELL("filename",A1))-FIND("]",CELL("filename",A1))) -> Section2
B3: Section | C3: =+Section1!C3+1 -> 2
B5: Workings

Sheet W1-Depreciation
A1: =RIGHT(CELL("filename",A2),LEN(CELL("filename",A2))-FIND("]",CELL("filename",A2))) -> W1-Depreciation | K1: =MAX(B15-5,5) -> 18.26612118
B2: Regulatory Straight Line Depreciation
F3: 1 | G3: =F3+1 -> 2 | H3: 3 | I3: 4 | J3: 5 | K3: 6 | L3: 7 | M3: 8 | N3: 9 | O3: 10 | P3: 11 | Q3: 12 | R3: 13 | S3: 14 | T3: 15 | U3: 16 | V3: 17 | W3: 18 | X3: 19 | Y3: 20 | Z3: =Y3+1 -> 21 | AA3: =Z3+1 -> 22 | AB3: =AA3+1 -> 23 | AC3: =AB3+1 -> 24 | AD3: =AC3+1 -> 25 | AE3: =AD3+1 -> 26 | AF3: =AE3+1 -> 27 | AG3: =AF3+1 -> 28 | AH3: =AG3+1 -> 29 | AI3: =AH3+1 -> 30 | AJ3: =AI3+1 -> 31 | AK3: =AJ3+1 -> 32 | AL3: =AK3+1 -> 33 | AM3: =AL3+1 -> 34 | AN3: =AM3+1 -> 35 | AO3: =AN3+1 -> 36 | AP3: =AO3+1 -> 37 | AQ3: =AP3+1 -> 38 | AR3: =AQ3+1 -> 39 | AS3: =AR3+1 -> 40 | AT3: =AS3+1 -> 41 | AU3: =AT3+1 -> 42 | AV3: =AU3+1 -> 43 | AW3: =AV3+1 -> 44 | AX3: =AW3+1 -> 45 | AY3: =AX3+1 -> 46 | AZ3: =AY3+1 -> 47 | BA3: =AZ3+1 -> 48 | BB3: =BA3+1 -> 49 | BC3: =BB3+1 -> 50 | BD3: =BC3+1 -> 51 | BE3: =BD3+1 -> 52 | BF3: =BE3+1 -> 53 | BG3: =BF3+1 -> 54 | BH3: =BG3+1 -> 55 | BI3: =BH3+1 -> 56 | BJ3: =BI3+1 -> 57 | BK3: =BJ3+1 -> 58 | BL3: =BK3+1 -> 59 | BM3: =BL3+1 -> 60 | BN3: 61
B4: Year | F4: ='L1 '!E20 -> 2013-14 | G4: =CONCATENATE(LEFT(F4, 4)+1 &"-" &IF(F4>"2007-08",,"0") &RIGHT(F4,2)+1) -> 2014-15 | H4: =CONCATENATE(LEFT(G4, 4)+1 &"-" &IF(G4>"2007-08",,"0") &RIGHT(G4,2)+1) -> 2015-16 | I4: =CONCATENATE(LEFT(H4, 4)+1 &"-" &IF(H4>"2007-08",,"0") &RIGHT(H4,2)+1) -> 2016-17 | J4: =CONCATENATE(LEFT(I4, 4)+1 &"-" &IF(I4>"2007-08",,"0") &RIGHT(I4,2)+1) -> 2017-18 | K4: =CONCATENATE(LEFT(J4, 4)+1 &"-" &IF(J4>"2007-08",,"0") &RIGHT(J4,2)+1) -> 2018-19 | L4: =CONCATENATE(LEFT(K4, 4)+1 &"-" &IF(K4>"2007-08",,"0") &RIGHT(K4,2)+1) -> 2019-20 | M4: =CONCATENATE(LEFT(L4, 4)+1 &"-" &IF(L4>"2007-08",,"0") &RIGHT(L4,2)+1) -> 2020-21 | N4: =CONCATENATE(LEFT(M4, 4)+1 &"-" &IF(M4>"2007-08",,"0") &RIGHT(M4,2)+1) -> 2021-22 | O4: =CONCATENATE(LEFT(N4, 4)+1 &"-" &IF(N4>"2007-08",,"0") &RIGHT(N4,2)+1) -> 2022-23 | P4: =CONCATENATE(LEFT(O4, 4)+1 &"-" &IF(O4>"2007-08",,"0") &RIGHT(O4,2)+1) -> 2023-24 | Q4: =CONCATENATE(LEFT(P4, 4)+1 &"-" &IF(P4>"2007-08",,"0") &RIGHT(P4,2)+1) -> 2024-25 | R4: =CONCATENATE(LEFT(Q4, 4)+1 &"-" &IF(Q4>"2007-08",,"0") &RIGHT(Q4,2)+1) -> 2025-26 | S4: =CONCATENATE(LEFT(R4, 4)+1 &"-" &IF(R4>"2007-08",,"0") &RIGHT(R4,2)+1) -> 2026-27 | T4: =CONCATENATE(LEFT(S4, 4)+1 &"-" &IF(S4>"2007-08",,"0") &RIGHT(S4,2)+1) -> 2027-28 | U4: =CONCATENATE(LEFT(T4, 4)+1 &"-" &IF(T4>"2007-08",,"0") &RIGHT(T4,2)+1) -> 2028-29 | V4: =CONCATENATE(LEFT(U4, 4)+1 &"-" &IF(U4>"2007-08",,"0") &RIGHT(U4,2)+1) -> 2029-30 | W4: =CONCATENATE(LEFT(V4, 4)+1 &"-" &IF(V4>"2007-08",,"0") &RIGHT(V4,2)+1) -> 2030-31 | X4: =CONCATENATE(LEFT(W4, 4)+1 &"-" &IF(W4>"2007-08",,"0") &RIGHT(W4,2)+1) -> 2031-32 | Y4: =CONCATENATE(LEFT(X4, 4)+1 &"-" &IF(X4>"2007-08",,"0") &RIGHT(X4,2)+1) -> 2032-33 | Z4: =CONCATENATE(LEFT(Y4, 4)+1 &"-" &IF(Y4>"2007-08",,"0") &RIGHT(Y4,2)+1) -> 2033-34 | AA4: =CONCATENATE(LEFT(Z4, 4)+1 &"-" &IF(Z4>"2007-08",,"0") &RIGHT(Z4,2)+1) -> 2034-35 | AB4: =CONCATENATE(LEFT(AA4, 4)+1 &"-" &IF(AA4>"2007-08",,"0") &RIGHT(AA4,2)+1) -> 2035-36 | AC4: =CONCATENATE(LEFT(AB4, 4)+1 &"-" &IF(AB4>"2007-08",,"0") &RIGHT(AB4,2)+1) -> 2036-37 | AD4: =CONCATENATE(LEFT(AC4, 4)+1 &"-" &IF(AC4>"2007-08",,"0") &RIGHT(AC4,2)+1) -> 2037-38 | AE4: =CONCATENATE(LEFT(AD4, 4)+1 &"-" &IF(AD4>"2007-08",,"0") &RIGHT(AD4,2)+1) -> 2038-39 | AF4: =CONCATENATE(LEFT(AE4, 4)+1 &"-" &IF(AE4>"2007-08",,"0") &RIGHT(AE4,2)+1) -> 2039-40 | AG4: =CONCATENATE(LEFT(AF4, 4)+1 &"-" &IF(AF4>"2007-08",,"0") &RIGHT(AF4,2)+1) -> 2040-41 | AH4: =CONCATENATE(LEFT(AG4, 4)+1 &"-" &IF(AG4>"2007-08",,"0") &RIGHT(AG4,2)+1) -> 2041-42 | AI4: =CONCATENATE(LEFT(AH4, 4)+1 &"-" &IF(AH4>"2007-08",,"0") &RIGHT(AH4,2)+1) -> 2042-43 | AJ4: =CONCATENATE(LEFT(AI4, 4)+1 &"-" &IF(AI4>"2007-08",,"0") &RIGHT(AI4,2)+1) -> 2043-44 | AK4: =CONCATENATE(LEFT(AJ4, 4)+1 &"-" &IF(AJ4>"2007-08",,"0") &RIGHT(AJ4,2)+1) -> 2044-45 | AL4: =CONCATENATE(LEFT(AK4, 4)+1 &"-" &IF(AK4>"2007-08",,"0") &RIGHT(AK4,2)+1) -> 2045-46 | AM4: =CONCATENATE(LEFT(AL4, 4)+1 &"-" &IF(AL4>"2007-08",,"0") &RIGHT(AL4,2)+1) -> 2046-47 | AN4: =CONCATENATE(LEFT(AM4, 4)+1 &"-" &IF(AM4>"2007-08",,"0") &RIGHT(AM4,2)+1) -> 2047-48 | AO4: =CONCATENATE(LEFT(AN4, 4)+1 &"-" &IF(AN4>"2007-08",,"0") &RIGHT(AN4,2)+1) -> 2048-49 | AP4: =CONCATENATE(LEFT(AO4, 4)+1 &"-" &IF(AO4>"2007-08",,"0") &RIGHT(AO4,2)+1) -> 2049-50 | AQ4: =CONCATENATE(LEFT(AP4, 4)+1 &"-" &IF(AP4>"2007-08",,"0") &RIGHT(AP4,2)+1) -> 2050-51 | AR4: =CONCATENATE(LEFT(AQ4, 4)+1 &"-" &IF(AQ4>"2007-08",,"0") &RIGHT(AQ4,2)+1) -> 2051-52 | AS4: =CONCATENATE(LEFT(AR4, 4)+1 &"-" &IF(AR4>"2007-08",,"0") &RIGHT(AR4,2)+1) -> 2052-53 | AT4: =CONCATENATE(LEFT(AS4, 4)+1 &"-" &IF(AS4>"2007-08",,"0") &RIGHT(AS4,2)+1) -> 2053-54 | AU4: =CONCATENATE(LEFT(AT4, 4)+1 &"-" &IF(AT4>"2007-08",,"0") &RIGHT(AT4,2)+1) -> 2054-55 | AV4: =CONCATENATE(LEFT(AU4, 4)+1 &"-" &IF(AU4>"2007-08",,"0") &RIGHT(AU4,2)+1) -> 2055-56 | AW4: =CONCATENATE(LEFT(AV4, 4)+1 &"-" &IF(AV4>"2007-08",,"0") &RIGHT(AV4,2)+1) -> 2056-57 | AX4: =CONCATENATE(LEFT(AW4, 4)+1 &"-" &IF(AW4>"2007-08",,"0") &RIGHT(AW4,2)+1) -> 2057-58 | AY4: =CONCATENATE(LEFT(AX4, 4)+1 &"-" &IF(AX4>"2007-08",,"0") &RIGHT(AX4,2)+1) -> 2058-59 | AZ4: =CONCATENATE(LEFT(AY4, 4)+1 &"-" &IF(AY4>"2007-08",,"0") &RIGHT(AY4,2)+1) -> 2059-60 | BA4: =CONCATENATE(LEFT(AZ4, 4)+1 &"-" &IF(AZ4>"2007-08",,"0") &RIGHT(AZ4,2)+1) -> 2060-61 | BB4: =CONCATENATE(LEFT(BA4, 4)+1 &"-" &IF(BA4>"2007-08",,"0") &RIGHT(BA4,2)+1) -> 2061-62 | BC4: =CONCATENATE(LEFT(BB4, 4)+1 &"-" &IF(BB4>"2007-08",,"0") &RIGHT(BB4,2)+1) -> 2062-63 | BD4: =CONCATENATE(LEFT(BC4, 4)+1 &"-" &IF(BC4>"2007-08",,"0") &RIGHT(BC4,2)+1) -> 2063-64 | BE4: =CONCATENATE(LEFT(BD4, 4)+1 &"-" &IF(BD4>"2007-08",,"0") &RIGHT(BD4,2)+1) -> 2064-65 | BF4: =CONCATENATE(LEFT(BE4, 4)+1 &"-" &IF(BE4>"2007-08",,"0") &RIGHT(BE4,2)+1) -> 2065-66 | BG4: =CONCATENATE(LEFT(BF4, 4)+1 &"-" &IF(BF4>"2007-08",,"0") &RIGHT(BF4,2)+1) -> 2066-67 | BH4: =CONCATENATE(LEFT(BG4, 4)+1 &"-" &IF(BG4>"2007-08",,"0") &RIGHT(BG4,2)+1) -> 2067-68 | BI4: =CONCATENATE(LEFT(BH4, 4)+1 &"-" &IF(BH4>"2007-08",,"0") &RIGHT(BH4,2)+1) -> 2068-69 | BJ4: =CONCATENATE(LEFT(BI4, 4)+1 &"-" &IF(BI4>"2007-08",,"0") &RIGHT(BI4,2)+1) -> 2069-70 | BK4: =CONCATENATE(LEFT(BJ4, 4)+1 &"-" &IF(BJ4>"2007-08",,"0") &RIGHT(BJ4,2)+1) -> 2070-71 | BL4: =CONCATENATE(LEFT(BK4, 4)+1 &"-" &IF(BK4>"2007-08",,"0") &RIGHT(BK4,2)+1) -> 2071-72 | BM4: =CONCATENATE(LEFT(BL4, 4)+1 &"-" &IF(BL4>"2007-08",,"0") &RIGHT(BL4,2)+1) -> 2072-73 | BN4: 2073-74
B6: Real Asset Values
B8: Real Straight-line Depreciation | F8: =SUBTOTAL(9,F11:F578) -> 76.95855786 | G8: 86.80683454 | H8: 93.20247518 | I8: 95.36621005 | J8: 99.03126212 | K8: 94.17248211 | L8: 100.1387503 | M8: 97.44930911 | N8: 92.72116869 | O8: 86.42746417 | P8: 83.03141343 | Q8: 80.18360314 | R8: 76.02116626 | S8: 76.04460428 | T8: 71.29945659 | U8: 72.31774108 | V8: 69.03359524 | W8: 62.92996503 | X8: 58.99422602 | Y8: 54.38817194 | Z8: 52.13394522 | AA8: 52.13394522 | AB8: 52.13394522 | AC8: 51.77164909 | AD8: 51.64027226 | AE8: 51.64027226 | AF8: 51.64027226 | AG8: 51.72532867 | AH8: 51.72532867 | AI8: 51.72480734 | AJ8: 40.34289291 | AK8: 36.99264999 | AL8: =SUBTOTAL(9,AL11:AL578) -> 34.90734067 | AM8: 16.10854388 | AN8: 15.71953721 | AO8: 15.5500877 | AP8: 13.94127322 | AQ8: 12.49653803 | AR8: 11.94814262 | AS8: 11.89723846 | AT8: 11.89285686 | AU8: 11.88838193 | AV8: 11.88794904 | AW8: 11.88794904 | AX8: 11.74283526 | AY8: 11.10194254 | AZ8: 9.507258401 | BA8: 9.123037786 | BB8: 8.5248651 | BC8: 6.861273965 | BD8: 6.031903679 | BE8: 6.031903679 | BF8: 6.031903679 | BG8: 5.440669928 | BH8: 4.428287609 | BI8: 3.642125166 | BJ8: 2.434254359 | BK8: 1.96466743 | BL8: 1.067398444 | BM8: 0.4869009867 | BN8: =SUBTOTAL(9,BN11:BN578) -> -2.331468352e-14
F9: F14 | G9: F15 | H9: F16 | I9: F17 | J9: F18 | K9: F19 | L9: F20 | M9: F21 | N9: F22 | O9: F23 | P9: F24 | Q9: F25 | R9: F26 | S9: F27 | T9: F28 | U9: F29 | V9: F30 | W9: F31 | X9: F32 | Y9: F33 | Z9: F34 | AA9: F35 | AB9: F36 | AC9: F37 | AD9: F38 | AE9: F39 | AF9: F40 | AG9: F41 | AH9: F42 | AI9: F43 | AJ9: F44 | AK9: F45 | AL9: F46 | AM9: F47 | AN9: F48 | AO9: F49 | AP9: F50 | AQ9: F51 | AR9: F52 | AS9: F53 | AT9: F54 | AU9: F55 | AV9: F56 | AW9: F57 | AX9: F58 | AY9: F59 | AZ9: F60 | BA9: F61 | BB9: F62 | BC9: F63 | BD9: F64 | BE9: F65 | BF9: F66 | BG9: F67 | BH9: F68 | BI9: F69 | BJ9: F70 | BK9: F71 | BL9: F72 | BM9: F73 | BN9: F74
A10: 1 | B10: =INDIRECT(CONCATENATE("Asset",A10)) -> Commercial Buildings | E10: Year
C11: =SUM(C13:C568) -> 891.157673 | E11: Initial Asset Base | F11: =IF($B15="n/a","n/a",IF(F$3>$B15,+$B17,+$B17/$B15)) -> 0.4936729601 | G11: =IF($B15="n/a","n/a",IF(G$3>$B15,+$B17-SUM($F11:F11),+$B17/$B15)) -> 0.4936729601 | H11: =IF($B15="n/a","n/a",IF(H$3>$B15,+$B17-SUM($F11:G11),+$B17/$B15)) -> 0.4936729601 | I11: =IF($B15="n/a","n/a",IF(I$3>$B15,+$B17-SUM($F11:H11),+$B17/$B15)) -> 0.4936729601 | J11: =IF($B15="n/a","n/a",IF(J$3>$B15,+$B17-SUM($F11:I11),+$B17/$B15)) -> 0.4936729601 | K11: =IF($B15="n/a","n/a",IF(K$3>$B15,+$B17-SUM($F11:J11),+$B17/$B15)) -> 0.4936729601 | L11: =IF($B15="n/a","n/a",IF(L$3>$B15,+$B17-SUM($F11:K11),+$B17/$B15)) -> 0.4936729601 | M11: =IF($B15="n/a","n/a",IF(M$3>$B15,+$B17-SUM($F11:L11),+$B17/$B15)) -> 0.4936729601 | N11: =IF($B15="n/a","n/a",IF(N$3>$B15,+$B17-SUM($F11:M11),+$B17/$B15)) -> 0.4936729601 | O11: =IF($B15="n/a","n/a",IF(O$3>$B15,+$B17-SUM($F11:N11),+$B17/$B15)) -> 0.4936729601 | P11: =IF($B15="n/a","n/a",IF(P$3>$B15,+$B17-SUM($F11:O11),+$B17/$B15)) -> 0.4936729601 | Q11: =IF($B15="n/a","n/a",IF(Q$3>$B15,+$B17-SUM($F11:P11),+$B17/$B15)) -> 0.4936729601 | R11: =IF($B15="n/a","n/a",IF(R$3>$B15,+$B17-SUM($F11:Q11),+$B17/$B15)) -> 0.4936729601 | S11: =IF($B15="n/a","n/a",IF(S$3>$B15,+$B17-SUM($F11:R11),+$B17/$B15)) -> 0.4936729601 | T11: =IF($B15="n/a","n/a",IF(T$3>$B15,+$B17-SUM($F11:S11),+$B17/$B15)) -> 0.4936729601 | U11: =IF($B15="n/a","n/a",IF(U$3>$B15,+$B17-SUM($F11:T11),+$B17/$B15)) -> 0.4936729601 | V11: =IF($B15="n/a","n/a",IF(V$3>$B15,+$B17-SUM($F11:U11),+$B17/$B15)) -> 0.4936729601 | W11: =IF($B15="n/a","n/a",IF(W$3>$B15,+$B17-SUM($F11:V11),+$B17/$B15)) -> 0.4936729601 | X11: =IF($B15="n/a","n/a",IF(X$3>$B15,+$B17-SUM($F11:W11),+$B17/$B15)) -> 0.4936729601 | Y11: =IF($B15="n/a","n/a",IF(Y$3>$B15,+$B17-SUM($F11:X11),+$B17/$B15)) -> 0.4936729601 | Z11: =IF($B15="n/a","n/a",IF(Z$3>$B15,+$B17-SUM($F11:Y11),+$B17/$B15)) -> 0.4936729601 | AA11: =IF($B15="n/a","n/a",IF(AA$3>$B15,+$B17-SUM($F11:Z11),+$B17/$B15)) -> 0.4936729601 | AB11: =IF($B15="n/a","n/a",IF(AB$3>$B15,+$B17-SUM($F11:AA11),+$B17/$B15)) -> 0.4936729601 | AC11: =IF($B15="n/a","n/a",IF(AC$3>$B15,+$B17-SUM($F11:AB11),+$B17/$B15)) -> 0.13137683 | AD11: =IF($B15="n/a","n/a",IF(AD$3>$B15,+$B17-SUM($F11:AC11),+$B17/$B15)) -> 0 | AE11: =IF($B15="n/a","n/a",IF(AE$3>$B15,+$B17-SUM($F11:AD11),+$B17/$B15)) -> 0 | AF11: =IF($B15="n/a","n/a",IF(AF$3>$B15,+$B17-SUM($F11:AE11),+$B17/$B15)) -> 0 | AG11: =IF($B15="n/a","n/a",IF(AG$3>$B15,+$B17-SUM($F11:AF11),+$B17/$B15)) -> 0 | AH11: =IF($B15="n/a","n/a",IF(AH$3>$B15,+$B17-SUM($F11:AG11),+$B17/$B15)) -> 0 | AI11: =IF($B15="n/a","n/a",IF(AI$3>$B15,+$B17-SUM($F11:AH11),+$B17/$B15)) -> 0 | AJ11: =IF($B15="n/a","n/a",IF(AJ$3>$B15,+$B17-SUM($F11:AI11),+$B17/$B15)) -> 0 | AK11: =IF($B15="n/a","n/a",IF(AK$3>$B15,+$B17-SUM($F11:AJ11),+$B17/$B15)) -> 0 | AL11: =IF($B15="n/a","n/a",IF(AL$3>$B15,+$B17-SUM($F11:AK11),+$B17/$B15)) -> 0 | AM11: =IF($B15="n/a","n/a",IF(AM$3>$B15,+$B17-SUM($F11:AL11),+$B17/$B15)) -> 0 | AN11: =IF($B15="n/a","n/a",IF(AN$3>$B15,+$B17-SUM($F11:AM11),+$B17/$B15)) -> 0 | AO11: =IF($B15="n/a","n/a",IF(AO$3>$B15,+$B17-SUM($F11:AN11),+$B17/$B15)) -> 0 | AP11: =IF($B15="n/a","n/a",IF(AP$3>$B15,+$B17-SUM($F11:AO11),+$B17/$B15)) -> 0 | AQ11: =IF($B15="n/a","n/a",IF(AQ$3>$B15,+$B17-SUM($F11:AP11),+$B17/$B15)) -> 0 | AR11: =IF($B15="n/a","n/a",IF(AR$3>$B15,+$B17-SUM($F11:AQ11),+$B17/$B15)) -> 0 | AS11: =IF($B15="n/a","n/a",IF(AS$3>$B15,+$B17-SUM($F11:AR11),+$B17/$B15)) -> 0 | AT11: =IF($B15="n/a","n/a",IF(AT$3>$B15,+$B17-SUM($F11:AS11),+$B17/$B15)) -> 0 | AU11: =IF($B15="n/a","n/a",IF(AU$3>$B15,+$B17-SUM($F11:AT11),+$B17/$B15)) -> 0 | AV11: =IF($B15="n/a","n/a",IF(AV$3>$B15,+$B17-SUM($F11:AU11),+$B17/$B15)) -> 0 | AW11: =IF($B15="n/a","n/a",IF(AW$3>$B15,+$B17-SUM($F11:AV11),+$B17/$B15)) -> 0 | AX11: =IF($B15="n/a","n/a",IF(AX$3>$B15,+$B17-SUM($F11:AW11),+$B17/$B15)) -> 0 | AY11: =IF($B15="n/a","n/a",IF(AY$3>$B15,+$B17-SUM($F11:AX11),+$B17/$B15)) -> 0 | AZ11: =IF($B15="n/a","n/a",IF(AZ$3>$B15,+$B17-SUM($F11:AY11),+$B17/$B15)) -> 0 | BA11: =IF($B15="n/a","n/a",IF(BA$3>$B15,+$B17-SUM($F11:AZ11),+$B17/$B15)) -> 0 | BB11: =IF($B15="n/a","n/a",IF(BB$3>$B15,+$B17-SUM($F11:BA11),+$B17/$B15)) -> 0 | BC11: =IF($B15="n/a","n/a",IF(BC$3>$B15,+$B17-SUM($F11:BB11),+$B17/$B15)) -> 0 | BD11: =IF($B15="n/a","n/a",IF(BD$3>$B15,+$B17-SUM($F11:BC11),+$B17/$B15)) -> 0 | BE11: =IF($B15="n/a","n/a",IF(BE$3>$B15,+$B17-SUM($F11:BD11),+$B17/$B15)) -> 0 | BF11: =IF($B15="n/a","n/a",IF(BF$3>$B15,+$B17-SUM($F11:BE11),+$B17/$B15)) -> 0 | BG11: =IF($B15="n/a","n/a",IF(BG$3>$B15,+$B17-SUM($F11:BF11),+$B17/$B15)) -> 0 | BH11: =IF($B15="n/a","n/a",IF(BH$3>$B15,+$B17-SUM($F11:BG11),+$B17/$B15)) -> 0 | BI11: =IF($B15="n/a","n/a",IF(BI$3>$B15,+$B17-SUM($F11:BH11),+$B17/$B15)) -> 0 | BJ11: =IF($B15="n/a","n/a",IF(BJ$3>$B15,+$B17-SUM($F11:BI11),+$B17/$B15)) -> 0 | BK11: =IF($B15="n/a","n/a",IF(BK$3>$B15,+$B17-SUM($F11:BJ11),+$B17/$B15)) -> 0 | BL11: =IF($B15="n/a","n/a",IF(BL$3>$B15,+$B17-SUM($F11:BK11),+$B17/$B15)) -> 0 | BM11: =IF($B15="n/a","n/a",IF(BM$3>$B15,+$B17-SUM($F11:BL11),+$B17/$B15)) -> 0 | BN11: =IF($B15="n/a","n/a",IF(BN$3>$B15,+$B17-SUM($F11:BM11),+$B17/$B15)) -> 0
A12: Tot Cpx | B12: Std Life | C12: Capex: | E12: 0 | J12: Initial Asset Base Adjustment | K12: =IF($B13="n/a","n/a",IF(K$3>$B13,+$B19-SUM($F12:J12),+$B19/($B13-$E17))) -> 0.02261485198 | L12: =IF($B13="n/a","n/a",IF(L$3>$B13,+$B19-SUM($F12:K12),+$B19/($B13-$E17))) -> 0.02261485198 | M12: =IF($B13="n/a","n/a",IF(M$3>$B13,+$B19-SUM($F12:L12),+$B19/($B13-$E17))) -> 0.02261485198 | N12: =IF($B13="n/a","n/a",IF(N$3>$B13,+$B19-SUM($F12:M12),+$B19/($B13-$E17))) -> 0.02261485198 | O12: =IF($B13="n/a","n/a",IF(O$3>$B13,+$B19-SUM($F12:N12),+$B19/($B13-$E17))) -> 0.02261485198 | P12: =IF($B13="n/a","n/a",IF(P$3>$B13,+$B19-SUM($F12:O12),+$B19/($B13-$E17))) -> 0.02261485198 | Q12: =IF($B13="n/a","n/a",IF(Q$3>$B13,+$B19-SUM($F12:P12),+$B19/($B13-$E17))) -> 0.02261485198 | R12: =IF($B13="n/a","n/a",IF(R$3>$B13,+$B19-SUM($F12:Q12),+$B19/($B13-$E17))) -> 0.02261485198 | S12: =IF($B13="n/a","n/a",IF(S$3>$B13,+$B19-SUM($F12:R12),+$B19/($B13-$E17))) -> 0.02261485198 | T12: =IF($B13="n/a","n/a",IF(T$3>$B13,+$B19-SUM($F12:S12),+$B19/($B13-$E17))) -> 0.02261485198 | U12: =IF($B13="n/a","n/a",IF(U$3>$B13,+$B19-SUM($F12:T12),+$B19/($B13-$E17))) -> 0.02261485198 | V12: =IF($B13="n/a","n/a",IF(V$3>$B13,+$B19-SUM($F12:U12),+$B19/($B13-$E17))) -> 0.02261485198 | W12: =IF($B13="n/a","n/a",IF(W$3>$B13,+$B19-SUM($F12:V12),+$B19/($B13-$E17))) -> 0.02261485198 | X12: =IF($B13="n/a","n/a",IF(X$3>$B13,+$B19-SUM($F12:W12),+$B19/($B13-$E17))) -> 0.02261485198 | Y12: =IF($B13="n/a","n/a",IF(Y$3>$B13,+$B19-SUM($F12:X12),+$B19/($B13-$E17))) -> 0.02261485198 | Z12: =IF($B13="n/a","n/a",IF(Z$3>$B13,+$B19-SUM($F12:Y12),+$B19/($B13-$E17))) -> 0.02261485198 | AA12: =IF($B13="n/a","n/a",IF(AA$3>$B13,+$B19-SUM($F12:Z12),+$B19/($B13-$E17))) -> 0.02261485198 | AB12: =IF($B13="n/a","n/a",IF(AB$3>$B13,+$B19-SUM($F12:AA12),+$B19/($B13-$E17))) -> 0.02261485198 | AC12: =IF($B13="n/a","n/a",IF(AC$3>$B13,+$B19-SUM($F12:AB12),+$B19/($B13-$E17))) -> 0.02261485198 | AD12: =IF($B13="n/a","n/a",IF(AD$3>$B13,+$B19-SUM($F12:AC12),+$B19/($B13-$E17))) -> 0.02261485198 | AE12: =IF($B13="n/a","n/a",IF(AE$3>$B13,+$B19-SUM($F12:AD12),+$B19/($B13-$E17))) -> 0.02261485198 | AF12: =IF($B13="n/a","n/a",IF(AF$3>$B13,+$B19-SUM($F12:AE12),+$B19/($B13-$E17))) -> 0.02261485198 | AG12: =IF($B13="n/a","n/a",IF(AG$3>$B13,+$B19-SUM($F12:AF12),+$B19/($B13-$E17))) -> 0.02261485198 | AH12: =IF($B13="n/a","n/a",IF(AH$3>$B13,+$B19-SUM($F12:AG12),+$B19/($B13-$E17))) -> 0.02261485198 | AI12: =IF($B13="n/a","n/a",IF(AI$3>$B13,+$B19-SUM($F12:AH12),+$B19/($B13-$E17))) -> 0.02261485198 | AJ12: =IF($B13="n/a","n/a",IF(AJ$3>$B13,+$B19-SUM($F12:AI12),+$B19/($B13-$E17))) -> -2.220446049e-16 | AK12: =IF($B13="n/a","n/a",IF(AK$3>$B13,+$B19-SUM($F12:AJ12),+$B19/($B13-$E17))) -> 0 | AL12: =IF($B13="n/a","n/a",IF(AL$3>$B13,+$B19-SUM($F12:AK12),+$B19/($B13-$E17))) -> 0 | AM12: =IF($B13="n/a","n/a",IF(AM$3>$B13,+$B19-SUM($F12:AL12),+$B19/($B13-$E17))) -> 0 | AN12: =IF($B13="n/a","n/a",IF(AN$3>$B13,+$B19-SUM($F12:AM12),+$B19/($B13-$E17))) -> 0 | AO12: =IF($B13="n/a","n/a",IF(AO$3>$B13,+$B19-SUM($F12:AN12),+$B19/($B13-$E17))) -> 0 | AP12: =IF($B13="n/a","n/a",IF(AP$3>$B13,+$B19-SUM($F12:AO12),+$B19/($B13-$E17))) -> 0 | AQ12: =IF($B13="n/a","n/a",IF(AQ$3>$B13,+$B19-SUM($F12:AP12),+$B19/($B13-$E17))) -> 0 | AR12: =IF($B13="n/a","n/a",IF(AR$3>$B13,+$B19-SUM($F12:AQ12),+$B19/($B13-$E17))) -> 0 | AS12: =IF($B13="n/a","n/a",IF(AS$3>$B13,+$B19-SUM($F12:AR12),+$B19/($B13-$E17))) -> 0 | AT12: =IF($B13="n/a","n/a",IF(AT$3>$B13,+$B19-SUM($F12:AS12),+$B19/($B13-$E17))) -> 0 | AU12: =IF($B13="n/a","n/a",IF(AU$3>$B13,+$B19-SUM($F12:AT12),+$B19/($B13-$E17))) -> 0 | AV12: =IF($B13="n/a","n/a",IF(AV$3>$B13,+$B19-SUM($F12:AU12),+$B19/($B13-$E17))) -> 0 | AW12: =IF($B13="n/a","n/a",IF(AW$3>$B13,+$B19-SUM($F12:AV12),+$B19/($B13-$E17))) -> 0 | AX12: =IF($B13="n/a","n/a",IF(AX$3>$B13,+$B19-SUM($F12:AW12),+$B19/($B13-$E17))) -> 0 | AY12: =IF($B13="n/a","n/a",IF(AY$3>$B13,+$B19-SUM($F12:AX12),+$B19/($B13-$E17))) -> 0 | AZ12: =IF($B13="n/a","n/a",IF(AZ$3>$B13,+$B19-SUM($F12:AY12),+$B19/($B13-$E17))) -> 0 | BA12: =IF($B13="n/a","n/a",IF(BA$3>$B13,+$B19-SUM($F12:AZ12),+$B19/($B13-$E17))) -> 0 | BB12: =IF($B13="n/a","n/a",IF(BB$3>$B13,+$B19-SUM($F12:BA12),+$B19/($B13-$E17))) -> 0 | BC12: =IF($B13="n/a","n/a",IF(BC$3>$B13,+$B19-SUM($F12:BB12),+$B19/($B13-$E17))) -> 0 | BD12: =IF($B13="n/a","n/a",IF(BD$3>$B13,+$B19-SUM($F12:BC12),+$B19/($B13-$E17))) -> 0 | BE12: =IF($B13="n/a","n/a",IF(BE$3>$B13,+$B19-SUM($F12:BD12),+$B19/($B13-$E17))) -> 0 | BF12: =IF($B13="n/a","n/a",IF(BF$3>$B13,+$B19-SUM($F12:BE12),+$B19/($B13-$E17))) -> 0 | BG12: =IF($B13="n/a","n/a",IF(BG$3>$B13,+$B19-SUM($F12:BF12),+$B19/($B13-$E17))) -> 0 | BH12: =IF($B13="n/a","n/a",IF(BH$3>$B13,+$B19-SUM($F12:BG12),+$B19/($B13-$E17))) -> 0 | BI12: =IF($B13="n/a","n/a",IF(BI$3>$B13,+$B19-SUM($F12:BH12),+$B19/($B13-$E17))) -> 0 | BJ12: =IF($B13="n/a","n/a",IF(BJ$3>$B13,+$B19-SUM($F12:BI12),+$B19/($B13-$E17))) -> 0 | BK12: =IF($B13="n/a","n/a",IF(BK$3>$B13,+$B19-SUM($F12:BJ12),+$B19/($B13-$E17))) -> 0 | BL12: =IF($B13="n/a","n/a",IF(BL$3>$B13,+$B19-SUM($F12:BK12),+$B19/($B13-$E17))) -> 0 | BM12: =IF($B13="n/a","n/a",IF(BM$3>$B13,+$B19-SUM($F12:BL12),+$B19/($B13-$E17))) -> 0 | BN12: =IF($B13="n/a","n/a",IF(BN$3>$B13,+$B19-SUM($F12:BM12),+$B19/($B13-$E17))) -> 0
A13: =SUMIFS($C$13:$C$568,$E$13:$E$568,E13) -> 223.2202597 | B13: =INDEX('I1 '!$C$7:$C$36,A10) -> 30 | C13: =OFFSET('I3 CAPEX '!$E$44,$A10,E13) -> 0.2863925554 | E13: 1 | G13: =IF($B13="n/a","n/a",IF(G$3>($B13+$E13),$C13-SUM($F13:F13),($C13/$B13))) -> 0.009546418514 | H13: =IF($B13="n/a","n/a",IF(H$3>($B13+$E13),$C13-SUM($F13:G13),($C13/$B13))) -> 0.009546418514 | I13: =IF($B13="n/a","n/a",IF(I$3>($B13+$E13),$C13-SUM($F13:H13),($C13/$B13))) -> 0.009546418514 | J13: =IF($B13="n/a","n/a",IF(J$3>($B13+$E13),$C13-SUM($F13:I13),($C13/$B13))) -> 0.009546418514 | K13: =IF($B13="n/a","n/a",IF(K$3>($B13+$E13),$C13-SUM($F13:J13),($C13/$B13))) -> 0.009546418514 | L13: =IF($B13="n/a","n/a",IF(L$3>($B13+$E13),$C13-SUM($F13:K13),($C13/$B13))) -> 0.009546418514 | M13: =IF($B13="n/a","n/a",IF(M$3>($B13+$E13),$C13-SUM($F13:L13),($C13/$B13))) -> 0.009546418514 | N13: =IF($B13="n/a","n/a",IF(N$3>($B13+$E13),$C13-SUM($F13:M13),($C13/$B13))) -> 0.009546418514 | O13: =IF($B13="n/a","n/a",IF(O$3>($B13+$E13),$C13-SUM($F13:N13),($C13/$B13))) -> 0.009546418514 | P13: =IF($B13="n/a","n/a",IF(P$3>($B13+$E13),$C13-SUM($F13:O13),($C13/$B13))) -> 0.009546418514 | Q13: =IF($B13="n/a","n/a",IF(Q$3>($B13+$E13),$C13-SUM($F13:P13),($C13/$B13))) -> 0.009546418514 | R13: =IF($B13="n/a","n/a",IF(R$3>($B13+$E13),$C13-SUM($F13:Q13),($C13/$B13))) -> 0.009546418514 | S13: =IF($B13="n/a","n/a",IF(S$3>($B13+$E13),$C13-SUM($F13:R13),($C13/$B13))) -> 0.009546418514 | T13: =IF($B13="n/a","n/a",IF(T$3>($B13+$E13),$C13-SUM($F13:S13),($C13/$B13))) -> 0.009546418514 | U13: =IF($B13="n/a","n/a",IF(U$3>($B13+$E13),$C13-SUM($F13:T13),($C13/$B13))) -> 0.009546418514 | V13: =IF($B13="n/a","n/a",IF(V$3>($B13+$E13),$C13-SUM($F13:U13),($C13/$B13))) -> 0.009546418514 | W13: =IF($B13="n/a","n/a",IF(W$3>($B13+$E13),$C13-SUM($F13:V13),($C13/$B13))) -> 0.009546418514 | X13: =IF($B13="n/a","n/a",IF(X$3>($B13+$E13),$C13-SUM($F13:W13),($C13/$B13))) -> 0.009546418514 | Y13: =IF($B13="n/a","n/a",IF(Y$3>($B13+$E13),$C13-SUM($F13:X13),($C13/$B13))) -> 0.009546418514 | Z13: =IF($B13="n/a","n/a",IF(Z$3>($B13+$E13),$C13-SUM($F13:Y13),($C13/$B13))) -> 0.009546418514 | AA13: =IF($B13="n/a","n/a",IF(AA$3>($B13+$E13),$C13-SUM($F13:Z13),($C13/$B13))) -> 0.009546418514 | AB13: =IF($B13="n/a","n/a",IF(AB$3>($B13+$E13),$C13-SUM($F13:AA13),($C13/$B13))) -> 0.009546418514 | AC13: =IF($B13="n/a","n/a",IF(AC$3>($B13+$E13),$C13-SUM($F13:AB13),($C13/$B13))) -> 0.009546418514 | AD13: =IF($B13="n/a","n/a",IF(AD$3>($B13+$E13),$C13-SUM($F13:AC13),($C13/$B13))) -> 0.009546418514 | AE13: =IF($B13="n/a","n/a",IF(AE$3>($B13+$E13),$C13-SUM($F13:AD13),($C13/$B13))) -> 0.009546418514 | AF13: =IF($B13="n/a","n/a",IF(AF$3>($B13+$E13),$C13-SUM($F13:AE13),($C13/$B13))) -> 0.009546418514 | AG13: =IF($B13="n/a","n/a",IF(AG$3>($B13+$E13),$C13-SUM($F13:AF13),($C13/$B13))) -> 0.009546418514 | AH13: =IF($B13="n/a","n/a",IF(AH$3>($B13+$E13),$C13-SUM($F13:AG13),($C13/$B13))) -> 0.009546418514 | AI13: =IF($B13="n/a","n/a",IF(AI$3>($B13+$E13),$C13-SUM($F13:AH13),($C13/$B13))) -> 0.009546418514 | AJ13: =IF($B13="n/a","n/a",IF(AJ$3>($B13+$E13),$C13-SUM($F13:AI13),($C13/$B13))) -> 0.009546418514 | AK13: =IF($B13="n/a","n/a",IF(AK$3>($B13+$E13),$C13-SUM($F13:AJ13),($C13/$B13))) -> 0 | AL13: =IF($B13="n/a","n/a",IF(AL$3>($B13+$E13),$C13-SUM($F13:AK13),($C13/$B13))) -> 0 | AM13: =IF($B13="n/a","n/a",IF(AM$3>($B13+$E13),$C13-SUM($F13:AL13),($C13/$B13))) -> 0 | AN13: =IF($B13="n/a","n/a",IF(AN$3>($B13+$E13),$C13-SUM($F13:AM13),($C13/$B13))) -> 0 | AO13: =IF($B13="n/a","n/a",IF(AO$3>($B13+$E13),$C13-SUM($F13:AN13),($C13/$B13))) -> 0 | AP13: =IF($B13="n/a","n/a",IF(AP$3>($B13+$E13),$C13-SUM($F13:AO13),($C13/$B13))) -> 0 | AQ13: =IF($B13="n/a","n/a",IF(AQ$3>($B13+$E13),$C13-SUM($F13:AP13),($C13/$B13))) -> 0 | AR13: =IF($B13="n/a","n/a",IF(AR$3>($B13+$E13),$C13-SUM($F13:AQ13),($C13/$B13))) -> 0 | AS13: =IF($B13="n/a","n/a",IF(AS$3>($B13+$E13),$C13-SUM($F13:AR13),($C13/$B13))) -> 0 | AT13: =IF($B13="n/a","n/a",IF(AT$3>($B13+$E13),$C13-SUM($F13:AS13),($C13/$B13))) -> 0 | AU13: =IF($B13="n/a","n/a",IF(AU$3>($B13+$E13),$C13-SUM($F13:AT13),($C13/$B13))) -> 0 | AV13: =IF($B13="n/a","n/a",IF(AV$3>($B13+$E13),$C13-SUM($F13:AU13),($C13/$B13))) -> 0 | AW13: =IF($B13="n/a","n/a",IF(AW$3>($B13+$E13),$C13-SUM($F13:AV13),($C13/$B13))) -> 0 | AX13: =IF($B13="n/a","n/a",IF(AX$3>($B13+$E13),$C13-SUM($F13:AW13),($C13/$B13))) -> 0 | AY13: =IF($B13="n/a","n/a",IF(AY$3>($B13+$E13),$C13-SUM($F13:AX13),($C13/$B13))) -> 0 | AZ13: =IF($B13="n/a","n/a",IF(AZ$3>($B13+$E13),$C13-SUM($F13:AY13),($C13/$B13))) -> 0 | BA13: =IF($B13="n/a","n/a",IF(BA$3>($B13+$E13),$C13-SUM($F13:AZ13),($C13/$B13))) -> 0 | BB13: =IF($B13="n/a","n/a",IF(BB$3>($B13+$E13),$C13-SUM($F13:BA13),($C13/$B13))) -> 0 | BC13: =IF($B13="n/a","n/a",IF(BC$3>($B13+$E13),$C13-SUM($F13:BB13),($C13/$B13))) -> 0 | BD13: =IF($B13="n/a","n/a",IF(BD$3>($B13+$E13),$C13-SUM($F13:BC13),($C13/$B13))) -> 0 | BE13: =IF($B13="n/a","n/a",IF(BE$3>($B13+$E13),$C13-SUM($F13:BD13),($C13/$B13))) -> 0 | BF13: =IF($B13="n/a","n/a",IF(BF$3>($B13+$E13),$C13-SUM($F13:BE13),($C13/$B13))) -> 0 | BG13: =IF($B13="n/a","n/a",IF(BG$3>($B13+$E13),$C13-SUM($F13:BF13),($C13/$B13))) -> 0 | BH13: =IF($B13="n/a","n/a",IF(BH$3>($B13+$E13),$C13-SUM($F13:BG13),($C13/$B13))) -> 0 | BI13: =IF($B13="n/a","n/a",IF(BI$3>($B13+$E13),$C13-SUM($F13:BH13),($C13/$B13))) -> 0 | BJ13: =IF($B13="n/a","n/a",IF(BJ$3>($B13+$E13),$C13-SUM($F13:BI13),($C13/$B13))) -> 0 | BK13: =IF($B13="n/a","n/a",IF(BK$3>($B13+$E13),$C13-SUM($F13:BJ13),($C13/$B13))) -> 0 | BL13: =IF($B13="n/a","n/a",IF(BL$3>($B13+$E13),$C13-SUM($F13:BK13),($C13/$B13))) -> 0 | BM13: =IF($B13="n/a","n/a",IF(BM$3>($B13+$E13),$C13-SUM($F13:BL13),($C13/$B13))) -> 0 | BN13: =IF($B13="n/a","n/a",IF(BN$3>($B13+$E13),$C13-SUM($F13:BM13),($C13/$B13))) -> 0
A14: =SUMIFS($C$13:$C$568,$E$13:$E$568,E14) -> 90.50083157 | B14: Rem Life | C14: =OFFSET('I3 CAPEX '!$E$44,$A10,E14) -> 0.4336267776 | E14: 2 | H14: =IF($B13="n/a","n/a",IF(H$3>($B13+$E14),$C14-SUM($F14:G14),($C14/$B13))) -> 0.01445422592 | I14: =IF($B13="n/a","n/a",IF(I$3>($B13+$E14),$C14-SUM($F14:H14),($C14/$B13))) -> 0.01445422592 | J14: =IF($B13="n/a","n/a",IF(J$3>($B13+$E14),$C14-SUM($F14:I14),($C14/$B13))) -> 0.01445422592 | K14: =IF($B13="n/a","n/a",IF(K$3>($B13+$E14),$C14-SUM($F14:J14),($C14/$B13))) -> 0.01445422592 | L14: =IF($B13="n/a","n/a",IF(L$3>($B13+$E14),$C14-SUM($F14:K14),($C14/$B13))) -> 0.01445422592 | M14: =IF($B13="n/a","n/a",IF(M$3>($B13+$E14),$C14-SUM($F14:L14),($C14/$B13))) -> 0.01445422592 | N14: =IF($B13="n/a","n/a",IF(N$3>($B13+$E14),$C14-SUM($F14:M14),($C14/$B13))) -> 0.01445422592 | O14: =IF($B13="n/a","n/a",IF(O$3>($B13+$E14),$C14-SUM($F14:N14),($C14/$B13))) -> 0.01445422592 | P14: =IF($B13="n/a","n/a",IF(P$3>($B13+$E14),$C14-SUM($F14:O14),($C14/$B13))) -> 0.01445422592 | Q14: =IF($B13="n/a","n/a",IF(Q$3>($B13+$E14),$C14-SUM($F14:P14),($C14/$B13))) -> 0.01445422592 | R14: =IF($B13="n/a","n/a",IF(R$3>($B13+$E14),$C14-SUM($F14:Q14),($C14/$B13))) -> 0.01445422592 | S14: =IF($B13="n/a","n/a",IF(S$3>($B13+$E14),$C14-SUM($F14:R14),($C14/$B13))) -> 0.01445422592 | T14: =IF($B13="n/a","n/a",IF(T$3>($B13+$E14),$C14-SUM($F14:S14),($C14/$B13))) -> 0.01445422592 | U14: =IF($B13="n/a","n/a",IF(U$3>($B13+$E14),$C14-SUM($F14:T14),($C14/$B13))) -> 0.01445422592 | V14: =IF($B13="n/a","n/a",IF(V$3>($B13+$E14),$C14-SUM($F14:U14),($C14/$B13))) -> 0.01445422592 | W14: =IF($B13="n/a","n/a",IF(W$3>($B13+$E14),$C14-SUM($F14:V14),($C14/$B13))) -> 0.01445422592 | X14: =IF($B13="n/a","n/a",IF(X$3>($B13+$E14),$C14-SUM($F14:W14),($C14/$B13))) -> 0.01445422592 | Y14: =IF($B13="n/a","n/a",IF(Y$3>($B13+$E14),$C14-SUM($F14:X14),($C14/$B13))) -> 0.01445422592 | Z14: =IF($B13="n/a","n/a",IF(Z$3>($B13+$E14),$C14-SUM($F14:Y14),($C14/$B13))) -> 0.01445422592 | AA14: =IF($B13="n/a","n/a",IF(AA$3>($B13+$E14),$C14-SUM($F14:Z14),($C14/$B13))) -> 0.01445422592 | AB14: =IF($B13="n/a","n/a",IF(AB$3>($B13+$E14),$C14-SUM($F14:AA14),($C14/$B13))) -> 0.01445422592 | AC14: =IF($B13="n/a","n/a",IF(AC$3>($B13+$E14),$C14-SUM($F14:AB14),($C14/$B13))) -> 0.01445422592 | AD14: =IF($B13="n/a","n/a",IF(AD$3>($B13+$E14),$C14-SUM($F14:AC14),($C14/$B13))) -> 0.01445422592 | AE14: =IF($B13="n/a","n/a",IF(AE$3>($B13+$E14),$C14-SUM($F14:AD14),($C14/$B13))) -> 0.01445422592 | AF14: =IF($B13="n/a","n/a",IF(AF$3>($B13+$E14),$C14-SUM($F14:AE14),($C14/$B13))) -> 0.01445422592 | AG14: =IF($B13="n/a","n/a",IF(AG$3>($B13+$E14),$C14-SUM($F14:AF14),($C14/$B13))) -> 0.01445422592 | AH14: =IF($B13="n/a","n/a",IF(AH$3>($B13+$E14),$C14-SUM($F14:AG14),($C14/$B13))) -> 0.01445422592 | AI14: =IF($B13="n/a","n/a",IF(AI$3>($B13+$E14),$C14-SUM($F14:AH14),($C14/$B13))) -> 0.01445422592 | AJ14: =IF($B13="n/a","n/a",IF(AJ$3>($B13+$E14),$C14-SUM($F14:AI14),($C14/$B13))) -> 0.01445422592 | AK14: =IF($B13="n/a","n/a",IF(AK$3>($B13+$E14),$C14-SUM($F14:AJ14),($C14/$B13))) -> 0.01445422592 | AL14: =IF($B13="n/a","n/a",IF(AL$3>($B13+$E14),$C14-SUM($F14:AK14),($C14/$B13))) -> 1.665334537e-16 | AM14: =IF($B13="n/a","n/a",IF(AM$3>($B13+$E14),$C14-SUM($F14:AL14),($C14/$B13))) -> 0 | AN14: =IF($B13="n/a","n/a",IF(AN$3>($B13+$E14),$C14-SUM($F14:AM14),($C14/$B13))) -> 0 | AO14: =IF($B13="n/a","n/a",IF(AO$3>($B13+$E14),$C14-SUM($F14:AN14),($C14/$B13))) -> 0 | AP14: =IF($B13="n/a","n/a",IF(AP$3>($B13+$E14),$C14-SUM($F14:AO14),($C14/$B13))) -> 0 | AQ14: =IF($B13="n/a","n/a",IF(AQ$3>($B13+$E14),$C14-SUM($F14:AP14),($C14/$B13))) -> 0 | AR14: =IF($B13="n/a","n/a",IF(AR$3>($B13+$E14),$C14-SUM($F14:AQ14),($C14/$B13))) -> 0 | AS14: =IF($B13="n/a","n/a",IF(AS$3>($B13+$E14),$C14-SUM($F14:AR14),($C14/$B13))) -> 0 | AT14: =IF($B13="n/a","n/a",IF(AT$3>($B13+$E14),$C14-SUM($F14:AS14),($C14/$B13))) -> 0 | AU14: =IF($B13="n/a","n/a",IF(AU$3>($B13+$E14),$C14-SUM($F14:AT14),($C14/$B13))) -> 0 | AV14: =IF($B13="n/a","n/a",IF(AV$3>($B13+$E14),$C14-SUM($F14:AU14),($C14/$B13))) -> 0 | AW14: =IF($B13="n/a","n/a",IF(AW$3>($B13+$E14),$C14-SUM($F14:AV14),($C14/$B13))) -> 0 | AX14: =IF($B13="n/a","n/a",IF(AX$3>($B13+$E14),$C14-SUM($F14:AW14),($C14/$B13))) -> 0 | AY14: =IF($B13="n/a","n/a",IF(AY$3>($B13+$E14),$C14-SUM($F14:AX14),($C14/$B13))) -> 0 | AZ14: =IF($B13="n/a","n/a",IF(AZ$3>($B13+$E14),$C14-SUM($F14:AY14),($C14/$B13))) -> 0 | BA14: =IF($B13="n/a","n/a",IF(BA$3>($B13+$E14),$C14-SUM($F14:AZ14),($C14/$B13))) -> 0 | BB14: =IF($B13="n/a","n/a",IF(BB$3>($B13+$E14),$C14-SUM($F14:BA14),($C14/$B13))) -> 0 | BC14: =IF($B13="n/a","n/a",IF(BC$3>($B13+$E14),$C14-SUM($F14:BB14),($C14/$B13))) -> 0 | BD14: =IF($B13="n/a","n/a",IF(BD$3>($B13+$E14),$C14-SUM($F14:BC14),($C14/$B13))) -> 0 | BE14: =IF($B13="n/a","n/a",IF(BE$3>($B13+$E14),$C14-SUM($F14:BD14),($C14/$B13))) -> 0 | BF14: =IF($B13="n/a","n/a",IF(BF$3>($B13+$E14),$C14-SUM($F14:BE14),($C14/$B13))) -> 0 | BG14: =IF($B13="n/a","n/a",IF(BG$3>($B13+$E14),$C14-SUM($F14:BF14),($C14/$B13))) -> 0 | BH14: =IF($B13="n/a","n/a",IF(BH$3>($B13+$E14),$C14-SUM($F14:BG14),($C14/$B13))) -> 0 | BI14: =IF($B13="n/a","n/a",IF(BI$3>($B13+$E14),$C14-SUM($F14:BH14),($C14/$B13))) -> 0 | BJ14: =IF($B13="n/a","n/a",IF(BJ$3>($B13+$E14),$C14-SUM($F14:BI14),($C14/$B13))) -> 0 | BK14: =IF($B13="n/a","n/a",IF(BK$3>($B13+$E14),$C14-SUM($F14:BJ14),($C14/$B13))) -> 0 | BL14: =IF($B13="n/a","n/a",IF(BL$3>($B13+$E14),$C14-SUM($F14:BK14),($C14/$B13))) -> 0 | BM14: =IF($B13="n/a","n/a",IF(BM$3>($B13+$E14),$C14-SUM($F14:BL14),($C14/$B13))) -> 0 | BN14: =IF($B13="n/a","n/a",IF(BN$3>($B13+$E14),$C14-SUM($F14:BM14),($C14/$B13))) -> 0
A15: =SUMIFS($C$13:$C$568,$E$13:$E$568,E15) -> 125.7183331 | B15: =INDEX('I2 RAB '!$E$9:$E$38,A10) -> 23.26612118 | C15: =OFFSET('I3 CAPEX '!$E$44,$A10,E15) -> 0.7078606086 | E15: 3 | I15: =IF($B13="n/a","n/a",IF(I$3>($B13+$E15),$C15-SUM($F15:H15),($C15/$B13))) -> 0.02359535362 | J15: =IF($B13="n/a","n/a",IF(J$3>($B13+$E15),$C15-SUM($F15:I15),($C15/$B13))) -> 0.02359535362 | K15: =IF($B13="n/a","n/a",IF(K$3>($B13+$E15),$C15-SUM($F15:J15),($C15/$B13))) -> 0.02359535362 | L15: =IF($B13="n/a","n/a",IF(L$3>($B13+$E15),$C15-SUM($F15:K15),($C15/$B13))) -> 0.02359535362 | M15: =IF($B13="n/a","n/a",IF(M$3>($B13+$E15),$C15-SUM($F15:L15),($C15/$B13))) -> 0.02359535362 | N15: =IF($B13="n/a","n/a",IF(N$3>($B13+$E15),$C15-SUM($F15:M15),($C15/$B13))) -> 0.02359535362 | O15: =IF($B13="n/a","n/a",IF(O$3>($B13+$E15),$C15-SUM($F15:N15),($C15/$B13))) -> 0.02359535362 | P15: =IF($B13="n/a","n/a",IF(P$3>($B13+$E15),$C15-SUM($F15:O15),($C15/$B13))) -> 0.02359535362 | Q15: =IF($B13="n/a","n/a",IF(Q$3>($B13+$E15),$C15-SUM($F15:P15),($C15/$B13))) -> 0.02359535362 | R15: =IF($B13="n/a","n/a",IF(R$3>($B13+$E15),$C15-SUM($F15:Q15),($C15/$B13))) -> 0.02359535362 | S15: =IF($B13="n/a","n/a",IF(S$3>($B13+$E15),$C15-SUM($F15:R15),($C15/$B13))) -> 0.02359535362 | T15: =IF($B13="n/a","n/a",IF(T$3>($B13+$E15),$C15-SUM($F15:S15),($C15/$B13))) -> 0.02359535362 | U15: =IF($B13="n/a","n/a",IF(U$3>($B13+$E15),$C15-SUM($F15:T15),($C15/$B13))) -> 0.02359535362 | V15: =IF($B13="n/a","n/a",IF(V$3>($B13+$E15),$C15-SUM($F15:U15),($C15/$B13))) -> 0.02359535362 | W15: =IF($B13="n/a","n/a",IF(W$3>($B13+$E15),$C15-SUM($F15:V15),($C15/$B13))) -> 0.02359535362 | X15: =IF($B13="n/a","n/a",IF(X$3>($B13+$E15),$C15-SUM($F15:W15),($C15/$B13))) -> 0.02359535362 | Y15: =IF($B13="n/a","n/a",IF(Y$3>($B13+$E15),$C15-SUM($F15:X15),($C15/$B13))) -> 0.02359535362 | Z15: =IF($B13="n/a","n/a",IF(Z$3>($B13+$E15),$C15-SUM($F15:Y15),($C15/$B13))) -> 0.02359535362 | AA15: =IF($B13="n/a","n/a",IF(AA$3>($B13+$E15),$C15-SUM($F15:Z15),($C15/$B13))) -> 0.02359535362 | AB15: =IF($B13="n/a","n/a",IF(AB$3>($B13+$E15),$C15-SUM($F15:AA15),($C15/$B13))) -> 0.02359535362 | AC15: =IF($B13="n/a","n/a",IF(AC$3>($B13+$E15),$C15-SUM($F15:AB15),($C15/$B13))) -> 0.02359535362 | AD15: =IF($B13="n/a","n/a",IF(AD$3>($B13+$E15),$C15-SUM($F15:AC15),($C15/$B13))) -> 0.02359535362 | AE15: =IF($B13="n/a","n/a",IF(AE$3>($B13+$E15),$C15-SUM($F15:AD15),($C15/$B13))) -> 0.02359535362 | AF15: =IF($B13="n/a","n/a",IF(AF$3>($B13+$E15),$C15-SUM($F15:AE15),($C15/$B13))) -> 0.02359535362 | AG15: =IF($B13="n/a","n/a",IF(AG$3>($B13+$E15),$C15-SUM($F15:AF15),($C15/$B13))) -> 0.02359535362 | AH15: =IF($B13="n/a","n/a",IF(AH$3>($B13+$E15),$C15-SUM($F15:AG15),($C15/$B13))) -> 0.02359535362 | AI15: =IF($B13="n/a","n/a",IF(AI$3>($B13+$E15),$C15-SUM($F15:AH15),($C15/$B13))) -> 0.02359535362 | AJ15: =IF($B13="n/a","n/a",IF(AJ$3>($B13+$E15),$C15-SUM($F15:AI15),($C15/$B13))) -> 0.02359535362 | AK15: =IF($B13="n/a","n/a",IF(AK$3>($B13+$E15),$C15-SUM($F15:AJ15),($C15/$B13))) -> 0.02359535362 | AL15: =IF($B13="n/a","n/a",IF(AL$3>($B13+$E15),$C15-SUM($F15:AK15),($C15/$B13))) -> 0.02359535362 | AM15: =IF($B13="n/a","n/a",IF(AM$3>($B13+$E15),$C15-SUM($F15:AL15),($C15/$B13))) -> 1.110223025e-16 | AN15: =IF($B13="n/a","n/a",IF(AN$3>($B13+$E15),$C15-SUM($F15:AM15),($C15/$B13))) -> 0 | AO15: =IF($B13="n/a","n/a",IF(AO$3>($B13+$E15),$C15-SUM($F15:AN15),($C15/$B13))) -> 0 | AP15: =IF($B13="n/a","n/a",IF(AP$3>($B13+$E15),$C15-SUM($F15:AO15),($C15/$B13))) -> 0 | AQ15: =IF($B13="n/a","n/a",IF(AQ$3>($B13+$E15),$C15-SUM($F15:AP15),($C15/$B13))) -> 0 | AR15: =IF($B13="n/a","n/a",IF(AR$3>($B13+$E15),$C15-SUM($F15:AQ15),($C15/$B13))) -> 0 | AS15: =IF($B13="n/a","n/a",IF(AS$3>($B13+$E15),$C15-SUM($F15:AR15),($C15/$B13))) -> 0 | AT15: =IF($B13="n/a","n/a",IF(AT$3>($B13+$E15),$C15-SUM($F15:AS15),($C15/$B13))) -> 0 | AU15: =IF($B13="n/a","n/a",IF(AU$3>($B13+$E15),$C15-SUM($F15:AT15),($C15/$B13))) -> 0 | AV15: =IF($B13="n/a","n/a",IF(AV$3>($B13+$E15),$C15-SUM($F15:AU15),($C15/$B13))) -> 0 | AW15: =IF($B13="n/a","n/a",IF(AW$3>($B13+$E15),$C15-SUM($F15:AV15),($C15/$B13))) -> 0 | AX15: =IF($B13="n/a","n/a",IF(AX$3>($B13+$E15),$C15-SUM($F15:AW15),($C15/$B13))) -> 0 | AY15: =IF($B13="n/a","n/a",IF(AY$3>($B13+$E15),$C15-SUM($F15:AX15),($C15/$B13))) -> 0 | AZ15: =IF($B13="n/a","n/a",IF(AZ$3>($B13+$E15),$C15-SUM($F15:AY15),($C15/$B13))) -> 0 | BA15: =IF($B13="n/a","n/a",IF(BA$3>($B13+$E15),$C15-SUM($F15:AZ15),($C15/$B13))) -> 0 | BB15: =IF($B13="n/a","n/a",IF(BB$3>($B13+$E15),$C15-SUM($F15:BA15),($C15/$B13))) -> 0 | BC15: =IF($B13="n/a","n/a",IF(BC$3>($B13+$E15),$C15-SUM($F15:BB15),($C15/$B13))) -> 0 | BD15: =IF($B13="n/a","n/a",IF(BD$3>($B13+$E15),$C15-SUM($F15:BC15),($C15/$B13))) -> 0 | BE15: =IF($B13="n/a","n/a",IF(BE$3>($B13+$E15),$C15-SUM($F15:BD15),($C15/$B13))) -> 0 | BF15: =IF($B13="n/a","n/a",IF(BF$3>($B13+$E15),$C15-SUM($F15:BE15),($C15/$B13))) -> 0 | BG15: =IF($B13="n/a","n/a",IF(BG$3>($B13+$E15),$C15-SUM($F15:BF15),($C15/$B13))) -> 0 | BH15: =IF($B13="n/a","n/a",IF(BH$3>($B13+$E15),$C15-SUM($F15:BG15),($C15/$B13))) -> 0 | BI15: =IF($B13="n/a","n/a",IF(BI$3>($B13+$E15),$C15-SUM($F15:BH15),($C15/$B13))) -> 0 | BJ15: =IF($B13="n/a","n/a",IF(BJ$3>($B13+$E15),$C15-SUM($F15:BI15),($C15/$B13))) -> 0 | BK15: =IF($B13="n/a","n/a",IF(BK$3>($B13+$E15),$C15-SUM($F15:BJ15),($C15/$B13))) -> 0 | BL15: =IF($B13="n/a","n/a",IF(BL$3>($B13+$E15),$C15-SUM($F15:BK15),($C15/$B13))) -> 0 | BM15: =IF($B13="n/a","n/a",IF(BM$3>($B13+$E15),$C15-SUM($F15:BL15),($C15/$B13))) -> 0 | BN15: =IF($B13="n/a","n/a",IF(BN$3>($B13+$E15),$C15-SUM($F15:BM15),($C15/$B13))) -> 0
A16: =SUMIFS($C$13:$C$568,$E$13:$E$568,E16) -> 256.659159 | B16: Op Bal | C16: =OFFSET('I3 CAPEX '!$E$44,$A10,E16) -> 0.9232859024 | E16: 4 | J16: =IF($B13="n/a","n/a",IF(J$3>($B13+$E16),$C16-SUM($F16:I16),($C16/$B13))) -> 0.03077619675 | K16: =IF($B13="n/a","n/a",IF(K$3>($B13+$E16),$C16-SUM($F16:J16),($C16/$B13))) -> 0.03077619675 | L16: =IF($B13="n/a","n/a",IF(L$3>($B13+$E16),$C16-SUM($F16:K16),($C16/$B13))) -> 0.03077619675 | M16: =IF($B13="n/a","n/a",IF(M$3>($B13+$E16),$C16-SUM($F16:L16),($C16/$B13))) -> 0.03077619675 | N16: =IF($B13="n/a","n/a",IF(N$3>($B13+$E16),$C16-SUM($F16:M16),($C16/$B13))) -> 0.03077619675 | O16: =IF($B13="n/a","n/a",IF(O$3>($B13+$E16),$C16-SUM($F16:N16),($C16/$B13))) -> 0.03077619675 | P16: =IF($B13="n/a","n/a",IF(P$3>($B13+$E16),$C16-SUM($F16:O16),($C16/$B13))) -> 0.03077619675 | Q16: =IF($B13="n/a","n/a",IF(Q$3>($B13+$E16),$C16-SUM($F16:P16),($C16/$B13))) -> 0.03077619675 | R16: =IF($B13="n/a","n/a",IF(R$3>($B13+$E16),$C16-SUM($F16:Q16),($C16/$B13))) -> 0.03077619675 | S16: =IF($B13="n/a","n/a",IF(S$3>($B13+$E16),$C16-SUM($F16:R16),($C16/$B13))) -> 0.03077619675 | T16: =IF($B13="n/a","n/a",IF(T$3>($B13+$E16),$C16-SUM($F16:S16),($C16/$B13))) -> 0.03077619675 | U16: =IF($B13="n/a","n/a",IF(U$3>($B13+$E16),$C16-SUM($F16:T16),($C16/$B13))) -> 0.03077619675 | V16: =IF($B13="n/a","n/a",IF(V$3>($B13+$E16),$C16-SUM($F16:U16),($C16/$B13))) -> 0.03077619675 | W16: =IF($B13="n/a","n/a",IF(W$3>($B13+$E16),$C16-SUM($F16:V16),($C16/$B13))) -> 0.03077619675 | X16: =IF($B13="n/a","n/a",IF(X$3>($B13+$E16),$C16-SUM($F16:W16),($C16/$B13))) -> 0.03077619675 | Y16: =IF($B13="n/a","n/a",IF(Y$3>($B13+$E16),$C16-SUM($F16:X16),($C16/$B13))) -> 0.03077619675 | Z16: =IF($B13="n/a","n/a",IF(Z$3>($B13+$E16),$C16-SUM($F16:Y16),($C16/$B13))) -> 0.03077619675 | AA16: =IF($B13="n/a","n/a",IF(AA$3>($B13+$E16),$C16-SUM($F16:Z16),($C16/$B13))) -> 0.03077619675 | AB16: =IF($B13="n/a","n/a",IF(AB$3>($B13+$E16),$C16-SUM($F16:AA16),($C16/$B13))) -> 0.03077619675 | AC16: =IF($B13="n/a","n/a",IF(AC$3>($B13+$E16),$C16-SUM($F16:AB16),($C16/$B13))) -> 0.03077619675 | AD16: =IF($B13="n/a","n/a",IF(AD$3>($B13+$E16),$C16-SUM($F16:AC16),($C16/$B13))) -> 0.03077619675 | AE16: =IF($B13="n/a","n/a",IF(AE$3>($B13+$E16),$C16-SUM($F16:AD16),($C16/$B13))) -> 0.03077619675 | AF16: =IF($B13="n/a","n/a",IF(AF$3>($B13+$E16),$C16-SUM($F16:AE16),($C16/$B13))) -> 0.03077619675 | AG16: =IF($B13="n/a","n/a",IF(AG$3>($B13+$E16),$C16-SUM($F16:AF16),($C16/$B13))) -> 0.03077619675 | AH16: =IF($B13="n/a","n/a",IF(AH$3>($B13+$E16),$C16-SUM($F16:AG16),($C16/$B13))) -> 0.03077619675 | AI16: =IF($B13="n/a","n/a",IF(AI$3>($B13+$E16),$C16-SUM($F16:AH16),($C16/$B13))) -> 0.03077619675 | AJ16: =IF($B13="n/a","n/a",IF(AJ$3>($B13+$E16),$C16-SUM($F16:AI16),($C16/$B13))) -> 0.03077619675 | AK16: =IF($B13="n/a","n/a",IF(AK$3>($B13+$E16),$C16-SUM($F16:AJ16),($C16/$B13))) -> 0.03077619675 | AL16: =IF($B13="n/a","n/a",IF(AL$3>($B13+$E16),$C16-SUM($F16:AK16),($C16/$B13))) -> 0.03077619675 | AM16: =IF($B13="n/a","n/a",IF(AM$3>($B13+$E16),$C16-SUM($F16:AL16),($C16/$B13))) -> 0.03077619675 | AN16: =IF($B13="n/a","n/a",IF(AN$3>($B13+$E16),$C16-SUM($F16:AM16),($C16/$B13))) -> -3.330669074e-16 | AO16: =IF($B13="n/a","n/a",IF(AO$3>($B13+$E16),$C16-SUM($F16:AN16),($C16/$B13))) -> 0 | AP16: =IF($B13="n/a","n/a",IF(AP$3>($B13+$E16),$C16-SUM($F16:AO16),($C16/$B13))) -> 0 | AQ16: =IF($B13="n/a","n/a",IF(AQ$3>($B13+$E16),$C16-SUM($F16:AP16),($C16/$B13))) -> 0 | AR16: =IF($B13="n/a","n/a",IF(AR$3>($B13+$E16),$C16-SUM($F16:AQ16),($C16/$B13))) -> 0 | AS16: =IF($B13="n/a","n/a",IF(AS$3>($B13+$E16),$C16-SUM($F16:AR16),($C16/$B13))) -> 0 | AT16: =IF($B13="n/a","n/a",IF(AT$3>($B13+$E16),$C16-SUM($F16:AS16),($C16/$B13))) -> 0 | AU16: =IF($B13="n/a","n/a",IF(AU$3>($B13+$E16),$C16-SUM($F16:AT16),($C16/$B13))) -> 0 | AV16: =IF($B13="n/a","n/a",IF(AV$3>($B13+$E16),$C16-SUM($F16:AU16),($C16/$B13))) -> 0 | AW16: =IF($B13="n/a","n/a",IF(AW$3>($B13+$E16),$C16-SUM($F16:AV16),($C16/$B13))) -> 0 | AX16: =IF($B13="n/a","n/a",IF(AX$3>($B13+$E16),$C16-SUM($F16:AW16),($C16/$B13))) -> 0 | AY16: =IF($B13="n/a","n/a",IF(AY$3>($B13+$E16),$C16-SUM($F16:AX16),($C16/$B13))) -> 0 | AZ16: =IF($B13="n/a","n/a",IF(AZ$3>($B13+$E16),$C16-SUM($F16:AY16),($C16/$B13))) -> 0 | BA16: =IF($B13="n/a","n/a",IF(BA$3>($B13+$E16),$C16-SUM($F16:AZ16),($C16/$B13))) -> 0 | BB16: =IF($B13="n/a","n/a",IF(BB$3>($B13+$E16),$C16-SUM($F16:BA16),($C16/$B13))) -> 0 | BC16: =IF($B13="n/a","n/a",IF(BC$3>($B13+$E16),$C16-SUM($F16:BB16),($C16/$B13))) -> 0 | BD16: =IF($B13="n/a","n/a",IF(BD$3>($B13+$E16),$C16-SUM($F16:BC16),($C16/$B13))) -> 0 | BE16: =IF($B13="n/a","n/a",IF(BE$3>($B13+$E16),$C16-SUM($F16:BD16),($C16/$B13))) -> 0 | BF16: =IF($B13="n/a","n/a",IF(BF$3>($B13+$E16),$C16-SUM($F16:BE16),($C16/$B13))) -> 0 | BG16: =IF($B13="n/a","n/a",IF(BG$3>($B13+$E16),$C16-SUM($F16:BF16),($C16/$B13))) -> 0 | BH16: =IF($B13="n/a","n/a",IF(BH$3>($B13+$E16),$C16-SUM($F16:BG16),($C16/$B13))) -> 0 | BI16: =IF($B13="n/a","n/a",IF(BI$3>($B13+$E16),$C16-SUM($F16:BH16),($C16/$B13))) -> 0 | BJ16: =IF($B13="n/a","n/a",IF(BJ$3>($B13+$E16),$C16-SUM($F16:BI16),($C16/$B13))) -> 0 | BK16: =IF($B13="n/a","n/a",IF(BK$3>($B13+$E16),$C16-SUM($F16:BJ16),($C16/$B13))) -> 0 | BL16: =IF($B13="n/a","n/a",IF(BL$3>($B13+$E16),$C16-SUM($F16:BK16),($C16/$B13))) -> 0 | BM16: =IF($B13="n/a","n/a",IF(BM$3>($B13+$E16),$C16-SUM($F16:BL16),($C16/$B13))) -> 0 | BN16: =IF($B13="n/a","n/a",IF(BN$3>($B13+$E16),$C16-SUM($F16:BM16),($C16/$B13))) -> 0
A17: =SUMIFS($C$13:$C$568,$E$13:$E$568,E17) -> 195.0590897 | B17: =INDEX('I2 RAB '!$D$9:$D$38,A10) -> 11.48585491 | C17: =OFFSET('I3 CAPEX '!$E$44,$A10,E17)+OFFSET('I3 CAPEX '!$E$79,$A10,E17) -> 4.861519083 | E17: 5 | K17: =IF($B13="n/a","n/a",IF(K$3>($B13+$E17),$C17-SUM($F17:J17),($C17/$B13))) -> 0.1620506361 | L17: =IF($B13="n/a","n/a",IF(L$3>($B13+$E17),$C17-SUM($F17:K17),($C17/$B13))) -> 0.1620506361 | M17: =IF($B13="n/a","n/a",IF(M$3>($B13+$E17),$C17-SUM($F17:L17),($C17/$B13))) -> 0.1620506361 | N17: =IF($B13="n/a","n/a",IF(N$3>($B13+$E17),$C17-SUM($F17:M17),($C17/$B13))) -> 0.1620506361 | O17: =IF($B13="n/a","n/a",IF(O$3>($B13+$E17),$C17-SUM($F17:N17),($C17/$B13))) -> 0.1620506361 | P17: =IF($B13="n/a","n/a",IF(P$3>($B13+$E17),$C17-SUM($F17:O17),($C17/$B13))) -> 0.1620506361 | Q17: =IF($B13="n/a","n/a",IF(Q$3>($B13+$E17),$C17-SUM($F17:P17),($C17/$B13))) -> 0.1620506361 | R17: =IF($B13="n/a","n/a",IF(R$3>($B13+$E17),$C17-SUM($F17:Q17),($C17/$B13))) -> 0.1620506361 | S17: =IF($B13="n/a","n/a",IF(S$3>($B13+$E17),$C17-SUM($F17:R17),($C17/$B13))) -> 0.1620506361 | T17: =IF($B13="n/a","n/a",IF(T$3>($B13+$E17),$C17-SUM($F17:S17),($C17/$B13))) -> 0.1620506361 | U17: =IF($B13="n/a","n/a",IF(U$3>($B13+$E17),$C17-SUM($F17:T17),($C17/$B13))) -> 0.1620506361 | V17: =IF($B13="n/a","n/a",IF(V$3>($B13+$E17),$C17-SUM($F17:U17),($C17/$B13))) -> 0.1620506361 | W17: =IF($B13="n/a","n/a",IF(W$3>($B13+$E17),$C17-SUM($F17:V17),($C17/$B13))) -> 0.1620506361 | X17: =IF($B13="n/a","n/a",IF(X$3>($B13+$E17),$C17-SUM($F17:W17),($C17/$B13))) -> 0.1620506361 | Y17: =IF($B13="n/a","n/a",IF(Y$3>($B13+$E17),$C17-SUM($F17:X17),($C17/$B13))) -> 0.1620506361 | Z17: =IF($B13="n/a","n/a",IF(Z$3>($B13+$E17),$C17-SUM($F17:Y17),($C17/$B13))) -> 0.1620506361 | AA17: =IF($B13="n/a","n/a",IF(AA$3>($B13+$E17),$C17-SUM($F17:Z17),($C17/$B13))) -> 0.1620506361 | AB17: =IF($B13="n/a","n/a",IF(AB$3>($B13+$E17),$C17-SUM($F17:AA17),($C17/$B13))) -> 0.1620506361 | AC17: =IF($B13="n/a","n/a",IF(AC$3>($B13+$E17),$C17-SUM($F17:AB17),($C17/$B13))) -> 0.1620506361 | AD17: =IF($B13="n/a","n/a",IF(AD$3>($B13+$E17),$C17-SUM($F17:AC17),($C17/$B13))) -> 0.1620506361 | AE17: =IF($B13="n/a","n/a",IF(AE$3>($B13+$E17),$C17-SUM($F17:AD17),($C17/$B13))) -> 0.1620506361 | AF17: =IF($B13="n/a","n/a",IF(AF$3>($B13+$E17),$C17-SUM($F17:AE17),($C17/$B13))) -> 0.1620506361 | AG17: =IF($B13="n/a","n/a",IF(AG$3>($B13+$E17),$C17-SUM($F17:AF17),($C17/$B13))) -> 0.1620506361 | AH17: =IF($B13="n/a","n/a",IF(AH$3>($B13+$E17),$C17-SUM($F17:AG17),($C17/$B13))) -> 0.1620506361 | AI17: =IF($B13="n/a","n/a",IF(AI$3>($B13+$E17),$C17-SUM($F17:AH17),($C17/$B13))) -> 0.1620506361 | AJ17: =IF($B13="n/a","n/a",IF(AJ$3>($B13+$E17),$C17-SUM($F17:AI17),($C17/$B13))) -> 0.1620506361 | AK17: =IF($B13="n/a","n/a",IF(AK$3>($B13+$E17),$C17-SUM($F17:AJ17),($C17/$B13))) -> 0.1620506361 | AL17: =IF($B13="n/a","n/a",IF(AL$3>($B13+$E17),$C17-SUM($F17:AK17),($C17/$B13))) -> 0.1620506361 | AM17: =IF($B13="n/a","n/a",IF(AM$3>($B13+$E17),$C17-SUM($F17:AL17),($C17/$B13))) -> 0.1620506361 | AN17: =IF($B13="n/a","n/a",IF(AN$3>($B13+$E17),$C17-SUM($F17:AM17),($C17/$B13))) -> 0.1620506361 | AO17: =IF($B13="n/a","n/a",IF(AO$3>($B13+$E17),$C17-SUM($F17:AN17),($C17/$B13))) -> 2.664535259e-15 | AP17: =IF($B13="n/a","n/a",IF(AP$3>($B13+$E17),$C17-SUM($F17:AO17),($C17/$B13))) -> 0 | AQ17: =IF($B13="n/a","n/a",IF(AQ$3>($B13+$E17),$C17-SUM($F17:AP17),($C17/$B13))) -> 0 | AR17: =IF($B13="n/a","n/a",IF(AR$3>($B13+$E17),$C17-SUM($F17:AQ17),($C17/$B13))) -> 0 | AS17: =IF($B13="n/a","n/a",IF(AS$3>($B13+$E17),$C17-SUM($F17:AR17),($C17/$B13))) -> 0 | AT17: =IF($B13="n/a","n/a",IF(AT$3>($B13+$E17),$C17-SUM($F17:AS17),($C17/$B13))) -> 0 | AU17: =IF($B13="n/a","n/a",IF(AU$3>($B13+$E17),$C17-SUM($F17:AT17),($C17/$B13))) -> 0 | AV17: =IF($B13="n/a","n/a",IF(AV$3>($B13+$E17),$C17-SUM($F17:AU17),($C17/$B13))) -> 0 | AW17: =IF($B13="n/a","n/a",IF(AW$3>($B13+$E17),$C17-SUM($F17:AV17),($C17/$B13))) -> 0 | AX17: =IF($B13="n/a","n/a",IF(AX$3>($B13+$E17),$C17-SUM($F17:AW17),($C17/$B13))) -> 0 | AY17: =IF($B13="n/a","n/a",IF(AY$3>($B13+$E17),$C17-SUM($F17:AX17),($C17/$B13))) -> 0 | AZ17: =IF($B13="n/a","n/a",IF(AZ$3>($B13+$E17),$C17-SUM($F17:AY17),($C17/$B13))) -> 0 | BA17: =IF($B13="n/a","n/a",IF(BA$3>($B13+$E17),$C17-SUM($F17:AZ17),($C17/$B13))) -> 0 | BB17: =IF($B13="n/a","n/a",IF(BB$3>($B13+$E17),$C17-SUM($F17:BA17),($C17/$B13))) -> 0 | BC17: =IF($B13="n/a","n/a",IF(BC$3>($B13+$E17),$C17-SUM($F17:BB17),($C17/$B13))) -> 0 | BD17: =IF($B13="n/a","n/a",IF(BD$3>($B13+$E17),$C17-SUM($F17:BC17),($C17/$B13))) -> 0 | BE17: =IF($B13="n/a","n/a",IF(BE$3>($B13+$E17),$C17-SUM($F17:BD17),($C17/$B13))) -> 0 | BF17: =IF($B13="n/a","n/a",IF(BF$3>($B13+$E17),$C17-SUM($F17:BE17),($C17/$B13))) -> 0 | BG17: =IF($B13="n/a","n/a",IF(BG$3>($B13+$E17),$C17-SUM($F17:BF17),($C17/$B13))) -> 0 | BH17: =IF($B13="n/a","n/a",IF(BH$3>($B13+$E17),$C17-SUM($F17:BG17),($C17/$B13))) -> 0 | BI17: =IF($B13="n/a","n/a",IF(BI$3>($B13+$E17),$C17-SUM($F17:BH17),($C17/$B13))) -> 0 | BJ17: =IF($B13="n/a","n/a",IF(BJ$3>($B13+$E17),$C17-SUM($F17:BI17),($C17/$B13))) -> 0 | BK17: =IF($B13="n/a","n/a",IF(BK$3>($B13+$E17),$C17-SUM($F17:BJ17),($C17/$B13))) -> 0 | BL17: =IF($B13="n/a","n/a",IF(BL$3>($B13+$E17),$C17-SUM($F17:BK17),($C17/$B13))) -> 0 | BM17: =IF($B13="n/a","n/a",IF(BM$3>($B13+$E17),$C17-SUM($F17:BL17),($C17/$B13))) -> 0 | BN17: =IF($B13="n/a","n/a",IF(BN$3>($B13+$E17),$C17-SUM($F17:BM17),($C17/$B13))) -> 0
B18: Op Bal Adjustment | C18: =OFFSET('I3 CAPEX '!$E$44,$A10,E18)+OFFSET('I3 CAPEX '!$E$79,$A10,E18) -> 0 | E18: 6 | L18: =IF($B13="n/a","n/a",IF(L$3>($B13+$E18),$C18-SUM($F18:K18),($C18/$B13))) -> 0 | M18: =IF($B13="n/a","n/a",IF(M$3>($B13+$E18),$C18-SUM($F18:L18),($C18/$B13))) -> 0 | N18: =IF($B13="n/a","n/a",IF(N$3>($B13+$E18),$C18-SUM($F18:M18),($C18/$B13))) -> 0 | O18: =IF($B13="n/a","n/a",IF(O$3>($B13+$E18),$C18-SUM($F18:N18),($C18/$B13))) -> 0 | P18: =IF($B13="n/a","n/a",IF(P$3>($B13+$E18),$C18-SUM($F18:O18),($C18/$B13))) -> 0 | Q18: =IF($B13="n/a","n/a",IF(Q$3>($B13+$E18),$C18-SUM($F18:P18),($C18/$B13))) -> 0 | R18: =IF($B13="n/a","n/a",IF(R$3>($B13+$E18),$C18-SUM($F18:Q18),($C18/$B13))) -> 0 | S18: =IF($B13="n/a","n/a",IF(S$3>($B13+$E18),$C18-SUM($F18:R18),($C18/$B13))) -> 0 | T18: =IF($B13="n/a","n/a",IF(T$3>($B13+$E18),$C18-SUM($F18:S18),($C18/$B13))) -> 0 | U18: =IF($B13="n/a","n/a",IF(U$3>($B13+$E18),$C18-SUM($F18:T18),($C18/$B13))) -> 0 | V18: =IF($B13="n/a","n/a",IF(V$3>($B13+$E18),$C18-SUM($F18:U18),($C18/$B13))) -> 0 | W18: =IF($B13="n/a","n/a",IF(W$3>($B13+$E18),$C18-SUM($F18:V18),($C18/$B13))) -> 0 | X18: =IF($B13="n/a","n/a",IF(X$3>($B13+$E18),$C18-SUM($F18:W18),($C18/$B13))) -> 0 | Y18: =IF($B13="n/a","n/a",IF(Y$3>($B13+$E18),$C18-SUM($F18:X18),($C18/$B13))) -> 0 | Z18: =IF($B13="n/a","n/a",IF(Z$3>($B13+$E18),$C18-SUM($F18:Y18),($C18/$B13))) -> 0 | AA18: =IF($B13="n/a","n/a",IF(AA$3>($B13+$E18),$C18-SUM($F18:Z18),($C18/$B13))) -> 0 | AB18: =IF($B13="n/a","n/a",IF(AB$3>($B13+$E18),$C18-SUM($F18:AA18),($C18/$B13))) -> 0 | AC18: =IF($B13="n/a","n/a",IF(AC$3>($B13+$E18),$C18-SUM($F18:AB18),($C18/$B13))) -> 0 | AD18: =IF($B13="n/a","n/a",IF(AD$3>($B13+$E18),$C18-SUM($F18:AC18),($C18/$B13))) -> 0 | AE18: =IF($B13="n/a","n/a",IF(AE$3>($B13+$E18),$C18-SUM($F18:AD18),($C18/$B13))) -> 0 | AF18: =IF($B13="n/a","n/a",IF(AF$3>($B13+$E18),$C18-SUM($F18:AE18),($C18/$B13))) -> 0 | AG18: =IF($B13="n/a","n/a",IF(AG$3>($B13+$E18),$C18-SUM($F18:AF18),($C18/$B13))) -> 0 | AH18: =IF($B13="n/a","n/a",IF(AH$3>($B13+$E18),$C18-SUM($F18:AG18),($C18/$B13))) -> 0 | AI18: =IF($B13="n/a","n/a",IF(AI$3>($B13+$E18),$C18-SUM($F18:AH18),($C18/$B13))) -> 0 | AJ18: =IF($B13="n/a","n/a",IF(AJ$3>($B13+$E18),$C18-SUM($F18:AI18),($C18/$B13))) -> 0 | AK18: =IF($B13="n/a","n/a",IF(AK$3>($B13+$E18),$C18-SUM($F18:AJ18),($C18/$B13))) -> 0 | AL18: =IF($B13="n/a","n/a",IF(AL$3>($B13+$E18),$C18-SUM($F18:AK18),($C18/$B13))) -> 0 | AM18: =IF($B13="n/a","n/a",IF(AM$3>($B13+$E18),$C18-SUM($F18:AL18),($C18/$B13))) -> 0 | AN18: =IF($B13="n/a","n/a",IF(AN$3>($B13+$E18),$C18-SUM($F18:AM18),($C18/$B13))) -> 0 | AO18: =IF($B13="n/a","n/a",IF(AO$3>($B13+$E18),$C18-SUM($F18:AN18),($C18/$B13))) -> 0 | AP18: =IF($B13="n/a","n/a",IF(AP$3>($B13+$E18),$C18-SUM($F18:AO18),($C18/$B13))) -> 0 | AQ18: =IF($B13="n/a","n/a",IF(AQ$3>($B13+$E18),$C18-SUM($F18:AP18),($C18/$B13))) -> 0 | AR18: =IF($B13="n/a","n/a",IF(AR$3>($B13+$E18),$C18-SUM($F18:AQ18),($C18/$B13))) -> 0 | AS18: =IF($B13="n/a","n/a",IF(AS$3>($B13+$E18),$C18-SUM($F18:AR18),($C18/$B13))) -> 0 | AT18: =IF($B13="n/a","n/a",IF(AT$3>($B13+$E18),$C18-SUM($F18:AS18),($C18/$B13))) -> 0 | AU18: =IF($B13="n/a","n/a",IF(AU$3>($B13+$E18),$C18-SUM($F18:AT18),($C18/$B13))) -> 0 | AV18: =IF($B13="n/a","n/a",IF(AV$3>($B13+$E18),$C18-SUM($F18:AU18),($C18/$B13))) -> 0 | AW18: =IF($B13="n/a","n/a",IF(AW$3>($B13+$E18),$C18-SUM($F18:AV18),($C18/$B13))) -> 0 | AX18: =IF($B13="n/a","n/a",IF(AX$3>($B13+$E18),$C18-SUM($F18:AW18),($C18/$B13))) -> 0 | AY18: =IF($B13="n/a","n/a",IF(AY$3>($B13+$E18),$C18-SUM($F18:AX18),($C18/$B13))) -> 0 | AZ18: =IF($B13="n/a","n/a",IF(AZ$3>($B13+$E18),$C18-SUM($F18:AY18),($C18/$B13))) -> 0 | BA18: =IF($B13="n/a","n/a",IF(BA$3>($B13+$E18),$C18-SUM($F18:AZ18),($C18/$B13))) -> 0 | BB18: =IF($B13="n/a","n/a",IF(BB$3>($B13+$E18),$C18-SUM($F18:BA18),($C18/$B13))) -> 0 | BC18: =IF($B13="n/a","n/a",IF(BC$3>($B13+$E18),$C18-SUM($F18:BB18),($C18/$B13))) -> 0 | BD18: =IF($B13="n/a","n/a",IF(BD$3>($B13+$E18),$C18-SUM($F18:BC18),($C18/$B13))) -> 0 | BE18: =IF($B13="n/a","n/a",IF(BE$3>($B13+$E18),$C18-SUM($F18:BD18),($C18/$B13))) -> 0 | BF18: =IF($B13="n/a","n/a",IF(BF$3>($B13+$E18),$C18-SUM($F18:BE18),($C18/$B13))) -> 0 | BG18: =IF($B13="n/a","n/a",IF(BG$3>($B13+$E18),$C18-SUM($F18:BF18),($C18/$B13))) -> 0 | BH18: =IF($B13="n/a","n/a",IF(BH$3>($B13+$E18),$C18-SUM($F18:BG18),($C18/$B13))) -> 0 | BI18: =IF($B13="n/a","n/a",IF(BI$3>($B13+$E18),$C18-SUM($F18:BH18),($C18/$B13))) -> 0 | BJ18: =IF($B13="n/a","n/a",IF(BJ$3>($B13+$E18),$C18-SUM($F18:BI18),($C18/$B13))) -> 0 | BK18: =IF($B13="n/a","n/a",IF(BK$3>($B13+$E18),$C18-SUM($F18:BJ18),($C18/$B13))) -> 0 | BL18: =IF($B13="n/a","n/a",IF(BL$3>($B13+$E18),$C18-SUM($F18:BK18),($C18/$B13))) -> 0 | BM18: =IF($B13="n/a","n/a",IF(BM$3>($B13+$E18),$C18-SUM($F18:BL18),($C18/$B13))) -> 0 | BN18: =IF($B13="n/a","n/a",IF(BN$3>($B13+$E18),$C18-SUM($F18:BM18),($C18/$B13))) -> 0
B19: =+OFFSET('I3 CAPEX '!$E$79,$A10,E16) -> 0.5653712994 | C19: =OFFSET('I3 CAPEX '!$E$44,$A10,E19)+OFFSET('I3 CAPEX '!$E$79,$A10,E19) -> 0 | E19: 7 | M19: =IF($B13="n/a","n/a",IF(M$3>($B13+$E19),$C19-SUM($F19:L19),($C19/$B13))) -> 0 | N19: =IF($B13="n/a","n/a",IF(N$3>($B13+$E19),$C19-SUM($F19:M19),($C19/$B13))) -> 0 | O19: =IF($B13="n/a","n/a",IF(O$3>($B13+$E19),$C19-SUM($F19:N19),($C19/$B13))) -> 0 | P19: =IF($B13="n/a","n/a",IF(P$3>($B13+$E19),$C19-SUM($F19:O19),($C19/$B13))) -> 0 | Q19: =IF($B13="n/a","n/a",IF(Q$3>($B13+$E19),$C19-SUM($F19:P19),($C19/$B13))) -> 0 | R19: =IF($B13="n/a","n/a",IF(R$3>($B13+$E19),$C19-SUM($F19:Q19),($C19/$B13))) -> 0 | S19: =IF($B13="n/a","n/a",IF(S$3>($B13+$E19),$C19-SUM($F19:R19),($C19/$B13))) -> 0 | T19: =IF($B13="n/a","n/a",IF(T$3>($B13+$E19),$C19-SUM($F19:S19),($C19/$B13))) -> 0 | U19: =IF($B13="n/a","n/a",IF(U$3>($B13+$E19),$C19-SUM($F19:T19),($C19/$B13))) -> 0 | V19: =IF($B13="n/a","n/a",IF(V$3>($B13+$E19),$C19-SUM($F19:U19),($C19/$B13))) -> 0 | W19: =IF($B13="n/a","n/a",IF(W$3>($B13+$E19),$C19-SUM($F19:V19),($C19/$B13))) -> 0 | X19: =IF($B13="n/a","n/a",IF(X$3>($B13+$E19),$C19-SUM($F19:W19),($C19/$B13))) -> 0 | Y19: =IF($B13="n/a","n/a",IF(Y$3>($B13+$E19),$C19-SUM($F19:X19),($C19/$B13))) -> 0 | Z19: =IF($B13="n/a","n/a",IF(Z$3>($B13+$E19),$C19-SUM($F19:Y19),($C19/$B13))) -> 0 | AA19: =IF($B13="n/a","n/a",IF(AA$3>($B13+$E19),$C19-SUM($F19:Z19),($C19/$B13))) -> 0 | AB19: =IF($B13="n/a","n/a",IF(AB$3>($B13+$E19),$C19-SUM($F19:AA19),($C19/$B13))) -> 0 | AC19: =IF($B13="n/a","n/a",IF(AC$3>($B13+$E19),$C19-SUM($F19:AB19),($C19/$B13))) -> 0 | AD19: =IF($B13="n/a","n/a",IF(AD$3>($B13+$E19),$C19-SUM($F19:AC19),($C19/$B13))) -> 0 | AE19: =IF($B13="n/a","n/a",IF(AE$3>($B13+$E19),$C19-SUM($F19:AD19),($C19/$B13))) -> 0 | AF19: =IF($B13="n/a","n/a",IF(AF$3>($B13+$E19),$C19-SUM($F19:AE19),($C19/$B13))) -> 0 | AG19: =IF($B13="n/a","n/a",IF(AG$3>($B13+$E19),$C19-SUM($F19:AF19),($C19/$B13))) -> 0 | AH19: =IF($B13="n/a","n/a",IF(AH$3>($B13+$E19),$C19-SUM($F19:AG19),($C19/$B13))) -> 0 | AI19: =IF($B13="n/a","n/a",IF(AI$3>($B13+$E19),$C19-SUM($F19:AH19),($C19/$B13))) -> 0 | AJ19: =IF($B13="n/a","n/a",IF(AJ$3>($B13+$E19),$C19-SUM($F19:AI19),($C19/$B13))) -> 0 | AK19: =IF($B13="n/a","n/a",IF(AK$3>($B13+$E19),$C19-SUM($F19:AJ19),($C19/$B13))) -> 0 | AL19: =IF($B13="n/a","n/a",IF(AL$3>($B13+$E19),$C19-SUM($F19:AK19),($C19/$B13))) -> 0 | AM19: =IF($B13="n/a","n/a",IF(AM$3>($B13+$E19),$C19-SUM($F19:AL19),($C19/$B13))) -> 0 | AN19: =IF($B13="n/a","n/a",IF(AN$3>($B13+$E19),$C19-SUM($F19:AM19),($C19/$B13))) -> 0 | AO19: =IF($B13="n/a","n/a",IF(AO$3>($B13+$E19),$C19-SUM($F19:AN19),($C19/$B13))) -> 0 | AP19: =IF($B13="n/a","n/a",IF(AP$3>($B13+$E19),$C19-SUM($F19:AO19),($C19/$B13))) -> 0 | AQ19: =IF($B13="n/a","n/a",IF(AQ$3>($B13+$E19),$C19-SUM($F19:AP19),($C19/$B13))) -> 0 | AR19: =IF($B13="n/a","n/a",IF(AR$3>($B13+$E19),$C19-SUM($F19:AQ19),($C19/$B13))) -> 0 | AS19: =IF($B13="n/a","n/a",IF(AS$3>($B13+$E19),$C19-SUM($F19:AR19),($C19/$B13))) -> 0 | AT19: =IF($B13="n/a","n/a",IF(AT$3>($B13+$E19),$C19-SUM($F19:AS19),($C19/$B13))) -> 0 | AU19: =IF($B13="n/a","n/a",IF(AU$3>($B13+$E19),$C19-SUM($F19:AT19),($C19/$B13))) -> 0 | AV19: =IF($B13="n/a","n/a",IF(AV$3>($B13+$E19),$C19-SUM($F19:AU19),($C19/$B13))) -> 0 | AW19: =IF($B13="n/a","n/a",IF(AW$3>($B13+$E19),$C19-SUM($F19:AV19),($C19/$B13))) -> 0 | AX19: =IF($B13="n/a","n/a",IF(AX$3>($B13+$E19),$C19-SUM($F19:AW19),($C19/$B13))) -> 0 | AY19: =IF($B13="n/a","n/a",IF(AY$3>($B13+$E19),$C19-SUM($F19:AX19),($C19/$B13))) -> 0 | AZ19: =IF($B13="n/a","n/a",IF(AZ$3>($B13+$E19),$C19-SUM($F19:AY19),($C19/$B13))) -> 0 | BA19: =IF($B13="n/a","n/a",IF(BA$3>($B13+$E19),$C19-SUM($F19:AZ19),($C19/$B13))) -> 0 | BB19: =IF($B13="n/a","n/a",IF(BB$3>($B13+$E19),$C19-SUM($F19:BA19),($C19/$B13))) -> 0 | BC19: =IF($B13="n/a","n/a",IF(BC$3>($B13+$E19),$C19-SUM($F19:BB19),($C19/$B13))) -> 0 | BD19: =IF($B13="n/a","n/a",IF(BD$3>($B13+$E19),$C19-SUM($F19:BC19),($C19/$B13))) -> 0 | BE19: =IF($B13="n/a","n/a",IF(BE$3>($B13+$E19),$C19-SUM($F19:BD19),($C19/$B13))) -> 0 | BF19: =IF($B13="n/a","n/a",IF(BF$3>($B13+$E19),$C19-SUM($F19:BE19),($C19/$B13))) -> 0 | BG19: =IF($B13="n/a","n/a",IF(BG$3>($B13+$E19),$C19-SUM($F19:BF19),($C19/$B13))) -> 0 | BH19: =IF($B13="n/a","n/a",IF(BH$3>($B13+$E19),$C19-SUM($F19:BG19),($C19/$B13))) -> 0 | BI19: =IF($B13="n/a","n/a",IF(BI$3>($B13+$E19),$C19-SUM($F19:BH19),($C19/$B13))) -> 0 | BJ19: =IF($B13="n/a","n/a",IF(BJ$3>($B13+$E19),$C19-SUM($F19:BI19),($C19/$B13))) -> 0 | BK19: =IF($B13="n/a","n/a",IF(BK$3>($B13+$E19),$C19-SUM($F19:BJ19),($C19/$B13))) -> 0 | BL19: =IF($B13="n/a","n/a",IF(BL$3>($B13+$E19),$C19-SUM($F19:BK19),($C19/$B13))) -> 0 | BM19: =IF($B13="n/a","n/a",IF(BM$3>($B13+$E19),$C19-SUM($F19:BL19),($C19/$B13))) -> 0 | BN19: =IF($B13="n/a","n/a",IF(BN$3>($B13+$E19),$C19-SUM($F19:BM19),($C19/$B13))) -> 0
C20: =OFFSET('I3 CAPEX '!$E$44,$A10,E20)+OFFSET('I3 CAPEX '!$E$79,$A10,E20) -> 0 | E20: 8 | N20: =IF($B13="n/a","n/a",IF(N$3>($B13+$E20),$C20-SUM($F20:M20),($C20/$B13))) -> 0 | O20: =IF($B13="n/a","n/a",IF(O$3>($B13+$E20),$C20-SUM($F20:N20),($C20/$B13))) -> 0 | P20: =IF($B13="n/a","n/a",IF(P$3>($B13+$E20),$C20-SUM($F20:O20),($C20/$B13))) -> 0 | Q20: =IF($B13="n/a","n/a",IF(Q$3>($B13+$E20),$C20-SUM($F20:P20),($C20/$B13))) -> 0 | R20: =IF($B13="n/a","n/a",IF(R$3>($B13+$E20),$C20-SUM($F20:Q20),($C20/$B13))) -> 0 | S20: =IF($B13="n/a","n/a",IF(S$3>($B13+$E20),$C20-SUM($F20:R20),($C20/$B13))) -> 0 | T20: =IF($B13="n/a","n/a",IF(T$3>($B13+$E20),$C20-SUM($F20:S20),($C20/$B13))) -> 0 | U20: =IF($B13="n/a","n/a",IF(U$3>($B13+$E20),$C20-SUM($F20:T20),($C20/$B13))) -> 0 | V20: =IF($B13="n/a","n/a",IF(V$3>($B13+$E20),$C20-SUM($F20:U20),($C20/$B13))) -> 0 | W20: =IF($B13="n/a","n/a",IF(W$3>($B13+$E20),$C20-SUM($F20:V20),($C20/$B13))) -> 0 | X20: =IF($B13="n/a","n/a",IF(X$3>($B13+$E20),$C20-SUM($F20:W20),($C20/$B13))) -> 0 | Y20: =IF($B13="n/a","n/a",IF(Y$3>($B13+$E20),$C20-SUM($F20:X20),($C20/$B13))) -> 0 | Z20: =IF($B13="n/a","n/a",IF(Z$3>($B13+$E20),$C20-SUM($F20:Y20),($C20/$B13))) -> 0 | AA20: =IF($B13="n/a","n/a",IF(AA$3>($B13+$E20),$C20-SUM($F20:Z20),($C20/$B13))) -> 0 | AB20: =IF($B13="n/a","n/a",IF(AB$3>($B13+$E20),$C20-SUM($F20:AA20),($C20/$B13))) -> 0 | AC20: =IF($B13="n/a","n/a",IF(AC$3>($B13+$E20),$C20-SUM($F20:AB20),($C20/$B13))) -> 0 | AD20: =IF($B13="n/a","n/a",IF(AD$3>($B13+$E20),$C20-SUM($F20:AC20),($C20/$B13))) -> 0 | AE20: =IF($B13="n/a","n/a",IF(AE$3>($B13+$E20),$C20-SUM($F20:AD20),($C20/$B13))) -> 0 | AF20: =IF($B13="n/a","n/a",IF(AF$3>($B13+$E20),$C20-SUM($F20:AE20),($C20/$B13))) -> 0 | AG20: =IF($B13="n/a","n/a",IF(AG$3>($B13+$E20),$C20-SUM($F20:AF20),($C20/$B13))) -> 0 | AH20: =IF($B13="n/a","n/a",IF(AH$3>($B13+$E20),$C20-SUM($F20:AG20),($C20/$B13))) -> 0 | AI20: =IF($B13="n/a","n/a",IF(AI$3>($B13+$E20),$C20-SUM($F20:AH20),($C20/$B13))) -> 0 | AJ20: =IF($B13="n/a","n/a",IF(AJ$3>($B13+$E20),$C20-SUM($F20:AI20),($C20/$B13))) -> 0 | AK20: =IF($B13="n/a","n/a",IF(AK$3>($B13+$E20),$C20-SUM($F20:AJ20),($C20/$B13))) -> 0 | AL20: =IF($B13="n/a","n/a",IF(AL$3>($B13+$E20),$C20-SUM($F20:AK20),($C20/$B13))) -> 0 | AM20: =IF($B13="n/a","n/a",IF(AM$3>($B13+$E20),$C20-SUM($F20:AL20),($C20/$B13))) -> 0 | AN20: =IF($B13="n/a","n/a",IF(AN$3>($B13+$E20),$C20-SUM($F20:AM20),($C20/$B13))) -> 0 | AO20: =IF($B13="n/a","n/a",IF(AO$3>($B13+$E20),$C20-SUM($F20:AN20),($C20/$B13))) -> 0 | AP20: =IF($B13="n/a","n/a",IF(AP$3>($B13+$E20),$C20-SUM($F20:AO20),($C20/$B13))) -> 0 | AQ20: =IF($B13="n/a","n/a",IF(AQ$3>($B13+$E20),$C20-SUM($F20:AP20),($C20/$B13))) -> 0 | AR20: =IF($B13="n/a","n/a",IF(AR$3>($B13+$E20),$C20-SUM($F20:AQ20),($C20/$B13))) -> 0 | AS20: =IF($B13="n/a","n/a",IF(AS$3>($B13+$E20),$C20-SUM($F20:AR20),($C20/$B13))) -> 0 | AT20: =IF($B13="n/a","n/a",IF(AT$3>($B13+$E20),$C20-SUM($F20:AS20),($C20/$B13))) -> 0 | AU20: =IF($B13="n/a","n/a",IF(AU$3>($B13+$E20),$C20-SUM($F20:AT20),($C20/$B13))) -> 0 | AV20: =IF($B13="n/a","n/a",IF(AV$3>($B13+$E20),$C20-SUM($F20:AU20),($C20/$B13))) -> 0 | AW20: =IF($B13="n/a","n/a",IF(AW$3>($B13+$E20),$C20-SUM($F20:AV20),($C20/$B13))) -> 0 | AX20: =IF($B13="n/a","n/a",IF(AX$3>($B13+$E20),$C20-SUM($F20:AW20),($C20/$B13))) -> 0 | AY20: =IF($B13="n/a","n/a",IF(AY$3>($B13+$E20),$C20-SUM($F20:AX20),($C20/$B13))) -> 0 | AZ20: =IF($B13="n/a","n/a",IF(AZ$3>($B13+$E20),$C20-SUM($F20:AY20),($C20/$B13))) -> 0 | BA20: =IF($B13="n/a","n/a",IF(BA$3>($B13+$E20),$C20-SUM($F20:AZ20),($C20/$B13))) -> 0 | BB20: =IF($B13="n/a","n/a",IF(BB$3>($B13+$E20),$C20-SUM($F20:BA20),($C20/$B13))) -> 0 | BC20: =IF($B13="n/a","n/a",IF(BC$3>($B13+$E20),$C20-SUM($F20:BB20),($C20/$B13))) -> 0 | BD20: =IF($B13="n/a","n/a",IF(BD$3>($B13+$E20),$C20-SUM($F20:BC20),($C20/$B13))) -> 0 | BE20: =IF($B13="n/a","n/a",IF(BE$3>($B13+$E20),$C20-SUM($F20:BD20),($C20/$B13))) -> 0 | BF20: =IF($B13="n/a","n/a",IF(BF$3>($B13+$E20),$C20-SUM($F20:BE20),($C20/$B13))) -> 0 | BG20: =IF($B13="n/a","n/a",IF(BG$3>($B13+$E20),$C20-SUM($F20:BF20),($C20/$B13))) -> 0 | BH20: =IF($B13="n/a","n/a",IF(BH$3>($B13+$E20),$C20-SUM($F20:BG20),($C20/$B13))) -> 0 | BI20: =IF($B13="n/a","n/a",IF(BI$3>($B13+$E20),$C20-SUM($F20:BH20),($C20/$B13))) -> 0 | BJ20: =IF($B13="n/a","n/a",IF(BJ$3>($B13+$E20),$C20-SUM($F20:BI20),($C20/$B13))) -> 0 | BK20: =IF($B13="n/a","n/a",IF(BK$3>($B13+$E20),$C20-SUM($F20:BJ20),($C20/$B13))) -> 0 | BL20: =IF($B13="n/a","n/a",IF(BL$3>($B13+$E20),$C20-SUM($F20:BK20),($C20/$B13))) -> 0 | BM20: =IF($B13="n/a","n/a",IF(BM$3>($B13+$E20),$C20-SUM($F20:BL20),($C20/$B13))) -> 0 | BN20: =IF($B13="n/a","n/a",IF(BN$3>($B13+$E20),$C20-SUM($F20:BM20),($C20/$B13))) -> 0
C21: =OFFSET('I3 CAPEX '!$E$44,$A10,E21)+OFFSET('I3 CAPEX '!$E$79,$A10,E21) -> 0 | E21: 9 | O21: =IF($B13="n/a","n/a",IF(O$3>($B13+$E21),$C21-SUM($F21:N21),($C21/$B13))) -> 0 | P21: =IF($B13="n/a","n/a",IF(P$3>($B13+$E21),$C21-SUM($F21:O21),($C21/$B13))) -> 0 | Q21: =IF($B13="n/a","n/a",IF(Q$3>($B13+$E21),$C21-SUM($F21:P21),($C21/$B13))) -> 0 | R21: =IF($B13="n/a","n/a",IF(R$3>($B13+$E21),$C21-SUM($F21:Q21),($C21/$B13))) -> 0 | S21: =IF($B13="n/a","n/a",IF(S$3>($B13+$E21),$C21-SUM($F21:R21),($C21/$B13))) -> 0 | T21: =IF($B13="n/a","n/a",IF(T$3>($B13+$E21),$C21-SUM($F21:S21),($C21/$B13))) -> 0 | U21: =IF($B13="n/a","n/a",IF(U$3>($B13+$E21),$C21-SUM($F21:T21),($C21/$B13))) -> 0 | V21: =IF($B13="n/a","n/a",IF(V$3>($B13+$E21),$C21-SUM($F21:U21),($C21/$B13))) -> 0 | W21: =IF($B13="n/a","n/a",IF(W$3>($B13+$E21),$C21-SUM($F21:V21),($C21/$B13))) -> 0 | X21: =IF($B13="n/a","n/a",IF(X$3>($B13+$E21),$C21-SUM($F21:W21),($C21/$B13))) -> 0 | Y21: =IF($B13="n/a","n/a",IF(Y$3>($B13+$E21),$C21-SUM($F21:X21),($C21/$B13))) -> 0 | Z21: =IF($B13="n/a","n/a",IF(Z$3>($B13+$E21),$C21-SUM($F21:Y21),($C21/$B13))) -> 0 | AA21: =IF($B13="n/a","n/a",IF(AA$3>($B13+$E21),$C21-SUM($F21:Z21),($C21/$B13))) -> 0 | AB21: =IF($B13="n/a","n/a",IF(AB$3>($B13+$E21),$C21-SUM($F21:AA21),($C21/$B13))) -> 0 | AC21: =IF($B13="n/a","n/a",IF(AC$3>($B13+$E21),$C21-SUM($F21:AB21),($C21/$B13))) -> 0 | AD21: =IF($B13="n/a","n/a",IF(AD$3>($B13+$E21),$C21-SUM($F21:AC21),($C21/$B13))) -> 0 | AE21: =IF($B13="n/a","n/a",IF(AE$3>($B13+$E21),$C21-SUM($F21:AD21),($C21/$B13))) -> 0 | AF21: =IF($B13="n/a","n/a",IF(AF$3>($B13+$E21),$C21-SUM($F21:AE21),($C21/$B13))) -> 0 | AG21: =IF($B13="n/a","n/a",IF(AG$3>($B13+$E21),$C21-SUM($F21:AF21),($C21/$B13))) -> 0 | AH21: =IF($B13="n/a","n/a",IF(AH$3>($B13+$E21),$C21-SUM($F21:AG21),($C21/$B13))) -> 0 | AI21: =IF($B13="n/a","n/a",IF(AI$3>($B13+$E21),$C21-SUM($F21:AH21),($C21/$B13))) -> 0 | AJ21: =IF($B13="n/a","n/a",IF(AJ$3>($B13+$E21),$C21-SUM($F21:AI21),($C21/$B13))) -> 0 | AK21: =IF($B13="n/a","n/a",IF(AK$3>($B13+$E21),$C21-SUM($F21:AJ21),($C21/$B13))) -> 0 | AL21: =IF($B13="n/a","n/a",IF(AL$3>($B13+$E21),$C21-SUM($F21:AK21),($C21/$B13))) -> 0 | AM21: =IF($B13="n/a","n/a",IF(AM$3>($B13+$E21),$C21-SUM($F21:AL21),($C21/$B13))) -> 0 | AN21: =IF($B13="n/a","n/a",IF(AN$3>($B13+$E21),$C21-SUM($F21:AM21),($C21/$B13))) -> 0 | AO21: =IF($B13="n/a","n/a",IF(AO$3>($B13+$E21),$C21-SUM($F21:AN21),($C21/$B13))) -> 0 | AP21: =IF($B13="n/a","n/a",IF(AP$3>($B13+$E21),$C21-SUM($F21:AO21),($C21/$B13))) -> 0 | AQ21: =IF($B13="n/a","n/a",IF(AQ$3>($B13+$E21),$C21-SUM($F21:AP21),($C21/$B13))) -> 0 | AR21: =IF($B13="n/a","n/a",IF(AR$3>($B13+$E21),$C21-SUM($F21:AQ21),($C21/$B13))) -> 0 | AS21: =IF($B13="n/a","n/a",IF(AS$3>($B13+$E21),$C21-SUM($F21:AR21),($C21/$B13))) -> 0 | AT21: =IF($B13="n/a","n/a",IF(AT$3>($B13+$E21),$C21-SUM($F21:AS21),($C21/$B13))) -> 0 | AU21: =IF($B13="n/a","n/a",IF(AU$3>($B13+$E21),$C21-SUM($F21:AT21),($C21/$B13))) -> 0 | AV21: =IF($B13="n/a","n/a",IF(AV$3>($B13+$E21),$C21-SUM($F21:AU21),($C21/$B13))) -> 0 | AW21: =IF($B13="n/a","n/a",IF(AW$3>($B13+$E21),$C21-SUM($F21:AV21),($C21/$B13))) -> 0 | AX21: =IF($B13="n/a","n/a",IF(AX$3>($B13+$E21),$C21-SUM($F21:AW21),($C21/$B13))) -> 0 | AY21: =IF($B13="n/a","n/a",IF(AY$3>($B13+$E21),$C21-SUM($F21:AX21),($C21/$B13))) -> 0 | AZ21: =IF($B13="n/a","n/a",IF(AZ$3>($B13+$E21),$C21-SUM($F21:AY21),($C21/$B13))) -> 0 | BA21: =IF($B13="n/a","n/a",IF(BA$3>($B13+$E21),$C21-SUM($F21:AZ21),($C21/$B13))) -> 0 | BB21: =IF($B13="n/a","n/a",IF(BB$3>($B13+$E21),$C21-SUM($F21:BA21),($C21/$B13))) -> 0 | BC21: =IF($B13="n/a","n/a",IF(BC$3>($B13+$E21),$C21-SUM($F21:BB21),($C21/$B13))) -> 0 | BD21: =IF($B13="n/a","n/a",IF(BD$3>($B13+$E21),$C21-SUM($F21:BC21),($C21/$B13))) -> 0 | BE21: =IF($B13="n/a","n/a",IF(BE$3>($B13+$E21),$C21-SUM($F21:BD21),($C21/$B13))) -> 0 | BF21: =IF($B13="n/a","n/a",IF(BF$3>($B13+$E21),$C21-SUM($F21:BE21),($C21/$B13))) -> 0 | BG21: =IF($B13="n/a","n/a",IF(BG$3>($B13+$E21),$C21-SUM($F21:BF21),($C21/$B13))) -> 0 | BH21: =IF($B13="n/a","n/a",IF(BH$3>($B13+$E21),$C21-SUM($F21:BG21),($C21/$B13))) -> 0 | BI21: =IF($B13="n/a","n/a",IF(BI$3>($B13+$E21),$C21-SUM($F21:BH21),($C21/$B13))) -> 0 | BJ21: =IF($B13="n/a","n/a",IF(BJ$3>($B13+$E21),$C21-SUM($F21:BI21),($C21/$B13))) -> 0 | BK21: =IF($B13="n/a","n/a",IF(BK$3>($B13+$E21),$C21-SUM($F21:BJ21),($C21/$B13))) -> 0 | BL21: =IF($B13="n/a","n/a",IF(BL$3>($B13+$E21),$C21-SUM($F21:BK21),($C21/$B13))) -> 0 | BM21: =IF($B13="n/a","n/a",IF(BM$3>($B13+$E21),$C21-SUM($F21:BL21),($C21/$B13))) -> 0 | BN21: =IF($B13="n/a","n/a",IF(BN$3>($B13+$E21),$C21-SUM($F21:BM21),($C21/$B13))) -> 0
C22: =OFFSET('I3 CAPEX '!$E$44,$A10,E22)+OFFSET('I3 CAPEX '!$E$79,$A10,E22) -> 0 | E22: 10 | P22: =IF($B13="n/a","n/a",IF(P$3>($B13+$E22),$C22-SUM($F22:O22),($C22/$B13))) -> 0 | Q22: =IF($B13="n/a","n/a",IF(Q$3>($B13+$E22),$C22-SUM($F22:P22),($C22/$B13))) -> 0 | R22: =IF($B13="n/a","n/a",IF(R$3>($B13+$E22),$C22-SUM($F22:Q22),($C22/$B13))) -> 0 | S22: =IF($B13="n/a","n/a",IF(S$3>($B13+$E22),$C22-SUM($F22:R22),($C22/$B13))) -> 0 | T22: =IF($B13="n/a","n/a",IF(T$3>($B13+$E22),$C22-SUM($F22:S22),($C22/$B13))) -> 0 | U22: =IF($B13="n/a","n/a",IF(U$3>($B13+$E22),$C22-SUM($F22:T22),($C22/$B13))) -> 0 | V22: =IF($B13="n/a","n/a",IF(V$3>($B13+$E22),$C22-SUM($F22:U22),($C22/$B13))) -> 0 | W22: =IF($B13="n/a","n/a",IF(W$3>($B13+$E22),$C22-SUM($F22:V22),($C22/$B13))) -> 0 | X22: =IF($B13="n/a","n/a",IF(X$3>($B13+$E22),$C22-SUM($F22:W22),($C22/$B13))) -> 0 | Y22: =IF($B13="n/a","n/a",IF(Y$3>($B13+$E22),$C22-SUM($F22:X22),($C22/$B13))) -> 0 | Z22: =IF($B13="n/a","n/a",IF(Z$3>($B13+$E22),$C22-SUM($F22:Y22),($C22/$B13))) -> 0 | AA22: =IF($B13="n/a","n/a",IF(AA$3>($B13+$E22),$C22-SUM($F22:Z22),($C22/$B13))) -> 0 | AB22: =IF($B13="n/a","n/a",IF(AB$3>($B13+$E22),$C22-SUM($F22:AA22),($C22/$B13))) -> 0 | AC22: =IF($B13="n/a","n/a",IF(AC$3>($B13+$E22),$C22-SUM($F22:AB22),($C22/$B13))) -> 0 | AD22: =IF($B13="n/a","n/a",IF(AD$3>($B13+$E22),$C22-SUM($F22:AC22),($C22/$B13))) -> 0 | AE22: =IF($B13="n/a","n/a",IF(AE$3>($B13+$E22),$C22-SUM($F22:AD22),($C22/$B13))) -> 0 | AF22: =IF($B13="n/a","n/a",IF(AF$3>($B13+$E22),$C22-SUM($F22:AE22),($C22/$B13))) -> 0 | AG22: =IF($B13="n/a","n/a",IF(AG$3>($B13+$E22),$C22-SUM($F22:AF22),($C22/$B13))) -> 0 | AH22: =IF($B13="n/a","n/a",IF(AH$3>($B13+$E22),$C22-SUM($F22:AG22),($C22/$B13))) -> 0 | AI22: =IF($B13="n/a","n/a",IF(AI$3>($B13+$E22),$C22-SUM($F22:AH22),($C22/$B13))) -> 0 | AJ22: =IF($B13="n/a","n/a",IF(AJ$3>($B13+$E22),$C22-SUM($F22:AI22),($C22/$B13))) -> 0 | AK22: =IF($B13="n/a","n/a",IF(AK$3>($B13+$E22),$C22-SUM($F22:AJ22),($C22/$B13))) -> 0 | AL22: =IF($B13="n/a","n/a",IF(AL$3>($B13+$E22),$C22-SUM($F22:AK22),($C22/$B13))) -> 0 | AM22: =IF($B13="n/a","n/a",IF(AM$3>($B13+$E22),$C22-SUM($F22:AL22),($C22/$B13))) -> 0 | AN22: =IF($B13="n/a","n/a",IF(AN$3>($B13+$E22),$C22-SUM($F22:AM22),($C22/$B13))) -> 0 | AO22: =IF($B13="n/a","n/a",IF(AO$3>($B13+$E22),$C22-SUM($F22:AN22),($C22/$B13))) -> 0 | AP22: =IF($B13="n/a","n/a",IF(AP$3>($B13+$E22),$C22-SUM($F22:AO22),($C22/$B13))) -> 0 | AQ22: =IF($B13="n/a","n/a",IF(AQ$3>($B13+$E22),$C22-SUM($F22:AP22),($C22/$B13))) -> 0 | AR22: =IF($B13="n/a","n/a",IF(AR$3>($B13+$E22),$C22-SUM($F22:AQ22),($C22/$B13))) -> 0 | AS22: =IF($B13="n/a","n/a",IF(AS$3>($B13+$E22),$C22-SUM($F22:AR22),($C22/$B13))) -> 0 | AT22: =IF($B13="n/a","n/a",IF(AT$3>($B13+$E22),$C22-SUM($F22:AS22),($C22/$B13))) -> 0 | AU22: =IF($B13="n/a","n/a",IF(AU$3>($B13+$E22),$C22-SUM($F22:AT22),($C22/$B13))) -> 0 | AV22: =IF($B13="n/a","n/a",IF(AV$3>($B13+$E22),$C22-SUM($F22:AU22),($C22/$B13))) -> 0 | AW22: =IF($B13="n/a","n/a",IF(AW$3>($B13+$E22),$C22-SUM($F22:AV22),($C22/$B13))) -> 0 | AX22: =IF($B13="n/a","n/a",IF(AX$3>($B13+$E22),$C22-SUM($F22:AW22),($C22/$B13))) -> 0 | AY22: =IF($B13="n/a","n/a",IF(AY$3>($B13+$E22),$C22-SUM($F22:AX22),($C22/$B13))) -> 0 | AZ22: =IF($B13="n/a","n/a",IF(AZ$3>($B13+$E22),$C22-SUM($F22:AY22),($C22/$B13))) -> 0 | BA22: =IF($B13="n/a","n/a",IF(BA$3>($B13+$E22),$C22-SUM($F22:AZ22),($C22/$B13))) -> 0 | BB22: =IF($B13="n/a","n/a",IF(BB$3>($B13+$E22),$C22-SUM($F22:BA22),($C22/$B13))) -> 0 | BC22: =IF($B13="n/a","n/a",IF(BC$3>($B13+$E22),$C22-SUM($F22:BB22),($C22/$B13))) -> 0 | BD22: =IF($B13="n/a","n/a",IF(BD$3>($B13+$E22),$C22-SUM($F22:BC22),($C22/$B13))) -> 0 | BE22: =IF($B13="n/a","n/a",IF(BE$3>($B13+$E22),$C22-SUM($F22:BD22),($C22/$B13))) -> 0 | BF22: =IF($B13="n/a","n/a",IF(BF$3>($B13+$E22),$C22-SUM($F22:BE22),($C22/$B13))) -> 0 | BG22: =IF($B13="n/a","n/a",IF(BG$3>($B13+$E22),$C22-SUM($F22:BF22),($C22/$B13))) -> 0 | BH22: =IF($B13="n/a","n/a",IF(BH$3>($B13+$E22),$C22-SUM($F22:BG22),($C22/$B13))) -> 0 | BI22: =IF($B13="n/a","n/a",IF(BI$3>($B13+$E22),$C22-SUM($F22:BH22),($C22/$B13))) -> 0 | BJ22: =IF($B13="n/a","n/a",IF(BJ$3>($B13+$E22),$C22-SUM($F22:BI22),($C22/$B13))) -> 0 | BK22: =IF($B13="n/a","n/a",IF(BK$3>($B13+$E22),$C22-SUM($F22:BJ22),($C22/$B13))) -> 0 | BL22: =IF($B13="n/a","n/a",IF(BL$3>($B13+$E22),$C22-SUM($F22:BK22),($C22/$B13))) -> 0 | BM22: =IF($B13="n/a","n/a",IF(BM$3>($B13+$E22),$C22-SUM($F22:BL22),($C22/$B13))) -> 0 | BN22: =IF($B13="n/a","n/a",IF(BN$3>($B13+$E22),$C22-SUM($F22:BM22),($C22/$B13))) -> 0
E23: 11
E24: 12
E25: 13
E26: 14
E27: 15
C28: =+B10 -> Commercial Buildings | F28: =SUBTOTAL(9,F11:F27) -> 0.4936729601 | G28: =SUBTOTAL(9,G11:G27) -> 0.5032193786 | H28: 0.5176736045 | I28: 0.5412689582 | J28: 0.5720451549 | K28: 0.756710643 | L28: 0.756710643 | M28: 0.756710643 | N28: 0.756710643 | O28: 0.756710643 | P28: 0.756710643 | Q28: 0.756710643 | R28: 0.756710643 | S28: 0.756710643 | T28: 0.756710643 | U28: 0.756710643 | V28: 0.756710643 | W28: 0.756710643 | X28: 0.756710643 | Y28: 0.756710643 | Z28: 0.756710643 | AA28: 0.756710643 | AB28: 0.756710643 | AC28: 0.3944145128 | AD28: 0.2630376829 | AE28: 0.2630376829 | AF28: 0.2630376829 | AG28: 0.2630376829 | AH28: 0.2630376829 | AI28: 0.2630376829 | AJ28: 0.2404228309 | AK28: 0.2308764124 | AL28: =SUBTOTAL(9,AL11:AL27) -> 0.2164221864 | AM28: 0.1928268328 | AN28: 0.1620506361 | AO28: 2.664535259e-15 | AP28: 0 | AQ28: 0 | AR28: 0 | AS28: 0 | AT28: 0 | AU28: 0 | AV28: 0 | AW28: 0 | AX28: 0 | AY28: 0 | AZ28: 0 | BA28: 0 | BB28: 0 | BC28: 0 | BD28: 0 | BE28: 0 | BF28: 0 | BG28: 0 | BH28: 0 | BI28: 0 | BJ28: 0 | BK28: 0 | BL28: 0 | BM28: 0 | BN28: =SUBTOTAL(9,BN11:BN27) -> 0
A29: =+A10+1 -> 2 | B29: =INDIRECT(CONCATENATE("Asset",A29)) -> Communications - Civil
E30: Initial Asset Base | F30: =IF($B34="n/a","n/a",IF(F$3>$B34,+$B36,+$B36/$B34)) -> 0.1721833646 | G30: =IF($B34="n/a","n/a",IF(G$3>$B34,+$B36-SUM($F30:F30),+$B36/$B34)) -> 0.1721833646 | H30: =IF($B34="n/a","n/a",IF(H$3>$B34,+$B36-SUM($F30:G30),+$B36/$B34)) -> 0.1721833646 | I30: =IF($B34="n/a","n/a",IF(I$3>$B34,+$B36-SUM($F30:H30),+$B36/$B34)) -> 0.1721833646 | J30: =IF($B34="n/a","n/a",IF(J$3>$B34,+$B36-SUM($F30:I30),+$B36/$B34)) -> 0.1721833646 | K30: =IF($B34="n/a","n/a",IF(K$3>$B34,+$B36-SUM($F30:J30),+$B36/$B34)) -> 0.1721833646 | L30: =IF($B34="n/a","n/a",IF(L$3>$B34,+$B36-SUM($F30:K30),+$B36/$B34)) -> 0.1721833646 | M30: =IF($B34="n/a","n/a",IF(M$3>$B34,+$B36-SUM($F30:L30),+$B36/$B34)) -> 0.1721833646 | N30: =IF($B34="n/a","n/a",IF(N$3>$B34,+$B36-SUM($F30:M30),+$B36/$B34)) -> 0.1721833646 | O30: =IF($B34="n/a","n/a",IF(O$3>$B34,+$B36-SUM($F30:N30),+$B36/$B34)) -> 0.1721833646 | P30: =IF($B34="n/a","n/a",IF(P$3>$B34,+$B36-SUM($F30:O30),+$B36/$B34)) -> 0.1721833646 | Q30: =IF($B34="n/a","n/a",IF(Q$3>$B34,+$B36-SUM($F30:P30),+$B36/$B34)) -> 0.1721833646 | R30: =IF($B34="n/a","n/a",IF(R$3>$B34,+$B36-SUM($F30:Q30),+$B36/$B34)) -> 0.1721833646 | S30: =IF($B34="n/a","n/a",IF(S$3>$B34,+$B36-SUM($F30:R30),+$B36/$B34)) -> 0.1721833646 | T30: =IF($B34="n/a","n/a",IF(T$3>$B34,+$B36-SUM($F30:S30),+$B36/$B34)) -> 0.1721833646 | U30: =IF($B34="n/a","n/a",IF(U$3>$B34,+$B36-SUM($F30:T30),+$B36/$B34)) -> 0.1721833646 | V30: =IF($B34="n/a","n/a",IF(V$3>$B34,+$B36-SUM($F30:U30),+$B36/$B34)) -> 0.1721833646 | W30: =IF($B34="n/a","n/a",IF(W$3>$B34,+$B36-SUM($F30:V30),+$B36/$B34)) -> 0.1721833646 | X30: =IF($B34="n/a","n/a",IF(X$3>$B34,+$B36-SUM($F30:W30),+$B36/$B34)) -> 0.1721833646 | Y30: =IF($B34="n/a","n/a",IF(Y$3>$B34,+$B36-SUM($F30:X30),+$B36/$B34)) -> 0.1721833646 | Z30: =IF($B34="n/a","n/a",IF(Z$3>$B34,+$B36-SUM($F30:Y30),+$B36/$B34)) -> 0.1721833646 | AA30: =IF($B34="n/a","n/a",IF(AA$3>$B34,+$B36-SUM($F30:Z30),+$B36/$B34)) -> 0.1721833646 | AB30: =IF($B34="n/a","n/a",IF(AB$3>$B34,+$B36-SUM($F30:AA30),+$B36/$B34)) -> 0.1721833646 | AC30: =IF($B34="n/a","n/a",IF(AC$3>$B34,+$B36-SUM($F30:AB30),+$B36/$B34)) -> 0.1721833646 | AD30: =IF($B34="n/a","n/a",IF(AD$3>$B34,+$B36-SUM($F30:AC30),+$B36/$B34)) -> 0.1721833646 | AE30: =IF($B34="n/a","n/a",IF(AE$3>$B34,+$B36-SUM($F30:AD30),+$B36/$B34)) -> 0.1721833646 | AF30: =IF($B34="n/a","n/a",IF(AF$3>$B34,+$B36-SUM($F30:AE30),+$B36/$B34)) -> 0.1721833646 | AG30: =IF($B34="n/a","n/a",IF(AG$3>$B34,+$B36-SUM($F30:AF30),+$B36/$B34)) -> 0.1721833646 | AH30: =IF($B34="n/a","n/a",IF(AH$3>$B34,+$B36-SUM($F30:AG30),+$B36/$B34)) -> 0.1721833646 | AI30: =IF($B34="n/a","n/a",IF(AI$3>$B34,+$B36-SUM($F30:AH30),+$B36/$B34)) -> 0.1721833646 | AJ30: =IF($B34="n/a","n/a",IF(AJ$3>$B34,+$B36-SUM($F30:AI30),+$B36/$B34)) -> 0.1721833646 | AK30: =IF($B34="n/a","n/a",IF(AK$3>$B34,+$B36-SUM($F30:AJ30),+$B36/$B34)) -> 0.1721833646 | AL30: =IF($B34="n/a","n/a",IF(AL$3>$B34,+$B36-SUM($F30:AK30),+$B36/$B34)) -> 0.1721833646 | AM30: =IF($B34="n/a","n/a",IF(AM$3>$B34,+$B36-SUM($F30:AL30),+$B36/$B34)) -> 0.1721833646 | AN30: =IF($B34="n/a","n/a",IF(AN$3>$B34,+$B36-SUM($F30:AM30),+$B36/$B34)) -> 0.1721833646 | AO30: =IF($B34="n/a","n/a",IF(AO$3>$B34,+$B36-SUM($F30:AN30),+$B36/$B34)) -> 0.1721833646 | AP30: =IF($B34="n/a","n/a",IF(AP$3>$B34,+$B36-SUM($F30:AO30),+$B36/$B34)) -> 0.1721833646 | AQ30: =IF($B34="n/a","n/a",IF(AQ$3>$B34,+$B36-SUM($F30:AP30),+$B36/$B34)) -> 0.1721833646 | AR30: =IF($B34="n/a","n/a",IF(AR$3>$B34,+$B36-SUM($F30:AQ30),+$B36/$B34)) -> 0.1721833646 | AS30: =IF($B34="n/a","n/a",IF(AS$3>$B34,+$B36-SUM($F30:AR30),+$B36/$B34)) -> 0.1721833646 | AT30: =IF($B34="n/a","n/a",IF(AT$3>$B34,+$B36-SUM($F30:AS30),+$B36/$B34)) -> 0.1721833646 | AU30: =IF($B34="n/a","n/a",IF(AU$3>$B34,+$B36-SUM($F30:AT30),+$B36/$B34)) -> 0.1721833646 | AV30: =IF($B34="n/a","n/a",IF(AV$3>$B34,+$B36-SUM($F30:AU30),+$B36/$B34)) -> 0.1721833646 | AW30: =IF($B34="n/a","n/a",IF(AW$3>$B34,+$B36-SUM($F30:AV30),+$B36/$B34)) -> 0.1721833646 | AX30: =IF($B34="n/a","n/a",IF(AX$3>$B34,+$B36-SUM($F30:AW30),+$B36/$B34)) -> 0.122842653 | AY30: =IF($B34="n/a","n/a",IF(AY$3>$B34,+$B36-SUM($F30:AX30),+$B36/$B34)) -> 0 | AZ30: =IF($B34="n/a","n/a",IF(AZ$3>$B34,+$B36-SUM($F30:AY30),+$B36/$B34)) -> 0 | BA30: =IF($B34="n/a","n/a",IF(BA$3>$B34,+$B36-SUM($F30:AZ30),+$B36/$B34)) -> 0 | BB30: =IF($B34="n/a","n/a",IF(BB$3>$B34,+$B36-SUM($F30:BA30),+$B36/$B34)) -> 0 | BC30: =IF($B34="n/a","n/a",IF(BC$3>$B34,+$B36-SUM($F30:BB30),+$B36/$B34)) -> 0 | BD30: =IF($B34="n/a","n/a",IF(BD$3>$B34,+$B36-SUM($F30:BC30),+$B36/$B34)) -> 0 | BE30: =IF($B34="n/a","n/a",IF(BE$3>$B34,+$B36-SUM($F30:BD30),+$B36/$B34)) -> 0 | BF30: =IF($B34="n/a","n/a",IF(BF$3>$B34,+$B36-SUM($F30:BE30),+$B36/$B34)) -> 0 | BG30: =IF($B34="n/a","n/a",IF(BG$3>$B34,+$B36-SUM($F30:BF30),+$B36/$B34)) -> 0 | BH30: =IF($B34="n/a","n/a",IF(BH$3>$B34,+$B36-SUM($F30:BG30),+$B36/$B34)) -> 0 | BI30: =IF($B34="n/a","n/a",IF(BI$3>$B34,+$B36-SUM($F30:BH30),+$B36/$B34)) -> 0 | BJ30: =IF($B34="n/a","n/a",IF(BJ$3>$B34,+$B36-SUM($F30:BI30),+$B36/$B34)) -> 0 | BK30: =IF($B34="n/a","n/a",IF(BK$3>$B34,+$B36-SUM($F30:BJ30),+$B36/$B34)) -> 0 | BL30: =IF($B34="n/a","n/a",IF(BL$3>$B34,+$B36-SUM($F30:BK30),+$B36/$B34)) -> 0 | BM30: =IF($B34="n/a","n/a",IF(BM$3>$B34,+$B36-SUM($F30:BL30),+$B36/$B34)) -> 0 | BN30: =IF($B34="n/a","n/a",IF(BN$3>$B34,+$B36-SUM($F30:BM30),+$B36/$B34)) -> 0
B31: Std Life | C31: Capex: | E31: 0 | J31: Initial Asset Base Adjustment | K31: =IF($B32="n/a","n/a",IF(K$3>$B32,+$B38-SUM($F31:J31),+$B38/($B32-$E36))) -> 0.01328479831 | L31: =IF($B32="n/a","n/a",IF(L$3>$B32,+$B38-SUM($F31:K31),+$B38/($B32-$E36))) -> 0.01328479831 | M31: =IF($B32="n/a","n/a",IF(M$3>$B32,+$B38-SUM($F31:L31),+$B38/($B32-$E36))) -> 0.01328479831 | N31: =IF($B32="n/a","n/a",IF(N$3>$B32,+$B38-SUM($F31:M31),+$B38/($B32-$E36))) -> 0.01328479831 | O31: =IF($B32="n/a","n/a",IF(O$3>$B32,+$B38-SUM($F31:N31),+$B38/($B32-$E36))) -> 0.01328479831 | P31: =IF($B32="n/a","n/a",IF(P$3>$B32,+$B38-SUM($F31:O31),+$B38/($B32-$E36))) -> 0.01328479831 | Q31: =IF($B32="n/a","n/a",IF(Q$3>$B32,+$B38-SUM($F31:P31),+$B38/($B32-$E36))) -> 0.01328479831 | R31: =IF($B32="n/a","n/a",IF(R$3>$B32,+$B38-SUM($F31:Q31),+$B38/($B32-$E36))) -> 0.01328479831 | S31: =IF($B32="n/a","n/a",IF(S$3>$B32,+$B38-SUM($F31:R31),+$B38/($B32-$E36))) -> 0.01328479831 | T31: =IF($B32="n/a","n/a",IF(T$3>$B32,+$B38-SUM($F31:S31),+$B38/($B32-$E36))) -> 0.01328479831 | U31: =IF($B32="n/a","n/a",IF(U$3>$B32,+$B38-SUM($F31:T31),+$B38/($B32-$E36))) -> 0.01328479831 | V31: =IF($B32="n/a","n/a",IF(V$3>$B32,+$B38-SUM($F31:U31),+$B38/($B32-$E36))) -> 0.01328479831 | W31: =IF($B32="n/a","n/a",IF(W$3>$B32,+$B38-SUM($F31:V31),+$B38/($B32-$E36))) -> 0.01328479831 | X31: =IF($B32="n/a","n/a",IF(X$3>$B32,+$B38-SUM($F31:W31),+$B38/($B32-$E36))) -> 0.01328479831 | Y31: =IF($B32="n/a","n/a",IF(Y$3>$B32,+$B38-SUM($F31:X31),+$B38/($B32-$E36))) -> 0.01328479831 | Z31: =IF($B32="n/a","n/a",IF(Z$3>$B32,+$B38-SUM($F31:Y31),+$B38/($B32-$E36))) -> 0.01328479831 | AA31: =IF($B32="n/a","n/a",IF(AA$3>$B32,+$B38-SUM($F31:Z31),+$B38/($B32-$E36))) -> 0.01328479831 | AB31: =IF($B32="n/a","n/a",IF(AB$3>$B32,+$B38-SUM($F31:AA31),+$B38/($B32-$E36))) -> 0.01328479831 | AC31: =IF($B32="n/a","n/a",IF(AC$3>$B32,+$B38-SUM($F31:AB31),+$B38/($B32-$E36))) -> 0.01328479831 | AD31: =IF($B32="n/a","n/a",IF(AD$3>$B32,+$B38-SUM($F31:AC31),+$B38/($B32-$E36))) -> 0.01328479831 | AE31: =IF($B32="n/a","n/a",IF(AE$3>$B32,+$B38-SUM($F31:AD31),+$B38/($B32-$E36))) -> 0.01328479831 | AF31: =IF($B32="n/a","n/a",IF(AF$3>$B32,+$B38-SUM($F31:AE31),+$B38/($B32-$E36))) -> 0.01328479831 | AG31: =IF($B32="n/a","n/a",IF(AG$3>$B32,+$B38-SUM($F31:AF31),+$B38/($B32-$E36))) -> 0.01328479831 | AH31: =IF($B32="n/a","n/a",IF(AH$3>$B32,+$B38-SUM($F31:AG31),+$B38/($B32-$E36))) -> 0.01328479831 | AI31: =IF($B32="n/a","n/a",IF(AI$3>$B32,+$B38-SUM($F31:AH31),+$B38/($B32-$E36))) -> 0.01328479831 | AJ31: =IF($B32="n/a","n/a",IF(AJ$3>$B32,+$B38-SUM($F31:AI31),+$B38/($B32-$E36))) -> 0.01328479831 | AK31: =IF($B32="n/a","n/a",IF(AK$3>$B32,+$B38-SUM($F31:AJ31),+$B38/($B32-$E36))) -> 0.01328479831 | AL31: =IF($B32="n/a","n/a",IF(AL$3>$B32,+$B38-SUM($F31:AK31),+$B38/($B32-$E36))) -> 0.01328479831 | AM31: =IF($B32="n/a","n/a",IF(AM$3>$B32,+$B38-SUM($F31:AL31),+$B38/($B32-$E36))) -> 0.01328479831 | AN31: =IF($B32="n/a","n/a",IF(AN$3>$B32,+$B38-SUM($F31:AM31),+$B38/($B32-$E36))) -> 0.01328479831 | AO31: =IF($B32="n/a","n/a",IF(AO$3>$B32,+$B38-SUM($F31:AN31),+$B38/($B32-$E36))) -> 0.01328479831 | AP31: =IF($B32="n/a","n/a",IF(AP$3>$B32,+$B38-SUM($F31:AO31),+$B38/($B32-$E36))) -> 0.01328479831 | AQ31: =IF($B32="n/a","n/a",IF(AQ$3>$B32,+$B38-SUM($F31:AP31),+$B38/($B32-$E36))) -> 0.01328479831 | AR31: =IF($B32="n/a","n/a",IF(AR$3>$B32,+$B38-SUM($F31:AQ31),+$B38/($B32-$E36))) -> 0.01328479831 | AS31: =IF($B32="n/a","n/a",IF(AS$3>$B32,+$B38-SUM($F31:AR31),+$B38/($B32-$E36))) -> 0.01328479831 | AT31: =IF($B32="n/a","n/a",IF(AT$3>$B32,+$B38-SUM($F31:AS31),+$B38/($B32-$E36))) -> 0.01328479831 | AU31: =IF($B32="n/a","n/a",IF(AU$3>$B32,+$B38-SUM($F31:AT31),+$B38/($B32-$E36))) -> 0.01328479831 | AV31: =IF($B32="n/a","n/a",IF(AV$3>$B32,+$B38-SUM($F31:AU31),+$B38/($B32-$E36))) -> 0.01328479831 | AW31: =IF($B32="n/a","n/a",IF(AW$3>$B32,+$B38-SUM($F31:AV31),+$B38/($B32-$E36))) -> 0.01328479831 | AX31: =IF($B32="n/a","n/a",IF(AX$3>$B32,+$B38-SUM($F31:AW31),+$B38/($B32-$E36))) -> 0.01328479831 | AY31: =IF($B32="n/a","n/a",IF(AY$3>$B32,+$B38-SUM($F31:AX31),+$B38/($B32-$E36))) -> 0.01328479831 | AZ31: =IF($B32="n/a","n/a",IF(AZ$3>$B32,+$B38-SUM($F31:AY31),+$B38/($B32-$E36))) -> 0.01328479831 | BA31: =IF($B32="n/a","n/a",IF(BA$3>$B32,+$B38-SUM($F31:AZ31),+$B38/($B32-$E36))) -> 0.01328479831 | BB31: =IF($B32="n/a","n/a",IF(BB$3>$B32,+$B38-SUM($F31:BA31),+$B38/($B32-$E36))) -> 0.01328479831 | BC31: =IF($B32="n/a","n/a",IF(BC$3>$B32,+$B38-SUM($F31:BB31),+$B38/($B32-$E36))) -> 0.01328479831 | BD31: =IF($B32="n/a","n/a",IF(BD$3>$B32,+$B38-SUM($F31:BC31),+$B38/($B32-$E36))) -> 0.01328479831 | BE31: =IF($B32="n/a","n/a",IF(BE$3>$B32,+$B38-SUM($F31:BD31),+$B38/($B32-$E36))) -> 0.01328479831 | BF31: =IF($B32="n/a","n/a",IF(BF$3>$B32,+$B38-SUM($F31:BE31),+$B38/($B32-$E36))) -> 0.01328479831 | BG31: =IF($B32="n/a","n/a",IF(BG$3>$B32,+$B38-SUM($F31:BF31),+$B38/($B32-$E36))) -> 0.01328479831 | BH31: =IF($B32="n/a","n/a",IF(BH$3>$B32,+$B38-SUM($F31:BG31),+$B38/($B32-$E36))) -> 0.01328479831 | BI31: =IF($B32="n/a","n/a",IF(BI$3>$B32,+$B38-SUM($F31:BH31),+$B38/($B32-$E36))) -> 5.551115123e-16 | BJ31: =IF($B32="n/a","n/a",IF(BJ$3>$B32,+$B38-SUM($F31:BI31),+$B38/($B32-$E36))) -> 0 | BK31: =IF($B32="n/a","n/a",IF(BK$3>$B32,+$B38-SUM($F31:BJ31),+$B38/($B32-$E36))) -> 0 | BL31: =IF($B32="n/a","n/a",IF(BL$3>$B32,+$B38-SUM($F31:BK31),+$B38/($B32-$E36))) -> 0 | BM31: =IF($B32="n/a","n/a",IF(BM$3>$B32,+$B38-SUM($F31:BL31),+$B38/($B32-$E36))) -> 0 | BN31: =IF($B32="n/a","n/a",IF(BN$3>$B32,+$B38-SUM($F31:BM31),+$B38/($B32-$E36))) -> 0
B32: =INDEX('I1 '!$C$7:$C$36,A29) -> 55 | C32: =OFFSET('I3 CAPEX '!$E$44,$A29,E32) -> 0.386882011 | E32: 1 | G32: =IF($B32="n/a","n/a",IF(G$3>($B32+$E32),$C32-SUM($F32:F32),($C32/$B32))) -> 0.007034218381 | H32: =IF($B32="n/a","n/a",IF(H$3>($B32+$E32),$C32-SUM($F32:G32),($C32/$B32))) -> 0.007034218381 | I32: =IF($B32="n/a","n/a",IF(I$3>($B32+$E32),$C32-SUM($F32:H32),($C32/$B32))) -> 0.007034218381 | J32: =IF($B32="n/a","n/a",IF(J$3>($B32+$E32),$C32-SUM($F32:I32),($C32/$B32))) -> 0.007034218381 | K32: =IF($B32="n/a","n/a",IF(K$3>($B32+$E32),$C32-SUM($F32:J32),($C32/$B32))) -> 0.007034218381 | L32: =IF($B32="n/a","n/a",IF(L$3>($B32+$E32),$C32-SUM($F32:K32),($C32/$B32))) -> 0.007034218381 | M32: =IF($B32="n/a","n/a",IF(M$3>($B32+$E32),$C32-SUM($F32:L32),($C32/$B32))) -> 0.007034218381 | N32: =IF($B32="n/a","n/a",IF(N$3>($B32+$E32),$C32-SUM($F32:M32),($C32/$B32))) -> 0.007034218381 | O32: =IF($B32="n/a","n/a",IF(O$3>($B32+$E32),$C32-SUM($F32:N32),($C32/$B32))) -> 0.007034218381 | P32: =IF($B32="n/a","n/a",IF(P$3>($B32+$E32),$C32-SUM($F32:O32),($C32/$B32))) -> 0.007034218381 | Q32: =IF($B32="n/a","n/a",IF(Q$3>($B32+$E32),$C32-SUM($F32:P32),($C32/$B32))) -> 0.007034218381 | R32: =IF($B32="n/a","n/a",IF(R$3>($B32+$E32),$C32-SUM($F32:Q32),($C32/$B32))) -> 0.007034218381 | S32: =IF($B32="n/a","n/a",IF(S$3>($B32+$E32),$C32-SUM($F32:R32),($C32/$B32))) -> 0.007034218381 | T32: =IF($B32="n/a","n/a",IF(T$3>($B32+$E32),$C32-SUM($F32:S32),($C32/$B32))) -> 0.007034218381 | U32: =IF($B32="n/a","n/a",IF(U$3>($B32+$E32),$C32-SUM($F32:T32),($C32/$B32))) -> 0.007034218381 | V32: =IF($B32="n/a","n/a",IF(V$3>($B32+$E32),$C32-SUM($F32:U32),($C32/$B32))) -> 0.007034218381 | W32: =IF($B32="n/a","n/a",IF(W$3>($B32+$E32),$C32-SUM($F32:V32),($C32/$B32))) -> 0.007034218381 | X32: =IF($B32="n/a","n/a",IF(X$3>($B32+$E32),$C32-SUM($F32:W32),($C32/$B32))) -> 0.007034218381 | Y32: =IF($B32="n/a","n/a",IF(Y$3>($B32+$E32),$C32-SUM($F32:X32),($C32/$B32))) -> 0.007034218381 | Z32: =IF($B32="n/a","n/a",IF(Z$3>($B32+$E32),$C32-SUM($F32:Y32),($C32/$B32))) -> 0.007034218381 | AA32: =IF($B32="n/a","n/a",IF(AA$3>($B32+$E32),$C32-SUM($F32:Z32),($C32/$B32))) -> 0.007034218381 | AB32: =IF($B32="n/a","n/a",IF(AB$3>($B32+$E32),$C32-SUM($F32:AA32),($C32/$B32))) -> 0.007034218381 | AC32: =IF($B32="n/a","n/a",IF(AC$3>($B32+$E32),$C32-SUM($F32:AB32),($C32/$B32))) -> 0.007034218381 | AD32: =IF($B32="n/a","n/a",IF(AD$3>($B32+$E32),$C32-SUM($F32:AC32),($C32/$B32))) -> 0.007034218381 | AE32: =IF($B32="n/a","n/a",IF(AE$3>($B32+$E32),$C32-SUM($F32:AD32),($C32/$B32))) -> 0.007034218381 | AF32: =IF($B32="n/a","n/a",IF(AF$3>($B32+$E32),$C32-SUM($F32:AE32),($C32/$B32))) -> 0.007034218381 | AG32: =IF($B32="n/a","n/a",IF(AG$3>($B32+$E32),$C32-SUM($F32:AF32),($C32/$B32))) -> 0.007034218381 | AH32: =IF($B32="n/a","n/a",IF(AH$3>($B32+$E32),$C32-SUM($F32:AG32),($C32/$B32))) -> 0.007034218381 | AI32: =IF($B32="n/a","n/a",IF(AI$3>($B32+$E32),$C32-SUM($F32:AH32),($C32/$B32))) -> 0.007034218381 | AJ32: =IF($B32="n/a","n/a",IF(AJ$3>($B32+$E32),$C32-SUM($F32:AI32),($C32/$B32))) -> 0.007034218381 | AK32: =IF($B32="n/a","n/a",IF(AK$3>($B32+$E32),$C32-SUM($F32:AJ32),($C32/$B32))) -> 0.007034218381 | AL32: =IF($B32="n/a","n/a",IF(AL$3>($B32+$E32),$C32-SUM($F32:AK32),($C32/$B32))) -> 0.007034218381 | AM32: =IF($B32="n/a","n/a",IF(AM$3>($B32+$E32),$C32-SUM($F32:AL32),($C32/$B32))) -> 0.007034218381 | AN32: =IF($B32="n/a","n/a",IF(AN$3>($B32+$E32),$C32-SUM($F32:AM32),($C32/$B32))) -> 0.007034218381 | AO32: =IF($B32="n/a","n/a",IF(AO$3>($B32+$E32),$C32-SUM($F32:AN32),($C32/$B32))) -> 0.007034218381 | AP32: =IF($B32="n/a","n/a",IF(AP$3>($B32+$E32),$C32-SUM($F32:AO32),($C32/$B32))) -> 0.007034218381 | AQ32: =IF($B32="n/a","n/a",IF(AQ$3>($B32+$E32),$C32-SUM($F32:AP32),($C32/$B32))) -> 0.007034218381 | AR32: =IF($B32="n/a","n/a",IF(AR$3>($B32+$E32),$C32-SUM($F32:AQ32),($C32/$B32))) -> 0.007034218381 | AS32: =IF($B32="n/a","n/a",IF(AS$3>($B32+$E32),$C32-SUM($F32:AR32),($C32/$B32))) -> 0.007034218381 | AT32: =IF($B32="n/a","n/a",IF(AT$3>($B32+$E32),$C32-SUM($F32:AS32),($C32/$B32))) -> 0.007034218381 | AU32: =IF($B32="n/a","n/a",IF(AU$3>($B32+$E32),$C32-SUM($F32:AT32),($C32/$B32))) -> 0.007034218381 | AV32: =IF($B32="n/a","n/a",IF(AV$3>($B32+$E32),$C32-SUM($F32:AU32),($C32/$B32))) -> 0.007034218381 | AW32: =IF($B32="n/a","n/a",IF(AW$3>($B32+$E32),$C32-SUM($F32:AV32),($C32/$B32))) -> 0.007034218381 | AX32: =IF($B32="n/a","n/a",IF(AX$3>($B32+$E32),$C32-SUM($F32:AW32),($C32/$B32))) -> 0.007034218381 | AY32: =IF($B32="n/a","n/a",IF(AY$3>($B32+$E32),$C32-SUM($F32:AX32),($C32/$B32))) -> 0.007034218381 | AZ32: =IF($B32="n/a","n/a",IF(AZ$3>($B32+$E32),$C32-SUM($F32:AY32),($C32/$B32))) -> 0.007034218381 | BA32: =IF($B32="n/a","n/a",IF(BA$3>($B32+$E32),$C32-SUM($F32:AZ32),($C32/$B32))) -> 0.007034218381 | BB32: =IF($B32="n/a","n/a",IF(BB$3>($B32+$E32),$C32-SUM($F32:BA32),($C32/$B32))) -> 0.007034218381 | BC32: =IF($B32="n/a","n/a",IF(BC$3>($B32+$E32),$C32-SUM($F32:BB32),($C32/$B32))) -> 0.007034218381 | BD32: =IF($B32="n/a","n/a",IF(BD$3>($B32+$E32),$C32-SUM($F32:BC32),($C32/$B32))) -> 0.007034218381 | BE32: =IF($B32="n/a","n/a",IF(BE$3>($B32+$E32),$C32-SUM($F32:BD32),($C32/$B32))) -> 0.007034218381 | BF32: =IF($B32="n/a","n/a",IF(BF$3>($B32+$E32),$C32-SUM($F32:BE32),($C32/$B32))) -> 0.007034218381 | BG32: =IF($B32="n/a","n/a",IF(BG$3>($B32+$E32),$C32-SUM($F32:BF32),($C32/$B32))) -> 0.007034218381 | BH32: =IF($B32="n/a","n/a",IF(BH$3>($B32+$E32),$C32-SUM($F32:BG32),($C32/$B32))) -> 0.007034218381 | BI32: =IF($B32="n/a","n/a",IF(BI$3>($B32+$E32),$C32-SUM($F32:BH32),($C32/$B32))) -> 0.007034218381 | BJ32: =IF($B32="n/a","n/a",IF(BJ$3>($B32+$E32),$C32-SUM($F32:BI32),($C32/$B32))) -> 2.775557562e-16 | BK32: =IF($B32="n/a","n/a",IF(BK$3>($B32+$E32),$C32-SUM($F32:BJ32),($C32/$B32))) -> 0 | BL32: =IF($B32="n/a","n/a",IF(BL$3>($B32+$E32),$C32-SUM($F32:BK32),($C32/$B32))) -> 0 | BM32: =IF($B32="n/a","n/a",IF(BM$3>($B32+$E32),$C32-SUM($F32:BL32),($C32/$B32))) -> 0 | BN32: =IF($B32="n/a","n/a",IF(BN$3>($B32+$E32),$C32-SUM($F32:BM32),($C32/$B32))) -> 0
B33: Rem Life | C33: =OFFSET('I3 CAPEX '!$E$44,$A29,E33) -> 1.775195116 | E33: 2 | H33: =IF($B32="n/a","n/a",IF(H$3>($B32+$E33),$C33-SUM($F33:G33),($C33/$B32))) -> 0.03227627483 | I33: =IF($B32="n/a","n/a",IF(I$3>($B32+$E33),$C33-SUM($F33:H33),($C33/$B32))) -> 0.03227627483 | J33: =IF($B32="n/a","n/a",IF(J$3>($B32+$E33),$C33-SUM($F33:I33),($C33/$B32))) -> 0.03227627483 | K33: =IF($B32="n/a","n/a",IF(K$3>($B32+$E33),$C33-SUM($F33:J33),($C33/$B32))) -> 0.03227627483 | L33: =IF($B32="n/a","n/a",IF(L$3>($B32+$E33),$C33-SUM($F33:K33),($C33/$B32))) -> 0.03227627483 | M33: =IF($B32="n/a","n/a",IF(M$3>($B32+$E33),$C33-SUM($F33:L33),($C33/$B32))) -> 0.03227627483 | N33: =IF($B32="n/a","n/a",IF(N$3>($B32+$E33),$C33-SUM($F33:M33),($C33/$B32))) -> 0.03227627483 | O33: =IF($B32="n/a","n/a",IF(O$3>($B32+$E33),$C33-SUM($F33:N33),($C33/$B32))) -> 0.03227627483 | P33: =IF($B32="n/a","n/a",IF(P$3>($B32+$E33),$C33-SUM($F33:O33),($C33/$B32))) -> 0.03227627483 | Q33: =IF($B32="n/a","n/a",IF(Q$3>($B32+$E33),$C33-SUM($F33:P33),($C33/$B32))) -> 0.03227627483 | R33: =IF($B32="n/a","n/a",IF(R$3>($B32+$E33),$C33-SUM($F33:Q33),($C33/$B32))) -> 0.03227627483 | S33: =IF($B32="n/a","n/a",IF(S$3>($B32+$E33),$C33-SUM($F33:R33),($C33/$B32))) -> 0.03227627483 | T33: =IF($B32="n/a","n/a",IF(T$3>($B32+$E33),$C33-SUM($F33:S33),($C33/$B32))) -> 0.03227627483 | U33: =IF($B32="n/a","n/a",IF(U$3>($B32+$E33),$C33-SUM($F33:T33),($C33/$B32))) -> 0.03227627483 | V33: =IF($B32="n/a","n/a",IF(V$3>($B32+$E33),$C33-SUM($F33:U33),($C33/$B32))) -> 0.03227627483 | W33: =IF($B32="n/a","n/a",IF(W$3>($B32+$E33),$C33-SUM($F33:V33),($C33/$B32))) -> 0.03227627483 | X33: =IF($B32="n/a","n/a",IF(X$3>($B32+$E33),$C33-SUM($F33:W33),($C33/$B32))) -> 0.03227627483 | Y33: =IF($B32="n/a","n/a",IF(Y$3>($B32+$E33),$C33-SUM($F33:X33),($C33/$B32))) -> 0.03227627483 | Z33: =IF($B32="n/a","n/a",IF(Z$3>($B32+$E33),$C33-SUM($F33:Y33),($C33/$B32))) -> 0.03227627483 | AA33: =IF($B32="n/a","n/a",IF(AA$3>($B32+$E33),$C33-SUM($F33:Z33),($C33/$B32))) -> 0.03227627483 | AB33: =IF($B32="n/a","n/a",IF(AB$3>($B32+$E33),$C33-SUM($F33:AA33),($C33/$B32))) -> 0.03227627483 | AC33: =IF($B32="n/a","n/a",IF(AC$3>($B32+$E33),$C33-SUM($F33:AB33),($C33/$B32))) -> 0.03227627483 | AD33: =IF($B32="n/a","n/a",IF(AD$3>($B32+$E33),$C33-SUM($F33:AC33),($C33/$B32))) -> 0.03227627483 | AE33: =IF($B32="n/a","n/a",IF(AE$3>($B32+$E33),$C33-SUM($F33:AD33),($C33/$B32))) -> 0.03227627483 | AF33: =IF($B32="n/a","n/a",IF(AF$3>($B32+$E33),$C33-SUM($F33:AE33),($C33/$B32))) -> 0.03227627483 | AG33: =IF($B32="n/a","n/a",IF(AG$3>($B32+$E33),$C33-SUM($F33:AF33),($C33/$B32))) -> 0.03227627483 | AH33: =IF($B32="n/a","n/a",IF(AH$3>($B32+$E33),$C33-SUM($F33:AG33),($C33/$B32))) -> 0.03227627483 | AI33: =IF($B32="n/a","n/a",IF(AI$3>($B32+$E33),$C33-SUM($F33:AH33),($C33/$B32))) -> 0.03227627483 | AJ33: =IF($B32="n/a","n/a",IF(AJ$3>($B32+$E33),$C33-SUM($F33:AI33),($C33/$B32))) -> 0.03227627483 | AK33: =IF($B32="n/a","n/a",IF(AK$3>($B32+$E33),$C33-SUM($F33:AJ33),($C33/$B32))) -> 0.03227627483 | AL33: =IF($B32="n/a","n/a",IF(AL$3>($B32+$E33),$C33-SUM($F33:AK33),($C33/$B32))) -> 0.03227627483 | AM33: =IF($B32="n/a","n/a",IF(AM$3>($B32+$E33),$C33-SUM($F33:AL33),($C33/$B32))) -> 0.03227627483 | AN33: =IF($B32="n/a","n/a",IF(AN$3>($B32+$E33),$C33-SUM($F33:AM33),($C33/$B32))) -> 0.03227627483 | AO33: =IF($B32="n/a","n/a",IF(AO$3>($B32+$E33),$C33-SUM($F33:AN33),($C33/$B32))) -> 0.03227627483 | AP33: =IF($B32="n/a","n/a",IF(AP$3>($B32+$E33),$C33-SUM($F33:AO33),($C33/$B32))) -> 0.03227627483 | AQ33: =IF($B32="n/a","n/a",IF(AQ$3>($B32+$E33),$C33-SUM($F33:AP33),($C33/$B32))) -> 0.03227627483 | AR33: =IF($B32="n/a","n/a",IF(AR$3>($B32+$E33),$C33-SUM($F33:AQ33),($C33/$B32))) -> 0.03227627483 | AS33: =IF($B32="n/a","n/a",IF(AS$3>($B32+$E33),$C33-SUM($F33:AR33),($C33/$B32))) -> 0.03227627483 | AT33: =IF($B32="n/a","n/a",IF(AT$3>($B32+$E33),$C33-SUM($F33:AS33),($C33/$B32))) -> 0.03227627483 | AU33: =IF($B32="n/a","n/a",IF(AU$3>($B32+$E33),$C33-SUM($F33:AT33),($C33/$B32))) -> 0.03227627483 | AV33: =IF($B32="n/a","n/a",IF(AV$3>($B32+$E33),$C33-SUM($F33:AU33),($C33/$B32))) -> 0.03227627483 | AW33: =IF($B32="n/a","n/a",IF(AW$3>($B32+$E33),$C33-SUM($F33:AV33),($C33/$B32))) -> 0.03227627483 | AX33: =IF($B32="n/a","n/a",IF(AX$3>($B32+$E33),$C33-SUM($F33:AW33),($C33/$B32))) -> 0.03227627483 | AY33: =IF($B32="n/a","n/a",IF(AY$3>($B32+$E33),$C33-SUM($F33:AX33),($C33/$B32))) -> 0.03227627483 | AZ33: =IF($B32="n/a","n/a",IF(AZ$3>($B32+$E33),$C33-SUM($F33:AY33),($C33/$B32))) -> 0.03227627483 | BA33: =IF($B32="n/a","n/a",IF(BA$3>($B32+$E33),$C33-SUM($F33:AZ33),($C33/$B32))) -> 0.03227627483 | BB33: =IF($B32="n/a","n/a",IF(BB$3>($B32+$E33),$C33-SUM($F33:BA33),($C33/$B32))) -> 0.03227627483 | BC33: =IF($B32="n/a","n/a",IF(BC$3>($B32+$E33),$C33-SUM($F33:BB33),($C33/$B32))) -> 0.03227627483 | BD33: =IF($B32="n/a","n/a",IF(BD$3>($B32+$E33),$C33-SUM($F33:BC33),($C33/$B32))) -> 0.03227627483 | BE33: =IF($B32="n/a","n/a",IF(BE$3>($B32+$E33),$C33-SUM($F33:BD33),($C33/$B32))) -> 0.03227627483 | BF33: =IF($B32="n/a","n/a",IF(BF$3>($B32+$E33),$C33-SUM($F33:BE33),($C33/$B32))) -> 0.03227627483 | BG33: =IF($B32="n/a","n/a",IF(BG$3>($B32+$E33),$C33-SUM($F33:BF33),($C33/$B32))) -> 0.03227627483 | BH33: =IF($B32="n/a","n/a",IF(BH$3>($B32+$E33),$C33-SUM($F33:BG33),($C33/$B32))) -> 0.03227627483 | BI33: =IF($B32="n/a","n/a",IF(BI$3>($B32+$E33),$C33-SUM($F33:BH33),($C33/$B32))) -> 0.03227627483 | BJ33: =IF($B32="n/a","n/a",IF(BJ$3>($B32+$E33),$C33-SUM($F33:BI33),($C33/$B32))) -> 0.03227627483 | BK33: =IF($B32="n/a","n/a",IF(BK$3>($B32+$E33),$C33-SUM($F33:BJ33),($C33/$B32))) -> -4.440892099e-16 | BL33: =IF($B32="n/a","n/a",IF(BL$3>($B32+$E33),$C33-SUM($F33:BK33),($C33/$B32))) -> 0 | BM33: =IF($B32="n/a","n/a",IF(BM$3>($B32+$E33),$C33-SUM($F33:BL33),($C33/$B32))) -> 0 | BN33: =IF($B32="n/a","n/a",IF(BN$3>($B32+$E33),$C33-SUM($F33:BM33),($C33/$B32))) -> 0
B34: =INDEX('I2 RAB '!$E$9:$E$38,A29) -> 44.71344089 | C34: =OFFSET('I3 CAPEX '!$E$44,$A29,E34) -> 5.68576061 | E34: 3 | I34: =IF($B32="n/a","n/a",IF(I$3>($B32+$E34),$C34-SUM($F34:H34),($C34/$B32))) -> 0.1033774656 | J34: =IF($B32="n/a","n/a",IF(J$3>($B32+$E34),$C34-SUM($F34:I34),($C34/$B32))) -> 0.1033774656 | K34: =IF($B32="n/a","n/a",IF(K$3>($B32+$E34),$C34-SUM($F34:J34),($C34/$B32))) -> 0.1033774656 | L34: =IF($B32="n/a","n/a",IF(L$3>($B32+$E34),$C34-SUM($F34:K34),($C34/$B32))) -> 0.1033774656 | M34: =IF($B32="n/a","n/a",IF(M$3>($B32+$E34),$C34-SUM($F34:L34),($C34/$B32))) -> 0.1033774656 | N34: =IF($B32="n/a","n/a",IF(N$3>($B32+$E34),$C34-SUM($F34:M34),($C34/$B32))) -> 0.1033774656 | O34: =IF($B32="n/a","n/a",IF(O$3>($B32+$E34),$C34-SUM($F34:N34),($C34/$B32))) -> 0.1033774656 | P34: =IF($B32="n/a","n/a",IF(P$3>($B32+$E34),$C34-SUM($F34:O34),($C34/$B32))) -> 0.1033774656 | Q34: =IF($B32="n/a","n/a",IF(Q$3>($B32+$E34),$C34-SUM($F34:P34),($C34/$B32))) -> 0.1033774656 | R34: =IF($B32="n/a","n/a",IF(R$3>($B32+$E34),$C34-SUM($F34:Q34),($C34/$B32))) -> 0.1033774656 | S34: =IF($B32="n/a","n/a",IF(S$3>($B32+$E34),$C34-SUM($F34:R34),($C34/$B32))) -> 0.1033774656 | T34: =IF($B32="n/a","n/a",IF(T$3>($B32+$E34),$C34-SUM($F34:S34),($C34/$B32))) -> 0.1033774656 | U34: =IF($B32="n/a","n/a",IF(U$3>($B32+$E34),$C34-SUM($F34:T34),($C34/$B32))) -> 0.1033774656 | V34: =IF($B32="n/a","n/a",IF(V$3>($B32+$E34),$C34-SUM($F34:U34),($C34/$B32))) -> 0.1033774656 | W34: =IF($B32="n/a","n/a",IF(W$3>($B32+$E34),$C34-SUM($F34:V34),($C34/$B32))) -> 0.1033774656 | X34: =IF($B32="n/a","n/a",IF(X$3>($B32+$E34),$C34-SUM($F34:W34),($C34/$B32))) -> 0.1033774656 | Y34: =IF($B32="n/a","n/a",IF(Y$3>($B32+$E34),$C34-SUM($F34:X34),($C34/$B32))) -> 0.1033774656 | Z34: =IF($B32="n/a","n/a",IF(Z$3>($B32+$E34),$C34-SUM($F34:Y34),($C34/$B32))) -> 0.1033774656 | AA34: =IF($B32="n/a","n/a",IF(AA$3>($B32+$E34),$C34-SUM($F34:Z34),($C34/$B32))) -> 0.1033774656 | AB34: =IF($B32="n/a","n/a",IF(AB$3>($B32+$E34),$C34-SUM($F34:AA34),($C34/$B32))) -> 0.1033774656 | AC34: =IF($B32="n/a","n/a",IF(AC$3>($B32+$E34),$C34-SUM($F34:AB34),($C34/$B32))) -> 0.1033774656 | AD34: =IF($B32="n/a","n/a",IF(AD$3>($B32+$E34),$C34-SUM($F34:AC34),($C34/$B32))) -> 0.1033774656 | AE34: =IF($B32="n/a","n/a",IF(AE$3>($B32+$E34),$C34-SUM($F34:AD34),($C34/$B32))) -> 0.1033774656 | AF34: =IF($B32="n/a","n/a",IF(AF$3>($B32+$E34),$C34-SUM($F34:AE34),($C34/$B32))) -> 0.1033774656 | AG34: =IF($B32="n/a","n/a",IF(AG$3>($B32+$E34),$C34-SUM($F34:AF34),($C34/$B32))) -> 0.1033774656 | AH34: =IF($B32="n/a","n/a",IF(AH$3>($B32+$E34),$C34-SUM($F34:AG34),($C34/$B32))) -> 0.1033774656 | AI34: =IF($B32="n/a","n/a",IF(AI$3>($B32+$E34),$C34-SUM($F34:AH34),($C34/$B32))) -> 0.1033774656 | AJ34: =IF($B32="n/a","n/a",IF(AJ$3>($B32+$E34),$C34-SUM($F34:AI34),($C34/$B32))) -> 0.1033774656 | AK34: =IF($B32="n/a","n/a",IF(AK$3>($B32+$E34),$C34-SUM($F34:AJ34),($C34/$B32))) -> 0.1033774656 | AL34: =IF($B32="n/a","n/a",IF(AL$3>($B32+$E34),$C34-SUM($F34:AK34),($C34/$B32))) -> 0.1033774656 | AM34: =IF($B32="n/a","n/a",IF(AM$3>($B32+$E34),$C34-SUM($F34:AL34),($C34/$B32))) -> 0.1033774656 | AN34: =IF($B32="n/a","n/a",IF(AN$3>($B32+$E34),$C34-SUM($F34:AM34),($C34/$B32))) -> 0.1033774656 | AO34: =IF($B32="n/a","n/a",IF(AO$3>($B32+$E34),$C34-SUM($F34:AN34),($C34/$B32))) -> 0.1033774656 | AP34: =IF($B32="n/a","n/a",IF(AP$3>($B32+$E34),$C34-SUM($F34:AO34),($C34/$B32))) -> 0.1033774656 | AQ34: =IF($B32="n/a","n/a",IF(AQ$3>($B32+$E34),$C34-SUM($F34:AP34),($C34/$B32))) -> 0.1033774656 | AR34: =IF($B32="n/a","n/a",IF(AR$3>($B32+$E34),$C34-SUM($F34:AQ34),($C34/$B32))) -> 0.1033774656 | AS34: =IF($B32="n/a","n/a",IF(AS$3>($B32+$E34),$C34-SUM($F34:AR34),($C34/$B32))) -> 0.1033774656 | AT34: =IF($B32="n/a","n/a",IF(AT$3>($B32+$E34),$C34-SUM($F34:AS34),($C34/$B32))) -> 0.1033774656 | AU34: =IF($B32="n/a","n/a",IF(AU$3>($B32+$E34),$C34-SUM($F34:AT34),($C34/$B32))) -> 0.1033774656 | AV34: =IF($B32="n/a","n/a",IF(AV$3>($B32+$E34),$C34-SUM($F34:AU34),($C34/$B32))) -> 0.1033774656 | AW34: =IF($B32="n/a","n/a",IF(AW$3>($B32+$E34),$C34-SUM($F34:AV34),($C34/$B32))) -> 0.1033774656 | AX34: =IF($B32="n/a","n/a",IF(AX$3>($B32+$E34),$C34-SUM($F34:AW34),($C34/$B32))) -> 0.1033774656 | AY34: =IF($B32="n/a","n/a",IF(AY$3>($B32+$E34),$C34-SUM($F34:AX34),($C34/$B32))) -> 0.1033774656 | AZ34: =IF($B32="n/a","n/a",IF(AZ$3>($B32+$E34),$C34-SUM($F34:AY34),($C34/$B32))) -> 0.1033774656 | BA34: =IF($B32="n/a","n/a",IF(BA$3>($B32+$E34),$C34-SUM($F34:AZ34),($C34/$B32))) -> 0.1033774656 | BB34: =IF($B32="n/a","n/a",IF(BB$3>($B32+$E34),$C34-SUM($F34:BA34),($C34/$B32))) -> 0.1033774656 | BC34: =IF($B32="n/a","n/a",IF(BC$3>($B32+$E34),$C34-SUM($F34:BB34),($C34/$B32))) -> 0.1033774656 | BD34: =IF($B32="n/a","n/a",IF(BD$3>($B32+$E34),$C34-SUM($F34:BC34),($C34/$B32))) -> 0.1033774656 | BE34: =IF($B32="n/a","n/a",IF(BE$3>($B32+$E34),$C34-SUM($F34:BD34),($C34/$B32))) -> 0.1033774656 | BF34: =IF($B32="n/a","n/a",IF(BF$3>($B32+$E34),$C34-SUM($F34:BE34),($C34/$B32))) -> 0.1033774656 | BG34: =IF($B32="n/a","n/a",IF(BG$3>($B32+$E34),$C34-SUM($F34:BF34),($C34/$B32))) -> 0.1033774656 | BH34: =IF($B32="n/a","n/a",IF(BH$3>($B32+$E34),$C34-SUM($F34:BG34),($C34/$B32))) -> 0.1033774656 | BI34: =IF($B32="n/a","n/a",IF(BI$3>($B32+$E34),$C34-SUM($F34:BH34),($C34/$B32))) -> 0.1033774656 | BJ34: =IF($B32="n/a","n/a",IF(BJ$3>($B32+$E34),$C34-SUM($F34:BI34),($C34/$B32))) -> 0.1033774656 | BK34: =IF($B32="n/a","n/a",IF(BK$3>($B32+$E34),$C34-SUM($F34:BJ34),($C34/$B32))) -> 0.1033774656 | BL34: =IF($B32="n/a","n/a",IF(BL$3>($B32+$E34),$C34-SUM($F34:BK34),($C34/$B32))) -> -4.440892099e-15 | BM34: =IF($B32="n/a","n/a",IF(BM$3>($B32+$E34),$C34-SUM($F34:BL34),($C34/$B32))) -> 0 | BN34: =IF($B32="n/a","n/a",IF(BN$3>($B32+$E34),$C34-SUM($F34:BM34),($C34/$B32))) -> 0
B35: Op Bal | C35: =OFFSET('I3 CAPEX '!$E$44,$A29,E35) -> 5.539715414 | E35: 4 | J35: =IF($B32="n/a","n/a",IF(J$3>($B32+$E35),$C35-SUM($F35:I35),($C35/$B32))) -> 0.1007220984 | K35: =IF($B32="n/a","n/a",IF(K$3>($B32+$E35),$C35-SUM($F35:J35),($C35/$B32))) -> 0.1007220984 | L35: =IF($B32="n/a","n/a",IF(L$3>($B32+$E35),$C35-SUM($F35:K35),($C35/$B32))) -> 0.1007220984 | M35: =IF($B32="n/a","n/a",IF(M$3>($B32+$E35),$C35-SUM($F35:L35),($C35/$B32))) -> 0.1007220984 | N35: =IF($B32="n/a","n/a",IF(N$3>($B32+$E35),$C35-SUM($F35:M35),($C35/$B32))) -> 0.1007220984 | O35: =IF($B32="n/a","n/a",IF(O$3>($B32+$E35),$C35-SUM($F35:N35),($C35/$B32))) -> 0.1007220984 | P35: =IF($B32="n/a","n/a",IF(P$3>($B32+$E35),$C35-SUM($F35:O35),($C35/$B32))) -> 0.1007220984 | Q35: =IF($B32="n/a","n/a",IF(Q$3>($B32+$E35),$C35-SUM($F35:P35),($C35/$B32))) -> 0.1007220984 | R35: =IF($B32="n/a","n/a",IF(R$3>($B32+$E35),$C35-SUM($F35:Q35),($C35/$B32))) -> 0.1007220984 | S35: =IF($B32="n/a","n/a",IF(S$3>($B32+$E35),$C35-SUM($F35:R35),($C35/$B32))) -> 0.1007220984 | T35: =IF($B32="n/a","n/a",IF(T$3>($B32+$E35),$C35-SUM($F35:S35),($C35/$B32))) -> 0.1007220984 | U35: =IF($B32="n/a","n/a",IF(U$3>($B32+$E35),$C35-SUM($F35:T35),($C35/$B32))) -> 0.1007220984 | V35: =IF($B32="n/a","n/a",IF(V$3>($B32+$E35),$C35-SUM($F35:U35),($C35/$B32))) -> 0.1007220984 | W35: =IF($B32="n/a","n/a",IF(W$3>($B32+$E35),$C35-SUM($F35:V35),($C35/$B32))) -> 0.1007220984 | X35: =IF($B32="n/a","n/a",IF(X$3>($B32+$E35),$C35-SUM($F35:W35),($C35/$B32))) -> 0.1007220984 | Y35: =IF($B32="n/a","n/a",IF(Y$3>($B32+$E35),$C35-SUM($F35:X35),($C35/$B32))) -> 0.1007220984 | Z35: =IF($B32="n/a","n/a",IF(Z$3>($B32+$E35),$C35-SUM($F35:Y35),($C35/$B32))) -> 0.1007220984 | AA35: =IF($B32="n/a","n/a",IF(AA$3>($B32+$E35),$C35-SUM($F35:Z35),($C35/$B32))) -> 0.1007220984 | AB35: =IF($B32="n/a","n/a",IF(AB$3>($B32+$E35),$C35-SUM($F35:AA35),($C35/$B32))) -> 0.1007220984 | AC35: =IF($B32="n/a","n/a",IF(AC$3>($B32+$E35),$C35-SUM($F35:AB35),($C35/$B32))) -> 0.1007220984 | AD35: =IF($B32="n/a","n/a",IF(AD$3>($B32+$E35),$C35-SUM($F35:AC35),($C35/$B32))) -> 0.1007220984 | AE35: =IF($B32="n/a","n/a",IF(AE$3>($B32+$E35),$C35-SUM($F35:AD35),($C35/$B32))) -> 0.1007220984 | AF35: =IF($B32="n/a","n/a",IF(AF$3>($B32+$E35),$C35-SUM($F35:AE35),($C35/$B32))) -> 0.1007220984 | AG35: =IF($B32="n/a","n/a",IF(AG$3>($B32+$E35),$C35-SUM($F35:AF35),($C35/$B32))) -> 0.1007220984 | AH35: =IF($B32="n/a","n/a",IF(AH$3>($B32+$E35),$C35-SUM($F35:AG35),($C35/$B32))) -> 0.1007220984 | AI35: =IF($B32="n/a","n/a",IF(AI$3>($B32+$E35),$C35-SUM($F35:AH35),($C35/$B32))) -> 0.1007220984 | AJ35: =IF($B32="n/a","n/a",IF(AJ$3>($B32+$E35),$C35-SUM($F35:AI35),($C35/$B32))) -> 0.1007220984 | AK35: =IF($B32="n/a","n/a",IF(AK$3>($B32+$E35),$C35-SUM($F35:AJ35),($C35/$B32))) -> 0.1007220984 | AL35: =IF($B32="n/a","n/a",IF(AL$3>($B32+$E35),$C35-SUM($F35:AK35),($C35/$B32))) -> 0.1007220984 | AM35: =IF($B32="n/a","n/a",IF(AM$3>($B32+$E35),$C35-SUM($F35:AL35),($C35/$B32))) -> 0.1007220984 | AN35: =IF($B32="n/a","n/a",IF(AN$3>($B32+$E35),$C35-SUM($F35:AM35),($C35/$B32))) -> 0.1007220984 | AO35: =IF($B32="n/a","n/a",IF(AO$3>($B32+$E35),$C35-SUM($F35:AN35),($C35/$B32))) -> 0.1007220984 | AP35: =IF($B32="n/a","n/a",IF(AP$3>($B32+$E35),$C35-SUM($F35:AO35),($C35/$B32))) -> 0.1007220984 | AQ35: =IF($B32="n/a","n/a",IF(AQ$3>($B32+$E35),$C35-SUM($F35:AP35),($C35/$B32))) -> 0.1007220984 | AR35: =IF($B32="n/a","n/a",IF(AR$3>($B32+$E35),$C35-SUM($F35:AQ35),($C35/$B32))) -> 0.1007220984 | AS35: =IF($B32="n/a","n/a",IF(AS$3>($B32+$E35),$C35-SUM($F35:AR35),($C35/$B32))) -> 0.1007220984 | AT35: =IF($B32="n/a","n/a",IF(AT$3>($B32+$E35),$C35-SUM($F35:AS35),($C35/$B32))) -> 0.1007220984 | AU35: =IF($B32="n/a","n/a",IF(AU$3>($B32+$E35),$C35-SUM($F35:AT35),($C35/$B32))) -> 0.1007220984 | AV35: =IF($B32="n/a","n/a",IF(AV$3>($B32+$E35),$C35-SUM($F35:AU35),($C35/$B32))) -> 0.1007220984 | AW35: =IF($B32="n/a","n/a",IF(AW$3>($B32+$E35),$C35-SUM($F35:AV35),($C35/$B32))) -> 0.1007220984 | AX35: =IF($B32="n/a","n/a",IF(AX$3>($B32+$E35),$C35-SUM($F35:AW35),($C35/$B32))) -> 0.1007220984 | AY35: =IF($B32="n/a","n/a",IF(AY$3>($B32+$E35),$C35-SUM($F35:AX35),($C35/$B32))) -> 0.1007220984 | AZ35: =IF($B32="n/a","n/a",IF(AZ$3>($B32+$E35),$C35-SUM($F35:AY35),($C35/$B32))) -> 0.1007220984 | BA35: =IF($B32="n/a","n/a",IF(BA$3>($B32+$E35),$C35-SUM($F35:AZ35),($C35/$B32))) -> 0.1007220984 | BB35: =IF($B32="n/a","n/a",IF(BB$3>($B32+$E35),$C35-SUM($F35:BA35),($C35/$B32))) -> 0.1007220984 | BC35: =IF($B32="n/a","n/a",IF(BC$3>($B32+$E35),$C35-SUM($F35:BB35),($C35/$B32))) -> 0.1007220984 | BD35: =IF($B32="n/a","n/a",IF(BD$3>($B32+$E35),$C35-SUM($F35:BC35),($C35/$B32))) -> 0.1007220984 | BE35: =IF($B32="n/a","n/a",IF(BE$3>($B32+$E35),$C35-SUM($F35:BD35),($C35/$B32))) -> 0.1007220984 | BF35: =IF($B32="n/a","n/a",IF(BF$3>($B32+$E35),$C35-SUM($F35:BE35),($C35/$B32))) -> 0.1007220984 | BG35: =IF($B32="n/a","n/a",IF(BG$3>($B32+$E35),$C35-SUM($F35:BF35),($C35/$B32))) -> 0.1007220984 | BH35: =IF($B32="n/a","n/a",IF(BH$3>($B32+$E35),$C35-SUM($F35:BG35),($C35/$B32))) -> 0.1007220984 | BI35: =IF($B32="n/a","n/a",IF(BI$3>($B32+$E35),$C35-SUM($F35:BH35),($C35/$B32))) -> 0.1007220984 | BJ35: =IF($B32="n/a","n/a",IF(BJ$3>($B32+$E35),$C35-SUM($F35:BI35),($C35/$B32))) -> 0.1007220984 | BK35: =IF($B32="n/a","n/a",IF(BK$3>($B32+$E35),$C35-SUM($F35:BJ35),($C35/$B32))) -> 0.1007220984 | BL35: =IF($B32="n/a","n/a",IF(BL$3>($B32+$E35),$C35-SUM($F35:BK35),($C35/$B32))) -> 0.1007220984 | BM35: =IF($B32="n/a","n/a",IF(BM$3>($B32+$E35),$C35-SUM($F35:BL35),($C35/$B32))) -> -4.440892099e-15 | BN35: =IF($B32="n/a","n/a",IF(BN$3>($B32+$E35),$C35-SUM($F35:BM35),($C35/$B32))) -> 0
B36: =INDEX('I2 RAB '!$D$9:$D$38,A29) -> 7.698910695 | C36: =OFFSET('I3 CAPEX '!$E$44,$A29,E36)+OFFSET('I3 CAPEX '!$E$79,$A29,E36) -> 1.650781614 | E36: 5 | K36: =IF($B32="n/a","n/a",IF(K$3>($B32+$E36),$C36-SUM($F36:J36),($C36/$B32))) -> 0.03001421117 | L36: =IF($B32="n/a","n/a",IF(L$3>($B32+$E36),$C36-SUM($F36:K36),($C36/$B32))) -> 0.03001421117 | M36: =IF($B32="n/a","n/a",IF(M$3>($B32+$E36),$C36-SUM($F36:L36),($C36/$B32))) -> 0.03001421117 | N36: =IF($B32="n/a","n/a",IF(N$3>($B32+$E36),$C36-SUM($F36:M36),($C36/$B32))) -> 0.03001421117 | O36: =IF($B32="n/a","n/a",IF(O$3>($B32+$E36),$C36-SUM($F36:N36),($C36/$B32))) -> 0.03001421117 | P36: =IF($B32="n/a","n/a",IF(P$3>($B32+$E36),$C36-SUM($F36:O36),($C36/$B32))) -> 0.03001421117 | Q36: =IF($B32="n/a","n/a",IF(Q$3>($B32+$E36),$C36-SUM($F36:P36),($C36/$B32))) -> 0.03001421117 | R36: =IF($B32="n/a","n/a",IF(R$3>($B32+$E36),$C36-SUM($F36:Q36),($C36/$B32))) -> 0.03001421117 | S36: =IF($B32="n/a","n/a",IF(S$3>($B32+$E36),$C36-SUM($F36:R36),($C36/$B32))) -> 0.03001421117 | T36: =IF($B32="n/a","n/a",IF(T$3>($B32+$E36),$C36-SUM($F36:S36),($C36/$B32))) -> 0.03001421117 | U36: =IF($B32="n/a","n/a",IF(U$3>($B32+$E36),$C36-SUM($F36:T36),($C36/$B32))) -> 0.03001421117 | V36: =IF($B32="n/a","n/a",IF(V$3>($B32+$E36),$C36-SUM($F36:U36),($C36/$B32))) -> 0.03001421117 | W36: =IF($B32="n/a","n/a",IF(W$3>($B32+$E36),$C36-SUM($F36:V36),($C36/$B32))) -> 0.03001421117 | X36: =IF($B32="n/a","n/a",IF(X$3>($B32+$E36),$C36-SUM($F36:W36),($C36/$B32))) -> 0.03001421117 | Y36: =IF($B32="n/a","n/a",IF(Y$3>($B32+$E36),$C36-SUM($F36:X36),($C36/$B32))) -> 0.03001421117 | Z36: =IF($B32="n/a","n/a",IF(Z$3>($B32+$E36),$C36-SUM($F36:Y36),($C36/$B32))) -> 0.03001421117 | AA36: =IF($B32="n/a","n/a",IF(AA$3>($B32+$E36),$C36-SUM($F36:Z36),($C36/$B32))) -> 0.03001421117 | AB36: =IF($B32="n/a","n/a",IF(AB$3>($B32+$E36),$C36-SUM($F36:AA36),($C36/$B32))) -> 0.03001421117 | AC36: =IF($B32="n/a","n/a",IF(AC$3>($B32+$E36),$C36-SUM($F36:AB36),($C36/$B32))) -> 0.03001421117 | AD36: =IF($B32="n/a","n/a",IF(AD$3>($B32+$E36),$C36-SUM($F36:AC36),($C36/$B32))) -> 0.03001421117 | AE36: =IF($B32="n/a","n/a",IF(AE$3>($B32+$E36),$C36-SUM($F36:AD36),($C36/$B32))) -> 0.03001421117 | AF36: =IF($B32="n/a","n/a",IF(AF$3>($B32+$E36),$C36-SUM($F36:AE36),($C36/$B32))) -> 0.03001421117 | AG36: =IF($B32="n/a","n/a",IF(AG$3>($B32+$E36),$C36-SUM($F36:AF36),($C36/$B32))) -> 0.03001421117 | AH36: =IF($B32="n/a","n/a",IF(AH$3>($B32+$E36),$C36-SUM($F36:AG36),($C36/$B32))) -> 0.03001421117 | AI36: =IF($B32="n/a","n/a",IF(AI$3>($B32+$E36),$C36-SUM($F36:AH36),($C36/$B32))) -> 0.03001421117 | AJ36: =IF($B32="n/a","n/a",IF(AJ$3>($B32+$E36),$C36-SUM($F36:AI36),($C36/$B32))) -> 0.03001421117 | AK36: =IF($B32="n/a","n/a",IF(AK$3>($B32+$E36),$C36-SUM($F36:AJ36),($C36/$B32))) -> 0.03001421117 | AL36: =IF($B32="n/a","n/a",IF(AL$3>($B32+$E36),$C36-SUM($F36:AK36),($C36/$B32))) -> 0.03001421117 | AM36: =IF($B32="n/a","n/a",IF(AM$3>($B32+$E36),$C36-SUM($F36:AL36),($C36/$B32))) -> 0.03001421117 | AN36: =IF($B32="n/a","n/a",IF(AN$3>($B32+$E36),$C36-SUM($F36:AM36),($C36/$B32))) -> 0.03001421117 | AO36: =IF($B32="n/a","n/a",IF(AO$3>($B32+$E36),$C36-SUM($F36:AN36),($C36/$B32))) -> 0.03001421117 | AP36: =IF($B32="n/a","n/a",IF(AP$3>($B32+$E36),$C36-SUM($F36:AO36),($C36/$B32))) -> 0.03001421117 | AQ36: =IF($B32="n/a","n/a",IF(AQ$3>($B32+$E36),$C36-SUM($F36:AP36),($C36/$B32))) -> 0.03001421117 | AR36: =IF($B32="n/a","n/a",IF(AR$3>($B32+$E36),$C36-SUM($F36:AQ36),($C36/$B32))) -> 0.03001421117 | AS36: =IF($B32="n/a","n/a",IF(AS$3>($B32+$E36),$C36-SUM($F36:AR36),($C36/$B32))) -> 0.03001421117 | AT36: =IF($B32="n/a","n/a",IF(AT$3>($B32+$E36),$C36-SUM($F36:AS36),($C36/$B32))) -> 0.03001421117 | AU36: =IF($B32="n/a","n/a",IF(AU$3>($B32+$E36),$C36-SUM($F36:AT36),($C36/$B32))) -> 0.03001421117 | AV36: =IF($B32="n/a","n/a",IF(AV$3>($B32+$E36),$C36-SUM($F36:AU36),($C36/$B32))) -> 0.03001421117 | AW36: =IF($B32="n/a","n/a",IF(AW$3>($B32+$E36),$C36-SUM($F36:AV36),($C36/$B32))) -> 0.03001421117 | AX36: =IF($B32="n/a","n/a",IF(AX$3>($B32+$E36),$C36-SUM($F36:AW36),($C36/$B32))) -> 0.03001421117 | AY36: =IF($B32="n/a","n/a",IF(AY$3>($B32+$E36),$C36-SUM($F36:AX36),($C36/$B32))) -> 0.03001421117 | AZ36: =IF($B32="n/a","n/a",IF(AZ$3>($B32+$E36),$C36-SUM($F36:AY36),($C36/$B32))) -> 0.03001421117 | BA36: =IF($B32="n/a","n/a",IF(BA$3>($B32+$E36),$C36-SUM($F36:AZ36),($C36/$B32))) -> 0.03001421117 | BB36: =IF($B32="n/a","n/a",IF(BB$3>($B32+$E36),$C36-SUM($F36:BA36),($C36/$B32))) -> 0.03001421117 | BC36: =IF($B32="n/a","n/a",IF(BC$3>($B32+$E36),$C36-SUM($F36:BB36),($C36/$B32))) -> 0.03001421117 | BD36: =IF($B32="n/a","n/a",IF(BD$3>($B32+$E36),$C36-SUM($F36:BC36),($C36/$B32))) -> 0.03001421117 | BE36: =IF($B32="n/a","n/a",IF(BE$3>($B32+$E36),$C36-SUM($F36:BD36),($C36/$B32))) -> 0.03001421117 | BF36: =IF($B32="n/a","n/a",IF(BF$3>($B32+$E36),$C36-SUM($F36:BE36),($C36/$B32))) -> 0.03001421117 | BG36: =IF($B32="n/a","n/a",IF(BG$3>($B32+$E36),$C36-SUM($F36:BF36),($C36/$B32))) -> 0.03001421117 | BH36: =IF($B32="n/a","n/a",IF(BH$3>($B32+$E36),$C36-SUM($F36:BG36),($C36/$B32))) -> 0.03001421117 | BI36: =IF($B32="n/a","n/a",IF(BI$3>($B32+$E36),$C36-SUM($F36:BH36),($C36/$B32))) -> 0.03001421117 | BJ36: =IF($B32="n/a","n/a",IF(BJ$3>($B32+$E36),$C36-SUM($F36:BI36),($C36/$B32))) -> 0.03001421117 | BK36: =IF($B32="n/a","n/a",IF(BK$3>($B32+$E36),$C36-SUM($F36:BJ36),($C36/$B32))) -> 0.03001421117 | BL36: =IF($B32="n/a","n/a",IF(BL$3>($B32+$E36),$C36-SUM($F36:BK36),($C36/$B32))) -> 0.03001421117 | BM36: =IF($B32="n/a","n/a",IF(BM$3>($B32+$E36),$C36-SUM($F36:BL36),($C36/$B32))) -> 0.03001421117 | BN36: =IF($B32="n/a","n/a",IF(BN$3>($B32+$E36),$C36-SUM($F36:BM36),($C36/$B32))) -> -1.998401444e-15
B37: Op Bal Adjustment | C37: =OFFSET('I3 CAPEX '!$E$44,$A29,E37)+OFFSET('I3 CAPEX '!$E$79,$A29,E37) -> 0 | E37: 6 | L37: =IF($B32="n/a","n/a",IF(L$3>($B32+$E37),$C37-SUM($F37:K37),($C37/$B32))) -> 0 | M37: =IF($B32="n/a","n/a",IF(M$3>($B32+$E37),$C37-SUM($F37:L37),($C37/$B32))) -> 0 | N37: =IF($B32="n/a","n/a",IF(N$3>($B32+$E37),$C37-SUM($F37:M37),($C37/$B32))) -> 0 | O37: =IF($B32="n/a","n/a",IF(O$3>($B32+$E37),$C37-SUM($F37:N37),($C37/$B32))) -> 0 | P37: =IF($B32="n/a","n/a",IF(P$3>($B32+$E37),$C37-SUM($F37:O37),($C37/$B32))) -> 0 | Q37: =IF($B32="n/a","n/a",IF(Q$3>($B32+$E37),$C37-SUM($F37:P37),($C37/$B32))) -> 0 | R37: =IF($B32="n/a","n/a",IF(R$3>($B32+$E37),$C37-SUM($F37:Q37),($C37/$B32))) -> 0 | S37: =IF($B32="n/a","n/a",IF(S$3>($B32+$E37),$C37-SUM($F37:R37),($C37/$B32))) -> 0 | T37: =IF($B32="n/a","n/a",IF(T$3>($B32+$E37),$C37-SUM($F37:S37),($C37/$B32))) -> 0 | U37: =IF($B32="n/a","n/a",IF(U$3>($B32+$E37),$C37-SUM($F37:T37),($C37/$B32))) -> 0 | V37: =IF($B32="n/a","n/a",IF(V$3>($B32+$E37),$C37-SUM($F37:U37),($C37/$B32))) -> 0 | W37: =IF($B32="n/a","n/a",IF(W$3>($B32+$E37),$C37-SUM($F37:V37),($C37/$B32))) -> 0 | X37: =IF($B32="n/a","n/a",IF(X$3>($B32+$E37),$C37-SUM($F37:W37),($C37/$B32))) -> 0 | Y37: =IF($B32="n/a","n/a",IF(Y$3>($B32+$E37),$C37-SUM($F37:X37),($C37/$B32))) -> 0 | Z37: =IF($B32="n/a","n/a",IF(Z$3>($B32+$E37),$C37-SUM($F37:Y37),($C37/$B32))) -> 0 | AA37: =IF($B32="n/a","n/a",IF(AA$3>($B32+$E37),$C37-SUM($F37:Z37),($C37/$B32))) -> 0 | AB37: =IF($B32="n/a","n/a",IF(AB$3>($B32+$E37),$C37-SUM($F37:AA37),($C37/$B32))) -> 0 | AC37: =IF($B32="n/a","n/a",IF(AC$3>($B32+$E37),$C37-SUM($F37:AB37),($C37/$B32))) -> 0 | AD37: =IF($B32="n/a","n/a",IF(AD$3>($B32+$E37),$C37-SUM($F37:AC37),($C37/$B32))) -> 0 | AE37: =IF($B32="n/a","n/a",IF(AE$3>($B32+$E37),$C37-SUM($F37:AD37),($C37/$B32))) -> 0 | AF37: =IF($B32="n/a","n/a",IF(AF$3>($B32+$E37),$C37-SUM($F37:AE37),($C37/$B32))) -> 0 | AG37: =IF($B32="n/a","n/a",IF(AG$3>($B32+$E37),$C37-SUM($F37:AF37),($C37/$B32))) -> 0 | AH37: =IF($B32="n/a","n/a",IF(AH$3>($B32+$E37),$C37-SUM($F37:AG37),($C37/$B32))) -> 0 | AI37: =IF($B32="n/a","n/a",IF(AI$3>($B32+$E37),$C37-SUM($F37:AH37),($C37/$B32))) -> 0 | AJ37: =IF($B32="n/a","n/a",IF(AJ$3>($B32+$E37),$C37-SUM($F37:AI37),($C37/$B32))) -> 0 | AK37: =IF($B32="n/a","n/a",IF(AK$3>($B32+$E37),$C37-SUM($F37:AJ37),($C37/$B32))) -> 0 | AL37: =IF($B32="n/a","n/a",IF(AL$3>($B32+$E37),$C37-SUM($F37:AK37),($C37/$B32))) -> 0 | AM37: =IF($B32="n/a","n/a",IF(AM$3>($B32+$E37),$C37-SUM($F37:AL37),($C37/$B32))) -> 0 | AN37: =IF($B32="n/a","n/a",IF(AN$3>($B32+$E37),$C37-SUM($F37:AM37),($C37/$B32))) -> 0 | AO37: =IF($B32="n/a","n/a",IF(AO$3>($B32+$E37),$C37-SUM($F37:AN37),($C37/$B32))) -> 0 | AP37: =IF($B32="n/a","n/a",IF(AP$3>($B32+$E37),$C37-SUM($F37:AO37),($C37/$B32))) -> 0 | AQ37: =IF($B32="n/a","n/a",IF(AQ$3>($B32+$E37),$C37-SUM($F37:AP37),($C37/$B32))) -> 0 | AR37: =IF($B32="n/a","n/a",IF(AR$3>($B32+$E37),$C37-SUM($F37:AQ37),($C37/$B32))) -> 0 | AS37: =IF($B32="n/a","n/a",IF(AS$3>($B32+$E37),$C37-SUM($F37:AR37),($C37/$B32))) -> 0 | AT37: =IF($B32="n/a","n/a",IF(AT$3>($B32+$E37),$C37-SUM($F37:AS37),($C37/$B32))) -> 0 | AU37: =IF($B32="n/a","n/a",IF(AU$3>($B32+$E37),$C37-SUM($F37:AT37),($C37/$B32))) -> 0 | AV37: =IF($B32="n/a","n/a",IF(AV$3>($B32+$E37),$C37-SUM($F37:AU37),($C37/$B32))) -> 0 | AW37: =IF($B32="n/a","n/a",IF(AW$3>($B32+$E37),$C37-SUM($F37:AV37),($C37/$B32))) -> 0 | AX37: =IF($B32="n/a","n/a",IF(AX$3>($B32+$E37),$C37-SUM($F37:AW37),($C37/$B32))) -> 0 | AY37: =IF($B32="n/a","n/a",IF(AY$3>($B32+$E37),$C37-SUM($F37:AX37),($C37/$B32))) -> 0 | AZ37: =IF($B32="n/a","n/a",IF(AZ$3>($B32+$E37),$C37-SUM($F37:AY37),($C37/$B32))) -> 0 | BA37: =IF($B32="n/a","n/a",IF(BA$3>($B32+$E37),$C37-SUM($F37:AZ37),($C37/$B32))) -> 0 | BB37: =IF($B32="n/a","n/a",IF(BB$3>($B32+$E37),$C37-SUM($F37:BA37),($C37/$B32))) -> 0 | BC37: =IF($B32="n/a","n/a",IF(BC$3>($B32+$E37),$C37-SUM($F37:BB37),($C37/$B32))) -> 0 | BD37: =IF($B32="n/a","n/a",IF(BD$3>($B32+$E37),$C37-SUM($F37:BC37),($C37/$B32))) -> 0 | BE37: =IF($B32="n/a","n/a",IF(BE$3>($B32+$E37),$C37-SUM($F37:BD37),($C37/$B32))) -> 0 | BF37: =IF($B32="n/a","n/a",IF(BF$3>($B32+$E37),$C37-SUM($F37:BE37),($C37/$B32))) -> 0 | BG37: =IF($B32="n/a","n/a",IF(BG$3>($B32+$E37),$C37-SUM($F37:BF37),($C37/$B32))) -> 0 | BH37: =IF($B32="n/a","n/a",IF(BH$3>($B32+$E37),$C37-SUM($F37:BG37),($C37/$B32))) -> 0 | BI37: =IF($B32="n/a","n/a",IF(BI$3>($B32+$E37),$C37-SUM($F37:BH37),($C37/$B32))) -> 0 | BJ37: =IF($B32="n/a","n/a",IF(BJ$3>($B32+$E37),$C37-SUM($F37:BI37),($C37/$B32))) -> 0 | BK37: =IF($B32="n/a","n/a",IF(BK$3>($B32+$E37),$C37-SUM($F37:BJ37),($C37/$B32))) -> 0 | BL37: =IF($B32="n/a","n/a",IF(BL$3>($B32+$E37),$C37-SUM($F37:BK37),($C37/$B32))) -> 0 | BM37: =IF($B32="n/a","n/a",IF(BM$3>($B32+$E37),$C37-SUM($F37:BL37),($C37/$B32))) -> 0 | BN37: =IF($B32="n/a","n/a",IF(BN$3>($B32+$E37),$C37-SUM($F37:BM37),($C37/$B32))) -> 0
B38: =+OFFSET('I3 CAPEX '!$E$79,$A29,E35) -> 0.6642399154 | C38: =OFFSET('I3 CAPEX '!$E$44,$A29,E38)+OFFSET('I3 CAPEX '!$E$79,$A29,E38) -> 0 | E38: 7 | M38: =IF($B32="n/a","n/a",IF(M$3>($B32+$E38),$C38-SUM($F38:L38),($C38/$B32))) -> 0 | N38: =IF($B32="n/a","n/a",IF(N$3>($B32+$E38),$C38-SUM($F38:M38),($C38/$B32))) -> 0 | O38: =IF($B32="n/a","n/a",IF(O$3>($B32+$E38),$C38-SUM($F38:N38),($C38/$B32))) -> 0 | P38: =IF($B32="n/a","n/a",IF(P$3>($B32+$E38),$C38-SUM($F38:O38),($C38/$B32))) -> 0 | Q38: =IF($B32="n/a","n/a",IF(Q$3>($B32+$E38),$C38-SUM($F38:P38),($C38/$B32))) -> 0 | R38: =IF($B32="n/a","n/a",IF(R$3>($B32+$E38),$C38-SUM($F38:Q38),($C38/$B32))) -> 0 | S38: =IF($B32="n/a","n/a",IF(S$3>($B32+$E38),$C38-SUM($F38:R38),($C38/$B32))) -> 0 | T38: =IF($B32="n/a","n/a",IF(T$3>($B32+$E38),$C38-SUM($F38:S38),($C38/$B32))) -> 0 | U38: =IF($B32="n/a","n/a",IF(U$3>($B32+$E38),$C38-SUM($F38:T38),($C38/$B32))) -> 0 | V38: =IF($B32="n/a","n/a",IF(V$3>($B32+$E38),$C38-SUM($F38:U38),($C38/$B32))) -> 0 | W38: =IF($B32="n/a","n/a",IF(W$3>($B32+$E38),$C38-SUM($F38:V38),($C38/$B32))) -> 0 | X38: =IF($B32="n/a","n/a",IF(X$3>($B32+$E38),$C38-SUM($F38:W38),($C38/$B32))) -> 0 | Y38: =IF($B32="n/a","n/a",IF(Y$3>($B32+$E38),$C38-SUM($F38:X38),($C38/$B32))) -> 0 | Z38: =IF($B32="n/a","n/a",IF(Z$3>($B32+$E38),$C38-SUM($F38:Y38),($C38/$B32))) -> 0 | AA38: =IF($B32="n/a","n/a",IF(AA$3>($B32+$E38),$C38-SUM($F38:Z38),($C38/$B32))) -> 0 | AB38: =IF($B32="n/a","n/a",IF(AB$3>($B32+$E38),$C38-SUM($F38:AA38),($C38/$B32))) -> 0 | AC38: =IF($B32="n/a","n/a",IF(AC$3>($B32+$E38),$C38-SUM($F38:AB38),($C38/$B32))) -> 0 | AD38: =IF($B32="n/a","n/a",IF(AD$3>($B32+$E38),$C38-SUM($F38:AC38),($C38/$B32))) -> 0 | AE38: =IF($B32="n/a","n/a",IF(AE$3>($B32+$E38),$C38-SUM($F38:AD38),($C38/$B32))) -> 0 | AF38: =IF($B32="n/a","n/a",IF(AF$3>($B32+$E38),$C38-SUM($F38:AE38),($C38/$B32))) -> 0 | AG38: =IF($B32="n/a","n/a",IF(AG$3>($B32+$E38),$C38-SUM($F38:AF38),($C38/$B32))) -> 0 | AH38: =IF($B32="n/a","n/a",IF(AH$3>($B32+$E38),$C38-SUM($F38:AG38),($C38/$B32))) -> 0 | AI38: =IF($B32="n/a","n/a",IF(AI$3>($B32+$E38),$C38-SUM($F38:AH38),($C38/$B32))) -> 0 | AJ38: =IF($B32="n/a","n/a",IF(AJ$3>($B32+$E38),$C38-SUM($F38:AI38),($C38/$B32))) -> 0 | AK38: =IF($B32="n/a","n/a",IF(AK$3>($B32+$E38),$C38-SUM($F38:AJ38),($C38/$B32))) -> 0 | AL38: =IF($B32="n/a","n/a",IF(AL$3>($B32+$E38),$C38-SUM($F38:AK38),($C38/$B32))) -> 0 | AM38: =IF($B32="n/a","n/a",IF(AM$3>($B32+$E38),$C38-SUM($F38:AL38),($C38/$B32))) -> 0 | AN38: =IF($B32="n/a","n/a",IF(AN$3>($B32+$E38),$C38-SUM($F38:AM38),($C38/$B32))) -> 0 | AO38: =IF($B32="n/a","n/a",IF(AO$3>($B32+$E38),$C38-SUM($F38:AN38),($C38/$B32))) -> 0 | AP38: =IF($B32="n/a","n/a",IF(AP$3>($B32+$E38),$C38-SUM($F38:AO38),($C38/$B32))) -> 0 | AQ38: =IF($B32="n/a","n/a",IF(AQ$3>($B32+$E38),$C38-SUM($F38:AP38),($C38/$B32))) -> 0 | AR38: =IF($B32="n/a","n/a",IF(AR$3>($B32+$E38),$C38-SUM($F38:AQ38),($C38/$B32))) -> 0 | AS38: =IF($B32="n/a","n/a",IF(AS$3>($B32+$E38),$C38-SUM($F38:AR38),($C38/$B32))) -> 0 | AT38: =IF($B32="n/a","n/a",IF(AT$3>($B32+$E38),$C38-SUM($F38:AS38),($C38/$B32))) -> 0 | AU38: =IF($B32="n/a","n/a",IF(AU$3>($B32+$E38),$C38-SUM($F38:AT38),($C38/$B32))) -> 0 | AV38: =IF($B32="n/a","n/a",IF(AV$3>($B32+$E38),$C38-SUM($F38:AU38),($C38/$B32))) -> 0 | AW38: =IF($B32="n/a","n/a",IF(AW$3>($B32+$E38),$C38-SUM($F38:AV38),($C38/$B32))) -> 0 | AX38: =IF($B32="n/a","n/a",IF(AX$3>($B32+$E38),$C38-SUM($F38:AW38),($C38/$B32))) -> 0 | AY38: =IF($B32="n/a","n/a",IF(AY$3>($B32+$E38),$C38-SUM($F38:AX38),($C38/$B32))) -> 0 | AZ38: =IF($B32="n/a","n/a",IF(AZ$3>($B32+$E38),$C38-SUM($F38:AY38),($C38/$B32))) -> 0 | BA38: =IF($B32="n/a","n/a",IF(BA$3>($B32+$E38),$C38-SUM($F38:AZ38),($C38/$B32))) -> 0 | BB38: =IF($B32="n/a","n/a",IF(BB$3>($B32+$E38),$C38-SUM($F38:BA38),($C38/$B32))) -> 0 | BC38: =IF($B32="n/a","n/a",IF(BC$3>($B32+$E38),$C38-SUM($F38:BB38),($C38/$B32))) -> 0 | BD38: =IF($B32="n/a","n/a",IF(BD$3>($B32+$E38),$C38-SUM($F38:BC38),($C38/$B32))) -> 0 | BE38: =IF($B32="n/a","n/a",IF(BE$3>($B32+$E38),$C38-SUM($F38:BD38),($C38/$B32))) -> 0 | BF38: =IF($B32="n/a","n/a",IF(BF$3>($B32+$E38),$C38-SUM($F38:BE38),($C38/$B32))) -> 0 | BG38: =IF($B32="n/a","n/a",IF(BG$3>($B32+$E38),$C38-SUM($F38:BF38),($C38/$B32))) -> 0 | BH38: =IF($B32="n/a","n/a",IF(BH$3>($B32+$E38),$C38-SUM($F38:BG38),($C38/$B32))) -> 0 | BI38: =IF($B32="n/a","n/a",IF(BI$3>($B32+$E38),$C38-SUM($F38:BH38),($C38/$B32))) -> 0 | BJ38: =IF($B32="n/a","n/a",IF(BJ$3>($B32+$E38),$C38-SUM($F38:BI38),($C38/$B32))) -> 0 | BK38: =IF($B32="n/a","n/a",IF(BK$3>($B32+$E38),$C38-SUM($F38:BJ38),($C38/$B32))) -> 0 | BL38: =IF($B32="n/a","n/a",IF(BL$3>($B32+$E38),$C38-SUM($F38:BK38),($C38/$B32))) -> 0 | BM38: =IF($B32="n/a","n/a",IF(BM$3>($B32+$E38),$C38-SUM($F38:BL38),($C38/$B32))) -> 0 | BN38: =IF($B32="n/a","n/a",IF(BN$3>($B32+$E38),$C38-SUM($F38:BM38),($C38/$B32))) -> 0
C39: =OFFSET('I3 CAPEX '!$E$44,$A29,E39)+OFFSET('I3 CAPEX '!$E$79,$A29,E39) -> 0 | E39: 8 | N39: =IF($B32="n/a","n/a",IF(N$3>($B32+$E39),$C39-SUM($F39:M39),($C39/$B32))) -> 0 | O39: =IF($B32="n/a","n/a",IF(O$3>($B32+$E39),$C39-SUM($F39:N39),($C39/$B32))) -> 0 | P39: =IF($B32="n/a","n/a",IF(P$3>($B32+$E39),$C39-SUM($F39:O39),($C39/$B32))) -> 0 | Q39: =IF($B32="n/a","n/a",IF(Q$3>($B32+$E39),$C39-SUM($F39:P39),($C39/$B32))) -> 0 | R39: =IF($B32="n/a","n/a",IF(R$3>($B32+$E39),$C39-SUM($F39:Q39),($C39/$B32))) -> 0 | S39: =IF($B32="n/a","n/a",IF(S$3>($B32+$E39),$C39-SUM($F39:R39),($C39/$B32))) -> 0 | T39: =IF($B32="n/a","n/a",IF(T$3>($B32+$E39),$C39-SUM($F39:S39),($C39/$B32))) -> 0 | U39: =IF($B32="n/a","n/a",IF(U$3>($B32+$E39),$C39-SUM($F39:T39),($C39/$B32))) -> 0 | V39: =IF($B32="n/a","n/a",IF(V$3>($B32+$E39),$C39-SUM($F39:U39),($C39/$B32))) -> 0 | W39: =IF($B32="n/a","n/a",IF(W$3>($B32+$E39),$C39-SUM($F39:V39),($C39/$B32))) -> 0 | X39: =IF($B32="n/a","n/a",IF(X$3>($B32+$E39),$C39-SUM($F39:W39),($C39/$B32))) -> 0 | Y39: =IF($B32="n/a","n/a",IF(Y$3>($B32+$E39),$C39-SUM($F39:X39),($C39/$B32))) -> 0 | Z39: =IF($B32="n/a","n/a",IF(Z$3>($B32+$E39),$C39-SUM($F39:Y39),($C39/$B32))) -> 0 | AA39: =IF($B32="n/a","n/a",IF(AA$3>($B32+$E39),$C39-SUM($F39:Z39),($C39/$B32))) -> 0 | AB39: =IF($B32="n/a","n/a",IF(AB$3>($B32+$E39),$C39-SUM($F39:AA39),($C39/$B32))) -> 0 | AC39: =IF($B32="n/a","n/a",IF(AC$3>($B32+$E39),$C39-SUM($F39:AB39),($C39/$B32))) -> 0 | AD39: =IF($B32="n/a","n/a",IF(AD$3>($B32+$E39),$C39-SUM($F39:AC39),($C39/$B32))) -> 0 | AE39: =IF($B32="n/a","n/a",IF(AE$3>($B32+$E39),$C39-SUM($F39:AD39),($C39/$B32))) -> 0 | AF39: =IF($B32="n/a","n/a",IF(AF$3>($B32+$E39),$C39-SUM($F39:AE39),($C39/$B32))) -> 0 | AG39: =IF($B32="n/a","n/a",IF(AG$3>($B32+$E39),$C39-SUM($F39:AF39),($C39/$B32))) -> 0 | AH39: =IF($B32="n/a","n/a",IF(AH$3>($B32+$E39),$C39-SUM($F39:AG39),($C39/$B32))) -> 0 | AI39: =IF($B32="n/a","n/a",IF(AI$3>($B32+$E39),$C39-SUM($F39:AH39),($C39/$B32))) -> 0 | AJ39: =IF($B32="n/a","n/a",IF(AJ$3>($B32+$E39),$C39-SUM($F39:AI39),($C39/$B32))) -> 0 | AK39: =IF($B32="n/a","n/a",IF(AK$3>($B32+$E39),$C39-SUM($F39:AJ39),($C39/$B32))) -> 0 | AL39: =IF($B32="n/a","n/a",IF(AL$3>($B32+$E39),$C39-SUM($F39:AK39),($C39/$B32))) -> 0 | AM39: =IF($B32="n/a","n/a",IF(AM$3>($B32+$E39),$C39-SUM($F39:AL39),($C39/$B32))) -> 0 | AN39: =IF($B32="n/a","n/a",IF(AN$3>($B32+$E39),$C39-SUM($F39:AM39),($C39/$B32))) -> 0 | AO39: =IF($B32="n/a","n/a",IF(AO$3>($B32+$E39),$C39-SUM($F39:AN39),($C39/$B32))) -> 0 | AP39: =IF($B32="n/a","n/a",IF(AP$3>($B32+$E39),$C39-SUM($F39:AO39),($C39/$B32))) -> 0 | AQ39: =IF($B32="n/a","n/a",IF(AQ$3>($B32+$E39),$C39-SUM($F39:AP39),($C39/$B32))) -> 0 | AR39: =IF($B32="n/a","n/a",IF(AR$3>($B32+$E39),$C39-SUM($F39:AQ39),($C39/$B32))) -> 0 | AS39: =IF($B32="n/a","n/a",IF(AS$3>($B32+$E39),$C39-SUM($F39:AR39),($C39/$B32))) -> 0 | AT39: =IF($B32="n/a","n/a",IF(AT$3>($B32+$E39),$C39-SUM($F39:AS39),($C39/$B32))) -> 0 | AU39: =IF($B32="n/a","n/a",IF(AU$3>($B32+$E39),$C39-SUM($F39:AT39),($C39/$B32))) -> 0 | AV39: =IF($B32="n/a","n/a",IF(AV$3>($B32+$E39),$C39-SUM($F39:AU39),($C39/$B32))) -> 0 | AW39: =IF($B32="n/a","n/a",IF(AW$3>($B32+$E39),$C39-SUM($F39:AV39),($C39/$B32))) -> 0 | AX39: =IF($B32="n/a","n/a",IF(AX$3>($B32+$E39),$C39-SUM($F39:AW39),($C39/$B32))) -> 0 | AY39: =IF($B32="n/a","n/a",IF(AY$3>($B32+$E39),$C39-SUM($F39:AX39),($C39/$B32))) -> 0 | AZ39: =IF($B32="n/a","n/a",IF(AZ$3>($B32+$E39),$C39-SUM($F39:AY39),($C39/$B32))) -> 0 | BA39: =IF($B32="n/a","n/a",IF(BA$3>($B32+$E39),$C39-SUM($F39:AZ39),($C39/$B32))) -> 0 | BB39: =IF($B32="n/a","n/a",IF(BB$3>($B32+$E39),$C39-SUM($F39:BA39),($C39/$B32))) -> 0 | BC39: =IF($B32="n/a","n/a",IF(BC$3>($B32+$E39),$C39-SUM($F39:BB39),($C39/$B32))) -> 0 | BD39: =IF($B32="n/a","n/a",IF(BD$3>($B32+$E39),$C39-SUM($F39:BC39),($C39/$B32))) -> 0 | BE39: =IF($B32="n/a","n/a",IF(BE$3>($B32+$E39),$C39-SUM($F39:BD39),($C39/$B32))) -> 0 | BF39: =IF($B32="n/a","n/a",IF(BF$3>($B32+$E39),$C39-SUM($F39:BE39),($C39/$B32))) -> 0 | BG39: =IF($B32="n/a","n/a",IF(BG$3>($B32+$E39),$C39-SUM($F39:BF39),($C39/$B32))) -> 0 | BH39: =IF($B32="n/a","n/a",IF(BH$3>($B32+$E39),$C39-SUM($F39:BG39),($C39/$B32))) -> 0 | BI39: =IF($B32="n/a","n/a",IF(BI$3>($B32+$E39),$C39-SUM($F39:BH39),($C39/$B32))) -> 0 | BJ39: =IF($B32="n/a","n/a",IF(BJ$3>($B32+$E39),$C39-SUM($F39:BI39),($C39/$B32))) -> 0 | BK39: =IF($B32="n/a","n/a",IF(BK$3>($B32+$E39),$C39-SUM($F39:BJ39),($C39/$B32))) -> 0 | BL39: =IF($B32="n/a","n/a",IF(BL$3>($B32+$E39),$C39-SUM($F39:BK39),($C39/$B32))) -> 0 | BM39: =IF($B32="n/a","n/a",IF(BM$3>($B32+$E39),$C39-SUM($F39:BL39),($C39/$B32))) -> 0 | BN39: =IF($B32="n/a","n/a",IF(BN$3>($B32+$E39),$C39-SUM($F39:BM39),($C39/$B32))) -> 0
C40: =OFFSET('I3 CAPEX '!$E$44,$A29,E40)+OFFSET('I3 CAPEX '!$E$79,$A29,E40) -> 0 | E40: 9 | O40: =IF($B32="n/a","n/a",IF(O$3>($B32+$E40),$C40-SUM($F40:N40),($C40/$B32))) -> 0 | P40: =IF($B32="n/a","n/a",IF(P$3>($B32+$E40),$C40-SUM($F40:O40),($C40/$B32))) -> 0 | Q40: =IF($B32="n/a","n/a",IF(Q$3>($B32+$E40),$C40-SUM($F40:P40),($C40/$B32))) -> 0 | R40: =IF($B32="n/a","n/a",IF(R$3>($B32+$E40),$C40-SUM($F40:Q40),($C40/$B32))) -> 0 | S40: =IF($B32="n/a","n/a",IF(S$3>($B32+$E40),$C40-SUM($F40:R40),($C40/$B32))) -> 0 | T40: =IF($B32="n/a","n/a",IF(T$3>($B32+$E40),$C40-SUM($F40:S40),($C40/$B32))) -> 0 | U40: =IF($B32="n/a","n/a",IF(U$3>($B32+$E40),$C40-SUM($F40:T40),($C40/$B32))) -> 0 | V40: =IF($B32="n/a","n/a",IF(V$3>($B32+$E40),$C40-SUM($F40:U40),($C40/$B32))) -> 0 | W40: =IF($B32="n/a","n/a",IF(W$3>($B32+$E40),$C40-SUM($F40:V40),($C40/$B32))) -> 0 | X40: =IF($B32="n/a","n/a",IF(X$3>($B32+$E40),$C40-SUM($F40:W40),($C40/$B32))) -> 0 | Y40: =IF($B32="n/a","n/a",IF(Y$3>($B32+$E40),$C40-SUM($F40:X40),($C40/$B32))) -> 0 | Z40: =IF($B32="n/a","n/a",IF(Z$3>($B32+$E40),$C40-SUM($F40:Y40),($C40/$B32))) -> 0 | AA40: =IF($B32="n/a","n/a",IF(AA$3>($B32+$E40),$C40-SUM($F40:Z40),($C40/$B32))) -> 0 | AB40: =IF($B32="n/a","n/a",IF(AB$3>($B32+$E40),$C40-SUM($F40:AA40),($C40/$B32))) -> 0 | AC40: =IF($B32="n/a","n/a",IF(AC$3>($B32+$E40),$C40-SUM($F40:AB40),($C40/$B32))) -> 0 | AD40: =IF($B32="n/a","n/a",IF(AD$3>($B32+$E40),$C40-SUM($F40:AC40),($C40/$B32))) -> 0 | AE40: =IF($B32="n/a","n/a",IF(AE$3>($B32+$E40),$C40-SUM($F40:AD40),($C40/$B32))) -> 0 | AF40: =IF($B32="n/a","n/a",IF(AF$3>($B32+$E40),$C40-SUM($F40:AE40),($C40/$B32))) -> 0 | AG40: =IF($B32="n/a","n/a",IF(AG$3>($B32+$E40),$C40-SUM($F40:AF40),($C40/$B32))) -> 0 | AH40: =IF($B32="n/a","n/a",IF(AH$3>($B32+$E40),$C40-SUM($F40:AG40),($C40/$B32))) -> 0 | AI40: =IF($B32="n/a","n/a",IF(AI$3>($B32+$E40),$C40-SUM($F40:AH40),($C40/$B32))) -> 0 | AJ40: =IF($B32="n/a","n/a",IF(AJ$3>($B32+$E40),$C40-SUM($F40:AI40),($C40/$B32))) -> 0 | AK40: =IF($B32="n/a","n/a",IF(AK$3>($B32+$E40),$C40-SUM($F40:AJ40),($C40/$B32))) -> 0 | AL40: =IF($B32="n/a","n/a",IF(AL$3>($B32+$E40),$C40-SUM($F40:AK40),($C40/$B32))) -> 0 | AM40: =IF($B32="n/a","n/a",IF(AM$3>($B32+$E40),$C40-SUM($F40:AL40),($C40/$B32))) -> 0 | AN40: =IF($B32="n/a","n/a",IF(AN$3>($B32+$E40),$C40-SUM($F40:AM40),($C40/$B32))) -> 0 | AO40: =IF($B32="n/a","n/a",IF(AO$3>($B32+$E40),$C40-SUM($F40:AN40),($C40/$B32))) -> 0 | AP40: =IF($B32="n/a","n/a",IF(AP$3>($B32+$E40),$C40-SUM($F40:AO40),($C40/$B32))) -> 0 | AQ40: =IF($B32="n/a","n/a",IF(AQ$3>($B32+$E40),$C40-SUM($F40:AP40),($C40/$B32))) -> 0 | AR40: =IF($B32="n/a","n/a",IF(AR$3>($B32+$E40),$C40-SUM($F40:AQ40),($C40/$B32))) -> 0 | AS40: =IF($B32="n/a","n/a",IF(AS$3>($B32+$E40),$C40-SUM($F40:AR40),($C40/$B32))) -> 0 | AT40: =IF($B32="n/a","n/a",IF(AT$3>($B32+$E40),$C40-SUM($F40:AS40),($C40/$B32))) -> 0 | AU40: =IF($B32="n/a","n/a",IF(AU$3>($B32+$E40),$C40-SUM($F40:AT40),($C40/$B32))) -> 0 | AV40: =IF($B32="n/a","n/a",IF(AV$3>($B32+$E40),$C40-SUM($F40:AU40),($C40/$B32))) -> 0 | AW40: =IF($B32="n/a","n/a",IF(AW$3>($B32+$E40),$C40-SUM($F40:AV40),($C40/$B32))) -> 0 | AX40: =IF($B32="n/a","n/a",IF(AX$3>($B32+$E40),$C40-SUM($F40:AW40),($C40/$B32))) -> 0 | AY40: =IF($B32="n/a","n/a",IF(AY$3>($B32+$E40),$C40-SUM($F40:AX40),($C40/$B32))) -> 0 | AZ40: =IF($B32="n/a","n/a",IF(AZ$3>($B32+$E40),$C40-SUM($F40:AY40),($C40/$B32))) -> 0 | BA40: =IF($B32="n/a","n/a",IF(BA$3>($B32+$E40),$C40-SUM($F40:AZ40),($C40/$B32))) -> 0 | BB40: =IF($B32="n/a","n/a",IF(BB$3>($B32+$E40),$C40-SUM($F40:BA40),($C40/$B32))) -> 0 | BC40: =IF($B32="n/a","n/a",IF(BC$3>($B32+$E40),$C40-SUM($F40:BB40),($C40/$B32))) -> 0 | BD40: =IF($B32="n/a","n/a",IF(BD$3>($B32+$E40),$C40-SUM($F40:BC40),($C40/$B32))) -> 0 | BE40: =IF($B32="n/a","n/a",IF(BE$3>($B32+$E40),$C40-SUM($F40:BD40),($C40/$B32))) -> 0 | BF40: =IF($B32="n/a","n/a",IF(BF$3>($B32+$E40),$C40-SUM($F40:BE40),($C40/$B32))) -> 0 | BG40: =IF($B32="n/a","n/a",IF(BG$3>($B32+$E40),$C40-SUM($F40:BF40),($C40/$B32))) -> 0 | BH40: =IF($B32="n/a","n/a",IF(BH$3>($B32+$E40),$C40-SUM($F40:BG40),($C40/$B32))) -> 0 | BI40: =IF($B32="n/a","n/a",IF(BI$3>($B32+$E40),$C40-SUM($F40:BH40),($C40/$B32))) -> 0 | BJ40: =IF($B32="n/a","n/a",IF(BJ$3>($B32+$E40),$C40-SUM($F40:BI40),($C40/$B32))) -> 0 | BK40: =IF($B32="n/a","n/a",IF(BK$3>($B32+$E40),$C40-SUM($F40:BJ40),($C40/$B32))) -> 0 | BL40: =IF($B32="n/a","n/a",IF(BL$3>($B32+$E40),$C40-SUM($F40:BK40),($C40/$B32))) -> 0 | BM40: =IF($B32="n/a","n/a",IF(BM$3>($B32+$E40),$C40-SUM($F40:BL40),($C40/$B32))) -> 0 | BN40: =IF($B32="n/a","n/a",IF(BN$3>($B32+$E40),$C40-SUM($F40:BM40),($C40/$B32))) -> 0
C41: =OFFSET('I3 CAPEX '!$E$44,$A29,E41)+OFFSET('I3 CAPEX '!$E$79,$A29,E41) -> 0 | E41: 10 | P41: =IF($B32="n/a","n/a",IF(P$3>($B32+$E41),$C41-SUM($F41:O41),($C41/$B32))) -> 0 | Q41: =IF($B32="n/a","n/a",IF(Q$3>($B32+$E41),$C41-SUM($F41:P41),($C41/$B32))) -> 0 | R41: =IF($B32="n/a","n/a",IF(R$3>($B32+$E41),$C41-SUM($F41:Q41),($C41/$B32))) -> 0 | S41: =IF($B32="n/a","n/a",IF(S$3>($B32+$E41),$C41-SUM($F41:R41),($C41/$B32))) -> 0 | T41: =IF($B32="n/a","n/a",IF(T$3>($B32+$E41),$C41-SUM($F41:S41),($C41/$B32))) -> 0 | U41: =IF($B32="n/a","n/a",IF(U$3>($B32+$E41),$C41-SUM($F41:T41),($C41/$B32))) -> 0 | V41: =IF($B32="n/a","n/a",IF(V$3>($B32+$E41),$C41-SUM($F41:U41),($C41/$B32))) -> 0 | W41: =IF($B32="n/a","n/a",IF(W$3>($B32+$E41),$C41-SUM($F41:V41),($C41/$B32))) -> 0 | X41: =IF($B32="n/a","n/a",IF(X$3>($B32+$E41),$C41-SUM($F41:W41),($C41/$B32))) -> 0 | Y41: =IF($B32="n/a","n/a",IF(Y$3>($B32+$E41),$C41-SUM($F41:X41),($C41/$B32))) -> 0 | Z41: =IF($B32="n/a","n/a",IF(Z$3>($B32+$E41),$C41-SUM($F41:Y41),($C41/$B32))) -> 0 | AA41: =IF($B32="n/a","n/a",IF(AA$3>($B32+$E41),$C41-SUM($F41:Z41),($C41/$B32))) -> 0 | AB41: =IF($B32="n/a","n/a",IF(AB$3>($B32+$E41),$C41-SUM($F41:AA41),($C41/$B32))) -> 0 | AC41: =IF($B32="n/a","n/a",IF(AC$3>($B32+$E41),$C41-SUM($F41:AB41),($C41/$B32))) -> 0 | AD41: =IF($B32="n/a","n/a",IF(AD$3>($B32+$E41),$C41-SUM($F41:AC41),($C41/$B32))) -> 0 | AE41: =IF($B32="n/a","n/a",IF(AE$3>($B32+$E41),$C41-SUM($F41:AD41),($C41/$B32))) -> 0 | AF41: =IF($B32="n/a","n/a",IF(AF$3>($B32+$E41),$C41-SUM($F41:AE41),($C41/$B32))) -> 0 | AG41: =IF($B32="n/a","n/a",IF(AG$3>($B32+$E41),$C41-SUM($F41:AF41),($C41/$B32))) -> 0 | AH41: =IF($B32="n/a","n/a",IF(AH$3>($B32+$E41),$C41-SUM($F41:AG41),($C41/$B32))) -> 0 | AI41: =IF($B32="n/a","n/a",IF(AI$3>($B32+$E41),$C41-SUM($F41:AH41),($C41/$B32))) -> 0 | AJ41: =IF($B32="n/a","n/a",IF(AJ$3>($B32+$E41),$C41-SUM($F41:AI41),($C41/$B32))) -> 0 | AK41: =IF($B32="n/a","n/a",IF(AK$3>($B32+$E41),$C41-SUM($F41:AJ41),($C41/$B32))) -> 0 | AL41: =IF($B32="n/a","n/a",IF(AL$3>($B32+$E41),$C41-SUM($F41:AK41),($C41/$B32))) -> 0 | AM41: =IF($B32="n/a","n/a",IF(AM$3>($B32+$E41),$C41-SUM($F41:AL41),($C41/$B32))) -> 0 | AN41: =IF($B32="n/a","n/a",IF(AN$3>($B32+$E41),$C41-SUM($F41:AM41),($C41/$B32))) -> 0 | AO41: =IF($B32="n/a","n/a",IF(AO$3>($B32+$E41),$C41-SUM($F41:AN41),($C41/$B32))) -> 0 | AP41: =IF($B32="n/a","n/a",IF(AP$3>($B32+$E41),$C41-SUM($F41:AO41),($C41/$B32))) -> 0 | AQ41: =IF($B32="n/a","n/a",IF(AQ$3>($B32+$E41),$C41-SUM($F41:AP41),($C41/$B32))) -> 0 | AR41: =IF($B32="n/a","n/a",IF(AR$3>($B32+$E41),$C41-SUM($F41:AQ41),($C41/$B32))) -> 0 | AS41: =IF($B32="n/a","n/a",IF(AS$3>($B32+$E41),$C41-SUM($F41:AR41),($C41/$B32))) -> 0 | AT41: =IF($B32="n/a","n/a",IF(AT$3>($B32+$E41),$C41-SUM($F41:AS41),($C41/$B32))) -> 0 | AU41: =IF($B32="n/a","n/a",IF(AU$3>($B32+$E41),$C41-SUM($F41:AT41),($C41/$B32))) -> 0 | AV41: =IF($B32="n/a","n/a",IF(AV$3>($B32+$E41),$C41-SUM($F41:AU41),($C41/$B32))) -> 0 | AW41: =IF($B32="n/a","n/a",IF(AW$3>($B32+$E41),$C41-SUM($F41:AV41),($C41/$B32))) -> 0 | AX41: =IF($B32="n/a","n/a",IF(AX$3>($B32+$E41),$C41-SUM($F41:AW41),($C41/$B32))) -> 0 | AY41: =IF($B32="n/a","n/a",IF(AY$3>($B32+$E41),$C41-SUM($F41:AX41),($C41/$B32))) -> 0 | AZ41: =IF($B32="n/a","n/a",IF(AZ$3>($B32+$E41),$C41-SUM($F41:AY41),($C41/$B32))) -> 0 | BA41: =IF($B32="n/a","n/a",IF(BA$3>($B32+$E41),$C41-SUM($F41:AZ41),($C41/$B32))) -> 0 | BB41: =IF($B32="n/a","n/a",IF(BB$3>($B32+$E41),$C41-SUM($F41:BA41),($C41/$B32))) -> 0 | BC41: =IF($B32="n/a","n/a",IF(BC$3>($B32+$E41),$C41-SUM($F41:BB41),($C41/$B32))) -> 0 | BD41: =IF($B32="n/a","n/a",IF(BD$3>($B32+$E41),$C41-SUM($F41:BC41),($C41/$B32))) -> 0 | BE41: =IF($B32="n/a","n/a",IF(BE$3>($B32+$E41),$C41-SUM($F41:BD41),($C41/$B32))) -> 0 | BF41: =IF($B32="n/a","n/a",IF(BF$3>($B32+$E41),$C41-SUM($F41:BE41),($C41/$B32))) -> 0 | BG41: =IF($B32="n/a","n/a",IF(BG$3>($B32+$E41),$C41-SUM($F41:BF41),($C41/$B32))) -> 0 | BH41: =IF($B32="n/a","n/a",IF(BH$3>($B32+$E41),$C41-SUM($F41:BG41),($C41/$B32))) -> 0 | BI41: =IF($B32="n/a","n/a",IF(BI$3>($B32+$E41),$C41-SUM($F41:BH41),($C41/$B32))) -> 0 | BJ41: =IF($B32="n/a","n/a",IF(BJ$3>($B32+$E41),$C41-SUM($F41:BI41),($C41/$B32))) -> 0 | BK41: =IF($B32="n/a","n/a",IF(BK$3>($B32+$E41),$C41-SUM($F41:BJ41),($C41/$B32))) -> 0 | BL41: =IF($B32="n/a","n/a",IF(BL$3>($B32+$E41),$C41-SUM($F41:BK41),($C41/$B32))) -> 0 | BM41: =IF($B32="n/a","n/a",IF(BM$3>($B32+$E41),$C41-SUM($F41:BL41),($C41/$B32))) -> 0 | BN41: =IF($B32="n/a","n/a",IF(BN$3>($B32+$E41),$C41-SUM($F41:BM41),($C41/$B32))) -> 0
E42: 11
E43: 12
E44: 13
E45: 14
E46: 15
C47: =B29 -> Communications - Civil | F47: =SUBTOTAL(9,F30:F46) -> 0.1721833646 | G47: 0.179217583 | H47: 0.2114938578 | I47: 0.3148713234 | J47: 0.4155934219 | K47: 0.4588924313 | L47: 0.4588924313 | M47: 0.4588924313 | N47: 0.4588924313 | O47: 0.4588924313 | P47: 0.4588924313 | Q47: 0.4588924313 | R47: 0.4588924313 | S47: 0.4588924313 | T47: 0.4588924313 | U47: 0.4588924313 | V47: 0.4588924313 | W47: 0.4588924313 | X47: 0.4588924313 | Y47: 0.4588924313 | Z47: 0.4588924313 | AA47: 0.4588924313 | AB47: 0.4588924313 | AC47: 0.4588924313 | AD47: 0.4588924313 | AE47: 0.4588924313 | AF47: 0.4588924313 | AG47: 0.4588924313 | AH47: 0.4588924313 | AI47: 0.4588924313 | AJ47: 0.4588924313 | AK47: 0.4588924313 | AL47: =SUBTOTAL(9,AL30:AL46) -> 0.4588924313 | AM47: 0.4588924313 | AN47: 0.4588924313 | AO47: 0.4588924313 | AP47: 0.4588924313 | AQ47: 0.4588924313 | AR47: 0.4588924313 | AS47: 0.4588924313 | AT47: 0.4588924313 | AU47: 0.4588924313 | AV47: 0.4588924313 | AW47: 0.4588924313 | AX47: 0.4095517197 | AY47: 0.2867090668 | AZ47: 0.2867090668 | BA47: 0.2867090668 | BB47: 0.2867090668 | BC47: 0.2867090668 | BD47: 0.2867090668 | BE47: 0.2867090668 | BF47: 0.2867090668 | BG47: 0.2867090668 | BH47: 0.2867090668 | BI47: 0.2734242685 | BJ47: 0.2663900501 | BK47: 0.2341137752 | BL47: 0.1307363096 | BM47: 0.03001421117 | BN47: =SUBTOTAL(9,BN30:BN46) -> -1.998401444e-15
A48: =+A29+1 -> 3 | B48: =INDIRECT(CONCATENATE("Asset",A48)) -> Communications - Other
E49: Initial Asset Base | F49: =IF($B53="n/a","n/a",IF(F$3>$B53,+$B55,+$B55/$B53)) -> 6.603416444 | G49: =IF($B53="n/a","n/a",IF(G$3>$B53,+$B55-SUM($F49:F49),+$B55/$B53)) -> 6.603416444 | H49: =IF($B53="n/a","n/a",IF(H$3>$B53,+$B55-SUM($F49:G49),+$B55/$B53)) -> 6.603416444 | I49: =IF($B53="n/a","n/a",IF(I$3>$B53,+$B55-SUM($F49:H49),+$B55/$B53)) -> 6.603416444 | J49: =IF($B53="n/a","n/a",IF(J$3>$B53,+$B55-SUM($F49:I49),+$B55/$B53)) -> 6.603416444 | K49: =IF($B53="n/a","n/a",IF(K$3>$B53,+$B55-SUM($F49:J49),+$B55/$B53)) -> 6.603416444 | L49: =IF($B53="n/a","n/a",IF(L$3>$B53,+$B55-SUM($F49:K49),+$B55/$B53)) -> 6.603416444 | M49: =IF($B53="n/a","n/a",IF(M$3>$B53,+$B55-SUM($F49:L49),+$B55/$B53)) -> 6.603416444 | N49: =IF($B53="n/a","n/a",IF(N$3>$B53,+$B55-SUM($F49:M49),+$B55/$B53)) -> 6.603416444 | O49: =IF($B53="n/a","n/a",IF(O$3>$B53,+$B55-SUM($F49:N49),+$B55/$B53)) -> 6.603416444 | P49: =IF($B53="n/a","n/a",IF(P$3>$B53,+$B55-SUM($F49:O49),+$B55/$B53)) -> 6.603416444 | Q49: =IF($B53="n/a","n/a",IF(Q$3>$B53,+$B55-SUM($F49:P49),+$B55/$B53)) -> 4.418045405 | R49: =IF($B53="n/a","n/a",IF(R$3>$B53,+$B55-SUM($F49:Q49),+$B55/$B53)) -> 0 | S49: =IF($B53="n/a","n/a",IF(S$3>$B53,+$B55-SUM($F49:R49),+$B55/$B53)) -> 0 | T49: =IF($B53="n/a","n/a",IF(T$3>$B53,+$B55-SUM($F49:S49),+$B55/$B53)) -> 0 | U49: =IF($B53="n/a","n/a",IF(U$3>$B53,+$B55-SUM($F49:T49),+$B55/$B53)) -> 0 | V49: =IF($B53="n/a","n/a",IF(V$3>$B53,+$B55-SUM($F49:U49),+$B55/$B53)) -> 0 | W49: =IF($B53="n/a","n/a",IF(W$3>$B53,+$B55-SUM($F49:V49),+$B55/$B53)) -> 0 | X49: =IF($B53="n/a","n/a",IF(X$3>$B53,+$B55-SUM($F49:W49),+$B55/$B53)) -> 0 | Y49: =IF($B53="n/a","n/a",IF(Y$3>$B53,+$B55-SUM($F49:X49),+$B55/$B53)) -> 0 | Z49: =IF($B53="n/a","n/a",IF(Z$3>$B53,+$B55-SUM($F49:Y49),+$B55/$B53)) -> 0 | AA49: =IF($B53="n/a","n/a",IF(AA$3>$B53,+$B55-SUM($F49:Z49),+$B55/$B53)) -> 0 | AB49: =IF($B53="n/a","n/a",IF(AB$3>$B53,+$B55-SUM($F49:AA49),+$B55/$B53)) -> 0 | AC49: =IF($B53="n/a","n/a",IF(AC$3>$B53,+$B55-SUM($F49:AB49),+$B55/$B53)) -> 0 | AD49: =IF($B53="n/a","n/a",IF(AD$3>$B53,+$B55-SUM($F49:AC49),+$B55/$B53)) -> 0 | AE49: =IF($B53="n/a","n/a",IF(AE$3>$B53,+$B55-SUM($F49:AD49),+$B55/$B53)) -> 0 | AF49: =IF($B53="n/a","n/a",IF(AF$3>$B53,+$B55-SUM($F49:AE49),+$B55/$B53)) -> 0 | AG49: =IF($B53="n/a","n/a",IF(AG$3>$B53,+$B55-SUM($F49:AF49),+$B55/$B53)) -> 0 | AH49: =IF($B53="n/a","n/a",IF(AH$3>$B53,+$B55-SUM($F49:AG49),+$B55/$B53)) -> 0 | AI49: =IF($B53="n/a","n/a",IF(AI$3>$B53,+$B55-SUM($F49:AH49),+$B55/$B53)) -> 0 | AJ49: =IF($B53="n/a","n/a",IF(AJ$3>$B53,+$B55-SUM($F49:AI49),+$B55/$B53)) -> 0 | AK49: =IF($B53="n/a","n/a",IF(AK$3>$B53,+$B55-SUM($F49:AJ49),+$B55/$B53)) -> 0 | AL49: =IF($B53="n/a","n/a",IF(AL$3>$B53,+$B55-SUM($F49:AK49),+$B55/$B53)) -> 0 | AM49: =IF($B53="n/a","n/a",IF(AM$3>$B53,+$B55-SUM($F49:AL49),+$B55/$B53)) -> 0 | AN49: =IF($B53="n/a","n/a",IF(AN$3>$B53,+$B55-SUM($F49:AM49),+$B55/$B53)) -> 0 | AO49: =IF($B53="n/a","n/a",IF(AO$3>$B53,+$B55-SUM($F49:AN49),+$B55/$B53)) -> 0 | AP49: =IF($B53="n/a","n/a",IF(AP$3>$B53,+$B55-SUM($F49:AO49),+$B55/$B53)) -> 0 | AQ49: =IF($B53="n/a","n/a",IF(AQ$3>$B53,+$B55-SUM($F49:AP49),+$B55/$B53)) -> 0 | AR49: =IF($B53="n/a","n/a",IF(AR$3>$B53,+$B55-SUM($F49:AQ49),+$B55/$B53)) -> 0 | AS49: =IF($B53="n/a","n/a",IF(AS$3>$B53,+$B55-SUM($F49:AR49),+$B55/$B53)) -> 0 | AT49: =IF($B53="n/a","n/a",IF(AT$3>$B53,+$B55-SUM($F49:AS49),+$B55/$B53)) -> 0 | AU49: =IF($B53="n/a","n/a",IF(AU$3>$B53,+$B55-SUM($F49:AT49),+$B55/$B53)) -> 0 | AV49: =IF($B53="n/a","n/a",IF(AV$3>$B53,+$B55-SUM($F49:AU49),+$B55/$B53)) -> 0 | AW49: =IF($B53="n/a","n/a",IF(AW$3>$B53,+$B55-SUM($F49:AV49),+$B55/$B53)) -> 0 | AX49: =IF($B53="n/a","n/a",IF(AX$3>$B53,+$B55-SUM($F49:AW49),+$B55/$B53)) -> 0 | AY49: =IF($B53="n/a","n/a",IF(AY$3>$B53,+$B55-SUM($F49:AX49),+$B55/$B53)) -> 0 | AZ49: =IF($B53="n/a","n/a",IF(AZ$3>$B53,+$B55-SUM($F49:AY49),+$B55/$B53)) -> 0 | BA49: =IF($B53="n/a","n/a",IF(BA$3>$B53,+$B55-SUM($F49:AZ49),+$B55/$B53)) -> 0 | BB49: =IF($B53="n/a","n/a",IF(BB$3>$B53,+$B55-SUM($F49:BA49),+$B55/$B53)) -> 0 | BC49: =IF($B53="n/a","n/a",IF(BC$3>$B53,+$B55-SUM($F49:BB49),+$B55/$B53)) -> 0 | BD49: =IF($B53="n/a","n/a",IF(BD$3>$B53,+$B55-SUM($F49:BC49),+$B55/$B53)) -> 0 | BE49: =IF($B53="n/a","n/a",IF(BE$3>$B53,+$B55-SUM($F49:BD49),+$B55/$B53)) -> 0 | BF49: =IF($B53="n/a","n/a",IF(BF$3>$B53,+$B55-SUM($F49:BE49),+$B55/$B53)) -> 0 | BG49: =IF($B53="n/a","n/a",IF(BG$3>$B53,+$B55-SUM($F49:BF49),+$B55/$B53)) -> 0 | BH49: =IF($B53="n/a","n/a",IF(BH$3>$B53,+$B55-SUM($F49:BG49),+$B55/$B53)) -> 0 | BI49: =IF($B53="n/a","n/a",IF(BI$3>$B53,+$B55-SUM($F49:BH49),+$B55/$B53)) -> 0 | BJ49: =IF($B53="n/a","n/a",IF(BJ$3>$B53,+$B55-SUM($F49:BI49),+$B55/$B53)) -> 0 | BK49: =IF($B53="n/a","n/a",IF(BK$3>$B53,+$B55-SUM($F49:BJ49),+$B55/$B53)) -> 0 | BL49: =IF($B53="n/a","n/a",IF(BL$3>$B53,+$B55-SUM($F49:BK49),+$B55/$B53)) -> 0 | BM49: =IF($B53="n/a","n/a",IF(BM$3>$B53,+$B55-SUM($F49:BL49),+$B55/$B53)) -> 0 | BN49: =IF($B53="n/a","n/a",IF(BN$3>$B53,+$B55-SUM($F49:BM49),+$B55/$B53)) -> 0
B50: Std Life | C50: Capex: | E50: 0 | J50: Initial Asset Base Adjustment | K50: =IF($B51="n/a","n/a",IF(K$3>$B51,+$B57-SUM($F50:J50),+$B57/($B51-$E55))) -> -1.680118316 | L50: =IF($B51="n/a","n/a",IF(L$3>$B51,+$B57-SUM($F50:K50),+$B57/($B51-$E55))) -> -1.680118316 | M50: =IF($B51="n/a","n/a",IF(M$3>$B51,+$B57-SUM($F50:L50),+$B57/($B51-$E55))) -> -1.680118316 | N50: =IF($B51="n/a","n/a",IF(N$3>$B51,+$B57-SUM($F50:M50),+$B57/($B51-$E55))) -> -1.680118316 | O50: =IF($B51="n/a","n/a",IF(O$3>$B51,+$B57-SUM($F50:N50),+$B57/($B51-$E55))) -> -1.680118316 | P50: =IF($B51="n/a","n/a",IF(P$3>$B51,+$B57-SUM($F50:O50),+$B57/($B51-$E55))) -> -1.680118316 | Q50: =IF($B51="n/a","n/a",IF(Q$3>$B51,+$B57-SUM($F50:P50),+$B57/($B51-$E55))) -> -1.680118316 | R50: =IF($B51="n/a","n/a",IF(R$3>$B51,+$B57-SUM($F50:Q50),+$B57/($B51-$E55))) -> -1.680118316 | S50: =IF($B51="n/a","n/a",IF(S$3>$B51,+$B57-SUM($F50:R50),+$B57/($B51-$E55))) -> -1.680118316 | T50: =IF($B51="n/a","n/a",IF(T$3>$B51,+$B57-SUM($F50:S50),+$B57/($B51-$E55))) -> -1.680118316 | U50: =IF($B51="n/a","n/a",IF(U$3>$B51,+$B57-SUM($F50:T50),+$B57/($B51-$E55))) -> 3.552713679e-15 | V50: =IF($B51="n/a","n/a",IF(V$3>$B51,+$B57-SUM($F50:U50),+$B57/($B51-$E55))) -> 0 | W50: =IF($B51="n/a","n/a",IF(W$3>$B51,+$B57-SUM($F50:V50),+$B57/($B51-$E55))) -> 0 | X50: =IF($B51="n/a","n/a",IF(X$3>$B51,+$B57-SUM($F50:W50),+$B57/($B51-$E55))) -> 0 | Y50: =IF($B51="n/a","n/a",IF(Y$3>$B51,+$B57-SUM($F50:X50),+$B57/($B51-$E55))) -> 0 | Z50: =IF($B51="n/a","n/a",IF(Z$3>$B51,+$B57-SUM($F50:Y50),+$B57/($B51-$E55))) -> 0 | AA50: =IF($B51="n/a","n/a",IF(AA$3>$B51,+$B57-SUM($F50:Z50),+$B57/($B51-$E55))) -> 0 | AB50: =IF($B51="n/a","n/a",IF(AB$3>$B51,+$B57-SUM($F50:AA50),+$B57/($B51-$E55))) -> 0 | AC50: =IF($B51="n/a","n/a",IF(AC$3>$B51,+$B57-SUM($F50:AB50),+$B57/($B51-$E55))) -> 0 | AD50: =IF($B51="n/a","n/a",IF(AD$3>$B51,+$B57-SUM($F50:AC50),+$B57/($B51-$E55))) -> 0 | AE50: =IF($B51="n/a","n/a",IF(AE$3>$B51,+$B57-SUM($F50:AD50),+$B57/($B51-$E55))) -> 0 | AF50: =IF($B51="n/a","n/a",IF(AF$3>$B51,+$B57-SUM($F50:AE50),+$B57/($B51-$E55))) -> 0 | AG50: =IF($B51="n/a","n/a",IF(AG$3>$B51,+$B57-SUM($F50:AF50),+$B57/($B51-$E55))) -> 0 | AH50: =IF($B51="n/a","n/a",IF(AH$3>$B51,+$B57-SUM($F50:AG50),+$B57/($B51-$E55))) -> 0 | AI50: =IF($B51="n/a","n/a",IF(AI$3>$B51,+$B57-SUM($F50:AH50),+$B57/($B51-$E55))) -> 0 | AJ50: =IF($B51="n/a","n/a",IF(AJ$3>$B51,+$B57-SUM($F50:AI50),+$B57/($B51-$E55))) -> 0 | AK50: =IF($B51="n/a","n/a",IF(AK$3>$B51,+$B57-SUM($F50:AJ50),+$B57/($B51-$E55))) -> 0 | AL50: =IF($B51="n/a","n/a",IF(AL$3>$B51,+$B57-SUM($F50:AK50),+$B57/($B51-$E55))) -> 0 | AM50: =IF($B51="n/a","n/a",IF(AM$3>$B51,+$B57-SUM($F50:AL50),+$B57/($B51-$E55))) -> 0 | AN50: =IF($B51="n/a","n/a",IF(AN$3>$B51,+$B57-SUM($F50:AM50),+$B57/($B51-$E55))) -> 0 | AO50: =IF($B51="n/a","n/a",IF(AO$3>$B51,+$B57-SUM($F50:AN50),+$B57/($B51-$E55))) -> 0 | AP50: =IF($B51="n/a","n/a",IF(AP$3>$B51,+$B57-SUM($F50:AO50),+$B57/($B51-$E55))) -> 0 | AQ50: =IF($B51="n/a","n/a",IF(AQ$3>$B51,+$B57-SUM($F50:AP50),+$B57/($B51-$E55))) -> 0 | AR50: =IF($B51="n/a","n/a",IF(AR$3>$B51,+$B57-SUM($F50:AQ50),+$B57/($B51-$E55))) -> 0 | AS50: =IF($B51="n/a","n/a",IF(AS$3>$B51,+$B57-SUM($F50:AR50),+$B57/($B51-$E55))) -> 0 | AT50: =IF($B51="n/a","n/a",IF(AT$3>$B51,+$B57-SUM($F50:AS50),+$B57/($B51-$E55))) -> 0 | AU50: =IF($B51="n/a","n/a",IF(AU$3>$B51,+$B57-SUM($F50:AT50),+$B57/($B51-$E55))) -> 0 | AV50: =IF($B51="n/a","n/a",IF(AV$3>$B51,+$B57-SUM($F50:AU50),+$B57/($B51-$E55))) -> 0 | AW50: =IF($B51="n/a","n/a",IF(AW$3>$B51,+$B57-SUM($F50:AV50),+$B57/($B51-$E55))) -> 0 | AX50: =IF($B51="n/a","n/a",IF(AX$3>$B51,+$B57-SUM($F50:AW50),+$B57/($B51-$E55))) -> 0 | AY50: =IF($B51="n/a","n/a",IF(AY$3>$B51,+$B57-SUM($F50:AX50),+$B57/($B51-$E55))) -> 0 | AZ50: =IF($B51="n/a","n/a",IF(AZ$3>$B51,+$B57-SUM($F50:AY50),+$B57/($B51-$E55))) -> 0 | BA50: =IF($B51="n/a","n/a",IF(BA$3>$B51,+$B57-SUM($F50:AZ50),+$B57/($B51-$E55))) -> 0 | BB50: =IF($B51="n/a","n/a",IF(BB$3>$B51,+$B57-SUM($F50:BA50),+$B57/($B51-$E55))) -> 0 | BC50: =IF($B51="n/a","n/a",IF(BC$3>$B51,+$B57-SUM($F50:BB50),+$B57/($B51-$E55))) -> 0 | BD50: =IF($B51="n/a","n/a",IF(BD$3>$B51,+$B57-SUM($F50:BC50),+$B57/($B51-$E55))) -> 0 | BE50: =IF($B51="n/a","n/a",IF(BE$3>$B51,+$B57-SUM($F50:BD50),+$B57/($B51-$E55))) -> 0 | BF50: =IF($B51="n/a","n/a",IF(BF$3>$B51,+$B57-SUM($F50:BE50),+$B57/($B51-$E55))) -> 0 | BG50: =IF($B51="n/a","n/a",IF(BG$3>$B51,+$B57-SUM($F50:BF50),+$B57/($B51-$E55))) -> 0 | BH50: =IF($B51="n/a","n/a",IF(BH$3>$B51,+$B57-SUM($F50:BG50),+$B57/($B51-$E55))) -> 0 | BI50: =IF($B51="n/a","n/a",IF(BI$3>$B51,+$B57-SUM($F50:BH50),+$B57/($B51-$E55))) -> 0 | BJ50: =IF($B51="n/a","n/a",IF(BJ$3>$B51,+$B57-SUM($F50:BI50),+$B57/($B51-$E55))) -> 0 | BK50: =IF($B51="n/a","n/a",IF(BK$3>$B51,+$B57-SUM($F50:BJ50),+$B57/($B51-$E55))) -> 0 | BL50: =IF($B51="n/a","n/a",IF(BL$3>$B51,+$B57-SUM($F50:BK50),+$B57/($B51-$E55))) -> 0 | BM50: =IF($B51="n/a","n/a",IF(BM$3>$B51,+$B57-SUM($F50:BL50),+$B57/($B51-$E55))) -> 0 | BN50: =IF($B51="n/a","n/a",IF(BN$3>$B51,+$B57-SUM($F50:BM50),+$B57/($B51-$E55))) -> 0
B51: =INDEX('I1 '!$C$7:$C$36,A48) -> 15 | C51: =OFFSET('I3 CAPEX '!$E$44,$A48,E51) -> 13.41374442 | E51: 1 | G51: =IF($B51="n/a","n/a",IF(G$3>($B51+$E51),$C51-SUM($F51:F51),($C51/$B51))) -> 0.8942496277 | H51: =IF($B51="n/a","n/a",IF(H$3>($B51+$E51),$C51-SUM($F51:G51),($C51/$B51))) -> 0.8942496277 | I51: =IF($B51="n/a","n/a",IF(I$3>($B51+$E51),$C51-SUM($F51:H51),($C51/$B51))) -> 0.8942496277 | J51: =IF($B51="n/a","n/a",IF(J$3>($B51+$E51),$C51-SUM($F51:I51),($C51/$B51))) -> 0.8942496277 | K51: =IF($B51="n/a","n/a",IF(K$3>($B51+$E51),$C51-SUM($F51:J51),($C51/$B51))) -> 0.8942496277 | L51: =IF($B51="n/a","n/a",IF(L$3>($B51+$E51),$C51-SUM($F51:K51),($C51/$B51))) -> 0.8942496277 | M51: =IF($B51="n/a","n/a",IF(M$3>($B51+$E51),$C51-SUM($F51:L51),($C51/$B51))) -> 0.8942496277 | N51: =IF($B51="n/a","n/a",IF(N$3>($B51+$E51),$C51-SUM($F51:M51),($C51/$B51))) -> 0.8942496277 | O51: =IF($B51="n/a","n/a",IF(O$3>($B51+$E51),$C51-SUM($F51:N51),($C51/$B51))) -> 0.8942496277 | P51: =IF($B51="n/a","n/a",IF(P$3>($B51+$E51),$C51-SUM($F51:O51),($C51/$B51))) -> 0.8942496277 | Q51: =IF($B51="n/a","n/a",IF(Q$3>($B51+$E51),$C51-SUM($F51:P51),($C51/$B51))) -> 0.8942496277 | R51: =IF($B51="n/a","n/a",IF(R$3>($B51+$E51),$C51-SUM($F51:Q51),($C51/$B51))) -> 0.8942496277 | S51: =IF($B51="n/a","n/a",IF(S$3>($B51+$E51),$C51-SUM($F51:R51),($C51/$B51))) -> 0.8942496277 | T51: =IF($B51="n/a","n/a",IF(T$3>($B51+$E51),$C51-SUM($F51:S51),($C51/$B51))) -> 0.8942496277 | U51: =IF($B51="n/a","n/a",IF(U$3>($B51+$E51),$C51-SUM($F51:T51),($C51/$B51))) -> 0.8942496277 | V51: =IF($B51="n/a","n/a",IF(V$3>($B51+$E51),$C51-SUM($F51:U51),($C51/$B51))) -> 0 | W51: =IF($B51="n/a","n/a",IF(W$3>($B51+$E51),$C51-SUM($F51:V51),($C51/$B51))) -> 0 | X51: =IF($B51="n/a","n/a",IF(X$3>($B51+$E51),$C51-SUM($F51:W51),($C51/$B51))) -> 0 | Y51: =IF($B51="n/a","n/a",IF(Y$3>($B51+$E51),$C51-SUM($F51:X51),($C51/$B51))) -> 0 | Z51: =IF($B51="n/a","n/a",IF(Z$3>($B51+$E51),$C51-SUM($F51:Y51),($C51/$B51))) -> 0 | AA51: =IF($B51="n/a","n/a",IF(AA$3>($B51+$E51),$C51-SUM($F51:Z51),($C51/$B51))) -> 0 | AB51: =IF($B51="n/a","n/a",IF(AB$3>($B51+$E51),$C51-SUM($F51:AA51),($C51/$B51))) -> 0 | AC51: =IF($B51="n/a","n/a",IF(AC$3>($B51+$E51),$C51-SUM($F51:AB51),($C51/$B51))) -> 0 | AD51: =IF($B51="n/a","n/a",IF(AD$3>($B51+$E51),$C51-SUM($F51:AC51),($C51/$B51))) -> 0 | AE51: =IF($B51="n/a","n/a",IF(AE$3>($B51+$E51),$C51-SUM($F51:AD51),($C51/$B51))) -> 0 | AF51: =IF($B51="n/a","n/a",IF(AF$3>($B51+$E51),$C51-SUM($F51:AE51),($C51/$B51))) -> 0 | AG51: =IF($B51="n/a","n/a",IF(AG$3>($B51+$E51),$C51-SUM($F51:AF51),($C51/$B51))) -> 0 | AH51: =IF($B51="n/a","n/a",IF(AH$3>($B51+$E51),$C51-SUM($F51:AG51),($C51/$B51))) -> 0 | AI51: =IF($B51="n/a","n/a",IF(AI$3>($B51+$E51),$C51-SUM($F51:AH51),($C51/$B51))) -> 0 | AJ51: =IF($B51="n/a","n/a",IF(AJ$3>($B51+$E51),$C51-SUM($F51:AI51),($C51/$B51))) -> 0 | AK51: =IF($B51="n/a","n/a",IF(AK$3>($B51+$E51),$C51-SUM($F51:AJ51),($C51/$B51))) -> 0 | AL51: =IF($B51="n/a","n/a",IF(AL$3>($B51+$E51),$C51-SUM($F51:AK51),($C51/$B51))) -> 0 | AM51: =IF($B51="n/a","n/a",IF(AM$3>($B51+$E51),$C51-SUM($F51:AL51),($C51/$B51))) -> 0 | AN51: =IF($B51="n/a","n/a",IF(AN$3>($B51+$E51),$C51-SUM($F51:AM51),($C51/$B51))) -> 0 | AO51: =IF($B51="n/a","n/a",IF(AO$3>($B51+$E51),$C51-SUM($F51:AN51),($C51/$B51))) -> 0 | AP51: =IF($B51="n/a","n/a",IF(AP$3>($B51+$E51),$C51-SUM($F51:AO51),($C51/$B51))) -> 0 | AQ51: =IF($B51="n/a","n/a",IF(AQ$3>($B51+$E51),$C51-SUM($F51:AP51),($C51/$B51))) -> 0 | AR51: =IF($B51="n/a","n/a",IF(AR$3>($B51+$E51),$C51-SUM($F51:AQ51),($C51/$B51))) -> 0 | AS51: =IF($B51="n/a","n/a",IF(AS$3>($B51+$E51),$C51-SUM($F51:AR51),($C51/$B51))) -> 0 | AT51: =IF($B51="n/a","n/a",IF(AT$3>($B51+$E51),$C51-SUM($F51:AS51),($C51/$B51))) -> 0 | AU51: =IF($B51="n/a","n/a",IF(AU$3>($B51+$E51),$C51-SUM($F51:AT51),($C51/$B51))) -> 0 | AV51: =IF($B51="n/a","n/a",IF(AV$3>($B51+$E51),$C51-SUM($F51:AU51),($C51/$B51))) -> 0 | AW51: =IF($B51="n/a","n/a",IF(AW$3>($B51+$E51),$C51-SUM($F51:AV51),($C51/$B51))) -> 0 | AX51: =IF($B51="n/a","n/a",IF(AX$3>($B51+$E51),$C51-SUM($F51:AW51),($C51/$B51))) -> 0 | AY51: =IF($B51="n/a","n/a",IF(AY$3>($B51+$E51),$C51-SUM($F51:AX51),($C51/$B51))) -> 0 | AZ51: =IF($B51="n/a","n/a",IF(AZ$3>($B51+$E51),$C51-SUM($F51:AY51),($C51/$B51))) -> 0 | BA51: =IF($B51="n/a","n/a",IF(BA$3>($B51+$E51),$C51-SUM($F51:AZ51),($C51/$B51))) -> 0 | BB51: =IF($B51="n/a","n/a",IF(BB$3>($B51+$E51),$C51-SUM($F51:BA51),($C51/$B51))) -> 0 | BC51: =IF($B51="n/a","n/a",IF(BC$3>($B51+$E51),$C51-SUM($F51:BB51),($C51/$B51))) -> 0 | BD51: =IF($B51="n/a","n/a",IF(BD$3>($B51+$E51),$C51-SUM($F51:BC51),($C51/$B51))) -> 0 | BE51: =IF($B51="n/a","n/a",IF(BE$3>($B51+$E51),$C51-SUM($F51:BD51),($C51/$B51))) -> 0 | BF51: =IF($B51="n/a","n/a",IF(BF$3>($B51+$E51),$C51-SUM($F51:BE51),($C51/$B51))) -> 0 | BG51: =IF($B51="n/a","n/a",IF(BG$3>($B51+$E51),$C51-SUM($F51:BF51),($C51/$B51))) -> 0 | BH51: =IF($B51="n/a","n/a",IF(BH$3>($B51+$E51),$C51-SUM($F51:BG51),($C51/$B51))) -> 0 | BI51: =IF($B51="n/a","n/a",IF(BI$3>($B51+$E51),$C51-SUM($F51:BH51),($C51/$B51))) -> 0 | BJ51: =IF($B51="n/a","n/a",IF(BJ$3>($B51+$E51),$C51-SUM($F51:BI51),($C51/$B51))) -> 0 | BK51: =IF($B51="n/a","n/a",IF(BK$3>($B51+$E51),$C51-SUM($F51:BJ51),($C51/$B51))) -> 0 | BL51: =IF($B51="n/a","n/a",IF(BL$3>($B51+$E51),$C51-SUM($F51:BK51),($C51/$B51))) -> 0 | BM51: =IF($B51="n/a","n/a",IF(BM$3>($B51+$E51),$C51-SUM($F51:BL51),($C51/$B51))) -> 0 | BN51: =IF($B51="n/a","n/a",IF(BN$3>($B51+$E51),$C51-SUM($F51:BM51),($C51/$B51))) -> 0
B52: Rem Life | C52: =OFFSET('I3 CAPEX '!$E$44,$A48,E52) -> 10.2406923 | E52: 2 | H52: =IF($B51="n/a","n/a",IF(H$3>($B51+$E52),$C52-SUM($F52:G52),($C52/$B51))) -> 0.6827128198 | I52: =IF($B51="n/a","n/a",IF(I$3>($B51+$E52),$C52-SUM($F52:H52),($C52/$B51))) -> 0.6827128198 | J52: =IF($B51="n/a","n/a",IF(J$3>($B51+$E52),$C52-SUM($F52:I52),($C52/$B51))) -> 0.6827128198 | K52: =IF($B51="n/a","n/a",IF(K$3>($B51+$E52),$C52-SUM($F52:J52),($C52/$B51))) -> 0.6827128198 | L52: =IF($B51="n/a","n/a",IF(L$3>($B51+$E52),$C52-SUM($F52:K52),($C52/$B51))) -> 0.6827128198 | M52: =IF($B51="n/a","n/a",IF(M$3>($B51+$E52),$C52-SUM($F52:L52),($C52/$B51))) -> 0.6827128198 | N52: =IF($B51="n/a","n/a",IF(N$3>($B51+$E52),$C52-SUM($F52:M52),($C52/$B51))) -> 0.6827128198 | O52: =IF($B51="n/a","n/a",IF(O$3>($B51+$E52),$C52-SUM($F52:N52),($C52/$B51))) -> 0.6827128198 | P52: =IF($B51="n/a","n/a",IF(P$3>($B51+$E52),$C52-SUM($F52:O52),($C52/$B51))) -> 0.6827128198 | Q52: =IF($B51="n/a","n/a",IF(Q$3>($B51+$E52),$C52-SUM($F52:P52),($C52/$B51))) -> 0.6827128198 | R52: =IF($B51="n/a","n/a",IF(R$3>($B51+$E52),$C52-SUM($F52:Q52),($C52/$B51))) -> 0.6827128198 | S52: =IF($B51="n/a","n/a",IF(S$3>($B51+$E52),$C52-SUM($F52:R52),($C52/$B51))) -> 0.6827128198 | T52: =IF($B51="n/a","n/a",IF(T$3>($B51+$E52),$C52-SUM($F52:S52),($C52/$B51))) -> 0.6827128198 | U52: =IF($B51="n/a","n/a",IF(U$3>($B51+$E52),$C52-SUM($F52:T52),($C52/$B51))) -> 0.6827128198 | V52: =IF($B51="n/a","n/a",IF(V$3>($B51+$E52),$C52-SUM($F52:U52),($C52/$B51))) -> 0.6827128198 | W52: =IF($B51="n/a","n/a",IF(W$3>($B51+$E52),$C52-SUM($F52:V52),($C52/$B51))) -> 0 | X52: =IF($B51="n/a","n/a",IF(X$3>($B51+$E52),$C52-SUM($F52:W52),($C52/$B51))) -> 0 | Y52: =IF($B51="n/a","n/a",IF(Y$3>($B51+$E52),$C52-SUM($F52:X52),($C52/$B51))) -> 0 | Z52: =IF($B51="n/a","n/a",IF(Z$3>($B51+$E52),$C52-SUM($F52:Y52),($C52/$B51))) -> 0 | AA52: =IF($B51="n/a","n/a",IF(AA$3>($B51+$E52),$C52-SUM($F52:Z52),($C52/$B51))) -> 0 | AB52: =IF($B51="n/a","n/a",IF(AB$3>($B51+$E52),$C52-SUM($F52:AA52),($C52/$B51))) -> 0 | AC52: =IF($B51="n/a","n/a",IF(AC$3>($B51+$E52),$C52-SUM($F52:AB52),($C52/$B51))) -> 0 | AD52: =IF($B51="n/a","n/a",IF(AD$3>($B51+$E52),$C52-SUM($F52:AC52),($C52/$B51))) -> 0 | AE52: =IF($B51="n/a","n/a",IF(AE$3>($B51+$E52),$C52-SUM($F52:AD52),($C52/$B51))) -> 0 | AF52: =IF($B51="n/a","n/a",IF(AF$3>($B51+$E52),$C52-SUM($F52:AE52),($C52/$B51))) -> 0 | AG52: =IF($B51="n/a","n/a",IF(AG$3>($B51+$E52),$C52-SUM($F52:AF52),($C52/$B51))) -> 0 | AH52: =IF($B51="n/a","n/a",IF(AH$3>($B51+$E52),$C52-SUM($F52:AG52),($C52/$B51))) -> 0 | AI52: =IF($B51="n/a","n/a",IF(AI$3>($B51+$E52),$C52-SUM($F52:AH52),($C52/$B51))) -> 0 | AJ52: =IF($B51="n/a","n/a",IF(AJ$3>($B51+$E52),$C52-SUM($F52:AI52),($C52/$B51))) -> 0 | AK52: =IF($B51="n/a","n/a",IF(AK$3>($B51+$E52),$C52-SUM($F52:AJ52),($C52/$B51))) -> 0 | AL52: =IF($B51="n/a","n/a",IF(AL$3>($B51+$E52),$C52-SUM($F52:AK52),($C52/$B51))) -> 0 | AM52: =IF($B51="n/a","n/a",IF(AM$3>($B51+$E52),$C52-SUM($F52:AL52),($C52/$B51))) -> 0 | AN52: =IF($B51="n/a","n/a",IF(AN$3>($B51+$E52),$C52-SUM($F52:AM52),($C52/$B51))) -> 0 | AO52: =IF($B51="n/a","n/a",IF(AO$3>($B51+$E52),$C52-SUM($F52:AN52),($C52/$B51))) -> 0 | AP52: =IF($B51="n/a","n/a",IF(AP$3>($B51+$E52),$C52-SUM($F52:AO52),($C52/$B51))) -> 0 | AQ52: =IF($B51="n/a","n/a",IF(AQ$3>($B51+$E52),$C52-SUM($F52:AP52),($C52/$B51))) -> 0 | AR52: =IF($B51="n/a","n/a",IF(AR$3>($B51+$E52),$C52-SUM($F52:AQ52),($C52/$B51))) -> 0 | AS52: =IF($B51="n/a","n/a",IF(AS$3>($B51+$E52),$C52-SUM($F52:AR52),($C52/$B51))) -> 0 | AT52: =IF($B51="n/a","n/a",IF(AT$3>($B51+$E52),$C52-SUM($F52:AS52),($C52/$B51))) -> 0 | AU52: =IF($B51="n/a","n/a",IF(AU$3>($B51+$E52),$C52-SUM($F52:AT52),($C52/$B51))) -> 0 | AV52: =IF($B51="n/a","n/a",IF(AV$3>($B51+$E52),$C52-SUM($F52:AU52),($C52/$B51))) -> 0 | AW52: =IF($B51="n/a","n/a",IF(AW$3>($B51+$E52),$C52-SUM($F52:AV52),($C52/$B51))) -> 0 | AX52: =IF($B51="n/a","n/a",IF(AX$3>($B51+$E52),$C52-SUM($F52:AW52),($C52/$B51))) -> 0 | AY52: =IF($B51="n/a","n/a",IF(AY$3>($B51+$E52),$C52-SUM($F52:AX52),($C52/$B51))) -> 0 | AZ52: =IF($B51="n/a","n/a",IF(AZ$3>($B51+$E52),$C52-SUM($F52:AY52),($C52/$B51))) -> 0 | BA52: =IF($B51="n/a","n/a",IF(BA$3>($B51+$E52),$C52-SUM($F52:AZ52),($C52/$B51))) -> 0 | BB52: =IF($B51="n/a","n/a",IF(BB$3>($B51+$E52),$C52-SUM($F52:BA52),($C52/$B51))) -> 0 | BC52: =IF($B51="n/a","n/a",IF(BC$3>($B51+$E52),$C52-SUM($F52:BB52),($C52/$B51))) -> 0 | BD52: =IF($B51="n/a","n/a",IF(BD$3>($B51+$E52),$C52-SUM($F52:BC52),($C52/$B51))) -> 0 | BE52: =IF($B51="n/a","n/a",IF(BE$3>($B51+$E52),$C52-SUM($F52:BD52),($C52/$B51))) -> 0 | BF52: =IF($B51="n/a","n/a",IF(BF$3>($B51+$E52),$C52-SUM($F52:BE52),($C52/$B51))) -> 0 | BG52: =IF($B51="n/a","n/a",IF(BG$3>($B51+$E52),$C52-SUM($F52:BF52),($C52/$B51))) -> 0 | BH52: =IF($B51="n/a","n/a",IF(BH$3>($B51+$E52),$C52-SUM($F52:BG52),($C52/$B51))) -> 0 | BI52: =IF($B51="n/a","n/a",IF(BI$3>($B51+$E52),$C52-SUM($F52:BH52),($C52/$B51))) -> 0 | BJ52: =IF($B51="n/a","n/a",IF(BJ$3>($B51+$E52),$C52-SUM($F52:BI52),($C52/$B51))) -> 0 | BK52: =IF($B51="n/a","n/a",IF(BK$3>($B51+$E52),$C52-SUM($F52:BJ52),($C52/$B51))) -> 0 | BL52: =IF($B51="n/a","n/a",IF(BL$3>($B51+$E52),$C52-SUM($F52:BK52),($C52/$B51))) -> 0 | BM52: =IF($B51="n/a","n/a",IF(BM$3>($B51+$E52),$C52-SUM($F52:BL52),($C52/$B51))) -> 0 | BN52: =IF($B51="n/a","n/a",IF(BN$3>($B51+$E52),$C52-SUM($F52:BM52),($C52/$B51))) -> 0
B53: =INDEX('I2 RAB '!$E$9:$E$38,A48) -> 11.66905449 | C53: =OFFSET('I3 CAPEX '!$E$44,$A48,E53) -> 9.13813041 | E53: 3 | I53: =IF($B51="n/a","n/a",IF(I$3>($B51+$E53),$C53-SUM($F53:H53),($C53/$B51))) -> 0.609208694 | J53: =IF($B51="n/a","n/a",IF(J$3>($B51+$E53),$C53-SUM($F53:I53),($C53/$B51))) -> 0.609208694 | K53: =IF($B51="n/a","n/a",IF(K$3>($B51+$E53),$C53-SUM($F53:J53),($C53/$B51))) -> 0.609208694 | L53: =IF($B51="n/a","n/a",IF(L$3>($B51+$E53),$C53-SUM($F53:K53),($C53/$B51))) -> 0.609208694 | M53: =IF($B51="n/a","n/a",IF(M$3>($B51+$E53),$C53-SUM($F53:L53),($C53/$B51))) -> 0.609208694 | N53: =IF($B51="n/a","n/a",IF(N$3>($B51+$E53),$C53-SUM($F53:M53),($C53/$B51))) -> 0.609208694 | O53: =IF($B51="n/a","n/a",IF(O$3>($B51+$E53),$C53-SUM($F53:N53),($C53/$B51))) -> 0.609208694 | P53: =IF($B51="n/a","n/a",IF(P$3>($B51+$E53),$C53-SUM($F53:O53),($C53/$B51))) -> 0.609208694 | Q53: =IF($B51="n/a","n/a",IF(Q$3>($B51+$E53),$C53-SUM($F53:P53),($C53/$B51))) -> 0.609208694 | R53: =IF($B51="n/a","n/a",IF(R$3>($B51+$E53),$C53-SUM($F53:Q53),($C53/$B51))) -> 0.609208694 | S53: =IF($B51="n/a","n/a",IF(S$3>($B51+$E53),$C53-SUM($F53:R53),($C53/$B51))) -> 0.609208694 | T53: =IF($B51="n/a","n/a",IF(T$3>($B51+$E53),$C53-SUM($F53:S53),($C53/$B51))) -> 0.609208694 | U53: =IF($B51="n/a","n/a",IF(U$3>($B51+$E53),$C53-SUM($F53:T53),($C53/$B51))) -> 0.609208694 | V53: =IF($B51="n/a","n/a",IF(V$3>($B51+$E53),$C53-SUM($F53:U53),($C53/$B51))) -> 0.609208694 | W53: =IF($B51="n/a","n/a",IF(W$3>($B51+$E53),$C53-SUM($F53:V53),($C53/$B51))) -> 0.609208694 | X53: =IF($B51="n/a","n/a",IF(X$3>($B51+$E53),$C53-SUM($F53:W53),($C53/$B51))) -> 0 | Y53: =IF($B51="n/a","n/a",IF(Y$3>($B51+$E53),$C53-SUM($F53:X53),($C53/$B51))) -> 0 | Z53: =IF($B51="n/a","n/a",IF(Z$3>($B51+$E53),$C53-SUM($F53:Y53),($C53/$B51))) -> 0 | AA53: =IF($B51="n/a","n/a",IF(AA$3>($B51+$E53),$C53-SUM($F53:Z53),($C53/$B51))) -> 0 | AB53: =IF($B51="n/a","n/a",IF(AB$3>($B51+$E53),$C53-SUM($F53:AA53),($C53/$B51))) -> 0 | AC53: =IF($B51="n/a","n/a",IF(AC$3>($B51+$E53),$C53-SUM($F53:AB53),($C53/$B51))) -> 0 | AD53: =IF($B51="n/a","n/a",IF(AD$3>($B51+$E53),$C53-SUM($F53:AC53),($C53/$B51))) -> 0 | AE53: =IF($B51="n/a","n/a",IF(AE$3>($B51+$E53),$C53-SUM($F53:AD53),($C53/$B51))) -> 0 | AF53: =IF($B51="n/a","n/a",IF(AF$3>($B51+$E53),$C53-SUM($F53:AE53),($C53/$B51))) -> 0 | AG53: =IF($B51="n/a","n/a",IF(AG$3>($B51+$E53),$C53-SUM($F53:AF53),($C53/$B51))) -> 0 | AH53: =IF($B51="n/a","n/a",IF(AH$3>($B51+$E53),$C53-SUM($F53:AG53),($C53/$B51))) -> 0 | AI53: =IF($B51="n/a","n/a",IF(AI$3>($B51+$E53),$C53-SUM($F53:AH53),($C53/$B51))) -> 0 | AJ53: =IF($B51="n/a","n/a",IF(AJ$3>($B51+$E53),$C53-SUM($F53:AI53),($C53/$B51))) -> 0 | AK53: =IF($B51="n/a","n/a",IF(AK$3>($B51+$E53),$C53-SUM($F53:AJ53),($C53/$B51))) -> 0 | AL53: =IF($B51="n/a","n/a",IF(AL$3>($B51+$E53),$C53-SUM($F53:AK53),($C53/$B51))) -> 0 | AM53: =IF($B51="n/a","n/a",IF(AM$3>($B51+$E53),$C53-SUM($F53:AL53),($C53/$B51))) -> 0 | AN53: =IF($B51="n/a","n/a",IF(AN$3>($B51+$E53),$C53-SUM($F53:AM53),($C53/$B51))) -> 0 | AO53: =IF($B51="n/a","n/a",IF(AO$3>($B51+$E53),$C53-SUM($F53:AN53),($C53/$B51))) -> 0 | AP53: =IF($B51="n/a","n/a",IF(AP$3>($B51+$E53),$C53-SUM($F53:AO53),($C53/$B51))) -> 0 | AQ53: =IF($B51="n/a","n/a",IF(AQ$3>($B51+$E53),$C53-SUM($F53:AP53),($C53/$B51))) -> 0 | AR53: =IF($B51="n/a","n/a",IF(AR$3>($B51+$E53),$C53-SUM($F53:AQ53),($C53/$B51))) -> 0 | AS53: =IF($B51="n/a","n/a",IF(AS$3>($B51+$E53),$C53-SUM($F53:AR53),($C53/$B51))) -> 0 | AT53: =IF($B51="n/a","n/a",IF(AT$3>($B51+$E53),$C53-SUM($F53:AS53),($C53/$B51))) -> 0 | AU53: =IF($B51="n/a","n/a",IF(AU$3>($B51+$E53),$C53-SUM($F53:AT53),($C53/$B51))) -> 0 | AV53: =IF($B51="n/a","n/a",IF(AV$3>($B51+$E53),$C53-SUM($F53:AU53),($C53/$B51))) -> 0 | AW53: =IF($B51="n/a","n/a",IF(AW$3>($B51+$E53),$C53-SUM($F53:AV53),($C53/$B51))) -> 0 | AX53: =IF($B51="n/a","n/a",IF(AX$3>($B51+$E53),$C53-SUM($F53:AW53),($C53/$B51))) -> 0 | AY53: =IF($B51="n/a","n/a",IF(AY$3>($B51+$E53),$C53-SUM($F53:AX53),($C53/$B51))) -> 0 | AZ53: =IF($B51="n/a","n/a",IF(AZ$3>($B51+$E53),$C53-SUM($F53:AY53),($C53/$B51))) -> 0 | BA53: =IF($B51="n/a","n/a",IF(BA$3>($B51+$E53),$C53-SUM($F53:AZ53),($C53/$B51))) -> 0 | BB53: =IF($B51="n/a","n/a",IF(BB$3>($B51+$E53),$C53-SUM($F53:BA53),($C53/$B51))) -> 0 | BC53: =IF($B51="n/a","n/a",IF(BC$3>($B51+$E53),$C53-SUM($F53:BB53),($C53/$B51))) -> 0 | BD53: =IF($B51="n/a","n/a",IF(BD$3>($B51+$E53),$C53-SUM($F53:BC53),($C53/$B51))) -> 0 | BE53: =IF($B51="n/a","n/a",IF(BE$3>($B51+$E53),$C53-SUM($F53:BD53),($C53/$B51))) -> 0 | BF53: =IF($B51="n/a","n/a",IF(BF$3>($B51+$E53),$C53-SUM($F53:BE53),($C53/$B51))) -> 0 | BG53: =IF($B51="n/a","n/a",IF(BG$3>($B51+$E53),$C53-SUM($F53:BF53),($C53/$B51))) -> 0 | BH53: =IF($B51="n/a","n/a",IF(BH$3>($B51+$E53),$C53-SUM($F53:BG53),($C53/$B51))) -> 0 | BI53: =IF($B51="n/a","n/a",IF(BI$3>($B51+$E53),$C53-SUM($F53:BH53),($C53/$B51))) -> 0 | BJ53: =IF($B51="n/a","n/a",IF(BJ$3>($B51+$E53),$C53-SUM($F53:BI53),($C53/$B51))) -> 0 | BK53: =IF($B51="n/a","n/a",IF(BK$3>($B51+$E53),$C53-SUM($F53:BJ53),($C53/$B51))) -> 0 | BL53: =IF($B51="n/a","n/a",IF(BL$3>($B51+$E53),$C53-SUM($F53:BK53),($C53/$B51))) -> 0 | BM53: =IF($B51="n/a","n/a",IF(BM$3>($B51+$E53),$C53-SUM($F53:BL53),($C53/$B51))) -> 0 | BN53: =IF($B51="n/a","n/a",IF(BN$3>($B51+$E53),$C53-SUM($F53:BM53),($C53/$B51))) -> 0
B54: Op Bal | C54: =OFFSET('I3 CAPEX '!$E$44,$A48,E54) -> 17.75344164 | E54: 4 | J54: =IF($B51="n/a","n/a",IF(J$3>($B51+$E54),$C54-SUM($F54:I54),($C54/$B51))) -> 1.183562776 | K54: =IF($B51="n/a","n/a",IF(K$3>($B51+$E54),$C54-SUM($F54:J54),($C54/$B51))) -> 1.183562776 | L54: =IF($B51="n/a","n/a",IF(L$3>($B51+$E54),$C54-SUM($F54:K54),($C54/$B51))) -> 1.183562776 | M54: =IF($B51="n/a","n/a",IF(M$3>($B51+$E54),$C54-SUM($F54:L54),($C54/$B51))) -> 1.183562776 | N54: =IF($B51="n/a","n/a",IF(N$3>($B51+$E54),$C54-SUM($F54:M54),($C54/$B51))) -> 1.183562776 | O54: =IF($B51="n/a","n/a",IF(O$3>($B51+$E54),$C54-SUM($F54:N54),($C54/$B51))) -> 1.183562776 | P54: =IF($B51="n/a","n/a",IF(P$3>($B51+$E54),$C54-SUM($F54:O54),($C54/$B51))) -> 1.183562776 | Q54: =IF($B51="n/a","n/a",IF(Q$3>($B51+$E54),$C54-SUM($F54:P54),($C54/$B51))) -> 1.183562776 | R54: =IF($B51="n/a","n/a",IF(R$3>($B51+$E54),$C54-SUM($F54:Q54),($C54/$B51))) -> 1.183562776 | S54: =IF($B51="n/a","n/a",IF(S$3>($B51+$E54),$C54-SUM($F54:R54),($C54/$B51))) -> 1.183562776 | T54: =IF($B51="n/a","n/a",IF(T$3>($B51+$E54),$C54-SUM($F54:S54),($C54/$B51))) -> 1.183562776 | U54: =IF($B51="n/a","n/a",IF(U$3>($B51+$E54),$C54-SUM($F54:T54),($C54/$B51))) -> 1.183562776 | V54: =IF($B51="n/a","n/a",IF(V$3>($B51+$E54),$C54-SUM($F54:U54),($C54/$B51))) -> 1.183562776 | W54: =IF($B51="n/a","n/a",IF(W$3>($B51+$E54),$C54-SUM($F54:V54),($C54/$B51))) -> 1.183562776 | X54: =IF($B51="n/a","n/a",IF(X$3>($B51+$E54),$C54-SUM($F54:W54),($C54/$B51))) -> 1.183562776 | Y54: =IF($B51="n/a","n/a",IF(Y$3>($B51+$E54),$C54-SUM($F54:X54),($C54/$B51))) -> 0 | Z54: =IF($B51="n/a","n/a",IF(Z$3>($B51+$E54),$C54-SUM($F54:Y54),($C54/$B51))) -> 0 | AA54: =IF($B51="n/a","n/a",IF(AA$3>($B51+$E54),$C54-SUM($F54:Z54),($C54/$B51))) -> 0 | AB54: =IF($B51="n/a","n/a",IF(AB$3>($B51+$E54),$C54-SUM($F54:AA54),($C54/$B51))) -> 0 | AC54: =IF($B51="n/a","n/a",IF(AC$3>($B51+$E54),$C54-SUM($F54:AB54),($C54/$B51))) -> 0 | AD54: =IF($B51="n/a","n/a",IF(AD$3>($B51+$E54),$C54-SUM($F54:AC54),($C54/$B51))) -> 0 | AE54: =IF($B51="n/a","n/a",IF(AE$3>($B51+$E54),$C54-SUM($F54:AD54),($C54/$B51))) -> 0 | AF54: =IF($B51="n/a","n/a",IF(AF$3>($B51+$E54),$C54-SUM($F54:AE54),($C54/$B51))) -> 0 | AG54: =IF($B51="n/a","n/a",IF(AG$3>($B51+$E54),$C54-SUM($F54:AF54),($C54/$B51))) -> 0 | AH54: =IF($B51="n/a","n/a",IF(AH$3>($B51+$E54),$C54-SUM($F54:AG54),($C54/$B51))) -> 0 | AI54: =IF($B51="n/a","n/a",IF(AI$3>($B51+$E54),$C54-SUM($F54:AH54),($C54/$B51))) -> 0 | AJ54: =IF($B51="n/a","n/a",IF(AJ$3>($B51+$E54),$C54-SUM($F54:AI54),($C54/$B51))) -> 0 | AK54: =IF($B51="n/a","n/a",IF(AK$3>($B51+$E54),$C54-SUM($F54:AJ54),($C54/$B51))) -> 0 | AL54: =IF($B51="n/a","n/a",IF(AL$3>($B51+$E54),$C54-SUM($F54:AK54),($C54/$B51))) -> 0 | AM54: =IF($B51="n/a","n/a",IF(AM$3>($B51+$E54),$C54-SUM($F54:AL54),($C54/$B51))) -> 0 | AN54: =IF($B51="n/a","n/a",IF(AN$3>($B51+$E54),$C54-SUM($F54:AM54),($C54/$B51))) -> 0 | AO54: =IF($B51="n/a","n/a",IF(AO$3>($B51+$E54),$C54-SUM($F54:AN54),($C54/$B51))) -> 0 | AP54: =IF($B51="n/a","n/a",IF(AP$3>($B51+$E54),$C54-SUM($F54:AO54),($C54/$B51))) -> 0 | AQ54: =IF($B51="n/a","n/a",IF(AQ$3>($B51+$E54),$C54-SUM($F54:AP54),($C54/$B51))) -> 0 | AR54: =IF($B51="n/a","n/a",IF(AR$3>($B51+$E54),$C54-SUM($F54:AQ54),($C54/$B51))) -> 0 | AS54: =IF($B51="n/a","n/a",IF(AS$3>($B51+$E54),$C54-SUM($F54:AR54),($C54/$B51))) -> 0 | AT54: =IF($B51="n/a","n/a",IF(AT$3>($B51+$E54),$C54-SUM($F54:AS54),($C54/$B51))) -> 0 | AU54: =IF($B51="n/a","n/a",IF(AU$3>($B51+$E54),$C54-SUM($F54:AT54),($C54/$B51))) -> 0 | AV54: =IF($B51="n/a","n/a",IF(AV$3>($B51+$E54),$C54-SUM($F54:AU54),($C54/$B51))) -> 0 | AW54: =IF($B51="n/a","n/a",IF(AW$3>($B51+$E54),$C54-SUM($F54:AV54),($C54/$B51))) -> 0 | AX54: =IF($B51="n/a","n/a",IF(AX$3>($B51+$E54),$C54-SUM($F54:AW54),($C54/$B51))) -> 0 | AY54: =IF($B51="n/a","n/a",IF(AY$3>($B51+$E54),$C54-SUM($F54:AX54),($C54/$B51))) -> 0 | AZ54: =IF($B51="n/a","n/a",IF(AZ$3>($B51+$E54),$C54-SUM($F54:AY54),($C54/$B51))) -> 0 | BA54: =IF($B51="n/a","n/a",IF(BA$3>($B51+$E54),$C54-SUM($F54:AZ54),($C54/$B51))) -> 0 | BB54: =IF($B51="n/a","n/a",IF(BB$3>($B51+$E54),$C54-SUM($F54:BA54),($C54/$B51))) -> 0 | BC54: =IF($B51="n/a","n/a",IF(BC$3>($B51+$E54),$C54-SUM($F54:BB54),($C54/$B51))) -> 0 | BD54: =IF($B51="n/a","n/a",IF(BD$3>($B51+$E54),$C54-SUM($F54:BC54),($C54/$B51))) -> 0 | BE54: =IF($B51="n/a","n/a",IF(BE$3>($B51+$E54),$C54-SUM($F54:BD54),($C54/$B51))) -> 0 | BF54: =IF($B51="n/a","n/a",IF(BF$3>($B51+$E54),$C54-SUM($F54:BE54),($C54/$B51))) -> 0 | BG54: =IF($B51="n/a","n/a",IF(BG$3>($B51+$E54),$C54-SUM($F54:BF54),($C54/$B51))) -> 0 | BH54: =IF($B51="n/a","n/a",IF(BH$3>($B51+$E54),$C54-SUM($F54:BG54),($C54/$B51))) -> 0 | BI54: =IF($B51="n/a","n/a",IF(BI$3>($B51+$E54),$C54-SUM($F54:BH54),($C54/$B51))) -> 0 | BJ54: =IF($B51="n/a","n/a",IF(BJ$3>($B51+$E54),$C54-SUM($F54:BI54),($C54/$B51))) -> 0 | BK54: =IF($B51="n/a","n/a",IF(BK$3>($B51+$E54),$C54-SUM($F54:BJ54),($C54/$B51))) -> 0 | BL54: =IF($B51="n/a","n/a",IF(BL$3>($B51+$E54),$C54-SUM($F54:BK54),($C54/$B51))) -> 0 | BM54: =IF($B51="n/a","n/a",IF(BM$3>($B51+$E54),$C54-SUM($F54:BL54),($C54/$B51))) -> 0 | BN54: =IF($B51="n/a","n/a",IF(BN$3>($B51+$E54),$C54-SUM($F54:BM54),($C54/$B51))) -> 0
B55: =INDEX('I2 RAB '!$D$9:$D$38,A48) -> 77.05562629 | C55: =OFFSET('I3 CAPEX '!$E$44,$A48,E55)+OFFSET('I3 CAPEX '!$E$79,$A48,E55) -> 8.189300057 | E55: 5 | K55: =IF($B51="n/a","n/a",IF(K$3>($B51+$E55),$C55-SUM($F55:J55),($C55/$B51))) -> 0.5459533371 | L55: =IF($B51="n/a","n/a",IF(L$3>($B51+$E55),$C55-SUM($F55:K55),($C55/$B51))) -> 0.5459533371 | M55: =IF($B51="n/a","n/a",IF(M$3>($B51+$E55),$C55-SUM($F55:L55),($C55/$B51))) -> 0.5459533371 | N55: =IF($B51="n/a","n/a",IF(N$3>($B51+$E55),$C55-SUM($F55:M55),($C55/$B51))) -> 0.5459533371 | O55: =IF($B51="n/a","n/a",IF(O$3>($B51+$E55),$C55-SUM($F55:N55),($C55/$B51))) -> 0.5459533371 | P55: =IF($B51="n/a","n/a",IF(P$3>($B51+$E55),$C55-SUM($F55:O55),($C55/$B51))) -> 0.5459533371 | Q55: =IF($B51="n/a","n/a",IF(Q$3>($B51+$E55),$C55-SUM($F55:P55),($C55/$B51))) -> 0.5459533371 | R55: =IF($B51="n/a","n/a",IF(R$3>($B51+$E55),$C55-SUM($F55:Q55),($C55/$B51))) -> 0.5459533371 | S55: =IF($B51="n/a","n/a",IF(S$3>($B51+$E55),$C55-SUM($F55:R55),($C55/$B51))) -> 0.5459533371 | T55: =IF($B51="n/a","n/a",IF(T$3>($B51+$E55),$C55-SUM($F55:S55),($C55/$B51))) -> 0.5459533371 | U55: =IF($B51="n/a","n/a",IF(U$3>($B51+$E55),$C55-SUM($F55:T55),($C55/$B51))) -> 0.5459533371 | V55: =IF($B51="n/a","n/a",IF(V$3>($B51+$E55),$C55-SUM($F55:U55),($C55/$B51))) -> 0.5459533371 | W55: =IF($B51="n/a","n/a",IF(W$3>($B51+$E55),$C55-SUM($F55:V55),($C55/$B51))) -> 0.5459533371 | X55: =IF($B51="n/a","n/a",IF(X$3>($B51+$E55),$C55-SUM($F55:W55),($C55/$B51))) -> 0.5459533371 | Y55: =IF($B51="n/a","n/a",IF(Y$3>($B51+$E55),$C55-SUM($F55:X55),($C55/$B51))) -> 0.5459533371 | Z55: =IF($B51="n/a","n/a",IF(Z$3>($B51+$E55),$C55-SUM($F55:Y55),($C55/$B51))) -> 0 | AA55: =IF($B51="n/a","n/a",IF(AA$3>($B51+$E55),$C55-SUM($F55:Z55),($C55/$B51))) -> 0 | AB55: =IF($B51="n/a","n/a",IF(AB$3>($B51+$E55),$C55-SUM($F55:AA55),($C55/$B51))) -> 0 | AC55: =IF($B51="n/a","n/a",IF(AC$3>($B51+$E55),$C55-SUM($F55:AB55),($C55/$B51))) -> 0 | AD55: =IF($B51="n/a","n/a",IF(AD$3>($B51+$E55),$C55-SUM($F55:AC55),($C55/$B51))) -> 0 | AE55: =IF($B51="n/a","n/a",IF(AE$3>($B51+$E55),$C55-SUM($F55:AD55),($C55/$B51))) -> 0 | AF55: =IF($B51="n/a","n/a",IF(AF$3>($B51+$E55),$C55-SUM($F55:AE55),($C55/$B51))) -> 0 | AG55: =IF($B51="n/a","n/a",IF(AG$3>($B51+$E55),$C55-SUM($F55:AF55),($C55/$B51))) -> 0 | AH55: =IF($B51="n/a","n/a",IF(AH$3>($B51+$E55),$C55-SUM($F55:AG55),($C55/$B51))) -> 0 | AI55: =IF($B51="n/a","n/a",IF(AI$3>($B51+$E55),$C55-SUM($F55:AH55),($C55/$B51))) -> 0 | AJ55: =IF($B51="n/a","n/a",IF(AJ$3>($B51+$E55),$C55-SUM($F55:AI55),($C55/$B51))) -> 0 | AK55: =IF($B51="n/a","n/a",IF(AK$3>($B51+$E55),$C55-SUM($F55:AJ55),($C55/$B51))) -> 0 | AL55: =IF($B51="n/a","n/a",IF(AL$3>($B51+$E55),$C55-SUM($F55:AK55),($C55/$B51))) -> 0 | AM55: =IF($B51="n/a","n/a",IF(AM$3>($B51+$E55),$C55-SUM($F55:AL55),($C55/$B51))) -> 0 | AN55: =IF($B51="n/a","n/a",IF(AN$3>($B51+$E55),$C55-SUM($F55:AM55),($C55/$B51))) -> 0 | AO55: =IF($B51="n/a","n/a",IF(AO$3>($B51+$E55),$C55-SUM($F55:AN55),($C55/$B51))) -> 0 | AP55: =IF($B51="n/a","n/a",IF(AP$3>($B51+$E55),$C55-SUM($F55:AO55),($C55/$B51))) -> 0 | AQ55: =IF($B51="n/a","n/a",IF(AQ$3>($B51+$E55),$C55-SUM($F55:AP55),($C55/$B51))) -> 0 | AR55: =IF($B51="n/a","n/a",IF(AR$3>($B51+$E55),$C55-SUM($F55:AQ55),($C55/$B51))) -> 0 | AS55: =IF($B51="n/a","n/a",IF(AS$3>($B51+$E55),$C55-SUM($F55:AR55),($C55/$B51))) -> 0 | AT55: =IF($B51="n/a","n/a",IF(AT$3>($B51+$E55),$C55-SUM($F55:AS55),($C55/$B51))) -> 0 | AU55: =IF($B51="n/a","n/a",IF(AU$3>($B51+$E55),$C55-SUM($F55:AT55),($C55/$B51))) -> 0 | AV55: =IF($B51="n/a","n/a",IF(AV$3>($B51+$E55),$C55-SUM($F55:AU55),($C55/$B51))) -> 0 | AW55: =IF($B51="n/a","n/a",IF(AW$3>($B51+$E55),$C55-SUM($F55:AV55),($C55/$B51))) -> 0 | AX55: =IF($B51="n/a","n/a",IF(AX$3>($B51+$E55),$C55-SUM($F55:AW55),($C55/$B51))) -> 0 | AY55: =IF($B51="n/a","n/a",IF(AY$3>($B51+$E55),$C55-SUM($F55:AX55),($C55/$B51))) -> 0 | AZ55: =IF($B51="n/a","n/a",IF(AZ$3>($B51+$E55),$C55-SUM($F55:AY55),($C55/$B51))) -> 0 | BA55: =IF($B51="n/a","n/a",IF(BA$3>($B51+$E55),$C55-SUM($F55:AZ55),($C55/$B51))) -> 0 | BB55: =IF($B51="n/a","n/a",IF(BB$3>($B51+$E55),$C55-SUM($F55:BA55),($C55/$B51))) -> 0 | BC55: =IF($B51="n/a","n/a",IF(BC$3>($B51+$E55),$C55-SUM($F55:BB55),($C55/$B51))) -> 0 | BD55: =IF($B51="n/a","n/a",IF(BD$3>($B51+$E55),$C55-SUM($F55:BC55),($C55/$B51))) -> 0 | BE55: =IF($B51="n/a","n/a",IF(BE$3>($B51+$E55),$C55-SUM($F55:BD55),($C55/$B51))) -> 0 | BF55: =IF($B51="n/a","n/a",IF(BF$3>($B51+$E55),$C55-SUM($F55:BE55),($C55/$B51))) -> 0 | BG55: =IF($B51="n/a","n/a",IF(BG$3>($B51+$E55),$C55-SUM($F55:BF55),($C55/$B51))) -> 0 | BH55: =IF($B51="n/a","n/a",IF(BH$3>($B51+$E55),$C55-SUM($F55:BG55),($C55/$B51))) -> 0 | BI55: =IF($B51="n/a","n/a",IF(BI$3>($B51+$E55),$C55-SUM($F55:BH55),($C55/$B51))) -> 0 | BJ55: =IF($B51="n/a","n/a",IF(BJ$3>($B51+$E55),$C55-SUM($F55:BI55),($C55/$B51))) -> 0 | BK55: =IF($B51="n/a","n/a",IF(BK$3>($B51+$E55),$C55-SUM($F55:BJ55),($C55/$B51))) -> 0 | BL55: =IF($B51="n/a","n/a",IF(BL$3>($B51+$E55),$C55-SUM($F55:BK55),($C55/$B51))) -> 0 | BM55: =IF($B51="n/a","n/a",IF(BM$3>($B51+$E55),$C55-SUM($F55:BL55),($C55/$B51))) -> 0 | BN55: =IF($B51="n/a","n/a",IF(BN$3>($B51+$E55),$C55-SUM($F55:BM55),($C55/$B51))) -> 0
B56: Op Bal Adjustment | C56: =OFFSET('I3 CAPEX '!$E$44,$A48,E56)+OFFSET('I3 CAPEX '!$E$79,$A48,E56) -> 0 | E56: 6 | L56: =IF($B51="n/a","n/a",IF(L$3>($B51+$E56),$C56-SUM($F56:K56),($C56/$B51))) -> 0 | M56: =IF($B51="n/a","n/a",IF(M$3>($B51+$E56),$C56-SUM($F56:L56),($C56/$B51))) -> 0 | N56: =IF($B51="n/a","n/a",IF(N$3>($B51+$E56),$C56-SUM($F56:M56),($C56/$B51))) -> 0 | O56: =IF($B51="n/a","n/a",IF(O$3>($B51+$E56),$C56-SUM($F56:N56),($C56/$B51))) -> 0 | P56: =IF($B51="n/a","n/a",IF(P$3>($B51+$E56),$C56-SUM($F56:O56),($C56/$B51))) -> 0 | Q56: =IF($B51="n/a","n/a",IF(Q$3>($B51+$E56),$C56-SUM($F56:P56),($C56/$B51))) -> 0 | R56: =IF($B51="n/a","n/a",IF(R$3>($B51+$E56),$C56-SUM($F56:Q56),($C56/$B51))) -> 0 | S56: =IF($B51="n/a","n/a",IF(S$3>($B51+$E56),$C56-SUM($F56:R56),($C56/$B51))) -> 0 | T56: =IF($B51="n/a","n/a",IF(T$3>($B51+$E56),$C56-SUM($F56:S56),($C56/$B51))) -> 0 | U56: =IF($B51="n/a","n/a",IF(U$3>($B51+$E56),$C56-SUM($F56:T56),($C56/$B51))) -> 0 | V56: =IF($B51="n/a","n/a",IF(V$3>($B51+$E56),$C56-SUM($F56:U56),($C56/$B51))) -> 0 | W56: =IF($B51="n/a","n/a",IF(W$3>($B51+$E56),$C56-SUM($F56:V56),($C56/$B51))) -> 0 | X56: =IF($B51="n/a","n/a",IF(X$3>($B51+$E56),$C56-SUM($F56:W56),($C56/$B51))) -> 0 | Y56: =IF($B51="n/a","n/a",IF(Y$3>($B51+$E56),$C56-SUM($F56:X56),($C56/$B51))) -> 0 | Z56: =IF($B51="n/a","n/a",IF(Z$3>($B51+$E56),$C56-SUM($F56:Y56),($C56/$B51))) -> 0 | AA56: =IF($B51="n/a","n/a",IF(AA$3>($B51+$E56),$C56-SUM($F56:Z56),($C56/$B51))) -> 0 | AB56: =IF($B51="n/a","n/a",IF(AB$3>($B51+$E56),$C56-SUM($F56:AA56),($C56/$B51))) -> 0 | AC56: =IF($B51="n/a","n/a",IF(AC$3>($B51+$E56),$C56-SUM($F56:AB56),($C56/$B51))) -> 0 | AD56: =IF($B51="n/a","n/a",IF(AD$3>($B51+$E56),$C56-SUM($F56:AC56),($C56/$B51))) -> 0 | AE56: =IF($B51="n/a","n/a",IF(AE$3>($B51+$E56),$C56-SUM($F56:AD56),($C56/$B51))) -> 0 | AF56: =IF($B51="n/a","n/a",IF(AF$3>($B51+$E56),$C56-SUM($F56:AE56),($C56/$B51))) -> 0 | AG56: =IF($B51="n/a","n/a",IF(AG$3>($B51+$E56),$C56-SUM($F56:AF56),($C56/$B51))) -> 0 | AH56: =IF($B51="n/a","n/a",IF(AH$3>($B51+$E56),$C56-SUM($F56:AG56),($C56/$B51))) -> 0 | AI56: =IF($B51="n/a","n/a",IF(AI$3>($B51+$E56),$C56-SUM($F56:AH56),($C56/$B51))) -> 0 | AJ56: =IF($B51="n/a","n/a",IF(AJ$3>($B51+$E56),$C56-SUM($F56:AI56),($C56/$B51))) -> 0 | AK56: =IF($B51="n/a","n/a",IF(AK$3>($B51+$E56),$C56-SUM($F56:AJ56),($C56/$B51))) -> 0 | AL56: =IF($B51="n/a","n/a",IF(AL$3>($B51+$E56),$C56-SUM($F56:AK56),($C56/$B51))) -> 0 | AM56: =IF($B51="n/a","n/a",IF(AM$3>($B51+$E56),$C56-SUM($F56:AL56),($C56/$B51))) -> 0 | AN56: =IF($B51="n/a","n/a",IF(AN$3>($B51+$E56),$C56-SUM($F56:AM56),($C56/$B51))) -> 0 | AO56: =IF($B51="n/a","n/a",IF(AO$3>($B51+$E56),$C56-SUM($F56:AN56),($C56/$B51))) -> 0 | AP56: =IF($B51="n/a","n/a",IF(AP$3>($B51+$E56),$C56-SUM($F56:AO56),($C56/$B51))) -> 0 | AQ56: =IF($B51="n/a","n/a",IF(AQ$3>($B51+$E56),$C56-SUM($F56:AP56),($C56/$B51))) -> 0 | AR56: =IF($B51="n/a","n/a",IF(AR$3>($B51+$E56),$C56-SUM($F56:AQ56),($C56/$B51))) -> 0 | AS56: =IF($B51="n/a","n/a",IF(AS$3>($B51+$E56),$C56-SUM($F56:AR56),($C56/$B51))) -> 0 | AT56: =IF($B51="n/a","n/a",IF(AT$3>($B51+$E56),$C56-SUM($F56:AS56),($C56/$B51))) -> 0 | AU56: =IF($B51="n/a","n/a",IF(AU$3>($B51+$E56),$C56-SUM($F56:AT56),($C56/$B51))) -> 0 | AV56: =IF($B51="n/a","n/a",IF(AV$3>($B51+$E56),$C56-SUM($F56:AU56),($C56/$B51))) -> 0 | AW56: =IF($B51="n/a","n/a",IF(AW$3>($B51+$E56),$C56-SUM($F56:AV56),($C56/$B51))) -> 0 | AX56: =IF($B51="n/a","n/a",IF(AX$3>($B51+$E56),$C56-SUM($F56:AW56),($C56/$B51))) -> 0 | AY56: =IF($B51="n/a","n/a",IF(AY$3>($B51+$E56),$C56-SUM($F56:AX56),($C56/$B51))) -> 0 | AZ56: =IF($B51="n/a","n/a",IF(AZ$3>($B51+$E56),$C56-SUM($F56:AY56),($C56/$B51))) -> 0 | BA56: =IF($B51="n/a","n/a",IF(BA$3>($B51+$E56),$C56-SUM($F56:AZ56),($C56/$B51))) -> 0 | BB56: =IF($B51="n/a","n/a",IF(BB$3>($B51+$E56),$C56-SUM($F56:BA56),($C56/$B51))) -> 0 | BC56: =IF($B51="n/a","n/a",IF(BC$3>($B51+$E56),$C56-SUM($F56:BB56),($C56/$B51))) -> 0 | BD56: =IF($B51="n/a","n/a",IF(BD$3>($B51+$E56),$C56-SUM($F56:BC56),($C56/$B51))) -> 0 | BE56: =IF($B51="n/a","n/a",IF(BE$3>($B51+$E56),$C56-SUM($F56:BD56),($C56/$B51))) -> 0 | BF56: =IF($B51="n/a","n/a",IF(BF$3>($B51+$E56),$C56-SUM($F56:BE56),($C56/$B51))) -> 0 | BG56: =IF($B51="n/a","n/a",IF(BG$3>($B51+$E56),$C56-SUM($F56:BF56),($C56/$B51))) -> 0 | BH56: =IF($B51="n/a","n/a",IF(BH$3>($B51+$E56),$C56-SUM($F56:BG56),($C56/$B51))) -> 0 | BI56: =IF($B51="n/a","n/a",IF(BI$3>($B51+$E56),$C56-SUM($F56:BH56),($C56/$B51))) -> 0 | BJ56: =IF($B51="n/a","n/a",IF(BJ$3>($B51+$E56),$C56-SUM($F56:BI56),($C56/$B51))) -> 0 | BK56: =IF($B51="n/a","n/a",IF(BK$3>($B51+$E56),$C56-SUM($F56:BJ56),($C56/$B51))) -> 0 | BL56: =IF($B51="n/a","n/a",IF(BL$3>($B51+$E56),$C56-SUM($F56:BK56),($C56/$B51))) -> 0 | BM56: =IF($B51="n/a","n/a",IF(BM$3>($B51+$E56),$C56-SUM($F56:BL56),($C56/$B51))) -> 0 | BN56: =IF($B51="n/a","n/a",IF(BN$3>($B51+$E56),$C56-SUM($F56:BM56),($C56/$B51))) -> 0
B57: =+OFFSET('I3 CAPEX '!$E$79,$A48,E54) -> -16.80118316 | C57: =OFFSET('I3 CAPEX '!$E$44,$A48,E57)+OFFSET('I3 CAPEX '!$E$79,$A48,E57) -> 0 | E57: 7 | M57: =IF($B51="n/a","n/a",IF(M$3>($B51+$E57),$C57-SUM($F57:L57),($C57/$B51))) -> 0 | N57: =IF($B51="n/a","n/a",IF(N$3>($B51+$E57),$C57-SUM($F57:M57),($C57/$B51))) -> 0 | O57: =IF($B51="n/a","n/a",IF(O$3>($B51+$E57),$C57-SUM($F57:N57),($C57/$B51))) -> 0 | P57: =IF($B51="n/a","n/a",IF(P$3>($B51+$E57),$C57-SUM($F57:O57),($C57/$B51))) -> 0 | Q57: =IF($B51="n/a","n/a",IF(Q$3>($B51+$E57),$C57-SUM($F57:P57),($C57/$B51))) -> 0 | R57: =IF($B51="n/a","n/a",IF(R$3>($B51+$E57),$C57-SUM($F57:Q57),($C57/$B51))) -> 0 | S57: =IF($B51="n/a","n/a",IF(S$3>($B51+$E57),$C57-SUM($F57:R57),($C57/$B51))) -> 0 | T57: =IF($B51="n/a","n/a",IF(T$3>($B51+$E57),$C57-SUM($F57:S57),($C57/$B51))) -> 0 | U57: =IF($B51="n/a","n/a",IF(U$3>($B51+$E57),$C57-SUM($F57:T57),($C57/$B51))) -> 0 | V57: =IF($B51="n/a","n/a",IF(V$3>($B51+$E57),$C57-SUM($F57:U57),($C57/$B51))) -> 0 | W57: =IF($B51="n/a","n/a",IF(W$3>($B51+$E57),$C57-SUM($F57:V57),($C57/$B51))) -> 0 | X57: =IF($B51="n/a","n/a",IF(X$3>($B51+$E57),$C57-SUM($F57:W57),($C57/$B51))) -> 0 | Y57: =IF($B51="n/a","n/a",IF(Y$3>($B51+$E57),$C57-SUM($F57:X57),($C57/$B51))) -> 0 | Z57: =IF($B51="n/a","n/a",IF(Z$3>($B51+$E57),$C57-SUM($F57:Y57),($C57/$B51))) -> 0 | AA57: =IF($B51="n/a","n/a",IF(AA$3>($B51+$E57),$C57-SUM($F57:Z57),($C57/$B51))) -> 0 | AB57: =IF($B51="n/a","n/a",IF(AB$3>($B51+$E57),$C57-SUM($F57:AA57),($C57/$B51))) -> 0 | AC57: =IF($B51="n/a","n/a",IF(AC$3>($B51+$E57),$C57-SUM($F57:AB57),($C57/$B51))) -> 0 | AD57: =IF($B51="n/a","n/a",IF(AD$3>($B51+$E57),$C57-SUM($F57:AC57),($C57/$B51))) -> 0 | AE57: =IF($B51="n/a","n/a",IF(AE$3>($B51+$E57),$C57-SUM($F57:AD57),($C57/$B51))) -> 0 | AF57: =IF($B51="n/a","n/a",IF(AF$3>($B51+$E57),$C57-SUM($F57:AE57),($C57/$B51))) -> 0 | AG57: =IF($B51="n/a","n/a",IF(AG$3>($B51+$E57),$C57-SUM($F57:AF57),($C57/$B51))) -> 0 | AH57: =IF($B51="n/a","n/a",IF(AH$3>($B51+$E57),$C57-SUM($F57:AG57),($C57/$B51))) -> 0 | AI57: =IF($B51="n/a","n/a",IF(AI$3>($B51+$E57),$C57-SUM($F57:AH57),($C57/$B51))) -> 0 | AJ57: =IF($B51="n/a","n/a",IF(AJ$3>($B51+$E57),$C57-SUM($F57:AI57),($C57/$B51))) -> 0 | AK57: =IF($B51="n/a","n/a",IF(AK$3>($B51+$E57),$C57-SUM($F57:AJ57),($C57/$B51))) -> 0 | AL57: =IF($B51="n/a","n/a",IF(AL$3>($B51+$E57),$C57-SUM($F57:AK57),($C57/$B51))) -> 0 | AM57: =IF($B51="n/a","n/a",IF(AM$3>($B51+$E57),$C57-SUM($F57:AL57),($C57/$B51))) -> 0 | AN57: =IF($B51="n/a","n/a",IF(AN$3>($B51+$E57),$C57-SUM($F57:AM57),($C57/$B51))) -> 0 | AO57: =IF($B51="n/a","n/a",IF(AO$3>($B51+$E57),$C57-SUM($F57:AN57),($C57/$B51))) -> 0 | AP57: =IF($B51="n/a","n/a",IF(AP$3>($B51+$E57),$C57-SUM($F57:AO57),($C57/$B51))) -> 0 | AQ57: =IF($B51="n/a","n/a",IF(AQ$3>($B51+$E57),$C57-SUM($F57:AP57),($C57/$B51))) -> 0 | AR57: =IF($B51="n/a","n/a",IF(AR$3>($B51+$E57),$C57-SUM($F57:AQ57),($C57/$B51))) -> 0 | AS57: =IF($B51="n/a","n/a",IF(AS$3>($B51+$E57),$C57-SUM($F57:AR57),($C57/$B51))) -> 0 | AT57: =IF($B51="n/a","n/a",IF(AT$3>($B51+$E57),$C57-SUM($F57:AS57),($C57/$B51))) -> 0 | AU57: =IF($B51="n/a","n/a",IF(AU$3>($B51+$E57),$C57-SUM($F57:AT57),($C57/$B51))) -> 0 | AV57: =IF($B51="n/a","n/a",IF(AV$3>($B51+$E57),$C57-SUM($F57:AU57),($C57/$B51))) -> 0 | AW57: =IF($B51="n/a","n/a",IF(AW$3>($B51+$E57),$C57-SUM($F57:AV57),($C57/$B51))) -> 0 | AX57: =IF($B51="n/a","n/a",IF(AX$3>($B51+$E57),$C57-SUM($F57:AW57),($C57/$B51))) -> 0 | AY57: =IF($B51="n/a","n/a",IF(AY$3>($B51+$E57),$C57-SUM($F57:AX57),($C57/$B51))) -> 0 | AZ57: =IF($B51="n/a","n/a",IF(AZ$3>($B51+$E57),$C57-SUM($F57:AY57),($C57/$B51))) -> 0 | BA57: =IF($B51="n/a","n/a",IF(BA$3>($B51+$E57),$C57-SUM($F57:AZ57),($C57/$B51))) -> 0 | BB57: =IF($B51="n/a","n/a",IF(BB$3>($B51+$E57),$C57-SUM($F57:BA57),($C57/$B51))) -> 0 | BC57: =IF($B51="n/a","n/a",IF(BC$3>($B51+$E57),$C57-SUM($F57:BB57),($C57/$B51))) -> 0 | BD57: =IF($B51="n/a","n/a",IF(BD$3>($B51+$E57),$C57-SUM($F57:BC57),($C57/$B51))) -> 0 | BE57: =IF($B51="n/a","n/a",IF(BE$3>($B51+$E57),$C57-SUM($F57:BD57),($C57/$B51))) -> 0 | BF57: =IF($B51="n/a","n/a",IF(BF$3>($B51+$E57),$C57-SUM($F57:BE57),($C57/$B51))) -> 0 | BG57: =IF($B51="n/a","n/a",IF(BG$3>($B51+$E57),$C57-SUM($F57:BF57),($C57/$B51))) -> 0 | BH57: =IF($B51="n/a","n/a",IF(BH$3>($B51+$E57),$C57-SUM($F57:BG57),($C57/$B51))) -> 0 | BI57: =IF($B51="n/a","n/a",IF(BI$3>($B51+$E57),$C57-SUM($F57:BH57),($C57/$B51))) -> 0 | BJ57: =IF($B51="n/a","n/a",IF(BJ$3>($B51+$E57),$C57-SUM($F57:BI57),($C57/$B51))) -> 0 | BK57: =IF($B51="n/a","n/a",IF(BK$3>($B51+$E57),$C57-SUM($F57:BJ57),($C57/$B51))) -> 0 | BL57: =IF($B51="n/a","n/a",IF(BL$3>($B51+$E57),$C57-SUM($F57:BK57),($C57/$B51))) -> 0 | BM57: =IF($B51="n/a","n/a",IF(BM$3>($B51+$E57),$C57-SUM($F57:BL57),($C57/$B51))) -> 0 | BN57: =IF($B51="n/a","n/a",IF(BN$3>($B51+$E57),$C57-SUM($F57:BM57),($C57/$B51))) -> 0
C58: =OFFSET('I3 CAPEX '!$E$44,$A48,E58)+OFFSET('I3 CAPEX '!$E$79,$A48,E58) -> 0 | E58: 8 | N58: =IF($B51="n/a","n/a",IF(N$3>($B51+$E58),$C58-SUM($F58:M58),($C58/$B51))) -> 0 | O58: =IF($B51="n/a","n/a",IF(O$3>($B51+$E58),$C58-SUM($F58:N58),($C58/$B51))) -> 0 | P58: =IF($B51="n/a","n/a",IF(P$3>($B51+$E58),$C58-SUM($F58:O58),($C58/$B51))) -> 0 | Q58: =IF($B51="n/a","n/a",IF(Q$3>($B51+$E58),$C58-SUM($F58:P58),($C58/$B51))) -> 0 | R58: =IF($B51="n/a","n/a",IF(R$3>($B51+$E58),$C58-SUM($F58:Q58),($C58/$B51))) -> 0 | S58: =IF($B51="n/a","n/a",IF(S$3>($B51+$E58),$C58-SUM($F58:R58),($C58/$B51))) -> 0 | T58: =IF($B51="n/a","n/a",IF(T$3>($B51+$E58),$C58-SUM($F58:S58),($C58/$B51))) -> 0 | U58: =IF($B51="n/a","n/a",IF(U$3>($B51+$E58),$C58-SUM($F58:T58),($C58/$B51))) -> 0 | V58: =IF($B51="n/a","n/a",IF(V$3>($B51+$E58),$C58-SUM($F58:U58),($C58/$B51))) -> 0 | W58: =IF($B51="n/a","n/a",IF(W$3>($B51+$E58),$C58-SUM($F58:V58),($C58/$B51))) -> 0 | X58: =IF($B51="n/a","n/a",IF(X$3>($B51+$E58),$C58-SUM($F58:W58),($C58/$B51))) -> 0 | Y58: =IF($B51="n/a","n/a",IF(Y$3>($B51+$E58),$C58-SUM($F58:X58),($C58/$B51))) -> 0 | Z58: =IF($B51="n/a","n/a",IF(Z$3>($B51+$E58),$C58-SUM($F58:Y58),($C58/$B51))) -> 0 | AA58: =IF($B51="n/a","n/a",IF(AA$3>($B51+$E58),$C58-SUM($F58:Z58),($C58/$B51))) -> 0 | AB58: =IF($B51="n/a","n/a",IF(AB$3>($B51+$E58),$C58-SUM($F58:AA58),($C58/$B51))) -> 0 | AC58: =IF($B51="n/a","n/a",IF(AC$3>($B51+$E58),$C58-SUM($F58:AB58),($C58/$B51))) -> 0 | AD58: =IF($B51="n/a","n/a",IF(AD$3>($B51+$E58),$C58-SUM($F58:AC58),($C58/$B51))) -> 0 | AE58: =IF($B51="n/a","n/a",IF(AE$3>($B51+$E58),$C58-SUM($F58:AD58),($C58/$B51))) -> 0 | AF58: =IF($B51="n/a","n/a",IF(AF$3>($B51+$E58),$C58-SUM($F58:AE58),($C58/$B51))) -> 0 | AG58: =IF($B51="n/a","n/a",IF(AG$3>($B51+$E58),$C58-SUM($F58:AF58),($C58/$B51))) -> 0 | AH58: =IF($B51="n/a","n/a",IF(AH$3>($B51+$E58),$C58-SUM($F58:AG58),($C58/$B51))) -> 0 | AI58: =IF($B51="n/a","n/a",IF(AI$3>($B51+$E58),$C58-SUM($F58:AH58),($C58/$B51))) -> 0 | AJ58: =IF($B51="n/a","n/a",IF(AJ$3>($B51+$E58),$C58-SUM($F58:AI58),($C58/$B51))) -> 0 | AK58: =IF($B51="n/a","n/a",IF(AK$3>($B51+$E58),$C58-SUM($F58:AJ58),($C58/$B51))) -> 0 | AL58: =IF($B51="n/a","n/a",IF(AL$3>($B51+$E58),$C58-SUM($F58:AK58),($C58/$B51))) -> 0 | AM58: =IF($B51="n/a","n/a",IF(AM$3>($B51+$E58),$C58-SUM($F58:AL58),($C58/$B51))) -> 0 | AN58: =IF($B51="n/a","n/a",IF(AN$3>($B51+$E58),$C58-SUM($F58:AM58),($C58/$B51))) -> 0 | AO58: =IF($B51="n/a","n/a",IF(AO$3>($B51+$E58),$C58-SUM($F58:AN58),($C58/$B51))) -> 0 | AP58: =IF($B51="n/a","n/a",IF(AP$3>($B51+$E58),$C58-SUM($F58:AO58),($C58/$B51))) -> 0 | AQ58: =IF($B51="n/a","n/a",IF(AQ$3>($B51+$E58),$C58-SUM($F58:AP58),($C58/$B51))) -> 0 | AR58: =IF($B51="n/a","n/a",IF(AR$3>($B51+$E58),$C58-SUM($F58:AQ58),($C58/$B51))) -> 0 | AS58: =IF($B51="n/a","n/a",IF(AS$3>($B51+$E58),$C58-SUM($F58:AR58),($C58/$B51))) -> 0 | AT58: =IF($B51="n/a","n/a",IF(AT$3>($B51+$E58),$C58-SUM($F58:AS58),($C58/$B51))) -> 0 | AU58: =IF($B51="n/a","n/a",IF(AU$3>($B51+$E58),$C58-SUM($F58:AT58),($C58/$B51))) -> 0 | AV58: =IF($B51="n/a","n/a",IF(AV$3>($B51+$E58),$C58-SUM($F58:AU58),($C58/$B51))) -> 0 | AW58: =IF($B51="n/a","n/a",IF(AW$3>($B51+$E58),$C58-SUM($F58:AV58),($C58/$B51))) -> 0 | AX58: =IF($B51="n/a","n/a",IF(AX$3>($B51+$E58),$C58-SUM($F58:AW58),($C58/$B51))) -> 0 | AY58: =IF($B51="n/a","n/a",IF(AY$3>($B51+$E58),$C58-SUM($F58:AX58),($C58/$B51))) -> 0 | AZ58: =IF($B51="n/a","n/a",IF(AZ$3>($B51+$E58),$C58-SUM($F58:AY58),($C58/$B51))) -> 0 | BA58: =IF($B51="n/a","n/a",IF(BA$3>($B51+$E58),$C58-SUM($F58:AZ58),($C58/$B51))) -> 0 | BB58: =IF($B51="n/a","n/a",IF(BB$3>($B51+$E58),$C58-SUM($F58:BA58),($C58/$B51))) -> 0 | BC58: =IF($B51="n/a","n/a",IF(BC$3>($B51+$E58),$C58-SUM($F58:BB58),($C58/$B51))) -> 0 | BD58: =IF($B51="n/a","n/a",IF(BD$3>($B51+$E58),$C58-SUM($F58:BC58),($C58/$B51))) -> 0 | BE58: =IF($B51="n/a","n/a",IF(BE$3>($B51+$E58),$C58-SUM($F58:BD58),($C58/$B51))) -> 0 | BF58: =IF($B51="n/a","n/a",IF(BF$3>($B51+$E58),$C58-SUM($F58:BE58),($C58/$B51))) -> 0 | BG58: =IF($B51="n/a","n/a",IF(BG$3>($B51+$E58),$C58-SUM($F58:BF58),($C58/$B51))) -> 0 | BH58: =IF($B51="n/a","n/a",IF(BH$3>($B51+$E58),$C58-SUM($F58:BG58),($C58/$B51))) -> 0 | BI58: =IF($B51="n/a","n/a",IF(BI$3>($B51+$E58),$C58-SUM($F58:BH58),($C58/$B51))) -> 0 | BJ58: =IF($B51="n/a","n/a",IF(BJ$3>($B51+$E58),$C58-SUM($F58:BI58),($C58/$B51))) -> 0 | BK58: =IF($B51="n/a","n/a",IF(BK$3>($B51+$E58),$C58-SUM($F58:BJ58),($C58/$B51))) -> 0 | BL58: =IF($B51="n/a","n/a",IF(BL$3>($B51+$E58),$C58-SUM($F58:BK58),($C58/$B51))) -> 0 | BM58: =IF($B51="n/a","n/a",IF(BM$3>($B51+$E58),$C58-SUM($F58:BL58),($C58/$B51))) -> 0 | BN58: =IF($B51="n/a","n/a",IF(BN$3>($B51+$E58),$C58-SUM($F58:BM58),($C58/$B51))) -> 0
C59: =OFFSET('I3 CAPEX '!$E$44,$A48,E59)+OFFSET('I3 CAPEX '!$E$79,$A48,E59) -> 0 | E59: 9 | O59: =IF($B51="n/a","n/a",IF(O$3>($B51+$E59),$C59-SUM($F59:N59),($C59/$B51))) -> 0 | P59: =IF($B51="n/a","n/a",IF(P$3>($B51+$E59),$C59-SUM($F59:O59),($C59/$B51))) -> 0 | Q59: =IF($B51="n/a","n/a",IF(Q$3>($B51+$E59),$C59-SUM($F59:P59),($C59/$B51))) -> 0 | R59: =IF($B51="n/a","n/a",IF(R$3>($B51+$E59),$C59-SUM($F59:Q59),($C59/$B51))) -> 0 | S59: =IF($B51="n/a","n/a",IF(S$3>($B51+$E59),$C59-SUM($F59:R59),($C59/$B51))) -> 0 | T59: =IF($B51="n/a","n/a",IF(T$3>($B51+$E59),$C59-SUM($F59:S59),($C59/$B51))) -> 0 | U59: =IF($B51="n/a","n/a",IF(U$3>($B51+$E59),$C59-SUM($F59:T59),($C59/$B51))) -> 0 | V59: =IF($B51="n/a","n/a",IF(V$3>($B51+$E59),$C59-SUM($F59:U59),($C59/$B51))) -> 0 | W59: =IF($B51="n/a","n/a",IF(W$3>($B51+$E59),$C59-SUM($F59:V59),($C59/$B51))) -> 0 | X59: =IF($B51="n/a","n/a",IF(X$3>($B51+$E59),$C59-SUM($F59:W59),($C59/$B51))) -> 0 | Y59: =IF($B51="n/a","n/a",IF(Y$3>($B51+$E59),$C59-SUM($F59:X59),($C59/$B51))) -> 0 | Z59: =IF($B51="n/a","n/a",IF(Z$3>($B51+$E59),$C59-SUM($F59:Y59),($C59/$B51))) -> 0 | AA59: =IF($B51="n/a","n/a",IF(AA$3>($B51+$E59),$C59-SUM($F59:Z59),($C59/$B51))) -> 0 | AB59: =IF($B51="n/a","n/a",IF(AB$3>($B51+$E59),$C59-SUM($F59:AA59),($C59/$B51))) -> 0 | AC59: =IF($B51="n/a","n/a",IF(AC$3>($B51+$E59),$C59-SUM($F59:AB59),($C59/$B51))) -> 0 | AD59: =IF($B51="n/a","n/a",IF(AD$3>($B51+$E59),$C59-SUM($F59:AC59),($C59/$B51))) -> 0 | AE59: =IF($B51="n/a","n/a",IF(AE$3>($B51+$E59),$C59-SUM($F59:AD59),($C59/$B51))) -> 0 | AF59: =IF($B51="n/a","n/a",IF(AF$3>($B51+$E59),$C59-SUM($F59:AE59),($C59/$B51))) -> 0 | AG59: =IF($B51="n/a","n/a",IF(AG$3>($B51+$E59),$C59-SUM($F59:AF59),($C59/$B51))) -> 0 | AH59: =IF($B51="n/a","n/a",IF(AH$3>($B51+$E59),$C59-SUM($F59:AG59),($C59/$B51))) -> 0 | AI59: =IF($B51="n/a","n/a",IF(AI$3>($B51+$E59),$C59-SUM($F59:AH59),($C59/$B51))) -> 0 | AJ59: =IF($B51="n/a","n/a",IF(AJ$3>($B51+$E59),$C59-SUM($F59:AI59),($C59/$B51))) -> 0 | AK59: =IF($B51="n/a","n/a",IF(AK$3>($B51+$E59),$C59-SUM($F59:AJ59),($C59/$B51))) -> 0 | AL59: =IF($B51="n/a","n/a",IF(AL$3>($B51+$E59),$C59-SUM($F59:AK59),($C59/$B51))) -> 0 | AM59: =IF($B51="n/a","n/a",IF(AM$3>($B51+$E59),$C59-SUM($F59:AL59),($C59/$B51))) -> 0 | AN59: =IF($B51="n/a","n/a",IF(AN$3>($B51+$E59),$C59-SUM($F59:AM59),($C59/$B51))) -> 0 | AO59: =IF($B51="n/a","n/a",IF(AO$3>($B51+$E59),$C59-SUM($F59:AN59),($C59/$B51))) -> 0 | AP59: =IF($B51="n/a","n/a",IF(AP$3>($B51+$E59),$C59-SUM($F59:AO59),($C59/$B51))) -> 0 | AQ59: =IF($B51="n/a","n/a",IF(AQ$3>($B51+$E59),$C59-SUM($F59:AP59),($C59/$B51))) -> 0 | AR59: =IF($B51="n/a","n/a",IF(AR$3>($B51+$E59),$C59-SUM($F59:AQ59),($C59/$B51))) -> 0 | AS59: =IF($B51="n/a","n/a",IF(AS$3>($B51+$E59),$C59-SUM($F59:AR59),($C59/$B51))) -> 0 | AT59: =IF($B51="n/a","n/a",IF(AT$3>($B51+$E59),$C59-SUM($F59:AS59),($C59/$B51))) -> 0 | AU59: =IF($B51="n/a","n/a",IF(AU$3>($B51+$E59),$C59-SUM($F59:AT59),($C59/$B51))) -> 0 | AV59: =IF($B51="n/a","n/a",IF(AV$3>($B51+$E59),$C59-SUM($F59:AU59),($C59/$B51))) -> 0 | AW59: =IF($B51="n/a","n/a",IF(AW$3>($B51+$E59),$C59-SUM($F59:AV59),($C59/$B51))) -> 0 | AX59: =IF($B51="n/a","n/a",IF(AX$3>($B51+$E59),$C59-SUM($F59:AW59),($C59/$B51))) -> 0 | AY59: =IF($B51="n/a","n/a",IF(AY$3>($B51+$E59),$C59-SUM($F59:AX59),($C59/$B51))) -> 0 | AZ59: =IF($B51="n/a","n/a",IF(AZ$3>($B51+$E59),$C59-SUM($F59:AY59),($C59/$B51))) -> 0 | BA59: =IF($B51="n/a","n/a",IF(BA$3>($B51+$E59),$C59-SUM($F59:AZ59),($C59/$B51))) -> 0 | BB59: =IF($B51="n/a","n/a",IF(BB$3>($B51+$E59),$C59-SUM($F59:BA59),($C59/$B51))) -> 0 | BC59: =IF($B51="n/a","n/a",IF(BC$3>($B51+$E59),$C59-SUM($F59:BB59),($C59/$B51))) -> 0 | BD59: =IF($B51="n/a","n/a",IF(BD$3>($B51+$E59),$C59-SUM($F59:BC59),($C59/$B51))) -> 0 | BE59: =IF($B51="n/a","n/a",IF(BE$3>($B51+$E59),$C59-SUM($F59:BD59),($C59/$B51))) -> 0 | BF59: =IF($B51="n/a","n/a",IF(BF$3>($B51+$E59),$C59-SUM($F59:BE59),($C59/$B51))) -> 0 | BG59: =IF($B51="n/a","n/a",IF(BG$3>($B51+$E59),$C59-SUM($F59:BF59),($C59/$B51))) -> 0 | BH59: =IF($B51="n/a","n/a",IF(BH$3>($B51+$E59),$C59-SUM($F59:BG59),($C59/$B51))) -> 0 | BI59: =IF($B51="n/a","n/a",IF(BI$3>($B51+$E59),$C59-SUM($F59:BH59),($C59/$B51))) -> 0 | BJ59: =IF($B51="n/a","n/a",IF(BJ$3>($B51+$E59),$C59-SUM($F59:BI59),($C59/$B51))) -> 0 | BK59: =IF($B51="n/a","n/a",IF(BK$3>($B51+$E59),$C59-SUM($F59:BJ59),($C59/$B51))) -> 0 | BL59: =IF($B51="n/a","n/a",IF(BL$3>($B51+$E59),$C59-SUM($F59:BK59),($C59/$B51))) -> 0 | BM59: =IF($B51="n/a","n/a",IF(BM$3>($B51+$E59),$C59-SUM($F59:BL59),($C59/$B51))) -> 0 | BN59: =IF($B51="n/a","n/a",IF(BN$3>($B51+$E59),$C59-SUM($F59:BM59),($C59/$B51))) -> 0
C60: =OFFSET('I3 CAPEX '!$E$44,$A48,E60)+OFFSET('I3 CAPEX '!$E$79,$A48,E60) -> 0 | E60: 10 | P60: =IF($B51="n/a","n/a",IF(P$3>($B51+$E60),$C60-SUM($F60:O60),($C60/$B51))) -> 0 | Q60: =IF($B51="n/a","n/a",IF(Q$3>($B51+$E60),$C60-SUM($F60:P60),($C60/$B51))) -> 0 | R60: =IF($B51="n/a","n/a",IF(R$3>($B51+$E60),$C60-SUM($F60:Q60),($C60/$B51))) -> 0 | S60: =IF($B51="n/a","n/a",IF(S$3>($B51+$E60),$C60-SUM($F60:R60),($C60/$B51))) -> 0 | T60: =IF($B51="n/a","n/a",IF(T$3>($B51+$E60),$C60-SUM($F60:S60),($C60/$B51))) -> 0 | U60: =IF($B51="n/a","n/a",IF(U$3>($B51+$E60),$C60-SUM($F60:T60),($C60/$B51))) -> 0 | V60: =IF($B51="n/a","n/a",IF(V$3>($B51+$E60),$C60-SUM($F60:U60),($C60/$B51))) -> 0 | W60: =IF($B51="n/a","n/a",IF(W$3>($B51+$E60),$C60-SUM($F60:V60),($C60/$B51))) -> 0 | X60: =IF($B51="n/a","n/a",IF(X$3>($B51+$E60),$C60-SUM($F60:W60),($C60/$B51))) -> 0 | Y60: =IF($B51="n/a","n/a",IF(Y$3>($B51+$E60),$C60-SUM($F60:X60),($C60/$B51))) -> 0 | Z60: =IF($B51="n/a","n/a",IF(Z$3>($B51+$E60),$C60-SUM($F60:Y60),($C60/$B51))) -> 0 | AA60: =IF($B51="n/a","n/a",IF(AA$3>($B51+$E60),$C60-SUM($F60:Z60),($C60/$B51))) -> 0 | AB60: =IF($B51="n/a","n/a",IF(AB$3>($B51+$E60),$C60-SUM($F60:AA60),($C60/$B51))) -> 0 | AC60: =IF($B51="n/a","n/a",IF(AC$3>($B51+$E60),$C60-SUM($F60:AB60),($C60/$B51))) -> 0 | AD60: =IF($B51="n/a","n/a",IF(AD$3>($B51+$E60),$C60-SUM($F60:AC60),($C60/$B51))) -> 0 | AE60: =IF($B51="n/a","n/a",IF(AE$3>($B51+$E60),$C60-SUM($F60:AD60),($C60/$B51))) -> 0 | AF60: =IF($B51="n/a","n/a",IF(AF$3>($B51+$E60),$C60-SUM($F60:AE60),($C60/$B51))) -> 0 | AG60: =IF($B51="n/a","n/a",IF(AG$3>($B51+$E60),$C60-SUM($F60:AF60),($C60/$B51))) -> 0 | AH60: =IF($B51="n/a","n/a",IF(AH$3>($B51+$E60),$C60-SUM($F60:AG60),($C60/$B51))) -> 0 | AI60: =IF($B51="n/a","n/a",IF(AI$3>($B51+$E60),$C60-SUM($F60:AH60),($C60/$B51))) -> 0 | AJ60: =IF($B51="n/a","n/a",IF(AJ$3>($B51+$E60),$C60-SUM($F60:AI60),($C60/$B51))) -> 0 | AK60: =IF($B51="n/a","n/a",IF(AK$3>($B51+$E60),$C60-SUM($F60:AJ60),($C60/$B51))) -> 0 | AL60: =IF($B51="n/a","n/a",IF(AL$3>($B51+$E60),$C60-SUM($F60:AK60),($C60/$B51))) -> 0 | AM60: =IF($B51="n/a","n/a",IF(AM$3>($B51+$E60),$C60-SUM($F60:AL60),($C60/$B51))) -> 0 | AN60: =IF($B51="n/a","n/a",IF(AN$3>($B51+$E60),$C60-SUM($F60:AM60),($C60/$B51))) -> 0 | AO60: =IF($B51="n/a","n/a",IF(AO$3>($B51+$E60),$C60-SUM($F60:AN60),($C60/$B51))) -> 0 | AP60: =IF($B51="n/a","n/a",IF(AP$3>($B51+$E60),$C60-SUM($F60:AO60),($C60/$B51))) -> 0 | AQ60: =IF($B51="n/a","n/a",IF(AQ$3>($B51+$E60),$C60-SUM($F60:AP60),($C60/$B51))) -> 0 | AR60: =IF($B51="n/a","n/a",IF(AR$3>($B51+$E60),$C60-SUM($F60:AQ60),($C60/$B51))) -> 0 | AS60: =IF($B51="n/a","n/a",IF(AS$3>($B51+$E60),$C60-SUM($F60:AR60),($C60/$B51))) -> 0 | AT60: =IF($B51="n/a","n/a",IF(AT$3>($B51+$E60),$C60-SUM($F60:AS60),($C60/$B51))) -> 0 | AU60: =IF($B51="n/a","n/a",IF(AU$3>($B51+$E60),$C60-SUM($F60:AT60),($C60/$B51))) -> 0 | AV60: =IF($B51="n/a","n/a",IF(AV$3>($B51+$E60),$C60-SUM($F60:AU60),($C60/$B51))) -> 0 | AW60: =IF($B51="n/a","n/a",IF(AW$3>($B51+$E60),$C60-SUM($F60:AV60),($C60/$B51))) -> 0 | AX60: =IF($B51="n/a","n/a",IF(AX$3>($B51+$E60),$C60-SUM($F60:AW60),($C60/$B51))) -> 0 | AY60: =IF($B51="n/a","n/a",IF(AY$3>($B51+$E60),$C60-SUM($F60:AX60),($C60/$B51))) -> 0 | AZ60: =IF($B51="n/a","n/a",IF(AZ$3>($B51+$E60),$C60-SUM($F60:AY60),($C60/$B51))) -> 0 | BA60: =IF($B51="n/a","n/a",IF(BA$3>($B51+$E60),$C60-SUM($F60:AZ60),($C60/$B51))) -> 0 | BB60: =IF($B51="n/a","n/a",IF(BB$3>($B51+$E60),$C60-SUM($F60:BA60),($C60/$B51))) -> 0 | BC60: =IF($B51="n/a","n/a",IF(BC$3>($B51+$E60),$C60-SUM($F60:BB60),($C60/$B51))) -> 0 | BD60: =IF($B51="n/a","n/a",IF(BD$3>($B51+$E60),$C60-SUM($F60:BC60),($C60/$B51))) -> 0 | BE60: =IF($B51="n/a","n/a",IF(BE$3>($B51+$E60),$C60-SUM($F60:BD60),($C60/$B51))) -> 0 | BF60: =IF($B51="n/a","n/a",IF(BF$3>($B51+$E60),$C60-SUM($F60:BE60),($C60/$B51))) -> 0 | BG60: =IF($B51="n/a","n/a",IF(BG$3>($B51+$E60),$C60-SUM($F60:BF60),($C60/$B51))) -> 0 | BH60: =IF($B51="n/a","n/a",IF(BH$3>($B51+$E60),$C60-SUM($F60:BG60),($C60/$B51))) -> 0 | BI60: =IF($B51="n/a","n/a",IF(BI$3>($B51+$E60),$C60-SUM($F60:BH60),($C60/$B51))) -> 0 | BJ60: =IF($B51="n/a","n/a",IF(BJ$3>($B51+$E60),$C60-SUM($F60:BI60),($C60/$B51))) -> 0 | BK60: =IF($B51="n/a","n/a",IF(BK$3>($B51+$E60),$C60-SUM($F60:BJ60),($C60/$B51))) -> 0 | BL60: =IF($B51="n/a","n/a",IF(BL$3>($B51+$E60),$C60-SUM($F60:BK60),($C60/$B51))) -> 0 | BM60: =IF($B51="n/a","n/a",IF(BM$3>($B51+$E60),$C60-SUM($F60:BL60),($C60/$B51))) -> 0 | BN60: =IF($B51="n/a","n/a",IF(BN$3>($B51+$E60),$C60-SUM($F60:BM60),($C60/$B51))) -> 0
E61: 11
E62: 12
E63: 13
E64: 14
E65: 15
C66: =B48 -> Communications - Other | F66: =SUBTOTAL(9,F49:F65) -> 6.603416444 | G66: 7.497666071 | H66: 8.180378891 | I66: 8.789587585 | J66: 9.973150361 | K66: 8.838985382 | L66: 8.838985382 | M66: 8.838985382 | N66: 8.838985382 | O66: 8.838985382 | P66: 8.838985382 | Q66: 6.653614344 | R66: 2.235568939 | S66: 2.235568939 | T66: 2.235568939 | U66: 3.915687255 | V66: 3.021437627 | W66: 2.338724807 | X66: 1.729516113 | Y66: 0.5459533371 | Z66: 0 | AA66: 0 | AB66: 0 | AC66: 0 | AD66: 0 | AE66: 0 | AF66: 0 | AG66: 0 | AH66: 0 | AI66: 0 | AJ66: 0 | AK66: 0 | AL66: =SUBTOTAL(9,AL49:AL65) -> 0 | AM66: 0 | AN66: 0 | AO66: 0 | AP66: 0 | AQ66: 0 | AR66: 0 | AS66: 0 | AT66: 0 | AU66: 0 | AV66: 0 | AW66: 0 | AX66: 0 | AY66: 0 | AZ66: 0 | BA66: 0 | BB66: 0 | BC66: 0 | BD66: 0 | BE66: 0 | BF66: 0 | BG66: 0 | BH66: 0 | BI66: 0 | BJ66: 0 | BK66: 0 | BL66: 0 | BM66: 0 | BN66: =SUBTOTAL(9,BN49:BN65) -> 0
A67: =+A48+1 -> 4 | B67: =INDIRECT(CONCATENATE("Asset",A67)) -> Computers, software, and office machines
E68: Initial Asset Base | F68: =IF($B72="n/a","n/a",IF(F$3>$B72,+$B74,+$B74/$B72)) -> 9.983188728 | G68: =IF($B72="n/a","n/a",IF(G$3>$B72,+$B74-SUM($F68:F68),+$B74/$B72)) -> 9.983188728 | H68: =IF($B72="n/a","n/a",IF(H$3>$B72,+$B74-SUM($F68:G68),+$B74/$B72)) -> 9.983188728 | I68: =IF($B72="n/a","n/a",IF(I$3>$B72,+$B74-SUM($F68:H68),+$B74/$B72)) -> 4.942263714 | J68: =IF($B72="n/a","n/a",IF(J$3>$B72,+$B74-SUM($F68:I68),+$B74/$B72)) -> 0 | K68: =IF($B72="n/a","n/a",IF(K$3>$B72,+$B74-SUM($F68:J68),+$B74/$B72)) -> 0 | L68: =IF($B72="n/a","n/a",IF(L$3>$B72,+$B74-SUM($F68:K68),+$B74/$B72)) -> 0 | M68: =IF($B72="n/a","n/a",IF(M$3>$B72,+$B74-SUM($F68:L68),+$B74/$B72)) -> 0 | N68: =IF($B72="n/a","n/a",IF(N$3>$B72,+$B74-SUM($F68:M68),+$B74/$B72)) -> 0 | O68: =IF($B72="n/a","n/a",IF(O$3>$B72,+$B74-SUM($F68:N68),+$B74/$B72)) -> 0 | P68: =IF($B72="n/a","n/a",IF(P$3>$B72,+$B74-SUM($F68:O68),+$B74/$B72)) -> 0 | Q68: =IF($B72="n/a","n/a",IF(Q$3>$B72,+$B74-SUM($F68:P68),+$B74/$B72)) -> 0 | R68: =IF($B72="n/a","n/a",IF(R$3>$B72,+$B74-SUM($F68:Q68),+$B74/$B72)) -> 0 | S68: =IF($B72="n/a","n/a",IF(S$3>$B72,+$B74-SUM($F68:R68),+$B74/$B72)) -> 0 | T68: =IF($B72="n/a","n/a",IF(T$3>$B72,+$B74-SUM($F68:S68),+$B74/$B72)) -> 0 | U68: =IF($B72="n/a","n/a",IF(U$3>$B72,+$B74-SUM($F68:T68),+$B74/$B72)) -> 0 | V68: =IF($B72="n/a","n/a",IF(V$3>$B72,+$B74-SUM($F68:U68),+$B74/$B72)) -> 0 | W68: =IF($B72="n/a","n/a",IF(W$3>$B72,+$B74-SUM($F68:V68),+$B74/$B72)) -> 0 | X68: =IF($B72="n/a","n/a",IF(X$3>$B72,+$B74-SUM($F68:W68),+$B74/$B72)) -> 0 | Y68: =IF($B72="n/a","n/a",IF(Y$3>$B72,+$B74-SUM($F68:X68),+$B74/$B72)) -> 0 | Z68: =IF($B72="n/a","n/a",IF(Z$3>$B72,+$B74-SUM($F68:Y68),+$B74/$B72)) -> 0 | AA68: =IF($B72="n/a","n/a",IF(AA$3>$B72,+$B74-SUM($F68:Z68),+$B74/$B72)) -> 0 | AB68: =IF($B72="n/a","n/a",IF(AB$3>$B72,+$B74-SUM($F68:AA68),+$B74/$B72)) -> 0 | AC68: =IF($B72="n/a","n/a",IF(AC$3>$B72,+$B74-SUM($F68:AB68),+$B74/$B72)) -> 0 | AD68: =IF($B72="n/a","n/a",IF(AD$3>$B72,+$B74-SUM($F68:AC68),+$B74/$B72)) -> 0 | AE68: =IF($B72="n/a","n/a",IF(AE$3>$B72,+$B74-SUM($F68:AD68),+$B74/$B72)) -> 0 | AF68: =IF($B72="n/a","n/a",IF(AF$3>$B72,+$B74-SUM($F68:AE68),+$B74/$B72)) -> 0 | AG68: =IF($B72="n/a","n/a",IF(AG$3>$B72,+$B74-SUM($F68:AF68),+$B74/$B72)) -> 0 | AH68: =IF($B72="n/a","n/a",IF(AH$3>$B72,+$B74-SUM($F68:AG68),+$B74/$B72)) -> 0 | AI68: =IF($B72="n/a","n/a",IF(AI$3>$B72,+$B74-SUM($F68:AH68),+$B74/$B72)) -> 0 | AJ68: =IF($B72="n/a","n/a",IF(AJ$3>$B72,+$B74-SUM($F68:AI68),+$B74/$B72)) -> 0 | AK68: =IF($B72="n/a","n/a",IF(AK$3>$B72,+$B74-SUM($F68:AJ68),+$B74/$B72)) -> 0 | AL68: =IF($B72="n/a","n/a",IF(AL$3>$B72,+$B74-SUM($F68:AK68),+$B74/$B72)) -> 0 | AM68: =IF($B72="n/a","n/a",IF(AM$3>$B72,+$B74-SUM($F68:AL68),+$B74/$B72)) -> 0 | AN68: =IF($B72="n/a","n/a",IF(AN$3>$B72,+$B74-SUM($F68:AM68),+$B74/$B72)) -> 0 | AO68: =IF($B72="n/a","n/a",IF(AO$3>$B72,+$B74-SUM($F68:AN68),+$B74/$B72)) -> 0 | AP68: =IF($B72="n/a","n/a",IF(AP$3>$B72,+$B74-SUM($F68:AO68),+$B74/$B72)) -> 0 | AQ68: =IF($B72="n/a","n/a",IF(AQ$3>$B72,+$B74-SUM($F68:AP68),+$B74/$B72)) -> 0 | AR68: =IF($B72="n/a","n/a",IF(AR$3>$B72,+$B74-SUM($F68:AQ68),+$B74/$B72)) -> 0 | AS68: =IF($B72="n/a","n/a",IF(AS$3>$B72,+$B74-SUM($F68:AR68),+$B74/$B72)) -> 0 | AT68: =IF($B72="n/a","n/a",IF(AT$3>$B72,+$B74-SUM($F68:AS68),+$B74/$B72)) -> 0 | AU68: =IF($B72="n/a","n/a",IF(AU$3>$B72,+$B74-SUM($F68:AT68),+$B74/$B72)) -> 0 | AV68: =IF($B72="n/a","n/a",IF(AV$3>$B72,+$B74-SUM($F68:AU68),+$B74/$B72)) -> 0 | AW68: =IF($B72="n/a","n/a",IF(AW$3>$B72,+$B74-SUM($F68:AV68),+$B74/$B72)) -> 0 | AX68: =IF($B72="n/a","n/a",IF(AX$3>$B72,+$B74-SUM($F68:AW68),+$B74/$B72)) -> 0 | AY68: =IF($B72="n/a","n/a",IF(AY$3>$B72,+$B74-SUM($F68:AX68),+$B74/$B72)) -> 0 | AZ68: =IF($B72="n/a","n/a",IF(AZ$3>$B72,+$B74-SUM($F68:AY68),+$B74/$B72)) -> 0 | BA68: =IF($B72="n/a","n/a",IF(BA$3>$B72,+$B74-SUM($F68:AZ68),+$B74/$B72)) -> 0 | BB68: =IF($B72="n/a","n/a",IF(BB$3>$B72,+$B74-SUM($F68:BA68),+$B74/$B72)) -> 0 | BC68: =IF($B72="n/a","n/a",IF(BC$3>$B72,+$B74-SUM($F68:BB68),+$B74/$B72)) -> 0 | BD68: =IF($B72="n/a","n/a",IF(BD$3>$B72,+$B74-SUM($F68:BC68),+$B74/$B72)) -> 0 | BE68: =IF($B72="n/a","n/a",IF(BE$3>$B72,+$B74-SUM($F68:BD68),+$B74/$B72)) -> 0 | BF68: =IF($B72="n/a","n/a",IF(BF$3>$B72,+$B74-SUM($F68:BE68),+$B74/$B72)) -> 0 | BG68: =IF($B72="n/a","n/a",IF(BG$3>$B72,+$B74-SUM($F68:BF68),+$B74/$B72)) -> 0 | BH68: =IF($B72="n/a","n/a",IF(BH$3>$B72,+$B74-SUM($F68:BG68),+$B74/$B72)) -> 0 | BI68: =IF($B72="n/a","n/a",IF(BI$3>$B72,+$B74-SUM($F68:BH68),+$B74/$B72)) -> 0 | BJ68: =IF($B72="n/a","n/a",IF(BJ$3>$B72,+$B74-SUM($F68:BI68),+$B74/$B72)) -> 0 | BK68: =IF($B72="n/a","n/a",IF(BK$3>$B72,+$B74-SUM($F68:BJ68),+$B74/$B72)) -> 0 | BL68: =IF($B72="n/a","n/a",IF(BL$3>$B72,+$B74-SUM($F68:BK68),+$B74/$B72)) -> 0 | BM68: =IF($B72="n/a","n/a",IF(BM$3>$B72,+$B74-SUM($F68:BL68),+$B74/$B72)) -> 0 | BN68: =IF($B72="n/a","n/a",IF(BN$3>$B72,+$B74-SUM($F68:BM68),+$B74/$B72)) -> 0
B69: Std Life | C69: Capex: | E69: 0 | J69: Initial Asset Base Adjustment | K69: =IF($B70="n/a","n/a",IF(K$3>$B70,+$B76-SUM($F69:J69),+$B76/($B70-$E74))) -> -12.33056722 | L69: =IF($B70="n/a","n/a",IF(L$3>$B70,+$B76-SUM($F69:K69),+$B76/($B70-$E74))) -> 0 | M69: =IF($B70="n/a","n/a",IF(M$3>$B70,+$B76-SUM($F69:L69),+$B76/($B70-$E74))) -> 0 | N69: =IF($B70="n/a","n/a",IF(N$3>$B70,+$B76-SUM($F69:M69),+$B76/($B70-$E74))) -> 0 | O69: =IF($B70="n/a","n/a",IF(O$3>$B70,+$B76-SUM($F69:N69),+$B76/($B70-$E74))) -> 0 | P69: =IF($B70="n/a","n/a",IF(P$3>$B70,+$B76-SUM($F69:O69),+$B76/($B70-$E74))) -> 0 | Q69: =IF($B70="n/a","n/a",IF(Q$3>$B70,+$B76-SUM($F69:P69),+$B76/($B70-$E74))) -> 0 | R69: =IF($B70="n/a","n/a",IF(R$3>$B70,+$B76-SUM($F69:Q69),+$B76/($B70-$E74))) -> 0 | S69: =IF($B70="n/a","n/a",IF(S$3>$B70,+$B76-SUM($F69:R69),+$B76/($B70-$E74))) -> 0 | T69: =IF($B70="n/a","n/a",IF(T$3>$B70,+$B76-SUM($F69:S69),+$B76/($B70-$E74))) -> 0 | U69: =IF($B70="n/a","n/a",IF(U$3>$B70,+$B76-SUM($F69:T69),+$B76/($B70-$E74))) -> 0 | V69: =IF($B70="n/a","n/a",IF(V$3>$B70,+$B76-SUM($F69:U69),+$B76/($B70-$E74))) -> 0 | W69: =IF($B70="n/a","n/a",IF(W$3>$B70,+$B76-SUM($F69:V69),+$B76/($B70-$E74))) -> 0 | X69: =IF($B70="n/a","n/a",IF(X$3>$B70,+$B76-SUM($F69:W69),+$B76/($B70-$E74))) -> 0 | Y69: =IF($B70="n/a","n/a",IF(Y$3>$B70,+$B76-SUM($F69:X69),+$B76/($B70-$E74))) -> 0 | Z69: =IF($B70="n/a","n/a",IF(Z$3>$B70,+$B76-SUM($F69:Y69),+$B76/($B70-$E74))) -> 0 | AA69: =IF($B70="n/a","n/a",IF(AA$3>$B70,+$B76-SUM($F69:Z69),+$B76/($B70-$E74))) -> 0 | AB69: =IF($B70="n/a","n/a",IF(AB$3>$B70,+$B76-SUM($F69:AA69),+$B76/($B70-$E74))) -> 0 | AC69: =IF($B70="n/a","n/a",IF(AC$3>$B70,+$B76-SUM($F69:AB69),+$B76/($B70-$E74))) -> 0 | AD69: =IF($B70="n/a","n/a",IF(AD$3>$B70,+$B76-SUM($F69:AC69),+$B76/($B70-$E74))) -> 0 | AE69: =IF($B70="n/a","n/a",IF(AE$3>$B70,+$B76-SUM($F69:AD69),+$B76/($B70-$E74))) -> 0 | AF69: =IF($B70="n/a","n/a",IF(AF$3>$B70,+$B76-SUM($F69:AE69),+$B76/($B70-$E74))) -> 0 | AG69: =IF($B70="n/a","n/a",IF(AG$3>$B70,+$B76-SUM($F69:AF69),+$B76/($B70-$E74))) -> 0 | AH69: =IF($B70="n/a","n/a",IF(AH$3>$B70,+$B76-SUM($F69:AG69),+$B76/($B70-$E74))) -> 0 | AI69: =IF($B70="n/a","n/a",IF(AI$3>$B70,+$B76-SUM($F69:AH69),+$B76/($B70-$E74))) -> 0 | AJ69: =IF($B70="n/a","n/a",IF(AJ$3>$B70,+$B76-SUM($F69:AI69),+$B76/($B70-$E74))) -> 0 | AK69: =IF($B70="n/a","n/a",IF(AK$3>$B70,+$B76-SUM($F69:AJ69),+$B76/($B70-$E74))) -> 0 | AL69: =IF($B70="n/a","n/a",IF(AL$3>$B70,+$B76-SUM($F69:AK69),+$B76/($B70-$E74))) -> 0 | AM69: =IF($B70="n/a","n/a",IF(AM$3>$B70,+$B76-SUM($F69:AL69),+$B76/($B70-$E74))) -> 0 | AN69: =IF($B70="n/a","n/a",IF(AN$3>$B70,+$B76-SUM($F69:AM69),+$B76/($B70-$E74))) -> 0 | AO69: =IF($B70="n/a","n/a",IF(AO$3>$B70,+$B76-SUM($F69:AN69),+$B76/($B70-$E74))) -> 0 | AP69: =IF($B70="n/a","n/a",IF(AP$3>$B70,+$B76-SUM($F69:AO69),+$B76/($B70-$E74))) -> 0 | AQ69: =IF($B70="n/a","n/a",IF(AQ$3>$B70,+$B76-SUM($F69:AP69),+$B76/($B70-$E74))) -> 0 | AR69: =IF($B70="n/a","n/a",IF(AR$3>$B70,+$B76-SUM($F69:AQ69),+$B76/($B70-$E74))) -> 0 | AS69: =IF($B70="n/a","n/a",IF(AS$3>$B70,+$B76-SUM($F69:AR69),+$B76/($B70-$E74))) -> 0 | AT69: =IF($B70="n/a","n/a",IF(AT$3>$B70,+$B76-SUM($F69:AS69),+$B76/($B70-$E74))) -> 0 | AU69: =IF($B70="n/a","n/a",IF(AU$3>$B70,+$B76-SUM($F69:AT69),+$B76/($B70-$E74))) -> 0 | AV69: =IF($B70="n/a","n/a",IF(AV$3>$B70,+$B76-SUM($F69:AU69),+$B76/($B70-$E74))) -> 0 | AW69: =IF($B70="n/a","n/a",IF(AW$3>$B70,+$B76-SUM($F69:AV69),+$B76/($B70-$E74))) -> 0 | AX69: =IF($B70="n/a","n/a",IF(AX$3>$B70,+$B76-SUM($F69:AW69),+$B76/($B70-$E74))) -> 0 | AY69: =IF($B70="n/a","n/a",IF(AY$3>$B70,+$B76-SUM($F69:AX69),+$B76/($B70-$E74))) -> 0 | AZ69: =IF($B70="n/a","n/a",IF(AZ$3>$B70,+$B76-SUM($F69:AY69),+$B76/($B70-$E74))) -> 0 | BA69: =IF($B70="n/a","n/a",IF(BA$3>$B70,+$B76-SUM($F69:AZ69),+$B76/($B70-$E74))) -> 0 | BB69: =IF($B70="n/a","n/a",IF(BB$3>$B70,+$B76-SUM($F69:BA69),+$B76/($B70-$E74))) -> 0 | BC69: =IF($B70="n/a","n/a",IF(BC$3>$B70,+$B76-SUM($F69:BB69),+$B76/($B70-$E74))) -> 0 | BD69: =IF($B70="n/a","n/a",IF(BD$3>$B70,+$B76-SUM($F69:BC69),+$B76/($B70-$E74))) -> 0 | BE69: =IF($B70="n/a","n/a",IF(BE$3>$B70,+$B76-SUM($F69:BD69),+$B76/($B70-$E74))) -> 0 | BF69: =IF($B70="n/a","n/a",IF(BF$3>$B70,+$B76-SUM($F69:BE69),+$B76/($B70-$E74))) -> 0 | BG69: =IF($B70="n/a","n/a",IF(BG$3>$B70,+$B76-SUM($F69:BF69),+$B76/($B70-$E74))) -> 0 | BH69: =IF($B70="n/a","n/a",IF(BH$3>$B70,+$B76-SUM($F69:BG69),+$B76/($B70-$E74))) -> 0 | BI69: =IF($B70="n/a","n/a",IF(BI$3>$B70,+$B76-SUM($F69:BH69),+$B76/($B70-$E74))) -> 0 | BJ69: =IF($B70="n/a","n/a",IF(BJ$3>$B70,+$B76-SUM($F69:BI69),+$B76/($B70-$E74))) -> 0 | BK69: =IF($B70="n/a","n/a",IF(BK$3>$B70,+$B76-SUM($F69:BJ69),+$B76/($B70-$E74))) -> 0 | BL69: =IF($B70="n/a","n/a",IF(BL$3>$B70,+$B76-SUM($F69:BK69),+$B76/($B70-$E74))) -> 0 | BM69: =IF($B70="n/a","n/a",IF(BM$3>$B70,+$B76-SUM($F69:BL69),+$B76/($B70-$E74))) -> 0 | BN69: =IF($B70="n/a","n/a",IF(BN$3>$B70,+$B76-SUM($F69:BM69),+$B76/($B70-$E74))) -> 0
B70: =INDEX('I1 '!$C$7:$C$36,A67) -> 4 | C70: =OFFSET('I3 CAPEX '!$E$44,$A67,E70) -> 8.878056948 | E70: 1 | G70: =IF($B70="n/a","n/a",IF(G$3>($B70+$E70),$C70-SUM($F70:F70),($C70/$B70))) -> 2.219514237 | H70: =IF($B70="n/a","n/a",IF(H$3>($B70+$E70),$C70-SUM($F70:G70),($C70/$B70))) -> 2.219514237 | I70: =IF($B70="n/a","n/a",IF(I$3>($B70+$E70),$C70-SUM($F70:H70),($C70/$B70))) -> 2.219514237 | J70: =IF($B70="n/a","n/a",IF(J$3>($B70+$E70),$C70-SUM($F70:I70),($C70/$B70))) -> 2.219514237 | K70: =IF($B70="n/a","n/a",IF(K$3>($B70+$E70),$C70-SUM($F70:J70),($C70/$B70))) -> 0 | L70: =IF($B70="n/a","n/a",IF(L$3>($B70+$E70),$C70-SUM($F70:K70),($C70/$B70))) -> 0 | M70: =IF($B70="n/a","n/a",IF(M$3>($B70+$E70),$C70-SUM($F70:L70),($C70/$B70))) -> 0 | N70: =IF($B70="n/a","n/a",IF(N$3>($B70+$E70),$C70-SUM($F70:M70),($C70/$B70))) -> 0 | O70: =IF($B70="n/a","n/a",IF(O$3>($B70+$E70),$C70-SUM($F70:N70),($C70/$B70))) -> 0 | P70: =IF($B70="n/a","n/a",IF(P$3>($B70+$E70),$C70-SUM($F70:O70),($C70/$B70))) -> 0 | Q70: =IF($B70="n/a","n/a",IF(Q$3>($B70+$E70),$C70-SUM($F70:P70),($C70/$B70))) -> 0 | R70: =IF($B70="n/a","n/a",IF(R$3>($B70+$E70),$C70-SUM($F70:Q70),($C70/$B70))) -> 0 | S70: =IF($B70="n/a","n/a",IF(S$3>($B70+$E70),$C70-SUM($F70:R70),($C70/$B70))) -> 0 | T70: =IF($B70="n/a","n/a",IF(T$3>($B70+$E70),$C70-SUM($F70:S70),($C70/$B70))) -> 0 | U70: =IF($B70="n/a","n/a",IF(U$3>($B70+$E70),$C70-SUM($F70:T70),($C70/$B70))) -> 0 | V70: =IF($B70="n/a","n/a",IF(V$3>($B70+$E70),$C70-SUM($F70:U70),($C70/$B70))) -> 0 | W70: =IF($B70="n/a","n/a",IF(W$3>($B70+$E70),$C70-SUM($F70:V70),($C70/$B70))) -> 0 | X70: =IF($B70="n/a","n/a",IF(X$3>($B70+$E70),$C70-SUM($F70:W70),($C70/$B70))) -> 0 | Y70: =IF($B70="n/a","n/a",IF(Y$3>($B70+$E70),$C70-SUM($F70:X70),($C70/$B70))) -> 0 | Z70: =IF($B70="n/a","n/a",IF(Z$3>($B70+$E70),$C70-SUM($F70:Y70),($C70/$B70))) -> 0 | AA70: =IF($B70="n/a","n/a",IF(AA$3>($B70+$E70),$C70-SUM($F70:Z70),($C70/$B70))) -> 0 | AB70: =IF($B70="n/a","n/a",IF(AB$3>($B70+$E70),$C70-SUM($F70:AA70),($C70/$B70))) -> 0 | AC70: =IF($B70="n/a","n/a",IF(AC$3>($B70+$E70),$C70-SUM($F70:AB70),($C70/$B70))) -> 0 | AD70: =IF($B70="n/a","n/a",IF(AD$3>($B70+$E70),$C70-SUM($F70:AC70),($C70/$B70))) -> 0 | AE70: =IF($B70="n/a","n/a",IF(AE$3>($B70+$E70),$C70-SUM($F70:AD70),($C70/$B70))) -> 0 | AF70: =IF($B70="n/a","n/a",IF(AF$3>($B70+$E70),$C70-SUM($F70:AE70),($C70/$B70))) -> 0 | AG70: =IF($B70="n/a","n/a",IF(AG$3>($B70+$E70),$C70-SUM($F70:AF70),($C70/$B70))) -> 0 | AH70: =IF($B70="n/a","n/a",IF(AH$3>($B70+$E70),$C70-SUM($F70:AG70),($C70/$B70))) -> 0 | AI70: =IF($B70="n/a","n/a",IF(AI$3>($B70+$E70),$C70-SUM($F70:AH70),($C70/$B70))) -> 0 | AJ70: =IF($B70="n/a","n/a",IF(AJ$3>($B70+$E70),$C70-SUM($F70:AI70),($C70/$B70))) -> 0 | AK70: =IF($B70="n/a","n/a",IF(AK$3>($B70+$E70),$C70-SUM($F70:AJ70),($C70/$B70))) -> 0 | AL70: =IF($B70="n/a","n/a",IF(AL$3>($B70+$E70),$C70-SUM($F70:AK70),($C70/$B70))) -> 0 | AM70: =IF($B70="n/a","n/a",IF(AM$3>($B70+$E70),$C70-SUM($F70:AL70),($C70/$B70))) -> 0 | AN70: =IF($B70="n/a","n/a",IF(AN$3>($B70+$E70),$C70-SUM($F70:AM70),($C70/$B70))) -> 0 | AO70: =IF($B70="n/a","n/a",IF(AO$3>($B70+$E70),$C70-SUM($F70:AN70),($C70/$B70))) -> 0 | AP70: =IF($B70="n/a","n/a",IF(AP$3>($B70+$E70),$C70-SUM($F70:AO70),($C70/$B70))) -> 0 | AQ70: =IF($B70="n/a","n/a",IF(AQ$3>($B70+$E70),$C70-SUM($F70:AP70),($C70/$B70))) -> 0 | AR70: =IF($B70="n/a","n/a",IF(AR$3>($B70+$E70),$C70-SUM($F70:AQ70),($C70/$B70))) -> 0 | AS70: =IF($B70="n/a","n/a",IF(AS$3>($B70+$E70),$C70-SUM($F70:AR70),($C70/$B70))) -> 0 | AT70: =IF($B70="n/a","n/a",IF(AT$3>($B70+$E70),$C70-SUM($F70:AS70),($C70/$B70))) -> 0 | AU70: =IF($B70="n/a","n/a",IF(AU$3>($B70+$E70),$C70-SUM($F70:AT70),($C70/$B70))) -> 0 | AV70: =IF($B70="n/a","n/a",IF(AV$3>($B70+$E70),$C70-SUM($F70:AU70),($C70/$B70))) -> 0 | AW70: =IF($B70="n/a","n/a",IF(AW$3>($B70+$E70),$C70-SUM($F70:AV70),($C70/$B70))) -> 0 | AX70: =IF($B70="n/a","n/a",IF(AX$3>($B70+$E70),$C70-SUM($F70:AW70),($C70/$B70))) -> 0 | AY70: =IF($B70="n/a","n/a",IF(AY$3>($B70+$E70),$C70-SUM($F70:AX70),($C70/$B70))) -> 0 | AZ70: =IF($B70="n/a","n/a",IF(AZ$3>($B70+$E70),$C70-SUM($F70:AY70),($C70/$B70))) -> 0 | BA70: =IF($B70="n/a","n/a",IF(BA$3>($B70+$E70),$C70-SUM($F70:AZ70),($C70/$B70))) -> 0 | BB70: =IF($B70="n/a","n/a",IF(BB$3>($B70+$E70),$C70-SUM($F70:BA70),($C70/$B70))) -> 0 | BC70: =IF($B70="n/a","n/a",IF(BC$3>($B70+$E70),$C70-SUM($F70:BB70),($C70/$B70))) -> 0 | BD70: =IF($B70="n/a","n/a",IF(BD$3>($B70+$E70),$C70-SUM($F70:BC70),($C70/$B70))) -> 0 | BE70: =IF($B70="n/a","n/a",IF(BE$3>($B70+$E70),$C70-SUM($F70:BD70),($C70/$B70))) -> 0 | BF70: =IF($B70="n/a","n/a",IF(BF$3>($B70+$E70),$C70-SUM($F70:BE70),($C70/$B70))) -> 0 | BG70: =IF($B70="n/a","n/a",IF(BG$3>($B70+$E70),$C70-SUM($F70:BF70),($C70/$B70))) -> 0 | BH70: =IF($B70="n/a","n/a",IF(BH$3>($B70+$E70),$C70-SUM($F70:BG70),($C70/$B70))) -> 0 | BI70: =IF($B70="n/a","n/a",IF(BI$3>($B70+$E70),$C70-SUM($F70:BH70),($C70/$B70))) -> 0 | BJ70: =IF($B70="n/a","n/a",IF(BJ$3>($B70+$E70),$C70-SUM($F70:BI70),($C70/$B70))) -> 0 | BK70: =IF($B70="n/a","n/a",IF(BK$3>($B70+$E70),$C70-SUM($F70:BJ70),($C70/$B70))) -> 0 | BL70: =IF($B70="n/a","n/a",IF(BL$3>($B70+$E70),$C70-SUM($F70:BK70),($C70/$B70))) -> 0 | BM70: =IF($B70="n/a","n/a",IF(BM$3>($B70+$E70),$C70-SUM($F70:BL70),($C70/$B70))) -> 0 | BN70: =IF($B70="n/a","n/a",IF(BN$3>($B70+$E70),$C70-SUM($F70:BM70),($C70/$B70))) -> 0
B71: Rem Life | C71: =OFFSET('I3 CAPEX '!$E$44,$A67,E71) -> 12.55645152 | E71: 2 | H71: =IF($B70="n/a","n/a",IF(H$3>($B70+$E71),$C71-SUM($F71:G71),($C71/$B70))) -> 3.139112879 | I71: =IF($B70="n/a","n/a",IF(I$3>($B70+$E71),$C71-SUM($F71:H71),($C71/$B70))) -> 3.139112879 | J71: =IF($B70="n/a","n/a",IF(J$3>($B70+$E71),$C71-SUM($F71:I71),($C71/$B70))) -> 3.139112879 | K71: =IF($B70="n/a","n/a",IF(K$3>($B70+$E71),$C71-SUM($F71:J71),($C71/$B70))) -> 3.139112879 | L71: =IF($B70="n/a","n/a",IF(L$3>($B70+$E71),$C71-SUM($F71:K71),($C71/$B70))) -> 0 | M71: =IF($B70="n/a","n/a",IF(M$3>($B70+$E71),$C71-SUM($F71:L71),($C71/$B70))) -> 0 | N71: =IF($B70="n/a","n/a",IF(N$3>($B70+$E71),$C71-SUM($F71:M71),($C71/$B70))) -> 0 | O71: =IF($B70="n/a","n/a",IF(O$3>($B70+$E71),$C71-SUM($F71:N71),($C71/$B70))) -> 0 | P71: =IF($B70="n/a","n/a",IF(P$3>($B70+$E71),$C71-SUM($F71:O71),($C71/$B70))) -> 0 | Q71: =IF($B70="n/a","n/a",IF(Q$3>($B70+$E71),$C71-SUM($F71:P71),($C71/$B70))) -> 0 | R71: =IF($B70="n/a","n/a",IF(R$3>($B70+$E71),$C71-SUM($F71:Q71),($C71/$B70))) -> 0 | S71: =IF($B70="n/a","n/a",IF(S$3>($B70+$E71),$C71-SUM($F71:R71),($C71/$B70))) -> 0 | T71: =IF($B70="n/a","n/a",IF(T$3>($B70+$E71),$C71-SUM($F71:S71),($C71/$B70))) -> 0 | U71: =IF($B70="n/a","n/a",IF(U$3>($B70+$E71),$C71-SUM($F71:T71),($C71/$B70))) -> 0 | V71: =IF($B70="n/a","n/a",IF(V$3>($B70+$E71),$C71-SUM($F71:U71),($C71/$B70))) -> 0 | W71: =IF($B70="n/a","n/a",IF(W$3>($B70+$E71),$C71-SUM($F71:V71),($C71/$B70))) -> 0 | X71: =IF($B70="n/a","n/a",IF(X$3>($B70+$E71),$C71-SUM($F71:W71),($C71/$B70))) -> 0 | Y71: =IF($B70="n/a","n/a",IF(Y$3>($B70+$E71),$C71-SUM($F71:X71),($C71/$B70))) -> 0 | Z71: =IF($B70="n/a","n/a",IF(Z$3>($B70+$E71),$C71-SUM($F71:Y71),($C71/$B70))) -> 0 | AA71: =IF($B70="n/a","n/a",IF(AA$3>($B70+$E71),$C71-SUM($F71:Z71),($C71/$B70))) -> 0 | AB71: =IF($B70="n/a","n/a",IF(AB$3>($B70+$E71),$C71-SUM($F71:AA71),($C71/$B70))) -> 0 | AC71: =IF($B70="n/a","n/a",IF(AC$3>($B70+$E71),$C71-SUM($F71:AB71),($C71/$B70))) -> 0 | AD71: =IF($B70="n/a","n/a",IF(AD$3>($B70+$E71),$C71-SUM($F71:AC71),($C71/$B70))) -> 0 | AE71: =IF($B70="n/a","n/a",IF(AE$3>($B70+$E71),$C71-SUM($F71:AD71),($C71/$B70))) -> 0 | AF71: =IF($B70="n/a","n/a",IF(AF$3>($B70+$E71),$C71-SUM($F71:AE71),($C71/$B70))) -> 0 | AG71: =IF($B70="n/a","n/a",IF(AG$3>($B70+$E71),$C71-SUM($F71:AF71),($C71/$B70))) -> 0 | AH71: =IF($B70="n/a","n/a",IF(AH$3>($B70+$E71),$C71-SUM($F71:AG71),($C71/$B70))) -> 0 | AI71: =IF($B70="n/a","n/a",IF(AI$3>($B70+$E71),$C71-SUM($F71:AH71),($C71/$B70))) -> 0 | AJ71: =IF($B70="n/a","n/a",IF(AJ$3>($B70+$E71),$C71-SUM($F71:AI71),($C71/$B70))) -> 0 | AK71: =IF($B70="n/a","n/a",IF(AK$3>($B70+$E71),$C71-SUM($F71:AJ71),($C71/$B70))) -> 0 | AL71: =IF($B70="n/a","n/a",IF(AL$3>($B70+$E71),$C71-SUM($F71:AK71),($C71/$B70))) -> 0 | AM71: =IF($B70="n/a","n/a",IF(AM$3>($B70+$E71),$C71-SUM($F71:AL71),($C71/$B70))) -> 0 | AN71: =IF($B70="n/a","n/a",IF(AN$3>($B70+$E71),$C71-SUM($F71:AM71),($C71/$B70))) -> 0 | AO71: =IF($B70="n/a","n/a",IF(AO$3>($B70+$E71),$C71-SUM($F71:AN71),($C71/$B70))) -> 0 | AP71: =IF($B70="n/a","n/a",IF(AP$3>($B70+$E71),$C71-SUM($F71:AO71),($C71/$B70))) -> 0 | AQ71: =IF($B70="n/a","n/a",IF(AQ$3>($B70+$E71),$C71-SUM($F71:AP71),($C71/$B70))) -> 0 | AR71: =IF($B70="n/a","n/a",IF(AR$3>($B70+$E71),$C71-SUM($F71:AQ71),($C71/$B70))) -> 0 | AS71: =IF($B70="n/a","n/a",IF(AS$3>($B70+$E71),$C71-SUM($F71:AR71),($C71/$B70))) -> 0 | AT71: =IF($B70="n/a","n/a",IF(AT$3>($B70+$E71),$C71-SUM($F71:AS71),($C71/$B70))) -> 0 | AU71: =IF($B70="n/a","n/a",IF(AU$3>($B70+$E71),$C71-SUM($F71:AT71),($C71/$B70))) -> 0 | AV71: =IF($B70="n/a","n/a",IF(AV$3>($B70+$E71),$C71-SUM($F71:AU71),($C71/$B70))) -> 0 | AW71: =IF($B70="n/a","n/a",IF(AW$3>($B70+$E71),$C71-SUM($F71:AV71),($C71/$B70))) -> 0 | AX71: =IF($B70="n/a","n/a",IF(AX$3>($B70+$E71),$C71-SUM($F71:AW71),($C71/$B70))) -> 0 | AY71: =IF($B70="n/a","n/a",IF(AY$3>($B70+$E71),$C71-SUM($F71:AX71),($C71/$B70))) -> 0 | AZ71: =IF($B70="n/a","n/a",IF(AZ$3>($B70+$E71),$C71-SUM($F71:AY71),($C71/$B70))) -> 0 | BA71: =IF($B70="n/a","n/a",IF(BA$3>($B70+$E71),$C71-SUM($F71:AZ71),($C71/$B70))) -> 0 | BB71: =IF($B70="n/a","n/a",IF(BB$3>($B70+$E71),$C71-SUM($F71:BA71),($C71/$B70))) -> 0 | BC71: =IF($B70="n/a","n/a",IF(BC$3>($B70+$E71),$C71-SUM($F71:BB71),($C71/$B70))) -> 0 | BD71: =IF($B70="n/a","n/a",IF(BD$3>($B70+$E71),$C71-SUM($F71:BC71),($C71/$B70))) -> 0 | BE71: =IF($B70="n/a","n/a",IF(BE$3>($B70+$E71),$C71-SUM($F71:BD71),($C71/$B70))) -> 0 | BF71: =IF($B70="n/a","n/a",IF(BF$3>($B70+$E71),$C71-SUM($F71:BE71),($C71/$B70))) -> 0 | BG71: =IF($B70="n/a","n/a",IF(BG$3>($B70+$E71),$C71-SUM($F71:BF71),($C71/$B70))) -> 0 | BH71: =IF($B70="n/a","n/a",IF(BH$3>($B70+$E71),$C71-SUM($F71:BG71),($C71/$B70))) -> 0 | BI71: =IF($B70="n/a","n/a",IF(BI$3>($B70+$E71),$C71-SUM($F71:BH71),($C71/$B70))) -> 0 | BJ71: =IF($B70="n/a","n/a",IF(BJ$3>($B70+$E71),$C71-SUM($F71:BI71),($C71/$B70))) -> 0 | BK71: =IF($B70="n/a","n/a",IF(BK$3>($B70+$E71),$C71-SUM($F71:BJ71),($C71/$B70))) -> 0 | BL71: =IF($B70="n/a","n/a",IF(BL$3>($B70+$E71),$C71-SUM($F71:BK71),($C71/$B70))) -> 0 | BM71: =IF($B70="n/a","n/a",IF(BM$3>($B70+$E71),$C71-SUM($F71:BL71),($C71/$B70))) -> 0 | BN71: =IF($B70="n/a","n/a",IF(BN$3>($B70+$E71),$C71-SUM($F71:BM71),($C71/$B70))) -> 0
B72: =INDEX('I2 RAB '!$E$9:$E$38,A67) -> 3.495058628 | C72: =OFFSET('I3 CAPEX '!$E$44,$A67,E72) -> 10.66622012 | E72: 3 | I72: =IF($B70="n/a","n/a",IF(I$3>($B70+$E72),$C72-SUM($F72:H72),($C72/$B70))) -> 2.666555029 | J72: =IF($B70="n/a","n/a",IF(J$3>($B70+$E72),$C72-SUM($F72:I72),($C72/$B70))) -> 2.666555029 | K72: =IF($B70="n/a","n/a",IF(K$3>($B70+$E72),$C72-SUM($F72:J72),($C72/$B70))) -> 2.666555029 | L72: =IF($B70="n/a","n/a",IF(L$3>($B70+$E72),$C72-SUM($F72:K72),($C72/$B70))) -> 2.666555029 | M72: =IF($B70="n/a","n/a",IF(M$3>($B70+$E72),$C72-SUM($F72:L72),($C72/$B70))) -> 0 | N72: =IF($B70="n/a","n/a",IF(N$3>($B70+$E72),$C72-SUM($F72:M72),($C72/$B70))) -> 0 | O72: =IF($B70="n/a","n/a",IF(O$3>($B70+$E72),$C72-SUM($F72:N72),($C72/$B70))) -> 0 | P72: =IF($B70="n/a","n/a",IF(P$3>($B70+$E72),$C72-SUM($F72:O72),($C72/$B70))) -> 0 | Q72: =IF($B70="n/a","n/a",IF(Q$3>($B70+$E72),$C72-SUM($F72:P72),($C72/$B70))) -> 0 | R72: =IF($B70="n/a","n/a",IF(R$3>($B70+$E72),$C72-SUM($F72:Q72),($C72/$B70))) -> 0 | S72: =IF($B70="n/a","n/a",IF(S$3>($B70+$E72),$C72-SUM($F72:R72),($C72/$B70))) -> 0 | T72: =IF($B70="n/a","n/a",IF(T$3>($B70+$E72),$C72-SUM($F72:S72),($C72/$B70))) -> 0 | U72: =IF($B70="n/a","n/a",IF(U$3>($B70+$E72),$C72-SUM($F72:T72),($C72/$B70))) -> 0 | V72: =IF($B70="n/a","n/a",IF(V$3>($B70+$E72),$C72-SUM($F72:U72),($C72/$B70))) -> 0 | W72: =IF($B70="n/a","n/a",IF(W$3>($B70+$E72),$C72-SUM($F72:V72),($C72/$B70))) -> 0 | X72: =IF($B70="n/a","n/a",IF(X$3>($B70+$E72),$C72-SUM($F72:W72),($C72/$B70))) -> 0 | Y72: =IF($B70="n/a","n/a",IF(Y$3>($B70+$E72),$C72-SUM($F72:X72),($C72/$B70))) -> 0 | Z72: =IF($B70="n/a","n/a",IF(Z$3>($B70+$E72),$C72-SUM($F72:Y72),($C72/$B70))) -> 0 | AA72: =IF($B70="n/a","n/a",IF(AA$3>($B70+$E72),$C72-SUM($F72:Z72),($C72/$B70))) -> 0 | AB72: =IF($B70="n/a","n/a",IF(AB$3>($B70+$E72),$C72-SUM($F72:AA72),($C72/$B70))) -> 0 | AC72: =IF($B70="n/a","n/a",IF(AC$3>($B70+$E72),$C72-SUM($F72:AB72),($C72/$B70))) -> 0 | AD72: =IF($B70="n/a","n/a",IF(AD$3>($B70+$E72),$C72-SUM($F72:AC72),($C72/$B70))) -> 0 | AE72: =IF($B70="n/a","n/a",IF(AE$3>($B70+$E72),$C72-SUM($F72:AD72),($C72/$B70))) -> 0 | AF72: =IF($B70="n/a","n/a",IF(AF$3>($B70+$E72),$C72-SUM($F72:AE72),($C72/$B70))) -> 0 | AG72: =IF($B70="n/a","n/a",IF(AG$3>($B70+$E72),$C72-SUM($F72:AF72),($C72/$B70))) -> 0 | AH72: =IF($B70="n/a","n/a",IF(AH$3>($B70+$E72),$C72-SUM($F72:AG72),($C72/$B70))) -> 0 | AI72: =IF($B70="n/a","n/a",IF(AI$3>($B70+$E72),$C72-SUM($F72:AH72),($C72/$B70))) -> 0 | AJ72: =IF($B70="n/a","n/a",IF(AJ$3>($B70+$E72),$C72-SUM($F72:AI72),($C72/$B70))) -> 0 | AK72: =IF($B70="n/a","n/a",IF(AK$3>($B70+$E72),$C72-SUM($F72:AJ72),($C72/$B70))) -> 0 | AL72: =IF($B70="n/a","n/a",IF(AL$3>($B70+$E72),$C72-SUM($F72:AK72),($C72/$B70))) -> 0 | AM72: =IF($B70="n/a","n/a",IF(AM$3>($B70+$E72),$C72-SUM($F72:AL72),($C72/$B70))) -> 0 | AN72: =IF($B70="n/a","n/a",IF(AN$3>($B70+$E72),$C72-SUM($F72:AM72),($C72/$B70))) -> 0 | AO72: =IF($B70="n/a","n/a",IF(AO$3>($B70+$E72),$C72-SUM($F72:AN72),($C72/$B70))) -> 0 | AP72: =IF($B70="n/a","n/a",IF(AP$3>($B70+$E72),$C72-SUM($F72:AO72),($C72/$B70))) -> 0 | AQ72: =IF($B70="n/a","n/a",IF(AQ$3>($B70+$E72),$C72-SUM($F72:AP72),($C72/$B70))) -> 0 | AR72: =IF($B70="n/a","n/a",IF(AR$3>($B70+$E72),$C72-SUM($F72:AQ72),($C72/$B70))) -> 0 | AS72: =IF($B70="n/a","n/a",IF(AS$3>($B70+$E72),$C72-SUM($F72:AR72),($C72/$B70))) -> 0 | AT72: =IF($B70="n/a","n/a",IF(AT$3>($B70+$E72),$C72-SUM($F72:AS72),($C72/$B70))) -> 0 | AU72: =IF($B70="n/a","n/a",IF(AU$3>($B70+$E72),$C72-SUM($F72:AT72),($C72/$B70))) -> 0 | AV72: =IF($B70="n/a","n/a",IF(AV$3>($B70+$E72),$C72-SUM($F72:AU72),($C72/$B70))) -> 0 | AW72: =IF($B70="n/a","n/a",IF(AW$3>($B70+$E72),$C72-SUM($F72:AV72),($C72/$B70))) -> 0 | AX72: =IF($B70="n/a","n/a",IF(AX$3>($B70+$E72),$C72-SUM($F72:AW72),($C72/$B70))) -> 0 | AY72: =IF($B70="n/a","n/a",IF(AY$3>($B70+$E72),$C72-SUM($F72:AX72),($C72/$B70))) -> 0 | AZ72: =IF($B70="n/a","n/a",IF(AZ$3>($B70+$E72),$C72-SUM($F72:AY72),($C72/$B70))) -> 0 | BA72: =IF($B70="n/a","n/a",IF(BA$3>($B70+$E72),$C72-SUM($F72:AZ72),($C72/$B70))) -> 0 | BB72: =IF($B70="n/a","n/a",IF(BB$3>($B70+$E72),$C72-SUM($F72:BA72),($C72/$B70))) -> 0 | BC72: =IF($B70="n/a","n/a",IF(BC$3>($B70+$E72),$C72-SUM($F72:BB72),($C72/$B70))) -> 0 | BD72: =IF($B70="n/a","n/a",IF(BD$3>($B70+$E72),$C72-SUM($F72:BC72),($C72/$B70))) -> 0 | BE72: =IF($B70="n/a","n/a",IF(BE$3>($B70+$E72),$C72-SUM($F72:BD72),($C72/$B70))) -> 0 | BF72: =IF($B70="n/a","n/a",IF(BF$3>($B70+$E72),$C72-SUM($F72:BE72),($C72/$B70))) -> 0 | BG72: =IF($B70="n/a","n/a",IF(BG$3>($B70+$E72),$C72-SUM($F72:BF72),($C72/$B70))) -> 0 | BH72: =IF($B70="n/a","n/a",IF(BH$3>($B70+$E72),$C72-SUM($F72:BG72),($C72/$B70))) -> 0 | BI72: =IF($B70="n/a","n/a",IF(BI$3>($B70+$E72),$C72-SUM($F72:BH72),($C72/$B70))) -> 0 | BJ72: =IF($B70="n/a","n/a",IF(BJ$3>($B70+$E72),$C72-SUM($F72:BI72),($C72/$B70))) -> 0 | BK72: =IF($B70="n/a","n/a",IF(BK$3>($B70+$E72),$C72-SUM($F72:BJ72),($C72/$B70))) -> 0 | BL72: =IF($B70="n/a","n/a",IF(BL$3>($B70+$E72),$C72-SUM($F72:BK72),($C72/$B70))) -> 0 | BM72: =IF($B70="n/a","n/a",IF(BM$3>($B70+$E72),$C72-SUM($F72:BL72),($C72/$B70))) -> 0 | BN72: =IF($B70="n/a","n/a",IF(BN$3>($B70+$E72),$C72-SUM($F72:BM72),($C72/$B70))) -> 0
B73: Op Bal | C73: =OFFSET('I3 CAPEX '!$E$44,$A67,E73) -> 18.91256169 | E73: 4 | J73: =IF($B70="n/a","n/a",IF(J$3>($B70+$E73),$C73-SUM($F73:I73),($C73/$B70))) -> 4.728140423 | K73: =IF($B70="n/a","n/a",IF(K$3>($B70+$E73),$C73-SUM($F73:J73),($C73/$B70))) -> 4.728140423 | L73: =IF($B70="n/a","n/a",IF(L$3>($B70+$E73),$C73-SUM($F73:K73),($C73/$B70))) -> 4.728140423 | M73: =IF($B70="n/a","n/a",IF(M$3>($B70+$E73),$C73-SUM($F73:L73),($C73/$B70))) -> 4.728140423 | N73: =IF($B70="n/a","n/a",IF(N$3>($B70+$E73),$C73-SUM($F73:M73),($C73/$B70))) -> 0 | O73: =IF($B70="n/a","n/a",IF(O$3>($B70+$E73),$C73-SUM($F73:N73),($C73/$B70))) -> 0 | P73: =IF($B70="n/a","n/a",IF(P$3>($B70+$E73),$C73-SUM($F73:O73),($C73/$B70))) -> 0 | Q73: =IF($B70="n/a","n/a",IF(Q$3>($B70+$E73),$C73-SUM($F73:P73),($C73/$B70))) -> 0 | R73: =IF($B70="n/a","n/a",IF(R$3>($B70+$E73),$C73-SUM($F73:Q73),($C73/$B70))) -> 0 | S73: =IF($B70="n/a","n/a",IF(S$3>($B70+$E73),$C73-SUM($F73:R73),($C73/$B70))) -> 0 | T73: =IF($B70="n/a","n/a",IF(T$3>($B70+$E73),$C73-SUM($F73:S73),($C73/$B70))) -> 0 | U73: =IF($B70="n/a","n/a",IF(U$3>($B70+$E73),$C73-SUM($F73:T73),($C73/$B70))) -> 0 | V73: =IF($B70="n/a","n/a",IF(V$3>($B70+$E73),$C73-SUM($F73:U73),($C73/$B70))) -> 0 | W73: =IF($B70="n/a","n/a",IF(W$3>($B70+$E73),$C73-SUM($F73:V73),($C73/$B70))) -> 0 | X73: =IF($B70="n/a","n/a",IF(X$3>($B70+$E73),$C73-SUM($F73:W73),($C73/$B70))) -> 0 | Y73: =IF($B70="n/a","n/a",IF(Y$3>($B70+$E73),$C73-SUM($F73:X73),($C73/$B70))) -> 0 | Z73: =IF($B70="n/a","n/a",IF(Z$3>($B70+$E73),$C73-SUM($F73:Y73),($C73/$B70))) -> 0 | AA73: =IF($B70="n/a","n/a",IF(AA$3>($B70+$E73),$C73-SUM($F73:Z73),($C73/$B70))) -> 0 | AB73: =IF($B70="n/a","n/a",IF(AB$3>($B70+$E73),$C73-SUM($F73:AA73),($C73/$B70))) -> 0 | AC73: =IF($B70="n/a","n/a",IF(AC$3>($B70+$E73),$C73-SUM($F73:AB73),($C73/$B70))) -> 0 | AD73: =IF($B70="n/a","n/a",IF(AD$3>($B70+$E73),$C73-SUM($F73:AC73),($C73/$B70))) -> 0 | AE73: =IF($B70="n/a","n/a",IF(AE$3>($B70+$E73),$C73-SUM($F73:AD73),($C73/$B70))) -> 0 | AF73: =IF($B70="n/a","n/a",IF(AF$3>($B70+$E73),$C73-SUM($F73:AE73),($C73/$B70))) -> 0 | AG73: =IF($B70="n/a","n/a",IF(AG$3>($B70+$E73),$C73-SUM($F73:AF73),($C73/$B70))) -> 0 | AH73: =IF($B70="n/a","n/a",IF(AH$3>($B70+$E73),$C73-SUM($F73:AG73),($C73/$B70))) -> 0 | AI73: =IF($B70="n/a","n/a",IF(AI$3>($B70+$E73),$C73-SUM($F73:AH73),($C73/$B70))) -> 0 | AJ73: =IF($B70="n/a","n/a",IF(AJ$3>($B70+$E73),$C73-SUM($F73:AI73),($C73/$B70))) -> 0 | AK73: =IF($B70="n/a","n/a",IF(AK$3>($B70+$E73),$C73-SUM($F73:AJ73),($C73/$B70))) -> 0 | AL73: =IF($B70="n/a","n/a",IF(AL$3>($B70+$E73),$C73-SUM($F73:AK73),($C73/$B70))) -> 0 | AM73: =IF($B70="n/a","n/a",IF(AM$3>($B70+$E73),$C73-SUM($F73:AL73),($C73/$B70))) -> 0 | AN73: =IF($B70="n/a","n/a",IF(AN$3>($B70+$E73),$C73-SUM($F73:AM73),($C73/$B70))) -> 0 | AO73: =IF($B70="n/a","n/a",IF(AO$3>($B70+$E73),$C73-SUM($F73:AN73),($C73/$B70))) -> 0 | AP73: =IF($B70="n/a","n/a",IF(AP$3>($B70+$E73),$C73-SUM($F73:AO73),($C73/$B70))) -> 0 | AQ73: =IF($B70="n/a","n/a",IF(AQ$3>($B70+$E73),$C73-SUM($F73:AP73),($C73/$B70))) -> 0 | AR73: =IF($B70="n/a","n/a",IF(AR$3>($B70+$E73),$C73-SUM($F73:AQ73),($C73/$B70))) -> 0 | AS73: =IF($B70="n/a","n/a",IF(AS$3>($B70+$E73),$C73-SUM($F73:AR73),($C73/$B70))) -> 0 | AT73: =IF($B70="n/a","n/a",IF(AT$3>($B70+$E73),$C73-SUM($F73:AS73),($C73/$B70))) -> 0 | AU73: =IF($B70="n/a","n/a",IF(AU$3>($B70+$E73),$C73-SUM($F73:AT73),($C73/$B70))) -> 0 | AV73: =IF($B70="n/a","n/a",IF(AV$3>($B70+$E73),$C73-SUM($F73:AU73),($C73/$B70))) -> 0 | AW73: =IF($B70="n/a","n/a",IF(AW$3>($B70+$E73),$C73-SUM($F73:AV73),($C73/$B70))) -> 0 | AX73: =IF($B70="n/a","n/a",IF(AX$3>($B70+$E73),$C73-SUM($F73:AW73),($C73/$B70))) -> 0 | AY73: =IF($B70="n/a","n/a",IF(AY$3>($B70+$E73),$C73-SUM($F73:AX73),($C73/$B70))) -> 0 | AZ73: =IF($B70="n/a","n/a",IF(AZ$3>($B70+$E73),$C73-SUM($F73:AY73),($C73/$B70))) -> 0 | BA73: =IF($B70="n/a","n/a",IF(BA$3>($B70+$E73),$C73-SUM($F73:AZ73),($C73/$B70))) -> 0 | BB73: =IF($B70="n/a","n/a",IF(BB$3>($B70+$E73),$C73-SUM($F73:BA73),($C73/$B70))) -> 0 | BC73: =IF($B70="n/a","n/a",IF(BC$3>($B70+$E73),$C73-SUM($F73:BB73),($C73/$B70))) -> 0 | BD73: =IF($B70="n/a","n/a",IF(BD$3>($B70+$E73),$C73-SUM($F73:BC73),($C73/$B70))) -> 0 | BE73: =IF($B70="n/a","n/a",IF(BE$3>($B70+$E73),$C73-SUM($F73:BD73),($C73/$B70))) -> 0 | BF73: =IF($B70="n/a","n/a",IF(BF$3>($B70+$E73),$C73-SUM($F73:BE73),($C73/$B70))) -> 0 | BG73: =IF($B70="n/a","n/a",IF(BG$3>($B70+$E73),$C73-SUM($F73:BF73),($C73/$B70))) -> 0 | BH73: =IF($B70="n/a","n/a",IF(BH$3>($B70+$E73),$C73-SUM($F73:BG73),($C73/$B70))) -> 0 | BI73: =IF($B70="n/a","n/a",IF(BI$3>($B70+$E73),$C73-SUM($F73:BH73),($C73/$B70))) -> 0 | BJ73: =IF($B70="n/a","n/a",IF(BJ$3>($B70+$E73),$C73-SUM($F73:BI73),($C73/$B70))) -> 0 | BK73: =IF($B70="n/a","n/a",IF(BK$3>($B70+$E73),$C73-SUM($F73:BJ73),($C73/$B70))) -> 0 | BL73: =IF($B70="n/a","n/a",IF(BL$3>($B70+$E73),$C73-SUM($F73:BK73),($C73/$B70))) -> 0 | BM73: =IF($B70="n/a","n/a",IF(BM$3>($B70+$E73),$C73-SUM($F73:BL73),($C73/$B70))) -> 0 | BN73: =IF($B70="n/a","n/a",IF(BN$3>($B70+$E73),$C73-SUM($F73:BM73),($C73/$B70))) -> 0
